Workbook

Sheet Liste (hidden)
A1: Période arrêté | B1: =+LEFT(RIGHT(RIGHT(LEFT(CELL("nomfichier",A1),FIND("]",CELL("nomfichier",A1),1)-1),FIND("]",CELL("nomfichier",A1),1)-FIND("[",CELL("nomfichier",A1),1)-1),11),6) -> 202009 | F1: Agences supprimées automatiquement des requêtes du reporting ce mois-ci. Liste ci-contre mise à jour.
B4: AIX EN OTHE | C4: 10583 | F4: 5705 | G4: EXPERTS CREDIT IMMO | J4: 61 | K4: HAGUENAU MARXENHOUSE | N4: A voir avec Guillaume
B5: ALTKIRCH | C5: 189 | F5: 51390 | G5: FERE CHAMPENOISE | J5: 36 | K5: HOENHEIM RIED
B6: ARCIS SUR AUBE | C6: 10530 | F6: 57613 | G6: SARRALBE | J6: 151 | K6: TURCKHEIM
B7: ARS SUR MOSELLE | C7: 57105
B8: AUDUN LE TICHE | C8: 57113 | F8: ATTENTION :
B9: AY CHAMPAGNE | C9: 51367 | F9: 1/ Revoir la requête en excluant ces agences
B10: BACCARAT | C10: 54116 | F10: 2/ Revoir les liaisons dans l'onglet "Rapport 5" car des lignes ont été supprimées à la main.
B11: BAR LE DUC | C11: 55151
B12: BAR SUR AUBE | C12: 10550
B13: BAR SUR SEINE | C13: 10556
B14: BARR | C14: 113
B15: BAYON | C15: 54161
B16: BEHREN LES FORBACH | C16: 57163
B17: BENFELD | C17: 111
B18: BETHENY | C18: 51340
B19: BETSCHDORF | C19: 76
B20: BISCHHEIM | C20: 28
B21: BISCHWILLER | C21: 57
B22: BITCHE | C22: 57165
B23: BLAINVILLE | C23: 54166
B24: BLAMONT | C24: 54171
B25: BOULAY | C25: 57178
B26: BOURBONNE LES BAINS | C26: 10560
B27: BOUSSE | C27: 57180
B28: BOUXWILLER | C28: 82
B29: BOUZONVILLE | C29: 57182
B30: BRIENNE LE CHATEAU | C30: 10551
B31: BRIEY | C31: 54184
B32: BRUMATH | C32: 30
B33: BRUNSTATT | C33: 186
B34: BRUYERES | C34: 88186
B35: CARIGNAN | C35: 8815
B36: CATTENOM | C36: 57192
B37: CERNAY | C37: 195
B38: CHALIGNY NEUVES MAISONS | C38: 54506
B39: CHALINDREY | C39: 10558
B40: CHALONS ROOSEVELT | C40: 51110
B41: CHALONS VIVIERS | C41: 51101
B42: CHAMPIGNEULLES | C42: 54196
B43: CHANTRAINE | C43: 88201
B44: CHARLEVILLE JEAN JAURES | C44: 8801
B45: CHARLEVILLE MEZIERES | C45: 8822
B46: CHARLEVILLE MOHON | C46: 8817
B47: CHARLEVILLE NEVERS | C47: 8802
B48: CHARMES | C48: 88206
B49: CHATEAU SALINS | C49: 57210
B50: CHATEAUVILLAIN | C50: 10539
B51: CHATENOIS | C51: 108
B52: CHATENOIS VOSGES | C52: 88216
B53: CHAUMONT HOTEL DE VILLE | C53: 10566
B54: CHAUMONT REPUBLIQUE | C54: 10590
B55: CLOUANGE | C55: 57224
B56: COLMAR MARAICHERS | C56: 132
B57: COLMAR REPUBLIQUE | C57: 130
B58: COLMAR SAINT JOSEPH | C58: 134
B59: COLMAR SAINTE MARIE | C59: 135
B60: COLMAR VAUBAN | C60: 133
B61: COMMERCY | C61: 55231
B62: CORNIMONT LA BRESSE | C62: 88246
B63: CREUTZWALD | C63: 57250
B64: DAMERY | C64: 51369
B65: DANNEMARIE | C65: 193
B66: DARNEY | C66: 88256
B67: DIEMERINGEN | C67: 89
B68: DIEULOUARD | C68: 54257
B69: DIEUZE | C69: 57258
B70: DOCELLES | C70: 88261
B71: DOMBASLE SUR MEURTHE | C71: 54266
B72: DORMANS | C72: 51365
B73: DRUSENHEIM | C73: 58
B74: ECKBOLSHEIM | C74: 40
B75: ELOYES | C75: 88281
B76: ENSISHEIM | C76: 162
B77: EPERNAY | C77: 51370
B78: EPINAL ARISTIDE BRIAND | C78: 88286
B79: EPINAL AVRINSART | C79: 88291
B80: EPINAL LEOPOLD BOURG | C80: 88288
B81: ERSTEIN | C81: 104
B82: ESPACE MESANGE | C82: 18
B83: ESSEY LES NANCY | C83: 54296
B84: ETAIN | C84: 55298
B85: EXPERTS DIRECT | C85: 5800
B86: FAGNIERES LECLERC | C86: 51103
B87: FAMECK | C87: 57303
B88: FAULQUEMONT | C88: 57305
B89: FEGERSHEIM | C89: 8
B90: FERRETTE | C90: 191
B91: FISMES | C91: 51314
B92: FLORANGE | C92: 57306
B93: FONTOY | C93: 57307
B94: FORBACH CENTRALE | C94: 57308
B95: FRAIZE | C95: 88316
B96: FROUARD | C96: 54321
B97: GERARDMER | C97: 88326
B98: GIVET | C98: 8839
B99: GOLBEY | C99: 88336
B100: GRANGES AUMONTZEY | C100: 88346
B101: GROSBLIEDERSTROFF | C101: 57345
B102: GUEBWILLER | C102: 147
B103: GUENANGE | C103: 57347
B104: GUNDERSHOFFEN | C104: 70
B105: HAGONDANGE | C105: 57348
B106: HAGUENAU HOUBLON | C106: 60
B107: HAGUENAU MUSAU | C107: 64
B108: HAYANGE | C108: 57350
B109: HERRLISHEIM | C109: 59
B110: HETTANGE GRANDE | C110: 57352
B111: HOCHFELDEN | C111: 92
B112: HOERDT | C112: 41
B113: HOMBOURG HAUT | C113: 57353
B114: HORBOURG WIHR | C114: 141
B115: HUNINGUE | C115: 187
B116: ILLKIRCH CENTRE | C116: 7
B117: ILLKIRCH NORD | C117: 13
B118: ILLZACH | C118: 184
B119: INGERSHEIM | C119: 139
B120: INGWILLER | C120: 85
B121: JARNY | C121: 54355
B122: JARVILLE LA MALGRANGE | C122: 54356
B123: JOEUF | C123: 54357
B124: JOINVILLE | C124: 51154
B125: KAYSERSBERG | C125: 152
B126: LA CHAPELLE ST LUC | C126: 10523
B127: LA WANTZENAU | C127: 33
B128: LANGRES | C128: 10541
B129: LAPOUTROIE | C129: 154
B130: LAUTERBOURG | C130: 78
B131: LAXOU ARISTIDE BRIAND | C131: 54381
B132: LAXOU SAPINIERE | C132: 54376
B133: LE THILLOT | C133: 88386
B134: LE VAL D AJOL | C134: 88396
B135: LIEPVRE | C135: 167
B136: LIGNY EN BARROIS | C136: 55406
B137: LINGOLSHEIM | C137: 15
B138: LONGUYON | C138: 54412
B139: LONGWY BAS | C139: 54413
B140: LONGWY HAUT | C140: 54414
B141: LUDRES | C141: 54416
B142: LUNEVILLE CARNOT | C142: 54426
B143: LUNEVILLE CHATEAU | C143: 54431
B144: MAIZIERES LES METZ | C144: 57432
B145: MARANGE SILVANGE | C145: 57433
B146: MARCKOLSHEIM | C146: 109
B147: MARLENHEIM | C147: 129
B148: MARLY | C148: 57434
B149: MARMOUTIER | C149: 93
B150: MASEVAUX | C150: 196
B151: MERLEBACH | C151: 57435
B152: METZ CATHEDRALE | C152: 57436
B153: METZ MOZART | C153: 57440
B154: METZ PLAPPEVILLE | C154: 57441
B155: METZ POMPIDOU | C155: 57439
B156: METZ REPUBLIQUE | C156: 57443
B157: METZ SAINT LIVIER | C157: 57445
B158: METZ SAINT LOUIS | C158: 57446
B159: METZ SAINT MAXIMIN | C159: 57447
B160: METZ SARRE | C160: 57437
B161: METZERVISSE | C161: 57449
B162: MIRECOURT | C162: 88451
B163: MOLSHEIM | C163: 116
B164: MON AGENCE | C164: 17
B165: MON BANQUIER EN LIGNE | C165: 57880
B166: MONTIGNY LES METZ | C166: 57453
B167: MONTMEDY | C167: 55456
B168: MONTMIRAIL | C168: 51330
B169: MORHANGE | C169: 57458
B170: MOULINS LES METZ | C170: 57459
B171: MOURMELON LE GRAND | C171: 51115
B172: MOUZON | C172: 8819
B173: MOYENMOUTIER | C173: 88461
B174: MULHOUSE DORNACH | C174: 174
B175: MULHOUSE REUNION | C175: 170
B176: MULHOUSE ROOSEVELT | C176: 169
B177: MUNDOLSHEIM | C177: 37
B178: MUNSTER | C178: 143
B179: MUNTZENHEIM | C179: 159
B180: MUTZIG | C180: 126
B181: NANCY ARTEM | C181: 54476
B182: NANCY JEAN JAURES | C182: 54471
B183: NANCY PLACE DOMBASLE | C183: 54481
B184: NANCY PLATEAU DE HAYE | C184: 54466
B185: NANCY POINT CENTRAL | C185: 54486
B186: NANCY SAINT SEBASTIEN | C186: 54491
B187: NANCY TROIS MAISONS | C187: 54496
B188: NEUF BRISACH | C188: 157
B189: NEUFCHATEAU | C189: 88501
B190: NEUNKIRCH | C190: 57503
B191: NIEDERBRONN LES BAINS | C191: 66
B192: NILVANGE | C192: 57508
B193: NOGENT | C193: 10582
B194: NOGENT SUR SEINE | C194: 10570
B195: NOMEXY | C195: 88511
B196: OBERHAUSBERGEN | C196: 38
B197: OBERNAI | C197: 119
B198: ORBEY | C198: 148
B199: OSTWALD | C199: 14
B200: PAGNY SUR MOSELLE | C200: 54516
B201: PFAFFENHOFFEN | C201: 67
B202: PFASTATT | C202: 188
... 138 more rows

Sheet Remises libres (hidden)
A2: ='[1]Remises libres'!A2 -> Code Structure Domiciliation | B2: ='[1]Remises libres'!B2 -> DOM Desg Cour Eds | C2: ='[1]Remises libres'!C2 -> DOM Idnt Extr Eds Niv5 | D2: ='[1]Remises libres'!D2 -> DOM Desg Cour Eds Niv5 | E2: ='[1]Remises libres'!E2 -> DOM Idnt Extr Eds Niv6 | F2: ='[1]Remises libres'!F2 -> DOM Desg Cour Eds Niv6 | G2: ='[1]Remises libres'!G2 -> DOM Idnt Extr Eds Niv7 | H2: ='[1]Remises libres'!H2 -> DOM Desg Cour Eds Niv7 | I2: ='[1]Remises libres'!I2 -> Mt Remises
A3: ='[1]Remises libres'!A3 -> 6 | B3: ='[1]Remises libres'!B3 -> STRASBOURG NEUDORF | C3: ='[1]Remises libres'!C3 -> 4006 | D3: ='[1]Remises libres'!D3 -> STRASBOURG NEUDORF | E3: ='[1]Remises libres'!E3 -> 5006 | F3: ='[1]Remises libres'!F3 -> STRASBOURG | G3: ='[1]Remises libres'!G3 -> 262 | H3: ='[1]Remises libres'!H3 -> BAS RHIN | I3: ='[1]Remises libres'!I3 -> 3346.64
A4: ='[1]Remises libres'!A4 -> 7 | B4: ='[1]Remises libres'!B4 -> ILLKIRCH CENTRE | C4: ='[1]Remises libres'!C4 -> 4007 | D4: ='[1]Remises libres'!D4 -> ILLKIRCH CENTRE | E4: ='[1]Remises libres'!E4 -> 5101 | F4: ='[1]Remises libres'!F4 -> SELESTAT | G4: ='[1]Remises libres'!G4 -> 262 | H4: ='[1]Remises libres'!H4 -> BAS RHIN | I4: ='[1]Remises libres'!I4 -> 4576.65
A5: ='[1]Remises libres'!A5 -> 8 | B5: ='[1]Remises libres'!B5 -> FEGERSHEIM | C5: ='[1]Remises libres'!C5 -> 4008 | D5: ='[1]Remises libres'!D5 -> FEGERSHEIM | E5: ='[1]Remises libres'!E5 -> 5101 | F5: ='[1]Remises libres'!F5 -> SELESTAT | G5: ='[1]Remises libres'!G5 -> 262 | H5: ='[1]Remises libres'!H5 -> BAS RHIN | I5: ='[1]Remises libres'!I5 -> 3880.99
A6: ='[1]Remises libres'!A6 -> 10 | B6: ='[1]Remises libres'!B6 -> STRASBOURG MEINAU | C6: ='[1]Remises libres'!C6 -> 4010 | D6: ='[1]Remises libres'!D6 -> STRASBOURG MEINAU | E6: ='[1]Remises libres'!E6 -> 5006 | F6: ='[1]Remises libres'!F6 -> STRASBOURG | G6: ='[1]Remises libres'!G6 -> 262 | H6: ='[1]Remises libres'!H6 -> BAS RHIN | I6: ='[1]Remises libres'!I6 -> 2393.26
A7: ='[1]Remises libres'!A7 -> 12 | B7: ='[1]Remises libres'!B7 -> STRASBOURG STOCKFELD | C7: ='[1]Remises libres'!C7 -> 4012 | D7: ='[1]Remises libres'!D7 -> STRASBOURG STOCKFELD | E7: ='[1]Remises libres'!E7 -> 5006 | F7: ='[1]Remises libres'!F7 -> STRASBOURG | G7: ='[1]Remises libres'!G7 -> 262 | H7: ='[1]Remises libres'!H7 -> BAS RHIN | I7: ='[1]Remises libres'!I7 -> 1063
A8: ='[1]Remises libres'!A8 -> 13 | B8: ='[1]Remises libres'!B8 -> ILLKIRCH NORD | C8: ='[1]Remises libres'!C8 -> 4007 | D8: ='[1]Remises libres'!D8 -> ILLKIRCH CENTRE | E8: ='[1]Remises libres'!E8 -> 5101 | F8: ='[1]Remises libres'!F8 -> SELESTAT | G8: ='[1]Remises libres'!G8 -> 262 | H8: ='[1]Remises libres'!H8 -> BAS RHIN | I8: ='[1]Remises libres'!I8 -> 792.8
A9: ='[1]Remises libres'!A9 -> 14 | B9: ='[1]Remises libres'!B9 -> OSTWALD | C9: ='[1]Remises libres'!C9 -> 4015 | D9: ='[1]Remises libres'!D9 -> LINGOLSHEIM | E9: ='[1]Remises libres'!E9 -> 5101 | F9: ='[1]Remises libres'!F9 -> SELESTAT | G9: ='[1]Remises libres'!G9 -> 262 | H9: ='[1]Remises libres'!H9 -> BAS RHIN | I9: ='[1]Remises libres'!I9 -> 220
A10: ='[1]Remises libres'!A10 -> 15 | B10: ='[1]Remises libres'!B10 -> LINGOLSHEIM | C10: ='[1]Remises libres'!C10 -> 4015 | D10: ='[1]Remises libres'!D10 -> LINGOLSHEIM | E10: ='[1]Remises libres'!E10 -> 5101 | F10: ='[1]Remises libres'!F10 -> SELESTAT | G10: ='[1]Remises libres'!G10 -> 262 | H10: ='[1]Remises libres'!H10 -> BAS RHIN | I10: ='[1]Remises libres'!I10 -> 3115.94
A11: ='[1]Remises libres'!A11 -> 17 | B11: ='[1]Remises libres'!B11 -> MON AGENCE | C11: ='[1]Remises libres'!C11 -> 4017 | D11: ='[1]Remises libres'!D11 -> MON AGENCE | E11: ='[1]Remises libres'!E11 -> 5017 | F11: ='[1]Remises libres'!F11 -> MON AGENCE | G11: ='[1]Remises libres'!G11 -> 269 | H11: ='[1]Remises libres'!H11 -> BANQUE DIGITALE | I11: ='[1]Remises libres'!I11 -> 4300.95
A12: ='[1]Remises libres'!A12 -> 18 | B12: ='[1]Remises libres'!B12 -> ESPACE MESANGE | C12: ='[1]Remises libres'!C12 -> 4043 | D12: ='[1]Remises libres'!D12 -> STRASBOURG HALLES | E12: ='[1]Remises libres'!E12 -> 5006 | F12: ='[1]Remises libres'!F12 -> STRASBOURG | G12: ='[1]Remises libres'!G12 -> 262 | H12: ='[1]Remises libres'!H12 -> BAS RHIN | I12: ='[1]Remises libres'!I12 -> 256.69
A13: ='[1]Remises libres'!A13 -> 19 | B13: ='[1]Remises libres'!B13 -> STRASBOURG ANVERS | C13: ='[1]Remises libres'!C13 -> 4019 | D13: ='[1]Remises libres'!D13 -> STRASBOURG ANVERS | E13: ='[1]Remises libres'!E13 -> 5006 | F13: ='[1]Remises libres'!F13 -> STRASBOURG | G13: ='[1]Remises libres'!G13 -> 262 | H13: ='[1]Remises libres'!H13 -> BAS RHIN | I13: ='[1]Remises libres'!I13 -> 8911.42
A14: ='[1]Remises libres'!A14 -> 20 | B14: ='[1]Remises libres'!B14 -> STRASBOURG ROBERTSAU | C14: ='[1]Remises libres'!C14 -> 4020 | D14: ='[1]Remises libres'!D14 -> STRASBOURG ROBERTSAU | E14: ='[1]Remises libres'!E14 -> 5006 | F14: ='[1]Remises libres'!F14 -> STRASBOURG | G14: ='[1]Remises libres'!G14 -> 262 | H14: ='[1]Remises libres'!H14 -> BAS RHIN | I14: ='[1]Remises libres'!I14 -> 4135.06
A15: ='[1]Remises libres'!A15 -> 23 | B15: ='[1]Remises libres'!B15 -> STRASBOURG VOSGES | C15: ='[1]Remises libres'!C15 -> 4023 | D15: ='[1]Remises libres'!D15 -> STRASBOURG VOSGES | E15: ='[1]Remises libres'!E15 -> 5006 | F15: ='[1]Remises libres'!F15 -> STRASBOURG | G15: ='[1]Remises libres'!G15 -> 262 | H15: ='[1]Remises libres'!H15 -> BAS RHIN | I15: ='[1]Remises libres'!I15 -> 2991.12
A16: ='[1]Remises libres'!A16 -> 24 | B16: ='[1]Remises libres'!B16 -> STRASBOURG AUSTERLITZ | C16: ='[1]Remises libres'!C16 -> 4024 | D16: ='[1]Remises libres'!D16 -> STRASBOURG AUSTERLITZ | E16: ='[1]Remises libres'!E16 -> 5006 | F16: ='[1]Remises libres'!F16 -> STRASBOURG | G16: ='[1]Remises libres'!G16 -> 262 | H16: ='[1]Remises libres'!H16 -> BAS RHIN | I16: ='[1]Remises libres'!I16 -> 278.53
A17: ='[1]Remises libres'!A17 -> 25 | B17: ='[1]Remises libres'!B17 -> STRASBOURG ESPLANADE | C17: ='[1]Remises libres'!C17 -> 4026 | D17: ='[1]Remises libres'!D17 -> STRASBOURG DANUBE | E17: ='[1]Remises libres'!E17 -> 5006 | F17: ='[1]Remises libres'!F17 -> STRASBOURG | G17: ='[1]Remises libres'!G17 -> 262 | H17: ='[1]Remises libres'!H17 -> BAS RHIN | I17: ='[1]Remises libres'!I17 -> 1831.36
A18: ='[1]Remises libres'!A18 -> 26 | B18: ='[1]Remises libres'!B18 -> STRASBOURG DANUBE | C18: ='[1]Remises libres'!C18 -> 4026 | D18: ='[1]Remises libres'!D18 -> STRASBOURG DANUBE | E18: ='[1]Remises libres'!E18 -> 5006 | F18: ='[1]Remises libres'!F18 -> STRASBOURG | G18: ='[1]Remises libres'!G18 -> 262 | H18: ='[1]Remises libres'!H18 -> BAS RHIN | I18: ='[1]Remises libres'!I18 -> 20.35
A19: ='[1]Remises libres'!A19 -> 27 | B19: ='[1]Remises libres'!B19 -> SCHILTIGHEIM CENTRE | C19: ='[1]Remises libres'!C19 -> 4027 | D19: ='[1]Remises libres'!D19 -> SCHILTIGHEIM CENTRE | E19: ='[1]Remises libres'!E19 -> 5006 | F19: ='[1]Remises libres'!F19 -> STRASBOURG | G19: ='[1]Remises libres'!G19 -> 262 | H19: ='[1]Remises libres'!H19 -> BAS RHIN | I19: ='[1]Remises libres'!I19 -> 7117.3
A20: ='[1]Remises libres'!A20 -> 28 | B20: ='[1]Remises libres'!B20 -> BISCHHEIM | C20: ='[1]Remises libres'!C20 -> 4028 | D20: ='[1]Remises libres'!D20 -> BISCHHEIM | E20: ='[1]Remises libres'!E20 -> 5006 | F20: ='[1]Remises libres'!F20 -> STRASBOURG | G20: ='[1]Remises libres'!G20 -> 262 | H20: ='[1]Remises libres'!H20 -> BAS RHIN | I20: ='[1]Remises libres'!I20 -> 843.98
A21: ='[1]Remises libres'!A21 -> 29 | B21: ='[1]Remises libres'!B21 -> SCHILTIGHEIM KLEBER | C21: ='[1]Remises libres'!C21 -> 4029 | D21: ='[1]Remises libres'!D21 -> SCHILTIGHEIM KLEBER | E21: ='[1]Remises libres'!E21 -> 5006 | F21: ='[1]Remises libres'!F21 -> STRASBOURG | G21: ='[1]Remises libres'!G21 -> 262 | H21: ='[1]Remises libres'!H21 -> BAS RHIN | I21: ='[1]Remises libres'!I21 -> 4244.44
A22: ='[1]Remises libres'!A22 -> 30 | B22: ='[1]Remises libres'!B22 -> BRUMATH | C22: ='[1]Remises libres'!C22 -> 4030 | D22: ='[1]Remises libres'!D22 -> BRUMATH | E22: ='[1]Remises libres'!E22 -> 5060 | F22: ='[1]Remises libres'!F22 -> HAGUENAU | G22: ='[1]Remises libres'!G22 -> 262 | H22: ='[1]Remises libres'!H22 -> BAS RHIN | I22: ='[1]Remises libres'!I22 -> 2618.02
A23: ='[1]Remises libres'!A23 -> 31 | B23: ='[1]Remises libres'!B23 -> TRUCHTERSHEIM | C23: ='[1]Remises libres'!C23 -> 4031 | D23: ='[1]Remises libres'!D23 -> TRUCHTERSHEIM | E23: ='[1]Remises libres'!E23 -> 5060 | F23: ='[1]Remises libres'!F23 -> HAGUENAU | G23: ='[1]Remises libres'!G23 -> 262 | H23: ='[1]Remises libres'!H23 -> BAS RHIN | I23: ='[1]Remises libres'!I23 -> 1327.81
A24: ='[1]Remises libres'!A24 -> 33 | B24: ='[1]Remises libres'!B24 -> LA WANTZENAU | C24: ='[1]Remises libres'!C24 -> 4033 | D24: ='[1]Remises libres'!D24 -> LA WANTZENAU | E24: ='[1]Remises libres'!E24 -> 5006 | F24: ='[1]Remises libres'!F24 -> STRASBOURG | G24: ='[1]Remises libres'!G24 -> 262 | H24: ='[1]Remises libres'!H24 -> BAS RHIN | I24: ='[1]Remises libres'!I24 -> 870.39
A25: ='[1]Remises libres'!A25 -> 34 | B25: ='[1]Remises libres'!B25 -> VENDENHEIM | C25: ='[1]Remises libres'!C25 -> 4037 | D25: ='[1]Remises libres'!D25 -> MUNDOLSHEIM | E25: ='[1]Remises libres'!E25 -> 5006 | F25: ='[1]Remises libres'!F25 -> STRASBOURG | G25: ='[1]Remises libres'!G25 -> 262 | H25: ='[1]Remises libres'!H25 -> BAS RHIN | I25: ='[1]Remises libres'!I25 -> 892.05
A26: ='[1]Remises libres'!A26 -> 37 | B26: ='[1]Remises libres'!B26 -> MUNDOLSHEIM | C26: ='[1]Remises libres'!C26 -> 4037 | D26: ='[1]Remises libres'!D26 -> MUNDOLSHEIM | E26: ='[1]Remises libres'!E26 -> 5006 | F26: ='[1]Remises libres'!F26 -> STRASBOURG | G26: ='[1]Remises libres'!G26 -> 262 | H26: ='[1]Remises libres'!H26 -> BAS RHIN | I26: ='[1]Remises libres'!I26 -> 1344.9
A27: ='[1]Remises libres'!A27 -> 38 | B27: ='[1]Remises libres'!B27 -> OBERHAUSBERGEN | C27: ='[1]Remises libres'!C27 -> 4038 | D27: ='[1]Remises libres'!D27 -> OBERHAUSBERGEN | E27: ='[1]Remises libres'!E27 -> 5006 | F27: ='[1]Remises libres'!F27 -> STRASBOURG | G27: ='[1]Remises libres'!G27 -> 262 | H27: ='[1]Remises libres'!H27 -> BAS RHIN | I27: ='[1]Remises libres'!I27 -> 7923.7
A28: ='[1]Remises libres'!A28 -> 39 | B28: ='[1]Remises libres'!B28 -> REICHSTETT | C28: ='[1]Remises libres'!C28 -> 4039 | D28: ='[1]Remises libres'!D28 -> REICHSTETT | E28: ='[1]Remises libres'!E28 -> 5006 | F28: ='[1]Remises libres'!F28 -> STRASBOURG | G28: ='[1]Remises libres'!G28 -> 262 | H28: ='[1]Remises libres'!H28 -> BAS RHIN | I28: ='[1]Remises libres'!I28 -> 432.06
A29: ='[1]Remises libres'!A29 -> 40 | B29: ='[1]Remises libres'!B29 -> ECKBOLSHEIM | C29: ='[1]Remises libres'!C29 -> 4038 | D29: ='[1]Remises libres'!D29 -> OBERHAUSBERGEN | E29: ='[1]Remises libres'!E29 -> 5006 | F29: ='[1]Remises libres'!F29 -> STRASBOURG | G29: ='[1]Remises libres'!G29 -> 262 | H29: ='[1]Remises libres'!H29 -> BAS RHIN | I29: ='[1]Remises libres'!I29 -> 2168.87
A30: ='[1]Remises libres'!A30 -> 41 | B30: ='[1]Remises libres'!B30 -> HOERDT | C30: ='[1]Remises libres'!C30 -> 4041 | D30: ='[1]Remises libres'!D30 -> HOERDT | E30: ='[1]Remises libres'!E30 -> 5060 | F30: ='[1]Remises libres'!F30 -> HAGUENAU | G30: ='[1]Remises libres'!G30 -> 262 | H30: ='[1]Remises libres'!H30 -> BAS RHIN | I30: ='[1]Remises libres'!I30 -> 1354.33
A31: ='[1]Remises libres'!A31 -> 43 | B31: ='[1]Remises libres'!B31 -> STRASBOURG HALLES | C31: ='[1]Remises libres'!C31 -> 4043 | D31: ='[1]Remises libres'!D31 -> STRASBOURG HALLES | E31: ='[1]Remises libres'!E31 -> 5006 | F31: ='[1]Remises libres'!F31 -> STRASBOURG | G31: ='[1]Remises libres'!G31 -> 262 | H31: ='[1]Remises libres'!H31 -> BAS RHIN | I31: ='[1]Remises libres'!I31 -> 5185.8
A32: ='[1]Remises libres'!A32 -> 45 | B32: ='[1]Remises libres'!B32 -> STRASBOURG FRANCS BOURGEOIS | C32: ='[1]Remises libres'!C32 -> 4045 | D32: ='[1]Remises libres'!D32 -> STRASBOURG FRANCS BOURGEOIS | E32: ='[1]Remises libres'!E32 -> 5006 | F32: ='[1]Remises libres'!F32 -> STRASBOURG | G32: ='[1]Remises libres'!G32 -> 262 | H32: ='[1]Remises libres'!H32 -> BAS RHIN | I32: ='[1]Remises libres'!I32 -> 1274.59
A33: ='[1]Remises libres'!A33 -> 47 | B33: ='[1]Remises libres'!B33 -> STRASBOURG CRONENBOURG | C33: ='[1]Remises libres'!C33 -> 4047 | D33: ='[1]Remises libres'!D33 -> STRASBOURG CRONENBOURG | E33: ='[1]Remises libres'!E33 -> 5006 | F33: ='[1]Remises libres'!F33 -> STRASBOURG | G33: ='[1]Remises libres'!G33 -> 262 | H33: ='[1]Remises libres'!H33 -> BAS RHIN | I33: ='[1]Remises libres'!I33 -> 3881.53
A34: ='[1]Remises libres'!A34 -> 48 | B34: ='[1]Remises libres'!B34 -> STRASBOURG KOENIGSHOFFEN | C34: ='[1]Remises libres'!C34 -> 4048 | D34: ='[1]Remises libres'!D34 -> STRASBOURG KOENIGSHOFFEN | E34: ='[1]Remises libres'!E34 -> 5006 | F34: ='[1]Remises libres'!F34 -> STRASBOURG | G34: ='[1]Remises libres'!G34 -> 262 | H34: ='[1]Remises libres'!H34 -> BAS RHIN | I34: ='[1]Remises libres'!I34 -> 2799.59
A35: ='[1]Remises libres'!A35 -> 50 | B35: ='[1]Remises libres'!B35 -> STRASBOURG GARE | C35: ='[1]Remises libres'!C35 -> 4043 | D35: ='[1]Remises libres'!D35 -> STRASBOURG HALLES | E35: ='[1]Remises libres'!E35 -> 5006 | F35: ='[1]Remises libres'!F35 -> STRASBOURG | G35: ='[1]Remises libres'!G35 -> 262 | H35: ='[1]Remises libres'!H35 -> BAS RHIN | I35: ='[1]Remises libres'!I35 -> 390.09
A36: ='[1]Remises libres'!A36 -> 54 | B36: ='[1]Remises libres'!B36 -> STRASBOURG MONTAGNE VERTE | C36: ='[1]Remises libres'!C36 -> 4054 | D36: ='[1]Remises libres'!D36 -> STRASBOURG MONTAGNE VERTE | E36: ='[1]Remises libres'!E36 -> 5006 | F36: ='[1]Remises libres'!F36 -> STRASBOURG | G36: ='[1]Remises libres'!G36 -> 262 | H36: ='[1]Remises libres'!H36 -> BAS RHIN | I36: ='[1]Remises libres'!I36 -> 4904.85
A37: ='[1]Remises libres'!A37 -> 57 | B37: ='[1]Remises libres'!B37 -> BISCHWILLER | C37: ='[1]Remises libres'!C37 -> 4057 | D37: ='[1]Remises libres'!D37 -> BISCHWILLER | E37: ='[1]Remises libres'!E37 -> 5060 | F37: ='[1]Remises libres'!F37 -> HAGUENAU | G37: ='[1]Remises libres'!G37 -> 262 | H37: ='[1]Remises libres'!H37 -> BAS RHIN | I37: ='[1]Remises libres'!I37 -> 2269.02
A38: ='[1]Remises libres'!A38 -> 58 | B38: ='[1]Remises libres'!B38 -> DRUSENHEIM | C38: ='[1]Remises libres'!C38 -> 4057 | D38: ='[1]Remises libres'!D38 -> BISCHWILLER | E38: ='[1]Remises libres'!E38 -> 5060 | F38: ='[1]Remises libres'!F38 -> HAGUENAU | G38: ='[1]Remises libres'!G38 -> 262 | H38: ='[1]Remises libres'!H38 -> BAS RHIN | I38: ='[1]Remises libres'!I38 -> 989.95
A39: ='[1]Remises libres'!A39 -> 59 | B39: ='[1]Remises libres'!B39 -> HERRLISHEIM | C39: ='[1]Remises libres'!C39 -> 4057 | D39: ='[1]Remises libres'!D39 -> BISCHWILLER | E39: ='[1]Remises libres'!E39 -> 5060 | F39: ='[1]Remises libres'!F39 -> HAGUENAU | G39: ='[1]Remises libres'!G39 -> 262 | H39: ='[1]Remises libres'!H39 -> BAS RHIN | I39: ='[1]Remises libres'!I39 -> 289.07
A40: ='[1]Remises libres'!A40 -> 60 | B40: ='[1]Remises libres'!B40 -> HAGUENAU HOUBLON | C40: ='[1]Remises libres'!C40 -> 4060 | D40: ='[1]Remises libres'!D40 -> HAGUENAU HOUBLON | E40: ='[1]Remises libres'!E40 -> 5060 | F40: ='[1]Remises libres'!F40 -> HAGUENAU | G40: ='[1]Remises libres'!G40 -> 262 | H40: ='[1]Remises libres'!H40 -> BAS RHIN | I40: ='[1]Remises libres'!I40 -> 4182.92
A41: ='[1]Remises libres'!A41 -> 64 | B41: ='[1]Remises libres'!B41 -> HAGUENAU MUSAU | C41: ='[1]Remises libres'!C41 -> 4064 | D41: ='[1]Remises libres'!D41 -> HAGUENAU MUSAU | E41: ='[1]Remises libres'!E41 -> 5060 | F41: ='[1]Remises libres'!F41 -> HAGUENAU | G41: ='[1]Remises libres'!G41 -> 262 | H41: ='[1]Remises libres'!H41 -> BAS RHIN | I41: ='[1]Remises libres'!I41 -> 198.1
A42: ='[1]Remises libres'!A42 -> 65 | B42: ='[1]Remises libres'!B42 -> WEITBRUCH | C42: ='[1]Remises libres'!C42 -> 4030 | D42: ='[1]Remises libres'!D42 -> BRUMATH | E42: ='[1]Remises libres'!E42 -> 5060 | F42: ='[1]Remises libres'!F42 -> HAGUENAU | G42: ='[1]Remises libres'!G42 -> 262 | H42: ='[1]Remises libres'!H42 -> BAS RHIN | I42: ='[1]Remises libres'!I42 -> 224.12
A43: ='[1]Remises libres'!A43 -> 66 | B43: ='[1]Remises libres'!B43 -> NIEDERBRONN LES BAINS | C43: ='[1]Remises libres'!C43 -> 4066 | D43: ='[1]Remises libres'!D43 -> NIEDERBRONN LES BAINS | E43: ='[1]Remises libres'!E43 -> 5060 | F43: ='[1]Remises libres'!F43 -> HAGUENAU | G43: ='[1]Remises libres'!G43 -> 262 | H43: ='[1]Remises libres'!H43 -> BAS RHIN | I43: ='[1]Remises libres'!I43 -> 931.75
A44: ='[1]Remises libres'!A44 -> 67 | B44: ='[1]Remises libres'!B44 -> PFAFFENHOFFEN | C44: ='[1]Remises libres'!C44 -> 4067 | D44: ='[1]Remises libres'!D44 -> PFAFFENHOFFEN | E44: ='[1]Remises libres'!E44 -> 5060 | F44: ='[1]Remises libres'!F44 -> HAGUENAU | G44: ='[1]Remises libres'!G44 -> 262 | H44: ='[1]Remises libres'!H44 -> BAS RHIN | I44: ='[1]Remises libres'!I44 -> 2856.5
A45: ='[1]Remises libres'!A45 -> 68 | B45: ='[1]Remises libres'!B45 -> REICHSHOFFEN | C45: ='[1]Remises libres'!C45 -> 4066 | D45: ='[1]Remises libres'!D45 -> NIEDERBRONN LES BAINS | E45: ='[1]Remises libres'!E45 -> 5060 | F45: ='[1]Remises libres'!F45 -> HAGUENAU | G45: ='[1]Remises libres'!G45 -> 262 | H45: ='[1]Remises libres'!H45 -> BAS RHIN | I45: ='[1]Remises libres'!I45 -> 581.59
A46: ='[1]Remises libres'!A46 -> 70 | B46: ='[1]Remises libres'!B46 -> GUNDERSHOFFEN | C46: ='[1]Remises libres'!C46 -> 4066 | D46: ='[1]Remises libres'!D46 -> NIEDERBRONN LES BAINS | E46: ='[1]Remises libres'!E46 -> 5060 | F46: ='[1]Remises libres'!F46 -> HAGUENAU | G46: ='[1]Remises libres'!G46 -> 262 | H46: ='[1]Remises libres'!H46 -> BAS RHIN | I46: ='[1]Remises libres'!I46 -> 670.63
A47: ='[1]Remises libres'!A47 -> 71 | B47: ='[1]Remises libres'!B47 -> WISSEMBOURG | C47: ='[1]Remises libres'!C47 -> 4071 | D47: ='[1]Remises libres'!D47 -> WISSEMBOURG | E47: ='[1]Remises libres'!E47 -> 5060 | F47: ='[1]Remises libres'!F47 -> HAGUENAU | G47: ='[1]Remises libres'!G47 -> 262 | H47: ='[1]Remises libres'!H47 -> BAS RHIN | I47: ='[1]Remises libres'!I47 -> 2673.77
A48: ='[1]Remises libres'!A48 -> 73 | B48: ='[1]Remises libres'!B48 -> SCHWEIGHOUSE SUR MODER | C48: ='[1]Remises libres'!C48 -> 4073 | D48: ='[1]Remises libres'!D48 -> SCHWEIGHOUSE SUR MODER | E48: ='[1]Remises libres'!E48 -> 5060 | F48: ='[1]Remises libres'!F48 -> HAGUENAU | G48: ='[1]Remises libres'!G48 -> 262 | H48: ='[1]Remises libres'!H48 -> BAS RHIN | I48: ='[1]Remises libres'!I48 -> 537.66
A49: ='[1]Remises libres'!A49 -> 74 | B49: ='[1]Remises libres'!B49 -> SOUFFLENHEIM | C49: ='[1]Remises libres'!C49 -> 4074 | D49: ='[1]Remises libres'!D49 -> SOUFFLENHEIM | E49: ='[1]Remises libres'!E49 -> 5060 | F49: ='[1]Remises libres'!F49 -> HAGUENAU | G49: ='[1]Remises libres'!G49 -> 262 | H49: ='[1]Remises libres'!H49 -> BAS RHIN | I49: ='[1]Remises libres'!I49 -> 852.95
A50: ='[1]Remises libres'!A50 -> 76 | B50: ='[1]Remises libres'!B50 -> BETSCHDORF | C50: ='[1]Remises libres'!C50 -> 4071 | D50: ='[1]Remises libres'!D50 -> WISSEMBOURG | E50: ='[1]Remises libres'!E50 -> 5060 | F50: ='[1]Remises libres'!F50 -> HAGUENAU | G50: ='[1]Remises libres'!G50 -> 262 | H50: ='[1]Remises libres'!H50 -> BAS RHIN | I50: ='[1]Remises libres'!I50 -> 707.53
A51: ='[1]Remises libres'!A51 -> 77 | B51: ='[1]Remises libres'!B51 -> SELTZ | C51: ='[1]Remises libres'!C51 -> 4071 | D51: ='[1]Remises libres'!D51 -> WISSEMBOURG | E51: ='[1]Remises libres'!E51 -> 5060 | F51: ='[1]Remises libres'!F51 -> HAGUENAU | G51: ='[1]Remises libres'!G51 -> 262 | H51: ='[1]Remises libres'!H51 -> BAS RHIN | I51: ='[1]Remises libres'!I51 -> 894.28
A52: ='[1]Remises libres'!A52 -> 78 | B52: ='[1]Remises libres'!B52 -> LAUTERBOURG | C52: ='[1]Remises libres'!C52 -> 4071 | D52: ='[1]Remises libres'!D52 -> WISSEMBOURG | E52: ='[1]Remises libres'!E52 -> 5060 | F52: ='[1]Remises libres'!F52 -> HAGUENAU | G52: ='[1]Remises libres'!G52 -> 262 | H52: ='[1]Remises libres'!H52 -> BAS RHIN | I52: ='[1]Remises libres'!I52 -> 847.59
A53: ='[1]Remises libres'!A53 -> 79 | B53: ='[1]Remises libres'!B53 -> SOULTZ SOUS FORETS | C53: ='[1]Remises libres'!C53 -> 4079 | D53: ='[1]Remises libres'!D53 -> SOULTZ SOUS FORETS | E53: ='[1]Remises libres'!E53 -> 5060 | F53: ='[1]Remises libres'!F53 -> HAGUENAU | G53: ='[1]Remises libres'!G53 -> 262 | H53: ='[1]Remises libres'!H53 -> BAS RHIN | I53: ='[1]Remises libres'!I53 -> 2964.05
A54: ='[1]Remises libres'!A54 -> 80 | B54: ='[1]Remises libres'!B54 -> WOERTH | C54: ='[1]Remises libres'!C54 -> 4080 | D54: ='[1]Remises libres'!D54 -> WOERTH | E54: ='[1]Remises libres'!E54 -> 5060 | F54: ='[1]Remises libres'!F54 -> HAGUENAU | G54: ='[1]Remises libres'!G54 -> 262 | H54: ='[1]Remises libres'!H54 -> BAS RHIN | I54: ='[1]Remises libres'!I54 -> 80.18
A55: ='[1]Remises libres'!A55 -> 82 | B55: ='[1]Remises libres'!B55 -> BOUXWILLER | C55: ='[1]Remises libres'!C55 -> 4082 | D55: ='[1]Remises libres'!D55 -> BOUXWILLER | E55: ='[1]Remises libres'!E55 -> 5060 | F55: ='[1]Remises libres'!F55 -> HAGUENAU | G55: ='[1]Remises libres'!G55 -> 262 | H55: ='[1]Remises libres'!H55 -> BAS RHIN | I55: ='[1]Remises libres'!I55 -> 2091.9
A56: ='[1]Remises libres'!A56 -> 85 | B56: ='[1]Remises libres'!B56 -> INGWILLER | C56: ='[1]Remises libres'!C56 -> 4085 | D56: ='[1]Remises libres'!D56 -> INGWILLER | E56: ='[1]Remises libres'!E56 -> 5060 | F56: ='[1]Remises libres'!F56 -> HAGUENAU | G56: ='[1]Remises libres'!G56 -> 262 | H56: ='[1]Remises libres'!H56 -> BAS RHIN | I56: ='[1]Remises libres'!I56 -> 992.88
A57: ='[1]Remises libres'!A57 -> 86 | B57: ='[1]Remises libres'!B57 -> WINGEN SUR MODER | C57: ='[1]Remises libres'!C57 -> 4085 | D57: ='[1]Remises libres'!D57 -> INGWILLER | E57: ='[1]Remises libres'!E57 -> 5060 | F57: ='[1]Remises libres'!F57 -> HAGUENAU | G57: ='[1]Remises libres'!G57 -> 262 | H57: ='[1]Remises libres'!H57 -> BAS RHIN | I57: ='[1]Remises libres'!I57 -> 1321.39
A58: ='[1]Remises libres'!A58 -> 87 | B58: ='[1]Remises libres'!B58 -> SAVERNE | C58: ='[1]Remises libres'!C58 -> 4087 | D58: ='[1]Remises libres'!D58 -> SAVERNE | E58: ='[1]Remises libres'!E58 -> 5060 | F58: ='[1]Remises libres'!F58 -> HAGUENAU | G58: ='[1]Remises libres'!G58 -> 262 | H58: ='[1]Remises libres'!H58 -> BAS RHIN | I58: ='[1]Remises libres'!I58 -> 7978.81
A59: ='[1]Remises libres'!A59 -> 89 | B59: ='[1]Remises libres'!B59 -> DIEMERINGEN | C59: ='[1]Remises libres'!C59 -> 4095 | D59: ='[1]Remises libres'!D59 -> SARRE UNION | E59: ='[1]Remises libres'!E59 -> 5060 | F59: ='[1]Remises libres'!F59 -> HAGUENAU | G59: ='[1]Remises libres'!G59 -> 262 | H59: ='[1]Remises libres'!H59 -> BAS RHIN | I59: ='[1]Remises libres'!I59 -> 69.22
A60: ='[1]Remises libres'!A60 -> 92 | B60: ='[1]Remises libres'!B60 -> HOCHFELDEN | C60: ='[1]Remises libres'!C60 -> 4092 | D60: ='[1]Remises libres'!D60 -> HOCHFELDEN | E60: ='[1]Remises libres'!E60 -> 5060 | F60: ='[1]Remises libres'!F60 -> HAGUENAU | G60: ='[1]Remises libres'!G60 -> 262 | H60: ='[1]Remises libres'!H60 -> BAS RHIN | I60: ='[1]Remises libres'!I60 -> 2057.04
A61: ='[1]Remises libres'!A61 -> 93 | B61: ='[1]Remises libres'!B61 -> MARMOUTIER | C61: ='[1]Remises libres'!C61 -> 4087 | D61: ='[1]Remises libres'!D61 -> SAVERNE | E61: ='[1]Remises libres'!E61 -> 5060 | F61: ='[1]Remises libres'!F61 -> HAGUENAU | G61: ='[1]Remises libres'!G61 -> 262 | H61: ='[1]Remises libres'!H61 -> BAS RHIN | I61: ='[1]Remises libres'!I61 -> 360.95
A62: ='[1]Remises libres'!A62 -> 95 | B62: ='[1]Remises libres'!B62 -> SARRE UNION | C62: ='[1]Remises libres'!C62 -> 4095 | D62: ='[1]Remises libres'!D62 -> SARRE UNION | E62: ='[1]Remises libres'!E62 -> 5060 | F62: ='[1]Remises libres'!F62 -> HAGUENAU | G62: ='[1]Remises libres'!G62 -> 262 | H62: ='[1]Remises libres'!H62 -> BAS RHIN | I62: ='[1]Remises libres'!I62 -> 52.95
A63: ='[1]Remises libres'!A63 -> 101 | B63: ='[1]Remises libres'!B63 -> SELESTAT CENTRE | C63: ='[1]Remises libres'!C63 -> 4101 | D63: ='[1]Remises libres'!D63 -> SELESTAT CENTRE | E63: ='[1]Remises libres'!E63 -> 5101 | F63: ='[1]Remises libres'!F63 -> SELESTAT | G63: ='[1]Remises libres'!G63 -> 262 | H63: ='[1]Remises libres'!H63 -> BAS RHIN | I63: ='[1]Remises libres'!I63 -> 3268.55
A64: ='[1]Remises libres'!A64 -> 104 | B64: ='[1]Remises libres'!B64 -> ERSTEIN | C64: ='[1]Remises libres'!C64 -> 4104 | D64: ='[1]Remises libres'!D64 -> ERSTEIN | E64: ='[1]Remises libres'!E64 -> 5101 | F64: ='[1]Remises libres'!F64 -> SELESTAT | G64: ='[1]Remises libres'!G64 -> 262 | H64: ='[1]Remises libres'!H64 -> BAS RHIN | I64: ='[1]Remises libres'!I64 -> 1748.26
A65: ='[1]Remises libres'!A65 -> 107 | B65: ='[1]Remises libres'!B65 -> VILLE | C65: ='[1]Remises libres'!C65 -> 4107 | D65: ='[1]Remises libres'!D65 -> VILLE | E65: ='[1]Remises libres'!E65 -> 5101 | F65: ='[1]Remises libres'!F65 -> SELESTAT | G65: ='[1]Remises libres'!G65 -> 262 | H65: ='[1]Remises libres'!H65 -> BAS RHIN | I65: ='[1]Remises libres'!I65 -> 84.6
A66: ='[1]Remises libres'!A66 -> 108 | B66: ='[1]Remises libres'!B66 -> CHATENOIS | C66: ='[1]Remises libres'!C66 -> 4101 | D66: ='[1]Remises libres'!D66 -> SELESTAT CENTRE | E66: ='[1]Remises libres'!E66 -> 5101 | F66: ='[1]Remises libres'!F66 -> SELESTAT | G66: ='[1]Remises libres'!G66 -> 262 | H66: ='[1]Remises libres'!H66 -> BAS RHIN | I66: ='[1]Remises libres'!I66 -> 1775.49
A67: ='[1]Remises libres'!A67 -> 109 | B67: ='[1]Remises libres'!B67 -> MARCKOLSHEIM | C67: ='[1]Remises libres'!C67 -> 4109 | D67: ='[1]Remises libres'!D67 -> MARCKOLSHEIM | E67: ='[1]Remises libres'!E67 -> 5101 | F67: ='[1]Remises libres'!F67 -> SELESTAT | G67: ='[1]Remises libres'!G67 -> 262 | H67: ='[1]Remises libres'!H67 -> BAS RHIN | I67: ='[1]Remises libres'!I67 -> 2064.46
A68: ='[1]Remises libres'!A68 -> 110 | B68: ='[1]Remises libres'!B68 -> SELESTAT OUEST | C68: ='[1]Remises libres'!C68 -> 4110 | D68: ='[1]Remises libres'!D68 -> SELESTAT OUEST | E68: ='[1]Remises libres'!E68 -> 5101 | F68: ='[1]Remises libres'!F68 -> SELESTAT | G68: ='[1]Remises libres'!G68 -> 262 | H68: ='[1]Remises libres'!H68 -> BAS RHIN | I68: ='[1]Remises libres'!I68 -> 218.84
A69: ='[1]Remises libres'!A69 -> 111 | B69: ='[1]Remises libres'!B69 -> BENFELD | C69: ='[1]Remises libres'!C69 -> 4111 | D69: ='[1]Remises libres'!D69 -> BENFELD | E69: ='[1]Remises libres'!E69 -> 5101 | F69: ='[1]Remises libres'!F69 -> SELESTAT | G69: ='[1]Remises libres'!G69 -> 262 | H69: ='[1]Remises libres'!H69 -> BAS RHIN | I69: ='[1]Remises libres'!I69 -> 882.64
A70: ='[1]Remises libres'!A70 -> 113 | B70: ='[1]Remises libres'!B70 -> BARR | C70: ='[1]Remises libres'!C70 -> 4113 | D70: ='[1]Remises libres'!D70 -> BARR | E70: ='[1]Remises libres'!E70 -> 5101 | F70: ='[1]Remises libres'!F70 -> SELESTAT | G70: ='[1]Remises libres'!G70 -> 262 | H70: ='[1]Remises libres'!H70 -> BAS RHIN | I70: ='[1]Remises libres'!I70 -> 2020.08
A71: ='[1]Remises libres'!A71 -> 116 | B71: ='[1]Remises libres'!B71 -> MOLSHEIM | C71: ='[1]Remises libres'!C71 -> 4116 | D71: ='[1]Remises libres'!D71 -> MOLSHEIM | E71: ='[1]Remises libres'!E71 -> 5101 | F71: ='[1]Remises libres'!F71 -> SELESTAT | G71: ='[1]Remises libres'!G71 -> 262 | H71: ='[1]Remises libres'!H71 -> BAS RHIN | I71: ='[1]Remises libres'!I71 -> 4897.56
A72: ='[1]Remises libres'!A72 -> 119 | B72: ='[1]Remises libres'!B72 -> OBERNAI | C72: ='[1]Remises libres'!C72 -> 4119 | D72: ='[1]Remises libres'!D72 -> OBERNAI | E72: ='[1]Remises libres'!E72 -> 5101 | F72: ='[1]Remises libres'!F72 -> SELESTAT | G72: ='[1]Remises libres'!G72 -> 262 | H72: ='[1]Remises libres'!H72 -> BAS RHIN | I72: ='[1]Remises libres'!I72 -> 2979.03
A73: ='[1]Remises libres'!A73 -> 120 | B73: ='[1]Remises libres'!B73 -> WASSELONNE | C73: ='[1]Remises libres'!C73 -> 4120 | D73: ='[1]Remises libres'!D73 -> WASSELONNE | E73: ='[1]Remises libres'!E73 -> 5101 | F73: ='[1]Remises libres'!F73 -> SELESTAT | G73: ='[1]Remises libres'!G73 -> 262 | H73: ='[1]Remises libres'!H73 -> BAS RHIN | I73: ='[1]Remises libres'!I73 -> 1013.68
A74: ='[1]Remises libres'!A74 -> 121 | B74: ='[1]Remises libres'!B74 -> SCHIRMECK | C74: ='[1]Remises libres'!C74 -> 4121 | D74: ='[1]Remises libres'!D74 -> SCHIRMECK | E74: ='[1]Remises libres'!E74 -> 5101 | F74: ='[1]Remises libres'!F74 -> SELESTAT | G74: ='[1]Remises libres'!G74 -> 262 | H74: ='[1]Remises libres'!H74 -> BAS RHIN | I74: ='[1]Remises libres'!I74 -> 3551.53
A75: ='[1]Remises libres'!A75 -> 126 | B75: ='[1]Remises libres'!B75 -> MUTZIG | C75: ='[1]Remises libres'!C75 -> 4126 | D75: ='[1]Remises libres'!D75 -> MUTZIG | E75: ='[1]Remises libres'!E75 -> 5101 | F75: ='[1]Remises libres'!F75 -> SELESTAT | G75: ='[1]Remises libres'!G75 -> 262 | H75: ='[1]Remises libres'!H75 -> BAS RHIN | I75: ='[1]Remises libres'!I75 -> 1503.49
A76: ='[1]Remises libres'!A76 -> 127 | B76: ='[1]Remises libres'!B76 -> ROSHEIM | C76: ='[1]Remises libres'!C76 -> 4127 | D76: ='[1]Remises libres'!D76 -> ROSHEIM | E76: ='[1]Remises libres'!E76 -> 5101 | F76: ='[1]Remises libres'!F76 -> SELESTAT | G76: ='[1]Remises libres'!G76 -> 262 | H76: ='[1]Remises libres'!H76 -> BAS RHIN | I76: ='[1]Remises libres'!I76 -> 347.18
A77: ='[1]Remises libres'!A77 -> 129 | B77: ='[1]Remises libres'!B77 -> MARLENHEIM | C77: ='[1]Remises libres'!C77 -> 4129 | D77: ='[1]Remises libres'!D77 -> MARLENHEIM | E77: ='[1]Remises libres'!E77 -> 5101 | F77: ='[1]Remises libres'!F77 -> SELESTAT | G77: ='[1]Remises libres'!G77 -> 262 | H77: ='[1]Remises libres'!H77 -> BAS RHIN | I77: ='[1]Remises libres'!I77 -> 263.49
A78: ='[1]Remises libres'!A78 -> 130 | B78: ='[1]Remises libres'!B78 -> COLMAR REPUBLIQUE | C78: ='[1]Remises libres'!C78 -> 4130 | D78: ='[1]Remises libres'!D78 -> COLMAR REPUBLIQUE | E78: ='[1]Remises libres'!E78 -> 5130 | F78: ='[1]Remises libres'!F78 -> COLMAR | G78: ='[1]Remises libres'!G78 -> 264 | H78: ='[1]Remises libres'!H78 -> HAUT RHIN | I78: ='[1]Remises libres'!I78 -> 9139.98
A79: ='[1]Remises libres'!A79 -> 132 | B79: ='[1]Remises libres'!B79 -> COLMAR MARAICHERS | C79: ='[1]Remises libres'!C79 -> 4132 | D79: ='[1]Remises libres'!D79 -> COLMAR MARAICHERS | E79: ='[1]Remises libres'!E79 -> 5130 | F79: ='[1]Remises libres'!F79 -> COLMAR | G79: ='[1]Remises libres'!G79 -> 264 | H79: ='[1]Remises libres'!H79 -> HAUT RHIN | I79: ='[1]Remises libres'!I79 -> 2620.31
A80: ='[1]Remises libres'!A80 -> 133 | B80: ='[1]Remises libres'!B80 -> COLMAR VAUBAN | C80: ='[1]Remises libres'!C80 -> 4133 | D80: ='[1]Remises libres'!D80 -> COLMAR VAUBAN | E80: ='[1]Remises libres'!E80 -> 5130 | F80: ='[1]Remises libres'!F80 -> COLMAR | G80: ='[1]Remises libres'!G80 -> 264 | H80: ='[1]Remises libres'!H80 -> HAUT RHIN | I80: ='[1]Remises libres'!I80 -> 716.69
A81: ='[1]Remises libres'!A81 -> 134 | B81: ='[1]Remises libres'!B81 -> COLMAR SAINT JOSEPH | C81: ='[1]Remises libres'!C81 -> 4134 | D81: ='[1]Remises libres'!D81 -> COLMAR SAINT JOSEPH | E81: ='[1]Remises libres'!E81 -> 5130 | F81: ='[1]Remises libres'!F81 -> COLMAR | G81: ='[1]Remises libres'!G81 -> 264 | H81: ='[1]Remises libres'!H81 -> HAUT RHIN | I81: ='[1]Remises libres'!I81 -> 1255.08
A82: ='[1]Remises libres'!A82 -> 135 | B82: ='[1]Remises libres'!B82 -> COLMAR SAINTE MARIE | C82: ='[1]Remises libres'!C82 -> 4135 | D82: ='[1]Remises libres'!D82 -> COLMAR SAINTE MARIE | E82: ='[1]Remises libres'!E82 -> 5130 | F82: ='[1]Remises libres'!F82 -> COLMAR | G82: ='[1]Remises libres'!G82 -> 264 | H82: ='[1]Remises libres'!H82 -> HAUT RHIN | I82: ='[1]Remises libres'!I82 -> 5751.96
A83: ='[1]Remises libres'!A83 -> 139 | B83: ='[1]Remises libres'!B83 -> INGERSHEIM | C83: ='[1]Remises libres'!C83 -> 4139 | D83: ='[1]Remises libres'!D83 -> INGERSHEIM | E83: ='[1]Remises libres'!E83 -> 5130 | F83: ='[1]Remises libres'!F83 -> COLMAR | G83: ='[1]Remises libres'!G83 -> 264 | H83: ='[1]Remises libres'!H83 -> HAUT RHIN | I83: ='[1]Remises libres'!I83 -> 4301.83
A84: ='[1]Remises libres'!A84 -> 140 | B84: ='[1]Remises libres'!B84 -> WINTZENHEIM | C84: ='[1]Remises libres'!C84 -> 4140 | D84: ='[1]Remises libres'!D84 -> WINTZENHEIM | E84: ='[1]Remises libres'!E84 -> 5130 | F84: ='[1]Remises libres'!F84 -> COLMAR | G84: ='[1]Remises libres'!G84 -> 264 | H84: ='[1]Remises libres'!H84 -> HAUT RHIN | I84: ='[1]Remises libres'!I84 -> 1683.99
A85: ='[1]Remises libres'!A85 -> 141 | B85: ='[1]Remises libres'!B85 -> HORBOURG WIHR | C85: ='[1]Remises libres'!C85 -> 4141 | D85: ='[1]Remises libres'!D85 -> HORBOURG WIHR | E85: ='[1]Remises libres'!E85 -> 5130 | F85: ='[1]Remises libres'!F85 -> COLMAR | G85: ='[1]Remises libres'!G85 -> 264 | H85: ='[1]Remises libres'!H85 -> HAUT RHIN | I85: ='[1]Remises libres'!I85 -> 5639.09
A86: ='[1]Remises libres'!A86 -> 143 | B86: ='[1]Remises libres'!B86 -> MUNSTER | C86: ='[1]Remises libres'!C86 -> 4143 | D86: ='[1]Remises libres'!D86 -> MUNSTER | E86: ='[1]Remises libres'!E86 -> 5130 | F86: ='[1]Remises libres'!F86 -> COLMAR | G86: ='[1]Remises libres'!G86 -> 264 | H86: ='[1]Remises libres'!H86 -> HAUT RHIN | I86: ='[1]Remises libres'!I86 -> 4374.04
A87: ='[1]Remises libres'!A87 -> 144 | B87: ='[1]Remises libres'!B87 -> RIBEAUVILLE | C87: ='[1]Remises libres'!C87 -> 4144 | D87: ='[1]Remises libres'!D87 -> RIBEAUVILLE | E87: ='[1]Remises libres'!E87 -> 5130 | F87: ='[1]Remises libres'!F87 -> COLMAR | G87: ='[1]Remises libres'!G87 -> 264 | H87: ='[1]Remises libres'!H87 -> HAUT RHIN | I87: ='[1]Remises libres'!I87 -> 872.75
A88: ='[1]Remises libres'!A88 -> 147 | B88: ='[1]Remises libres'!B88 -> GUEBWILLER | C88: ='[1]Remises libres'!C88 -> 4147 | D88: ='[1]Remises libres'!D88 -> GUEBWILLER | E88: ='[1]Remises libres'!E88 -> 5130 | F88: ='[1]Remises libres'!F88 -> COLMAR | G88: ='[1]Remises libres'!G88 -> 264 | H88: ='[1]Remises libres'!H88 -> HAUT RHIN | I88: ='[1]Remises libres'!I88 -> 1796.45
A89: ='[1]Remises libres'!A89 -> 148 | B89: ='[1]Remises libres'!B89 -> ORBEY | C89: ='[1]Remises libres'!C89 -> 4148 | D89: ='[1]Remises libres'!D89 -> ORBEY | E89: ='[1]Remises libres'!E89 -> 5130 | F89: ='[1]Remises libres'!F89 -> COLMAR | G89: ='[1]Remises libres'!G89 -> 264 | H89: ='[1]Remises libres'!H89 -> HAUT RHIN | I89: ='[1]Remises libres'!I89 -> 2348.72
A90: ='[1]Remises libres'!A90 -> 152 | B90: ='[1]Remises libres'!B90 -> KAYSERSBERG | C90: ='[1]Remises libres'!C90 -> 4139 | D90: ='[1]Remises libres'!D90 -> INGERSHEIM | E90: ='[1]Remises libres'!E90 -> 5130 | F90: ='[1]Remises libres'!F90 -> COLMAR | G90: ='[1]Remises libres'!G90 -> 264 | H90: ='[1]Remises libres'!H90 -> HAUT RHIN | I90: ='[1]Remises libres'!I90 -> 1510.14
A91: ='[1]Remises libres'!A91 -> 153 | B91: ='[1]Remises libres'!B91 -> ROUFFACH | C91: ='[1]Remises libres'!C91 -> 4153 | D91: ='[1]Remises libres'!D91 -> ROUFFACH | E91: ='[1]Remises libres'!E91 -> 5130 | F91: ='[1]Remises libres'!F91 -> COLMAR | G91: ='[1]Remises libres'!G91 -> 264 | H91: ='[1]Remises libres'!H91 -> HAUT RHIN | I91: ='[1]Remises libres'!I91 -> 2643.98
A92: ='[1]Remises libres'!A92 -> 154 | B92: ='[1]Remises libres'!B92 -> LAPOUTROIE | C92: ='[1]Remises libres'!C92 -> 4148 | D92: ='[1]Remises libres'!D92 -> ORBEY | E92: ='[1]Remises libres'!E92 -> 5130 | F92: ='[1]Remises libres'!F92 -> COLMAR | G92: ='[1]Remises libres'!G92 -> 264 | H92: ='[1]Remises libres'!H92 -> HAUT RHIN | I92: ='[1]Remises libres'!I92 -> 411.37
A93: ='[1]Remises libres'!A93 -> 156 | B93: ='[1]Remises libres'!B93 -> SOULTZMATT | C93: ='[1]Remises libres'!C93 -> 4153 | D93: ='[1]Remises libres'!D93 -> ROUFFACH | E93: ='[1]Remises libres'!E93 -> 5130 | F93: ='[1]Remises libres'!F93 -> COLMAR | G93: ='[1]Remises libres'!G93 -> 264 | H93: ='[1]Remises libres'!H93 -> HAUT RHIN | I93: ='[1]Remises libres'!I93 -> 1084.23
A94: ='[1]Remises libres'!A94 -> 157 | B94: ='[1]Remises libres'!B94 -> NEUF BRISACH | C94: ='[1]Remises libres'!C94 -> 4157 | D94: ='[1]Remises libres'!D94 -> NEUF BRISACH | E94: ='[1]Remises libres'!E94 -> 5130 | F94: ='[1]Remises libres'!F94 -> COLMAR | G94: ='[1]Remises libres'!G94 -> 264 | H94: ='[1]Remises libres'!H94 -> HAUT RHIN | I94: ='[1]Remises libres'!I94 -> 1630.77
A95: ='[1]Remises libres'!A95 -> 159 | B95: ='[1]Remises libres'!B95 -> MUNTZENHEIM | C95: ='[1]Remises libres'!C95 -> 4159 | D95: ='[1]Remises libres'!D95 -> MUNTZENHEIM | E95: ='[1]Remises libres'!E95 -> 5130 | F95: ='[1]Remises libres'!F95 -> COLMAR | G95: ='[1]Remises libres'!G95 -> 264 | H95: ='[1]Remises libres'!H95 -> HAUT RHIN | I95: ='[1]Remises libres'!I95 -> 4550.24
A96: ='[1]Remises libres'!A96 -> 160 | B96: ='[1]Remises libres'!B96 -> SOULTZ | C96: ='[1]Remises libres'!C96 -> 4147 | D96: ='[1]Remises libres'!D96 -> GUEBWILLER | E96: ='[1]Remises libres'!E96 -> 5130 | F96: ='[1]Remises libres'!F96 -> COLMAR | G96: ='[1]Remises libres'!G96 -> 264 | H96: ='[1]Remises libres'!H96 -> HAUT RHIN | I96: ='[1]Remises libres'!I96 -> 1568.81
A97: ='[1]Remises libres'!A97 -> 162 | B97: ='[1]Remises libres'!B97 -> ENSISHEIM | C97: ='[1]Remises libres'!C97 -> 4162 | D97: ='[1]Remises libres'!D97 -> ENSISHEIM | E97: ='[1]Remises libres'!E97 -> 5130 | F97: ='[1]Remises libres'!F97 -> COLMAR | G97: ='[1]Remises libres'!G97 -> 264 | H97: ='[1]Remises libres'!H97 -> HAUT RHIN | I97: ='[1]Remises libres'!I97 -> 3240.19
A98: ='[1]Remises libres'!A98 -> 163 | B98: ='[1]Remises libres'!B98 -> PULVERSHEIM | C98: ='[1]Remises libres'!C98 -> 4162 | D98: ='[1]Remises libres'!D98 -> ENSISHEIM | E98: ='[1]Remises libres'!E98 -> 5130 | F98: ='[1]Remises libres'!F98 -> COLMAR | G98: ='[1]Remises libres'!G98 -> 264 | H98: ='[1]Remises libres'!H98 -> HAUT RHIN | I98: ='[1]Remises libres'!I98 -> 503.71
A99: ='[1]Remises libres'!A99 -> 164 | B99: ='[1]Remises libres'!B99 -> SAINTE MARIE AUX MINES | C99: ='[1]Remises libres'!C99 -> 4164 | D99: ='[1]Remises libres'!D99 -> SAINTE MARIE AUX MINES | E99: ='[1]Remises libres'!E99 -> 5130 | F99: ='[1]Remises libres'!F99 -> COLMAR | G99: ='[1]Remises libres'!G99 -> 264 | H99: ='[1]Remises libres'!H99 -> HAUT RHIN | I99: ='[1]Remises libres'!I99 -> 1615.89
A100: ='[1]Remises libres'!A100 -> 167 | B100: ='[1]Remises libres'!B100 -> LIEPVRE | C100: ='[1]Remises libres'!C100 -> 4164 | D100: ='[1]Remises libres'!D100 -> SAINTE MARIE AUX MINES | E100: ='[1]Remises libres'!E100 -> 5130 | F100: ='[1]Remises libres'!F100 -> COLMAR | G100: ='[1]Remises libres'!G100 -> 264 | H100: ='[1]Remises libres'!H100 -> HAUT RHIN | I100: ='[1]Remises libres'!I100 -> 740.24
A101: ='[1]Remises libres'!A101 -> 169 | B101: ='[1]Remises libres'!B101 -> MULHOUSE ROOSEVELT | C101: ='[1]Remises libres'!C101 -> 4169 | D101: ='[1]Remises libres'!D101 -> MULHOUSE ROOSEVELT | E101: ='[1]Remises libres'!E101 -> 5169 | F101: ='[1]Remises libres'!F101 -> MULHOUSE | G101: ='[1]Remises libres'!G101 -> 264 | H101: ='[1]Remises libres'!H101 -> HAUT RHIN | I101: ='[1]Remises libres'!I101 -> 2082.02
A102: ='[1]Remises libres'!A102 -> 170 | B102: ='[1]Remises libres'!B102 -> MULHOUSE REUNION | C102: ='[1]Remises libres'!C102 -> 4170 | D102: ='[1]Remises libres'!D102 -> MULHOUSE REUNION | E102: ='[1]Remises libres'!E102 -> 5169 | F102: ='[1]Remises libres'!F102 -> MULHOUSE | G102: ='[1]Remises libres'!G102 -> 264 | H102: ='[1]Remises libres'!H102 -> HAUT RHIN | I102: ='[1]Remises libres'!I102 -> 2473.33
A103: ='[1]Remises libres'!A103 -> 174 | B103: ='[1]Remises libres'!B103 -> MULHOUSE DORNACH | C103: ='[1]Remises libres'!C103 -> 4174 | D103: ='[1]Remises libres'!D103 -> MULHOUSE DORNACH | E103: ='[1]Remises libres'!E103 -> 5169 | F103: ='[1]Remises libres'!F103 -> MULHOUSE | G103: ='[1]Remises libres'!G103 -> 264 | H103: ='[1]Remises libres'!H103 -> HAUT RHIN | I103: ='[1]Remises libres'!I103 -> 3179.1
A104: ='[1]Remises libres'!A104 -> 178 | B104: ='[1]Remises libres'!B104 -> SAINT LOUIS | C104: ='[1]Remises libres'!C104 -> 4178 | D104: ='[1]Remises libres'!D104 -> SAINT LOUIS | E104: ='[1]Remises libres'!E104 -> 5169 | F104: ='[1]Remises libres'!F104 -> MULHOUSE | G104: ='[1]Remises libres'!G104 -> 264 | H104: ='[1]Remises libres'!H104 -> HAUT RHIN | I104: ='[1]Remises libres'!I104 -> 3354.31
A105: ='[1]Remises libres'!A105 -> 179 | B105: ='[1]Remises libres'!B105 -> SIERENTZ | C105: ='[1]Remises libres'!C105 -> 4178 | D105: ='[1]Remises libres'!D105 -> SAINT LOUIS | E105: ='[1]Remises libres'!E105 -> 5169 | F105: ='[1]Remises libres'!F105 -> MULHOUSE | G105: ='[1]Remises libres'!G105 -> 264 | H105: ='[1]Remises libres'!H105 -> HAUT RHIN | I105: ='[1]Remises libres'!I105 -> 2061.32
A106: ='[1]Remises libres'!A106 -> 180 | B106: ='[1]Remises libres'!B106 -> RIEDISHEIM | C106: ='[1]Remises libres'!C106 -> 4180 | D106: ='[1]Remises libres'!D106 -> RIEDISHEIM | E106: ='[1]Remises libres'!E106 -> 5169 | F106: ='[1]Remises libres'!F106 -> MULHOUSE | G106: ='[1]Remises libres'!G106 -> 264 | H106: ='[1]Remises libres'!H106 -> HAUT RHIN | I106: ='[1]Remises libres'!I106 -> 2217.66
A107: ='[1]Remises libres'!A107 -> 181 | B107: ='[1]Remises libres'!B107 -> WITTELSHEIM | C107: ='[1]Remises libres'!C107 -> 4181 | D107: ='[1]Remises libres'!D107 -> WITTELSHEIM | E107: ='[1]Remises libres'!E107 -> 5169 | F107: ='[1]Remises libres'!F107 -> MULHOUSE | G107: ='[1]Remises libres'!G107 -> 264 | H107: ='[1]Remises libres'!H107 -> HAUT RHIN | I107: ='[1]Remises libres'!I107 -> 1928.68
A108: ='[1]Remises libres'!A108 -> 183 | B108: ='[1]Remises libres'!B108 -> WITTENHEIM | C108: ='[1]Remises libres'!C108 -> 4183 | D108: ='[1]Remises libres'!D108 -> WITTENHEIM | E108: ='[1]Remises libres'!E108 -> 5169 | F108: ='[1]Remises libres'!F108 -> MULHOUSE | G108: ='[1]Remises libres'!G108 -> 264 | H108: ='[1]Remises libres'!H108 -> HAUT RHIN | I108: ='[1]Remises libres'!I108 -> 379.63
A109: ='[1]Remises libres'!A109 -> 184 | B109: ='[1]Remises libres'!B109 -> ILLZACH | C109: ='[1]Remises libres'!C109 -> 4184 | D109: ='[1]Remises libres'!D109 -> ILLZACH | E109: ='[1]Remises libres'!E109 -> 5169 | F109: ='[1]Remises libres'!F109 -> MULHOUSE | G109: ='[1]Remises libres'!G109 -> 264 | H109: ='[1]Remises libres'!H109 -> HAUT RHIN | I109: ='[1]Remises libres'!I109 -> 2809.11
A110: ='[1]Remises libres'!A110 -> 185 | B110: ='[1]Remises libres'!B110 -> RIXHEIM | C110: ='[1]Remises libres'!C110 -> 4185 | D110: ='[1]Remises libres'!D110 -> RIXHEIM | E110: ='[1]Remises libres'!E110 -> 5169 | F110: ='[1]Remises libres'!F110 -> MULHOUSE | G110: ='[1]Remises libres'!G110 -> 264 | H110: ='[1]Remises libres'!H110 -> HAUT RHIN | I110: ='[1]Remises libres'!I110 -> 10645.81
A111: ='[1]Remises libres'!A111 -> 186 | B111: ='[1]Remises libres'!B111 -> BRUNSTATT | C111: ='[1]Remises libres'!C111 -> 4174 | D111: ='[1]Remises libres'!D111 -> MULHOUSE DORNACH | E111: ='[1]Remises libres'!E111 -> 5169 | F111: ='[1]Remises libres'!F111 -> MULHOUSE | G111: ='[1]Remises libres'!G111 -> 264 | H111: ='[1]Remises libres'!H111 -> HAUT RHIN | I111: ='[1]Remises libres'!I111 -> 2152.53
A112: ='[1]Remises libres'!A112 -> 187 | B112: ='[1]Remises libres'!B112 -> HUNINGUE | C112: ='[1]Remises libres'!C112 -> 4178 | D112: ='[1]Remises libres'!D112 -> SAINT LOUIS | E112: ='[1]Remises libres'!E112 -> 5169 | F112: ='[1]Remises libres'!F112 -> MULHOUSE | G112: ='[1]Remises libres'!G112 -> 264 | H112: ='[1]Remises libres'!H112 -> HAUT RHIN | I112: ='[1]Remises libres'!I112 -> 656.4
A113: ='[1]Remises libres'!A113 -> 188 | B113: ='[1]Remises libres'!B113 -> PFASTATT | C113: ='[1]Remises libres'!C113 -> 4188 | D113: ='[1]Remises libres'!D113 -> PFASTATT | E113: ='[1]Remises libres'!E113 -> 5169 | F113: ='[1]Remises libres'!F113 -> MULHOUSE | G113: ='[1]Remises libres'!G113 -> 264 | H113: ='[1]Remises libres'!H113 -> HAUT RHIN | I113: ='[1]Remises libres'!I113 -> 2248.06
A114: ='[1]Remises libres'!A114 -> 189 | B114: ='[1]Remises libres'!B114 -> ALTKIRCH | C114: ='[1]Remises libres'!C114 -> 4189 | D114: ='[1]Remises libres'!D114 -> ALTKIRCH | E114: ='[1]Remises libres'!E114 -> 5169 | F114: ='[1]Remises libres'!F114 -> MULHOUSE | G114: ='[1]Remises libres'!G114 -> 264 | H114: ='[1]Remises libres'!H114 -> HAUT RHIN | I114: ='[1]Remises libres'!I114 -> 1187.63
A115: ='[1]Remises libres'!A115 -> 191 | B115: ='[1]Remises libres'!B115 -> FERRETTE | C115: ='[1]Remises libres'!C115 -> 4189 | D115: ='[1]Remises libres'!D115 -> ALTKIRCH | E115: ='[1]Remises libres'!E115 -> 5169 | F115: ='[1]Remises libres'!F115 -> MULHOUSE | G115: ='[1]Remises libres'!G115 -> 264 | H115: ='[1]Remises libres'!H115 -> HAUT RHIN | I115: ='[1]Remises libres'!I115 -> 111.9
A116: ='[1]Remises libres'!A116 -> 192 | B116: ='[1]Remises libres'!B116 -> SEPPOIS LE BAS | C116: ='[1]Remises libres'!C116 -> 4193 | D116: ='[1]Remises libres'!D116 -> DANNEMARIE | E116: ='[1]Remises libres'!E116 -> 5169 | F116: ='[1]Remises libres'!F116 -> MULHOUSE | G116: ='[1]Remises libres'!G116 -> 264 | H116: ='[1]Remises libres'!H116 -> HAUT RHIN | I116: ='[1]Remises libres'!I116 -> 434.67
A117: ='[1]Remises libres'!A117 -> 193 | B117: ='[1]Remises libres'!B117 -> DANNEMARIE | C117: ='[1]Remises libres'!C117 -> 4193 | D117: ='[1]Remises libres'!D117 -> DANNEMARIE | E117: ='[1]Remises libres'!E117 -> 5169 | F117: ='[1]Remises libres'!F117 -> MULHOUSE | G117: ='[1]Remises libres'!G117 -> 264 | H117: ='[1]Remises libres'!H117 -> HAUT RHIN | I117: ='[1]Remises libres'!I117 -> 937.3
A118: ='[1]Remises libres'!A118 -> 194 | B118: ='[1]Remises libres'!B118 -> THANN | C118: ='[1]Remises libres'!C118 -> 4194 | D118: ='[1]Remises libres'!D118 -> THANN | E118: ='[1]Remises libres'!E118 -> 5169 | F118: ='[1]Remises libres'!F118 -> MULHOUSE | G118: ='[1]Remises libres'!G118 -> 264 | H118: ='[1]Remises libres'!H118 -> HAUT RHIN | I118: ='[1]Remises libres'!I118 -> 4674.33
A119: ='[1]Remises libres'!A119 -> 195 | B119: ='[1]Remises libres'!B119 -> CERNAY | C119: ='[1]Remises libres'!C119 -> 4195 | D119: ='[1]Remises libres'!D119 -> CERNAY | E119: ='[1]Remises libres'!E119 -> 5169 | F119: ='[1]Remises libres'!F119 -> MULHOUSE | G119: ='[1]Remises libres'!G119 -> 264 | H119: ='[1]Remises libres'!H119 -> HAUT RHIN | I119: ='[1]Remises libres'!I119 -> 3265.78
A120: ='[1]Remises libres'!A120 -> 196 | B120: ='[1]Remises libres'!B120 -> MASEVAUX | C120: ='[1]Remises libres'!C120 -> 4196 | D120: ='[1]Remises libres'!D120 -> MASEVAUX | E120: ='[1]Remises libres'!E120 -> 5169 | F120: ='[1]Remises libres'!F120 -> MULHOUSE | G120: ='[1]Remises libres'!G120 -> 264 | H120: ='[1]Remises libres'!H120 -> HAUT RHIN | I120: ='[1]Remises libres'!I120 -> 1484.17
A121: ='[1]Remises libres'!A121 -> 198 | B121: ='[1]Remises libres'!B121 -> SAINT AMARIN | C121: ='[1]Remises libres'!C121 -> 4194 | D121: ='[1]Remises libres'!D121 -> THANN | E121: ='[1]Remises libres'!E121 -> 5169 | F121: ='[1]Remises libres'!F121 -> MULHOUSE | G121: ='[1]Remises libres'!G121 -> 264 | H121: ='[1]Remises libres'!H121 -> HAUT RHIN | I121: ='[1]Remises libres'!I121 -> 193
A122: ='[1]Remises libres'!A122 -> 5800 | B122: ='[1]Remises libres'!B122 -> EXPERTS DIRECT | C122: ='[1]Remises libres'!C122 -> 405800 | D122: ='[1]Remises libres'!D122 -> EXPERTS DIRECT | E122: ='[1]Remises libres'!E122 -> 5800 | F122: ='[1]Remises libres'!F122 -> EXPERTS DIRECT | G122: ='[1]Remises libres'!G122 -> 269 | H122: ='[1]Remises libres'!H122 -> BANQUE DIGITALE | I122: ='[1]Remises libres'!I122 -> 425.55
A123: ='[1]Remises libres'!A123 -> 8801 | B123: ='[1]Remises libres'!B123 -> CHARLEVILLE JEAN JAURES | C123: ='[1]Remises libres'!C123 -> 408801 | D123: ='[1]Remises libres'!D123 -> CHARLEVILLE JEAN JAURES | E123: ='[1]Remises libres'!E123 -> 2 | F123: ='[1]Remises libres'!F123 -> CHARLEVILLE MEZIERES | G123: ='[1]Remises libres'!G123 -> 30 | H123: ='[1]Remises libres'!H123 -> MARNE ARDENNES | I123: ='[1]Remises libres'!I123 -> 2576.79
A124: ='[1]Remises libres'!A124 -> 8802 | B124: ='[1]Remises libres'!B124 -> CHARLEVILLE NEVERS | C124: ='[1]Remises libres'!C124 -> 508802 | D124: ='[1]Remises libres'!D124 -> CHARLEVILLE NEVERS | E124: ='[1]Remises libres'!E124 -> 2 | F124: ='[1]Remises libres'!F124 -> CHARLEVILLE MEZIERES | G124: ='[1]Remises libres'!G124 -> 30 | H124: ='[1]Remises libres'!H124 -> MARNE ARDENNES | I124: ='[1]Remises libres'!I124 -> 220
A125: ='[1]Remises libres'!A125 -> 8806 | B125: ='[1]Remises libres'!B125 -> SEDAN | C125: ='[1]Remises libres'!C125 -> 408806 | D125: ='[1]Remises libres'!D125 -> SEDAN | E125: ='[1]Remises libres'!E125 -> 2 | F125: ='[1]Remises libres'!F125 -> CHARLEVILLE MEZIERES | G125: ='[1]Remises libres'!G125 -> 30 | H125: ='[1]Remises libres'!H125 -> MARNE ARDENNES | I125: ='[1]Remises libres'!I125 -> 2787.75
A126: ='[1]Remises libres'!A126 -> 8814 | B126: ='[1]Remises libres'!B126 -> VRIGNE AUX BOIS | C126: ='[1]Remises libres'!C126 -> 408814 | D126: ='[1]Remises libres'!D126 -> VRIGNE AUX BOIS | E126: ='[1]Remises libres'!E126 -> 2 | F126: ='[1]Remises libres'!F126 -> CHARLEVILLE MEZIERES | G126: ='[1]Remises libres'!G126 -> 30 | H126: ='[1]Remises libres'!H126 -> MARNE ARDENNES | I126: ='[1]Remises libres'!I126 -> 161.95
A127: ='[1]Remises libres'!A127 -> 8815 | B127: ='[1]Remises libres'!B127 -> CARIGNAN | C127: ='[1]Remises libres'!C127 -> 508815 | D127: ='[1]Remises libres'!D127 -> CARIGNAN | E127: ='[1]Remises libres'!E127 -> 2 | F127: ='[1]Remises libres'!F127 -> CHARLEVILLE MEZIERES | G127: ='[1]Remises libres'!G127 -> 30 | H127: ='[1]Remises libres'!H127 -> MARNE ARDENNES | I127: ='[1]Remises libres'!I127 -> 163.47
A128: ='[1]Remises libres'!A128 -> 8817 | B128: ='[1]Remises libres'!B128 -> CHARLEVILLE MOHON | C128: ='[1]Remises libres'!C128 -> 508817 | D128: ='[1]Remises libres'!D128 -> CHARLEVILLE MOHON | E128: ='[1]Remises libres'!E128 -> 2 | F128: ='[1]Remises libres'!F128 -> CHARLEVILLE MEZIERES | G128: ='[1]Remises libres'!G128 -> 30 | H128: ='[1]Remises libres'!H128 -> MARNE ARDENNES | I128: ='[1]Remises libres'!I128 -> 7377.36
A129: ='[1]Remises libres'!A129 -> 8819 | B129: ='[1]Remises libres'!B129 -> MOUZON | C129: ='[1]Remises libres'!C129 -> 508819 | D129: ='[1]Remises libres'!D129 -> MOUZON | E129: ='[1]Remises libres'!E129 -> 2 | F129: ='[1]Remises libres'!F129 -> CHARLEVILLE MEZIERES | G129: ='[1]Remises libres'!G129 -> 30 | H129: ='[1]Remises libres'!H129 -> MARNE ARDENNES | I129: ='[1]Remises libres'!I129 -> 161.01
A130: ='[1]Remises libres'!A130 -> 8820 | B130: ='[1]Remises libres'!B130 -> VOUZIERS | C130: ='[1]Remises libres'!C130 -> 508820 | D130: ='[1]Remises libres'!D130 -> VOUZIERS | E130: ='[1]Remises libres'!E130 -> 2 | F130: ='[1]Remises libres'!F130 -> CHARLEVILLE MEZIERES | G130: ='[1]Remises libres'!G130 -> 30 | H130: ='[1]Remises libres'!H130 -> MARNE ARDENNES | I130: ='[1]Remises libres'!I130 -> 110
A131: ='[1]Remises libres'!A131 -> 8822 | B131: ='[1]Remises libres'!B131 -> CHARLEVILLE MEZIERES | C131: ='[1]Remises libres'!C131 -> 408822 | D131: ='[1]Remises libres'!D131 -> CHARLEVILLE MEZIERES | E131: ='[1]Remises libres'!E131 -> 2 | F131: ='[1]Remises libres'!F131 -> CHARLEVILLE MEZIERES | G131: ='[1]Remises libres'!G131 -> 30 | H131: ='[1]Remises libres'!H131 -> MARNE ARDENNES | I131: ='[1]Remises libres'!I131 -> 96.81
A132: ='[1]Remises libres'!A132 -> 8833 | B132: ='[1]Remises libres'!B132 -> VILLERS SEMEUSE CORA | C132: ='[1]Remises libres'!C132 -> 508833 | D132: ='[1]Remises libres'!D132 -> VILLERS SEMEUSE CORA | E132: ='[1]Remises libres'!E132 -> 2 | F132: ='[1]Remises libres'!F132 -> CHARLEVILLE MEZIERES | G132: ='[1]Remises libres'!G132 -> 30 | H132: ='[1]Remises libres'!H132 -> MARNE ARDENNES | I132: ='[1]Remises libres'!I132 -> 594.62
A133: ='[1]Remises libres'!A133 -> 8839 | B133: ='[1]Remises libres'!B133 -> GIVET | C133: ='[1]Remises libres'!C133 -> 508839 | D133: ='[1]Remises libres'!D133 -> GIVET | E133: ='[1]Remises libres'!E133 -> 2 | F133: ='[1]Remises libres'!F133 -> CHARLEVILLE MEZIERES | G133: ='[1]Remises libres'!G133 -> 30 | H133: ='[1]Remises libres'!H133 -> MARNE ARDENNES | I133: ='[1]Remises libres'!I133 -> 44.24
A134: ='[1]Remises libres'!A134 -> 8840 | B134: ='[1]Remises libres'!B134 -> RETHEL | C134: ='[1]Remises libres'!C134 -> 408840 | D134: ='[1]Remises libres'!D134 -> RETHEL | E134: ='[1]Remises libres'!E134 -> 2 | F134: ='[1]Remises libres'!F134 -> CHARLEVILLE MEZIERES | G134: ='[1]Remises libres'!G134 -> 30 | H134: ='[1]Remises libres'!H134 -> MARNE ARDENNES | I134: ='[1]Remises libres'!I134 -> 214.17
A135: ='[1]Remises libres'!A135 -> 8860 | B135: ='[1]Remises libres'!B135 -> ROCROI | C135: ='[1]Remises libres'!C135 -> 508860 | D135: ='[1]Remises libres'!D135 -> ROCROI | E135: ='[1]Remises libres'!E135 -> 2 | F135: ='[1]Remises libres'!F135 -> CHARLEVILLE MEZIERES | G135: ='[1]Remises libres'!G135 -> 30 | H135: ='[1]Remises libres'!H135 -> MARNE ARDENNES | I135: ='[1]Remises libres'!I135 -> 2020.96
A136: ='[1]Remises libres'!A136 -> 8862 | B136: ='[1]Remises libres'!B136 -> REVIN | C136: ='[1]Remises libres'!C136 -> 408862 | D136: ='[1]Remises libres'!D136 -> REVIN | E136: ='[1]Remises libres'!E136 -> 2 | F136: ='[1]Remises libres'!F136 -> CHARLEVILLE MEZIERES | G136: ='[1]Remises libres'!G136 -> 30 | H136: ='[1]Remises libres'!H136 -> MARNE ARDENNES | I136: ='[1]Remises libres'!I136 -> 695.87
A137: ='[1]Remises libres'!A137 -> 10510 | B137: ='[1]Remises libres'!B137 -> TROYES GAMBETTA | C137: ='[1]Remises libres'!C137 -> 410510 | D137: ='[1]Remises libres'!D137 -> TROYES GAMBETTA | E137: ='[1]Remises libres'!E137 -> 14 | F137: ='[1]Remises libres'!F137 -> TROYES | G137: ='[1]Remises libres'!G137 -> 50 | H137: ='[1]Remises libres'!H137 -> AUBE HAUTE MARNE | I137: ='[1]Remises libres'!I137 -> 1679.47
A138: ='[1]Remises libres'!A138 -> 10511 | B138: ='[1]Remises libres'!B138 -> TROYES BROSSOLETTE | C138: ='[1]Remises libres'!C138 -> 510511 | D138: ='[1]Remises libres'!D138 -> TROYES BROSSOLETTE | E138: ='[1]Remises libres'!E138 -> 14 | F138: ='[1]Remises libres'!F138 -> TROYES | G138: ='[1]Remises libres'!G138 -> 50 | H138: ='[1]Remises libres'!H138 -> AUBE HAUTE MARNE | I138: ='[1]Remises libres'!I138 -> 6
A139: ='[1]Remises libres'!A139 -> 10512 | B139: ='[1]Remises libres'!B139 -> TROYES ZOLA | C139: ='[1]Remises libres'!C139 -> 410512 | D139: ='[1]Remises libres'!D139 -> TROYES ZOLA | E139: ='[1]Remises libres'!E139 -> 14 | F139: ='[1]Remises libres'!F139 -> TROYES | G139: ='[1]Remises libres'!G139 -> 50 | H139: ='[1]Remises libres'!H139 -> AUBE HAUTE MARNE | I139: ='[1]Remises libres'!I139 -> 354.1
A140: ='[1]Remises libres'!A140 -> 10513 | B140: ='[1]Remises libres'!B140 -> TROYES 1ER MAI | C140: ='[1]Remises libres'!C140 -> 510513 | D140: ='[1]Remises libres'!D140 -> TROYES 1ER MAI | E140: ='[1]Remises libres'!E140 -> 14 | F140: ='[1]Remises libres'!F140 -> TROYES | G140: ='[1]Remises libres'!G140 -> 50 | H140: ='[1]Remises libres'!H140 -> AUBE HAUTE MARNE | I140: ='[1]Remises libres'!I140 -> 483
A141: ='[1]Remises libres'!A141 -> 10520 | B141: ='[1]Remises libres'!B141 -> SAINT ANDRE LES VERGERS | C141: ='[1]Remises libres'!C141 -> 510520 | D141: ='[1]Remises libres'!D141 -> SAINT ANDRE LES VERGERS | E141: ='[1]Remises libres'!E141 -> 14 | F141: ='[1]Remises libres'!F141 -> TROYES | G141: ='[1]Remises libres'!G141 -> 50 | H141: ='[1]Remises libres'!H141 -> AUBE HAUTE MARNE | I141: ='[1]Remises libres'!I141 -> 1764.6
A142: ='[1]Remises libres'!A142 -> 10521 | B142: ='[1]Remises libres'!B142 -> SAINTE SAVINE | C142: ='[1]Remises libres'!C142 -> 410521 | D142: ='[1]Remises libres'!D142 -> SAINTE SAVINE | E142: ='[1]Remises libres'!E142 -> 14 | F142: ='[1]Remises libres'!F142 -> TROYES | G142: ='[1]Remises libres'!G142 -> 50 | H142: ='[1]Remises libres'!H142 -> AUBE HAUTE MARNE | I142: ='[1]Remises libres'!I142 -> 1104.1
A143: ='[1]Remises libres'!A143 -> 10522 | B143: ='[1]Remises libres'!B143 -> TROYES CHARTREUX | C143: ='[1]Remises libres'!C143 -> 510522 | D143: ='[1]Remises libres'!D143 -> TROYES CHARTREUX | E143: ='[1]Remises libres'!E143 -> 14 | F143: ='[1]Remises libres'!F143 -> TROYES | G143: ='[1]Remises libres'!G143 -> 50 | H143: ='[1]Remises libres'!H143 -> AUBE HAUTE MARNE | I143: ='[1]Remises libres'!I143 -> 166.06
A144: ='[1]Remises libres'!A144 -> 10523 | B144: ='[1]Remises libres'!B144 -> LA CHAPELLE ST LUC | C144: ='[1]Remises libres'!C144 -> 510523 | D144: ='[1]Remises libres'!D144 -> LA CHAPELLE ST LUC | E144: ='[1]Remises libres'!E144 -> 14 | F144: ='[1]Remises libres'!F144 -> TROYES | G144: ='[1]Remises libres'!G144 -> 50 | H144: ='[1]Remises libres'!H144 -> AUBE HAUTE MARNE | I144: ='[1]Remises libres'!I144 -> 690.21
A145: ='[1]Remises libres'!A145 -> 10524 | B145: ='[1]Remises libres'!B145 -> SAINT JULIEN LES VILLAS | C145: ='[1]Remises libres'!C145 -> 410524 | D145: ='[1]Remises libres'!D145 -> SAINT JULIEN LES VILLAS | E145: ='[1]Remises libres'!E145 -> 14 | F145: ='[1]Remises libres'!F145 -> TROYES | G145: ='[1]Remises libres'!G145 -> 50 | H145: ='[1]Remises libres'!H145 -> AUBE HAUTE MARNE | I145: ='[1]Remises libres'!I145 -> 316.88
A146: ='[1]Remises libres'!A146 -> 10530 | B146: ='[1]Remises libres'!B146 -> ARCIS SUR AUBE | C146: ='[1]Remises libres'!C146 -> 510530 | D146: ='[1]Remises libres'!D146 -> ARCIS SUR AUBE | E146: ='[1]Remises libres'!E146 -> 14 | F146: ='[1]Remises libres'!F146 -> TROYES | G146: ='[1]Remises libres'!G146 -> 50 | H146: ='[1]Remises libres'!H146 -> AUBE HAUTE MARNE | I146: ='[1]Remises libres'!I146 -> 945.65
A147: ='[1]Remises libres'!A147 -> 10539 | B147: ='[1]Remises libres'!B147 -> CHATEAUVILLAIN | C147: ='[1]Remises libres'!C147 -> 410566 | D147: ='[1]Remises libres'!D147 -> CHAUMONT HOTEL DE VILLE | E147: ='[1]Remises libres'!E147 -> 21 | F147: ='[1]Remises libres'!F147 -> CHAUMONT | G147: ='[1]Remises libres'!G147 -> 50 | H147: ='[1]Remises libres'!H147 -> AUBE HAUTE MARNE | I147: ='[1]Remises libres'!I147 -> 150
A148: ='[1]Remises libres'!A148 -> 10541 | B148: ='[1]Remises libres'!B148 -> LANGRES | C148: ='[1]Remises libres'!C148 -> 410541 | D148: ='[1]Remises libres'!D148 -> LANGRES | E148: ='[1]Remises libres'!E148 -> 21 | F148: ='[1]Remises libres'!F148 -> CHAUMONT | G148: ='[1]Remises libres'!G148 -> 50 | H148: ='[1]Remises libres'!H148 -> AUBE HAUTE MARNE | I148: ='[1]Remises libres'!I148 -> 169.92
A149: ='[1]Remises libres'!A149 -> 10550 | B149: ='[1]Remises libres'!B149 -> BAR SUR AUBE | C149: ='[1]Remises libres'!C149 -> 410550 | D149: ='[1]Remises libres'!D149 -> BAR SUR AUBE | E149: ='[1]Remises libres'!E149 -> 14 | F149: ='[1]Remises libres'!F149 -> TROYES | G149: ='[1]Remises libres'!G149 -> 50 | H149: ='[1]Remises libres'!H149 -> AUBE HAUTE MARNE | I149: ='[1]Remises libres'!I149 -> 908.5
A150: ='[1]Remises libres'!A150 -> 10551 | B150: ='[1]Remises libres'!B150 -> BRIENNE LE CHATEAU | C150: ='[1]Remises libres'!C150 -> 410551 | D150: ='[1]Remises libres'!D150 -> BRIENNE LE CHATEAU | E150: ='[1]Remises libres'!E150 -> 14 | F150: ='[1]Remises libres'!F150 -> TROYES | G150: ='[1]Remises libres'!G150 -> 50 | H150: ='[1]Remises libres'!H150 -> AUBE HAUTE MARNE | I150: ='[1]Remises libres'!I150 -> 12.57
A151: ='[1]Remises libres'!A151 -> 10556 | B151: ='[1]Remises libres'!B151 -> BAR SUR SEINE | C151: ='[1]Remises libres'!C151 -> 510556 | D151: ='[1]Remises libres'!D151 -> BAR SUR SEINE | E151: ='[1]Remises libres'!E151 -> 14 | F151: ='[1]Remises libres'!F151 -> TROYES | G151: ='[1]Remises libres'!G151 -> 50 | H151: ='[1]Remises libres'!H151 -> AUBE HAUTE MARNE | I151: ='[1]Remises libres'!I151 -> 583.52
A152: ='[1]Remises libres'!A152 -> 10558 | B152: ='[1]Remises libres'!B152 -> CHALINDREY | C152: ='[1]Remises libres'!C152 -> 410541 | D152: ='[1]Remises libres'!D152 -> LANGRES | E152: ='[1]Remises libres'!E152 -> 21 | F152: ='[1]Remises libres'!F152 -> CHAUMONT | G152: ='[1]Remises libres'!G152 -> 50 | H152: ='[1]Remises libres'!H152 -> AUBE HAUTE MARNE | I152: ='[1]Remises libres'!I152 -> 210
A153: ='[1]Remises libres'!A153 -> 10560 | B153: ='[1]Remises libres'!B153 -> BOURBONNE LES BAINS | C153: ='[1]Remises libres'!C153 -> 410560 | D153: ='[1]Remises libres'!D153 -> BOURBONNE LES BAINS | E153: ='[1]Remises libres'!E153 -> 21 | F153: ='[1]Remises libres'!F153 -> CHAUMONT | G153: ='[1]Remises libres'!G153 -> 50 | H153: ='[1]Remises libres'!H153 -> AUBE HAUTE MARNE | I153: ='[1]Remises libres'!I153 -> 110
A154: ='[1]Remises libres'!A154 -> 10566 | B154: ='[1]Remises libres'!B154 -> CHAUMONT HOTEL DE VILLE | C154: ='[1]Remises libres'!C154 -> 410566 | D154: ='[1]Remises libres'!D154 -> CHAUMONT HOTEL DE VILLE | E154: ='[1]Remises libres'!E154 -> 21 | F154: ='[1]Remises libres'!F154 -> CHAUMONT | G154: ='[1]Remises libres'!G154 -> 50 | H154: ='[1]Remises libres'!H154 -> AUBE HAUTE MARNE | I154: ='[1]Remises libres'!I154 -> 2787.19
A155: ='[1]Remises libres'!A155 -> 10570 | B155: ='[1]Remises libres'!B155 -> NOGENT SUR SEINE | C155: ='[1]Remises libres'!C155 -> 510570 | D155: ='[1]Remises libres'!D155 -> NOGENT SUR SEINE | E155: ='[1]Remises libres'!E155 -> 14 | F155: ='[1]Remises libres'!F155 -> TROYES | G155: ='[1]Remises libres'!G155 -> 50 | H155: ='[1]Remises libres'!H155 -> AUBE HAUTE MARNE | I155: ='[1]Remises libres'!I155 -> 2222.46
A156: ='[1]Remises libres'!A156 -> 10571 | B156: ='[1]Remises libres'!B156 -> ROMILLY SUR SEINE | C156: ='[1]Remises libres'!C156 -> 410571 | D156: ='[1]Remises libres'!D156 -> ROMILLY SUR SEINE | E156: ='[1]Remises libres'!E156 -> 14 | F156: ='[1]Remises libres'!F156 -> TROYES | G156: ='[1]Remises libres'!G156 -> 50 | H156: ='[1]Remises libres'!H156 -> AUBE HAUTE MARNE | I156: ='[1]Remises libres'!I156 -> 664.94
A157: ='[1]Remises libres'!A157 -> 10582 | B157: ='[1]Remises libres'!B157 -> NOGENT | C157: ='[1]Remises libres'!C157 -> 410582 | D157: ='[1]Remises libres'!D157 -> NOGENT | E157: ='[1]Remises libres'!E157 -> 21 | F157: ='[1]Remises libres'!F157 -> CHAUMONT | G157: ='[1]Remises libres'!G157 -> 50 | H157: ='[1]Remises libres'!H157 -> AUBE HAUTE MARNE | I157: ='[1]Remises libres'!I157 -> 680
A158: ='[1]Remises libres'!A158 -> 10583 | B158: ='[1]Remises libres'!B158 -> AIX EN OTHE | C158: ='[1]Remises libres'!C158 -> 510523 | D158: ='[1]Remises libres'!D158 -> LA CHAPELLE ST LUC | E158: ='[1]Remises libres'!E158 -> 14 | F158: ='[1]Remises libres'!F158 -> TROYES | G158: ='[1]Remises libres'!G158 -> 50 | H158: ='[1]Remises libres'!H158 -> AUBE HAUTE MARNE | I158: ='[1]Remises libres'!I158 -> 16.2
A159: ='[1]Remises libres'!A159 -> 10590 | B159: ='[1]Remises libres'!B159 -> CHAUMONT REPUBLIQUE | C159: ='[1]Remises libres'!C159 -> 510590 | D159: ='[1]Remises libres'!D159 -> CHAUMONT REPUBLIQUE | E159: ='[1]Remises libres'!E159 -> 21 | F159: ='[1]Remises libres'!F159 -> CHAUMONT | G159: ='[1]Remises libres'!G159 -> 50 | H159: ='[1]Remises libres'!H159 -> AUBE HAUTE MARNE | I159: ='[1]Remises libres'!I159 -> 208.08
A160: ='[1]Remises libres'!A160 -> 51101 | B160: ='[1]Remises libres'!B160 -> CHALONS VIVIERS | C160: ='[1]Remises libres'!C160 -> 451101 | D160: ='[1]Remises libres'!D160 -> CHALONS VIVIERS | E160: ='[1]Remises libres'!E160 -> 6 | F160: ='[1]Remises libres'!F160 -> CHALONS EN CHAMPAGNE | G160: ='[1]Remises libres'!G160 -> 30 | H160: ='[1]Remises libres'!H160 -> MARNE ARDENNES | I160: ='[1]Remises libres'!I160 -> 2875.95
A161: ='[1]Remises libres'!A161 -> 51103 | B161: ='[1]Remises libres'!B161 -> FAGNIERES LECLERC | C161: ='[1]Remises libres'!C161 -> 551103 | D161: ='[1]Remises libres'!D161 -> FAGNIERES LECLERC | E161: ='[1]Remises libres'!E161 -> 6 | F161: ='[1]Remises libres'!F161 -> CHALONS EN CHAMPAGNE | G161: ='[1]Remises libres'!G161 -> 30 | H161: ='[1]Remises libres'!H161 -> MARNE ARDENNES | I161: ='[1]Remises libres'!I161 -> 5160.07
A162: ='[1]Remises libres'!A162 -> 51110 | B162: ='[1]Remises libres'!B162 -> CHALONS ROOSEVELT | C162: ='[1]Remises libres'!C162 -> 551110 | D162: ='[1]Remises libres'!D162 -> CHALONS ROOSEVELT | E162: ='[1]Remises libres'!E162 -> 6 | F162: ='[1]Remises libres'!F162 -> CHALONS EN CHAMPAGNE | G162: ='[1]Remises libres'!G162 -> 30 | H162: ='[1]Remises libres'!H162 -> MARNE ARDENNES | I162: ='[1]Remises libres'!I162 -> 1122.58
A163: ='[1]Remises libres'!A163 -> 51114 | B163: ='[1]Remises libres'!B163 -> SUIPPES | C163: ='[1]Remises libres'!C163 -> 451115 | D163: ='[1]Remises libres'!D163 -> MOURMELON LE GRAND | E163: ='[1]Remises libres'!E163 -> 6 | F163: ='[1]Remises libres'!F163 -> CHALONS EN CHAMPAGNE | G163: ='[1]Remises libres'!G163 -> 30 | H163: ='[1]Remises libres'!H163 -> MARNE ARDENNES | I163: ='[1]Remises libres'!I163 -> 252.2
A164: ='[1]Remises libres'!A164 -> 51115 | B164: ='[1]Remises libres'!B164 -> MOURMELON LE GRAND | C164: ='[1]Remises libres'!C164 -> 451115 | D164: ='[1]Remises libres'!D164 -> MOURMELON LE GRAND | E164: ='[1]Remises libres'!E164 -> 6 | F164: ='[1]Remises libres'!F164 -> CHALONS EN CHAMPAGNE | G164: ='[1]Remises libres'!G164 -> 30 | H164: ='[1]Remises libres'!H164 -> MARNE ARDENNES | I164: ='[1]Remises libres'!I164 -> 525
A165: ='[1]Remises libres'!A165 -> 51120 | B165: ='[1]Remises libres'!B165 -> SARRY | C165: ='[1]Remises libres'!C165 -> 451120 | D165: ='[1]Remises libres'!D165 -> SARRY | E165: ='[1]Remises libres'!E165 -> 6 | F165: ='[1]Remises libres'!F165 -> CHALONS EN CHAMPAGNE | G165: ='[1]Remises libres'!G165 -> 30 | H165: ='[1]Remises libres'!H165 -> MARNE ARDENNES | I165: ='[1]Remises libres'!I165 -> 364.8
A166: ='[1]Remises libres'!A166 -> 51128 | B166: ='[1]Remises libres'!B166 -> SAINTE MENEHOULD | C166: ='[1]Remises libres'!C166 -> 551128 | D166: ='[1]Remises libres'!D166 -> SAINTE MENEHOULD | E166: ='[1]Remises libres'!E166 -> 6 | F166: ='[1]Remises libres'!F166 -> CHALONS EN CHAMPAGNE | G166: ='[1]Remises libres'!G166 -> 30 | H166: ='[1]Remises libres'!H166 -> MARNE ARDENNES | I166: ='[1]Remises libres'!I166 -> 691.47
A167: ='[1]Remises libres'!A167 -> 51151 | B167: ='[1]Remises libres'!B167 -> WASSY | C167: ='[1]Remises libres'!C167 -> 451151 | D167: ='[1]Remises libres'!D167 -> WASSY | E167: ='[1]Remises libres'!E167 -> 21 | F167: ='[1]Remises libres'!F167 -> CHAUMONT | G167: ='[1]Remises libres'!G167 -> 50 | H167: ='[1]Remises libres'!H167 -> AUBE HAUTE MARNE | I167: ='[1]Remises libres'!I167 -> 53.1
A168: ='[1]Remises libres'!A168 -> 51154 | B168: ='[1]Remises libres'!B168 -> JOINVILLE | C168: ='[1]Remises libres'!C168 -> 451154 | D168: ='[1]Remises libres'!D168 -> JOINVILLE | E168: ='[1]Remises libres'!E168 -> 21 | F168: ='[1]Remises libres'!F168 -> CHAUMONT | G168: ='[1]Remises libres'!G168 -> 50 | H168: ='[1]Remises libres'!H168 -> AUBE HAUTE MARNE | I168: ='[1]Remises libres'!I168 -> 0
A169: ='[1]Remises libres'!A169 -> 51156 | B169: ='[1]Remises libres'!B169 -> SAINT DIZIER CENTRE | C169: ='[1]Remises libres'!C169 -> 451156 | D169: ='[1]Remises libres'!D169 -> SAINT DIZIER CENTRE | E169: ='[1]Remises libres'!E169 -> 21 | F169: ='[1]Remises libres'!F169 -> CHAUMONT | G169: ='[1]Remises libres'!G169 -> 50 | H169: ='[1]Remises libres'!H169 -> AUBE HAUTE MARNE | I169: ='[1]Remises libres'!I169 -> 1077.14
A170: ='[1]Remises libres'!A170 -> 51157 | B170: ='[1]Remises libres'!B170 -> SAINT DIZIER EUROPE | C170: ='[1]Remises libres'!C170 -> 551157 | D170: ='[1]Remises libres'!D170 -> SAINT DIZIER EUROPE | E170: ='[1]Remises libres'!E170 -> 21 | F170: ='[1]Remises libres'!F170 -> CHAUMONT | G170: ='[1]Remises libres'!G170 -> 50 | H170: ='[1]Remises libres'!H170 -> AUBE HAUTE MARNE | I170: ='[1]Remises libres'!I170 -> 244.57
A171: ='[1]Remises libres'!A171 -> 51166 | B171: ='[1]Remises libres'!B171 -> VITRY LE FRANCOIS | C171: ='[1]Remises libres'!C171 -> 451166 | D171: ='[1]Remises libres'!D171 -> VITRY LE FRANCOIS | E171: ='[1]Remises libres'!E171 -> 6 | F171: ='[1]Remises libres'!F171 -> CHALONS EN CHAMPAGNE | G171: ='[1]Remises libres'!G171 -> 30 | H171: ='[1]Remises libres'!H171 -> MARNE ARDENNES | I171: ='[1]Remises libres'!I171 -> 1340.29
A172: ='[1]Remises libres'!A172 -> 51301 | B172: ='[1]Remises libres'!B172 -> REIMS HOTEL DE VILLE | C172: ='[1]Remises libres'!C172 -> 451301 | D172: ='[1]Remises libres'!D172 -> REIMS HOTEL DE VILLE | E172: ='[1]Remises libres'!E172 -> 11 | F172: ='[1]Remises libres'!F172 -> REIMS | G172: ='[1]Remises libres'!G172 -> 30 | H172: ='[1]Remises libres'!H172 -> MARNE ARDENNES | I172: ='[1]Remises libres'!I172 -> 5366.34
A173: ='[1]Remises libres'!A173 -> 51305 | B173: ='[1]Remises libres'!B173 -> REIMS HIPPODROME | C173: ='[1]Remises libres'!C173 -> 551305 | D173: ='[1]Remises libres'!D173 -> REIMS HIPPODROME | E173: ='[1]Remises libres'!E173 -> 11 | F173: ='[1]Remises libres'!F173 -> REIMS | G173: ='[1]Remises libres'!G173 -> 30 | H173: ='[1]Remises libres'!H173 -> MARNE ARDENNES | I173: ='[1]Remises libres'!I173 -> 195
A174: ='[1]Remises libres'!A174 -> 51306 | B174: ='[1]Remises libres'!B174 -> REIMS SAINT MARCEAUX | C174: ='[1]Remises libres'!C174 -> 551306 | D174: ='[1]Remises libres'!D174 -> REIMS SAINT MARCEAUX | E174: ='[1]Remises libres'!E174 -> 11 | F174: ='[1]Remises libres'!F174 -> REIMS | G174: ='[1]Remises libres'!G174 -> 30 | H174: ='[1]Remises libres'!H174 -> MARNE ARDENNES | I174: ='[1]Remises libres'!I174 -> 2096.82
A175: ='[1]Remises libres'!A175 -> 51307 | B175: ='[1]Remises libres'!B175 -> REIMS SAINTE ANNE | C175: ='[1]Remises libres'!C175 -> 551307 | D175: ='[1]Remises libres'!D175 -> REIMS SAINTE ANNE | E175: ='[1]Remises libres'!E175 -> 11 | F175: ='[1]Remises libres'!F175 -> REIMS | G175: ='[1]Remises libres'!G175 -> 30 | H175: ='[1]Remises libres'!H175 -> MARNE ARDENNES | I175: ='[1]Remises libres'!I175 -> 1477.88
A176: ='[1]Remises libres'!A176 -> 51308 | B176: ='[1]Remises libres'!B176 -> REIMS SAINT THOMAS | C176: ='[1]Remises libres'!C176 -> 451308 | D176: ='[1]Remises libres'!D176 -> REIMS SAINT THOMAS | E176: ='[1]Remises libres'!E176 -> 11 | F176: ='[1]Remises libres'!F176 -> REIMS | G176: ='[1]Remises libres'!G176 -> 30 | H176: ='[1]Remises libres'!H176 -> MARNE ARDENNES | I176: ='[1]Remises libres'!I176 -> 3236.11
A177: ='[1]Remises libres'!A177 -> 51309 | B177: ='[1]Remises libres'!B177 -> REIMS EUROPE | C177: ='[1]Remises libres'!C177 -> 551309 | D177: ='[1]Remises libres'!D177 -> REIMS EUROPE | E177: ='[1]Remises libres'!E177 -> 11 | F177: ='[1]Remises libres'!F177 -> REIMS | G177: ='[1]Remises libres'!G177 -> 30 | H177: ='[1]Remises libres'!H177 -> MARNE ARDENNES | I177: ='[1]Remises libres'!I177 -> 800.79
A178: ='[1]Remises libres'!A178 -> 51310 | B178: ='[1]Remises libres'!B178 -> REIMS CHATILLONS | C178: ='[1]Remises libres'!C178 -> 551310 | D178: ='[1]Remises libres'!D178 -> REIMS CHATILLONS | E178: ='[1]Remises libres'!E178 -> 11 | F178: ='[1]Remises libres'!F178 -> REIMS | G178: ='[1]Remises libres'!G178 -> 30 | H178: ='[1]Remises libres'!H178 -> MARNE ARDENNES | I178: ='[1]Remises libres'!I178 -> 603.25
A179: ='[1]Remises libres'!A179 -> 51314 | B179: ='[1]Remises libres'!B179 -> FISMES | C179: ='[1]Remises libres'!C179 -> 551314 | D179: ='[1]Remises libres'!D179 -> FISMES | E179: ='[1]Remises libres'!E179 -> 11 | F179: ='[1]Remises libres'!F179 -> REIMS | G179: ='[1]Remises libres'!G179 -> 30 | H179: ='[1]Remises libres'!H179 -> MARNE ARDENNES | I179: ='[1]Remises libres'!I179 -> 1.12
A180: ='[1]Remises libres'!A180 -> 51318 | B180: ='[1]Remises libres'!B180 -> VERZY | C180: ='[1]Remises libres'!C180 -> 451370 | D180: ='[1]Remises libres'!D180 -> EPERNAY | E180: ='[1]Remises libres'!E180 -> 11 | F180: ='[1]Remises libres'!F180 -> REIMS | G180: ='[1]Remises libres'!G180 -> 30 | H180: ='[1]Remises libres'!H180 -> MARNE ARDENNES | I180: ='[1]Remises libres'!I180 -> 683.87
A181: ='[1]Remises libres'!A181 -> 51330 | B181: ='[1]Remises libres'!B181 -> MONTMIRAIL | C181: ='[1]Remises libres'!C181 -> 551330 | D181: ='[1]Remises libres'!D181 -> MONTMIRAIL | E181: ='[1]Remises libres'!E181 -> 6 | F181: ='[1]Remises libres'!F181 -> CHALONS EN CHAMPAGNE | G181: ='[1]Remises libres'!G181 -> 30 | H181: ='[1]Remises libres'!H181 -> MARNE ARDENNES | I181: ='[1]Remises libres'!I181 -> 122.4
A182: ='[1]Remises libres'!A182 -> 51336 | B182: ='[1]Remises libres'!B182 -> TINQUEUX | C182: ='[1]Remises libres'!C182 -> 451336 | D182: ='[1]Remises libres'!D182 -> TINQUEUX | E182: ='[1]Remises libres'!E182 -> 11 | F182: ='[1]Remises libres'!F182 -> REIMS | G182: ='[1]Remises libres'!G182 -> 30 | H182: ='[1]Remises libres'!H182 -> MARNE ARDENNES | I182: ='[1]Remises libres'!I182 -> 719.46
A183: ='[1]Remises libres'!A183 -> 51340 | B183: ='[1]Remises libres'!B183 -> BETHENY | C183: ='[1]Remises libres'!C183 -> 551340 | D183: ='[1]Remises libres'!D183 -> BETHENY | E183: ='[1]Remises libres'!E183 -> 11 | F183: ='[1]Remises libres'!F183 -> REIMS | G183: ='[1]Remises libres'!G183 -> 30 | H183: ='[1]Remises libres'!H183 -> MARNE ARDENNES | I183: ='[1]Remises libres'!I183 -> 1007.71
A184: ='[1]Remises libres'!A184 -> 51341 | B184: ='[1]Remises libres'!B184 -> REIMS JEAN JAURES | C184: ='[1]Remises libres'!C184 -> 551341 | D184: ='[1]Remises libres'!D184 -> REIMS JEAN JAURES | E184: ='[1]Remises libres'!E184 -> 11 | F184: ='[1]Remises libres'!F184 -> REIMS | G184: ='[1]Remises libres'!G184 -> 30 | H184: ='[1]Remises libres'!H184 -> MARNE ARDENNES | I184: ='[1]Remises libres'!I184 -> 690.26
A185: ='[1]Remises libres'!A185 -> 51349 | B185: ='[1]Remises libres'!B185 -> REIMS SAINT REMI | C185: ='[1]Remises libres'!C185 -> 551349 | D185: ='[1]Remises libres'!D185 -> REIMS SAINT REMI | E185: ='[1]Remises libres'!E185 -> 11 | F185: ='[1]Remises libres'!F185 -> REIMS | G185: ='[1]Remises libres'!G185 -> 30 | H185: ='[1]Remises libres'!H185 -> MARNE ARDENNES | I185: ='[1]Remises libres'!I185 -> 1010.41
A186: ='[1]Remises libres'!A186 -> 51350 | B186: ='[1]Remises libres'!B186 -> REIMS CENTRE VILLE | C186: ='[1]Remises libres'!C186 -> 451350 | D186: ='[1]Remises libres'!D186 -> REIMS CENTRE VILLE | E186: ='[1]Remises libres'!E186 -> 11 | F186: ='[1]Remises libres'!F186 -> REIMS | G186: ='[1]Remises libres'!G186 -> 30 | H186: ='[1]Remises libres'!H186 -> MARNE ARDENNES | I186: ='[1]Remises libres'!I186 -> 10323.18
A187: ='[1]Remises libres'!A187 -> 51354 | B187: ='[1]Remises libres'!B187 -> VERTUS | C187: ='[1]Remises libres'!C187 -> 551354 | D187: ='[1]Remises libres'!D187 -> VERTUS | E187: ='[1]Remises libres'!E187 -> 6 | F187: ='[1]Remises libres'!F187 -> CHALONS EN CHAMPAGNE | G187: ='[1]Remises libres'!G187 -> 30 | H187: ='[1]Remises libres'!H187 -> MARNE ARDENNES | I187: ='[1]Remises libres'!I187 -> 279.31
A188: ='[1]Remises libres'!A188 -> 51361 | B188: ='[1]Remises libres'!B188 -> PIERRY LECLERC | C188: ='[1]Remises libres'!C188 -> 451361 | D188: ='[1]Remises libres'!D188 -> PIERRY LECLERC | E188: ='[1]Remises libres'!E188 -> 11 | F188: ='[1]Remises libres'!F188 -> REIMS | G188: ='[1]Remises libres'!G188 -> 30 | H188: ='[1]Remises libres'!H188 -> MARNE ARDENNES | I188: ='[1]Remises libres'!I188 -> 197
A189: ='[1]Remises libres'!A189 -> 51365 | B189: ='[1]Remises libres'!B189 -> DORMANS | C189: ='[1]Remises libres'!C189 -> 551365 | D189: ='[1]Remises libres'!D189 -> DORMANS | E189: ='[1]Remises libres'!E189 -> 11 | F189: ='[1]Remises libres'!F189 -> REIMS | G189: ='[1]Remises libres'!G189 -> 30 | H189: ='[1]Remises libres'!H189 -> MARNE ARDENNES | I189: ='[1]Remises libres'!I189 -> 186.84
A190: ='[1]Remises libres'!A190 -> 51367 | B190: ='[1]Remises libres'!B190 -> AY CHAMPAGNE | C190: ='[1]Remises libres'!C190 -> 551367 | D190: ='[1]Remises libres'!D190 -> AY CHAMPAGNE | E190: ='[1]Remises libres'!E190 -> 11 | F190: ='[1]Remises libres'!F190 -> REIMS | G190: ='[1]Remises libres'!G190 -> 30 | H190: ='[1]Remises libres'!H190 -> MARNE ARDENNES | I190: ='[1]Remises libres'!I190 -> 680.3
A191: ='[1]Remises libres'!A191 -> 51369 | B191: ='[1]Remises libres'!B191 -> DAMERY | C191: ='[1]Remises libres'!C191 -> 551369 | D191: ='[1]Remises libres'!D191 -> DAMERY | E191: ='[1]Remises libres'!E191 -> 11 | F191: ='[1]Remises libres'!F191 -> REIMS | G191: ='[1]Remises libres'!G191 -> 30 | H191: ='[1]Remises libres'!H191 -> MARNE ARDENNES | I191: ='[1]Remises libres'!I191 -> 2367.58
A192: ='[1]Remises libres'!A192 -> 51370 | B192: ='[1]Remises libres'!B192 -> EPERNAY | C192: ='[1]Remises libres'!C192 -> 451370 | D192: ='[1]Remises libres'!D192 -> EPERNAY | E192: ='[1]Remises libres'!E192 -> 11 | F192: ='[1]Remises libres'!F192 -> REIMS | G192: ='[1]Remises libres'!G192 -> 30 | H192: ='[1]Remises libres'!H192 -> MARNE ARDENNES | I192: ='[1]Remises libres'!I192 -> 6991.89
A193: ='[1]Remises libres'!A193 -> 51381 | B193: ='[1]Remises libres'!B193 -> SEZANNE | C193: ='[1]Remises libres'!C193 -> 451381 | D193: ='[1]Remises libres'!D193 -> SEZANNE | E193: ='[1]Remises libres'!E193 -> 6 | F193: ='[1]Remises libres'!F193 -> CHALONS EN CHAMPAGNE | G193: ='[1]Remises libres'!G193 -> 30 | H193: ='[1]Remises libres'!H193 -> MARNE ARDENNES | I193: ='[1]Remises libres'!I193 -> 2951.5
A194: ='[1]Remises libres'!A194 -> 54116 | B194: ='[1]Remises libres'!B194 -> BACCARAT | C194: ='[1]Remises libres'!C194 -> 554116 | D194: ='[1]Remises libres'!D194 -> BACCARAT | E194: ='[1]Remises libres'!E194 -> 26 | F194: ='[1]Remises libres'!F194 -> NANCY | G194: ='[1]Remises libres'!G194 -> 110 | H194: ='[1]Remises libres'!H194 -> MEURTHE ET MOSELLE MEUSE | I194: ='[1]Remises libres'!I194 -> 907.83
A195: ='[1]Remises libres'!A195 -> 54161 | B195: ='[1]Remises libres'!B195 -> BAYON | C195: ='[1]Remises libres'!C195 -> 454161 | D195: ='[1]Remises libres'!D195 -> BAYON | E195: ='[1]Remises libres'!E195 -> 26 | F195: ='[1]Remises libres'!F195 -> NANCY | G195: ='[1]Remises libres'!G195 -> 110 | H195: ='[1]Remises libres'!H195 -> MEURTHE ET MOSELLE MEUSE | I195: ='[1]Remises libres'!I195 -> 90
A196: ='[1]Remises libres'!A196 -> 54166 | B196: ='[1]Remises libres'!B196 -> BLAINVILLE | C196: ='[1]Remises libres'!C196 -> 554166 | D196: ='[1]Remises libres'!D196 -> BLAINVILLE | E196: ='[1]Remises libres'!E196 -> 26 | F196: ='[1]Remises libres'!F196 -> NANCY | G196: ='[1]Remises libres'!G196 -> 110 | H196: ='[1]Remises libres'!H196 -> MEURTHE ET MOSELLE MEUSE | I196: ='[1]Remises libres'!I196 -> 280
A197: ='[1]Remises libres'!A197 -> 54171 | B197: ='[1]Remises libres'!B197 -> BLAMONT | C197: ='[1]Remises libres'!C197 -> 454171 | D197: ='[1]Remises libres'!D197 -> BLAMONT | E197: ='[1]Remises libres'!E197 -> 26 | F197: ='[1]Remises libres'!F197 -> NANCY | G197: ='[1]Remises libres'!G197 -> 110 | H197: ='[1]Remises libres'!H197 -> MEURTHE ET MOSELLE MEUSE | I197: ='[1]Remises libres'!I197 -> 523.07
A198: ='[1]Remises libres'!A198 -> 54184 | B198: ='[1]Remises libres'!B198 -> BRIEY | C198: ='[1]Remises libres'!C198 -> 554184 | D198: ='[1]Remises libres'!D198 -> BRIEY | E198: ='[1]Remises libres'!E198 -> 27 | F198: ='[1]Remises libres'!F198 -> PONT A MOUSSON | G198: ='[1]Remises libres'!G198 -> 110 | H198: ='[1]Remises libres'!H198 -> MEURTHE ET MOSELLE MEUSE | I198: ='[1]Remises libres'!I198 -> 1678.03
A199: ='[1]Remises libres'!A199 -> 54196 | B199: ='[1]Remises libres'!B199 -> CHAMPIGNEULLES | C199: ='[1]Remises libres'!C199 -> 554196 | D199: ='[1]Remises libres'!D199 -> CHAMPIGNEULLES | E199: ='[1]Remises libres'!E199 -> 27 | F199: ='[1]Remises libres'!F199 -> PONT A MOUSSON | G199: ='[1]Remises libres'!G199 -> 110 | H199: ='[1]Remises libres'!H199 -> MEURTHE ET MOSELLE MEUSE | I199: ='[1]Remises libres'!I199 -> 0
A200: ='[1]Remises libres'!A200 -> 54257 | B200: ='[1]Remises libres'!B200 -> DIEULOUARD | C200: ='[1]Remises libres'!C200 -> 554257 | D200: ='[1]Remises libres'!D200 -> DIEULOUARD | E200: ='[1]Remises libres'!E200 -> 27 | F200: ='[1]Remises libres'!F200 -> PONT A MOUSSON | G200: ='[1]Remises libres'!G200 -> 110 | H200: ='[1]Remises libres'!H200 -> MEURTHE ET MOSELLE MEUSE | I200: ='[1]Remises libres'!I200 -> 655.25
A201: ='[1]Remises libres'!A201 -> 54266 | B201: ='[1]Remises libres'!B201 -> DOMBASLE SUR MEURTHE | C201: ='[1]Remises libres'!C201 -> 554266 | D201: ='[1]Remises libres'!D201 -> DOMBASLE SUR MEURTHE | E201: ='[1]Remises libres'!E201 -> 26 | F201: ='[1]Remises libres'!F201 -> NANCY | G201: ='[1]Remises libres'!G201 -> 110 | H201: ='[1]Remises libres'!H201 -> MEURTHE ET MOSELLE MEUSE | I201: ='[1]Remises libres'!I201 -> 1603.23
... 139 more rows

Sheet Rapport 5 (hidden)
AD1: 30 | AI1: 35 | AN1: 40 | AS1: 45 | AX1: 50 | BC1: 55 | BH1: 60 | BM1: 65 | BR1: 70
I2: ='[1]Rapport 5'!I2 -> AGIOS | K2: ='[1]Rapport 5'!K2 -> ASSURANCE RISQUES | M2: ='[1]Rapport 5'!M2 -> BANCARISATION ET GESTION COURANTE | O2: ='[1]Rapport 5'!O2 -> CREDITS | Q2: ='[1]Rapport 5'!Q2 -> INTERETS CREDITS CT ET MLT | S2: ='[1]Rapport 5'!S2 -> OPERATIONS INTERNATIONALES | U2: ='[1]Rapport 5'!U2 -> SERVICES CLIENTELES DIVERS | W2: ='[1]Rapport 5'!W2 -> TITRES | Y2: Total facturé | Z2: Total remisé | AA2: Taux de remise total | AB2: Classt Taux total | AC2: Calcul Décile total | AD2: Décile total | AE2: Agios remisés | AF2: Taux de remise Agios | AG2: Classt Taux Agios | AH2: Calcul Décile Agios | AI2: Décile Agios | AJ2: Assurances remisées | AK2: Taux de remise Assurances | AL2: Classt Taux Assurances | AM2: Calcul Décile Assurances | AN2: Décile Assurances | AO2: Banca et gestion courante remisées | AP2: Taux de remise Banca et gestion courante | AQ2: Classt Taux Banca et gestion courante | AR2: Calcul Décile Banca et gestion courante | AS2: Décile Banca et gestion courante | AT2: Crédits remisées | AU2: Taux de remise Crédits | AV2: Classt Taux Crédits | AW2: Calcul Décile Crédits | AX2: Décile Crédits | AY2: Intérets crédits remisées | AZ2: Taux de remise Intérets crédits | BA2: Classt Taux Intérets crédits | BB2: Calcul Décile Intérets crédits | BC2: Décile Intérets crédits | BD2: Opérations internationales remisées | BE2: Taux de remise Opérations internationales | BF2: Classt Taux Opérations internationales | BG2: Calcul Décile Opérations internationales | BH2: Décile Opérations internationales | BI2: Services clientèles divers remisées | BJ2: Taux de remise Services clientèles divers | BK2: Classt Taux Services clientèles divers | BL2: Calcul Décile Services clientèles divers | BM2: Décile Services clientèles divers | BN2: Titres remisées | BO2: Taux de remise Titres | BP2: Classt Taux Titres | BQ2: Calcul Décile Titres | BR2: Décile Titres
A3: ='[1]Rapport 5'!A3 -> 6 | B3: ='[1]Rapport 5'!B3 -> STRASBOURG NEUDORF | C3: ='[1]Rapport 5'!C3 -> 4006 | D3: ='[1]Rapport 5'!D3 -> STRASBOURG NEUDORF | E3: ='[1]Rapport 5'!E3 -> 5006 | F3: ='[1]Rapport 5'!F3 -> STRASBOURG | G3: ='[1]Rapport 5'!G3 -> 262 | H3: ='[1]Rapport 5'!H3 -> BAS RHIN | I3: ='[1]Rapport 5'!I3 -> 14539.83 | J3: ='[1]Rapport 5'!J3 -> 1168.82 | K3: ='[1]Rapport 5'!K3 -> 0 | L3: ='[1]Rapport 5'!L3 -> 0 | M3: ='[1]Rapport 5'!M3 -> 425807.81 | N3: ='[1]Rapport 5'!N3 -> 9857.15 | O3: ='[1]Rapport 5'!O3 -> 6131.75 | P3: ='[1]Rapport 5'!P3 -> 367.12 | Q3: ='[1]Rapport 5'!Q3 -> 0 | R3: ='[1]Rapport 5'!R3 -> 0 | S3: ='[1]Rapport 5'!S3 -> 1344.81 | T3: ='[1]Rapport 5'!T3 -> 54 | U3: ='[1]Rapport 5'!U3 -> 29652.56 | V3: ='[1]Rapport 5'!V3 -> 4431.55 | W3: ='[1]Rapport 5'!W3 -> 11027.74 | X3: ='[1]Rapport 5'!X3 -> 196 | Y3: =+I3+K3+M3+O3+Q3+S3+U3+W3 -> 488,505 | Z3: =+J3+L3+N3+P3+R3+T3+V3+X3 -> 16,075 | AA3: =+Z3/Y3 -> 3.3% | AB3: =RANK(AA3,$AA$3:$AA$339,1) -> 111 | AC3: =1+(AB3/COUNT($AB$3:AB$339)*10) -> 4.293768546 | AD3: =+IF(INT(AC3)=11,10,INT(AC3)) -> 4 | AE3: =+J3 -> 1,169 | AF3: =+AE3/I3 -> 8.0% | AG3: =RANK(AF3,$AF$3:$AF$339,1) -> 281 | AH3: =1+(AG3/COUNT($AG$3:$AG$339)*10) -> 9.338278932 | AI3: =+IF(INT(AH3)=11,10,INT(AH3)) -> 9 | AJ3: =+L3 -> 0 | AK3: =+IF(ISERROR(IF(AJ3=0,0,AJ3/K3)),1,IF(AJ3=0,0,AJ3/K3)) -> 0.0% | AL3: =RANK(AK3,$AK$3:$AK$339,1) -> 1 | AM3: =1+(AL3/COUNT($AL$3:$AL$339)*10) -> 1.029673591 | AN3: =+IF(INT(AM3)=11,10,INT(AM3)) -> 1 | AO3: =+N3 -> 9,857 | AP3: =+IF(ISERROR(IF(AO3=0,0,AO3/M3)),1,IF(AO3=0,0,AO3/M3)) -> 2.3% | AQ3: =RANK(AP3,$AP$3:$AP$339,1) -> 91 | AR3: =1+(AQ3/COUNT($AQ$3:$AQ$339)*10) -> 3.700296736 | AS3: =+IF(INT(AR3)=11,10,INT(AR3)) -> 3 | AT3: =+P3 -> 367 | AU3: =+IF(ISERROR(IF(AT3=0,0,AT3/O3)),1,IF(AT3=0,0,AT3/O3)) -> 6.0% | AV3: =RANK(AU3,$AU$3:$AU$339,1) -> 233 | AW3: =1+(AV3/COUNT($AV$3:$AV$339)*10) -> 7.913946588 | AX3: =+IF(INT(AW3)=11,10,INT(AW3)) -> 7 | AY3: =+R3 -> 0 | AZ3: =+IF(ISERROR(IF(AY3=0,0,AY3/T3)),1,IF(AY3=0,0,AY3/T3)) -> 0.0% | BA3: =RANK(AZ3,$AZ$3:$AZ$339,1) -> 1 | BB3: =1+(BA3/COUNT($BA$3:$BA$339)*10) -> 1.029673591 | BC3: =+IF(INT(BB3)=11,10,INT(BB3)) -> 1 | BD3: =+T3 -> 54 | BE3: =+IF(ISERROR(IF(BD3=0,0,BD3/S3)),1,IF(BD3=0,0,BD3/S3)) -> 4.0% | BF3: =RANK(BE3,$BE$3:$BE$339,1) -> 249 | BG3: =1+(BF3/COUNT($BF$3:$BF$339)*10) -> 8.388724036 | BH3: =+IF(INT(BG3)=11,10,INT(BG3)) -> 8 | BI3: =+V3 -> 4,432 | BJ3: =+IF(ISERROR(IF(BI3=0,0,BI3/U3)),1,IF(BI3=0,0,BI3/U3)) -> 14.9% | BK3: =RANK(BJ3,$BJ$3:$BJ$339,1) -> 159 | BL3: =1+(BK3/COUNT($BK$3:$BK$339)*10) -> 5.71810089 | BM3: =+IF(INT(BL3)=11,10,INT(BL3)) -> 5 | BN3: =+X3 -> 196 | BO3: =+IF(ISERROR(IF(BN3=0,0,BN3/W3)),1,IF(BN3=0,0,BN3/W3)) -> 1.8% | BP3: =RANK(BO3,$BO$3:$BO$339,1) -> 97 | BQ3: =1+(BP3/COUNT($BP$3:$BP$339)*10) -> 3.878338279 | BR3: =+IF(INT(BQ3)=11,10,INT(BQ3)) -> 3 | BT3: 6 | BU3: =+BT3-A3 -> 0
A4: ='[1]Rapport 5'!A4 -> 7 | B4: ='[1]Rapport 5'!B4 -> ILLKIRCH CENTRE | C4: ='[1]Rapport 5'!C4 -> 4007 | D4: ='[1]Rapport 5'!D4 -> ILLKIRCH CENTRE | E4: ='[1]Rapport 5'!E4 -> 5101 | F4: ='[1]Rapport 5'!F4 -> SELESTAT | G4: ='[1]Rapport 5'!G4 -> 262 | H4: ='[1]Rapport 5'!H4 -> BAS RHIN | I4: ='[1]Rapport 5'!I4 -> 33979.89 | J4: ='[1]Rapport 5'!J4 -> 999.47 | K4: ='[1]Rapport 5'!K4 -> 0 | L4: ='[1]Rapport 5'!L4 -> 0 | M4: ='[1]Rapport 5'!M4 -> 378219.16 | N4: ='[1]Rapport 5'!N4 -> 18274.85 | O4: ='[1]Rapport 5'!O4 -> 10925.75 | P4: ='[1]Rapport 5'!P4 -> 1305.63 | Q4: ='[1]Rapport 5'!Q4 -> 1144.44 | R4: ='[1]Rapport 5'!R4 -> 0 | S4: ='[1]Rapport 5'!S4 -> 2958.06 | T4: ='[1]Rapport 5'!T4 -> 375.5 | U4: ='[1]Rapport 5'!U4 -> 28519.87 | V4: ='[1]Rapport 5'!V4 -> 6310.06 | W4: ='[1]Rapport 5'!W4 -> 15785.97 | X4: ='[1]Rapport 5'!X4 -> 1817.08 | Y4: =+I4+K4+M4+O4+Q4+S4+U4+W4 -> 471,533 | Z4: =+J4+L4+N4+P4+R4+T4+V4+X4 -> 29,083 | AA4: =+Z4/Y4 -> 6.2% | AB4: =RANK(AA4,$AA$3:$AA$339,1) -> 326 | AC4: =1+(AB4/COUNT($AB$3:AB$339)*10) -> 10.6735905 | AD4: =+IF(INT(AC4)=11,10,INT(AC4)) -> 10 | AE4: =+J4 -> 999 | AF4: =+AE4/I4 -> 2.9% | AG4: =RANK(AF4,$AF$3:$AF$339,1) -> 86 | AH4: =1+(AG4/COUNT($AG$3:$AG$339)*10) -> 3.551928783 | AI4: =+IF(INT(AH4)=11,10,INT(AH4)) -> 3 | AJ4: =+L4 -> 0 | AK4: =+IF(ISERROR(IF(AJ4=0,0,AJ4/K4)),1,IF(AJ4=0,0,AJ4/K4)) -> 0.0% | AL4: =RANK(AK4,$AK$3:$AK$339,1) -> 1 | AM4: =1+(AL4/COUNT($AL$3:$AL$339)*10) -> 1.029673591 | AN4: =+IF(INT(AM4)=11,10,INT(AM4)) -> 1 | AO4: =+N4 -> 18,275 | AP4: =+IF(ISERROR(IF(AO4=0,0,AO4/M4)),1,IF(AO4=0,0,AO4/M4)) -> 4.8% | AQ4: =RANK(AP4,$AP$3:$AP$339,1) -> 320 | AR4: =1+(AQ4/COUNT($AQ$3:$AQ$339)*10) -> 10.49554896 | AS4: =+IF(INT(AR4)=11,10,INT(AR4)) -> 10 | AT4: =+P4 -> 1,306 | AU4: =+IF(ISERROR(IF(AT4=0,0,AT4/O4)),1,IF(AT4=0,0,AT4/O4)) -> 12.0% | AV4: =RANK(AU4,$AU$3:$AU$339,1) -> 291 | AW4: =1+(AV4/COUNT($AV$3:$AV$339)*10) -> 9.635014837 | AX4: =+IF(INT(AW4)=11,10,INT(AW4)) -> 9 | AY4: =+R4 -> 0 | AZ4: =+IF(ISERROR(IF(AY4=0,0,AY4/T4)),1,IF(AY4=0,0,AY4/T4)) -> 0.0% | BA4: =RANK(AZ4,$AZ$3:$AZ$339,1) -> 1 | BB4: =1+(BA4/COUNT($BA$3:$BA$339)*10) -> 1.029673591 | BC4: =+IF(INT(BB4)=11,10,INT(BB4)) -> 1 | BD4: =+T4 -> 376 | BE4: =+IF(ISERROR(IF(BD4=0,0,BD4/S4)),1,IF(BD4=0,0,BD4/S4)) -> 12.7% | BF4: 296 | BG4: 9.783382789 | BH4: =+IF(INT(BG4)=11,10,INT(BG4)) -> 9 | BI4: =+V4 -> 6,310 | BJ4: =+IF(ISERROR(IF(BI4=0,0,BI4/U4)),1,IF(BI4=0,0,BI4/U4)) -> 22.1% | BK4: 264 | BL4: 8.833827893 | BM4: =+IF(INT(BL4)=11,10,INT(BL4)) -> 8 | BN4: =+X4 -> 1,817 | BO4: =+IF(ISERROR(IF(BN4=0,0,BN4/W4)),1,IF(BN4=0,0,BN4/W4)) -> 11.5% | BP4: 317 | BQ4: 10.40652819 | BR4: =+IF(INT(BQ4)=11,10,INT(BQ4)) -> 10 | BT4: 7 | BU4: =+BT4-A4 -> 0
A5: ='[1]Rapport 5'!A5 -> 8 | B5: ='[1]Rapport 5'!B5 -> FEGERSHEIM | C5: ='[1]Rapport 5'!C5 -> 4008 | D5: ='[1]Rapport 5'!D5 -> FEGERSHEIM | E5: ='[1]Rapport 5'!E5 -> 5101 | F5: ='[1]Rapport 5'!F5 -> SELESTAT | G5: ='[1]Rapport 5'!G5 -> 262 | H5: ='[1]Rapport 5'!H5 -> BAS RHIN | I5: ='[1]Rapport 5'!I5 -> 5073.29 | J5: ='[1]Rapport 5'!J5 -> 444.99 | K5: ='[1]Rapport 5'!K5 -> 0 | L5: ='[1]Rapport 5'!L5 -> 7.52 | M5: ='[1]Rapport 5'!M5 -> 186790.39 | N5: ='[1]Rapport 5'!N5 -> 6411.01 | O5: ='[1]Rapport 5'!O5 -> 3837 | P5: ='[1]Rapport 5'!P5 -> 426.61 | Q5: ='[1]Rapport 5'!Q5 -> 0 | R5: ='[1]Rapport 5'!R5 -> 0 | S5: ='[1]Rapport 5'!S5 -> 301 | T5: ='[1]Rapport 5'!T5 -> 0 | U5: ='[1]Rapport 5'!U5 -> 5633.62 | V5: ='[1]Rapport 5'!V5 -> 1217.5 | W5: ='[1]Rapport 5'!W5 -> 6269.25 | X5: ='[1]Rapport 5'!X5 -> 297.39 | Y5: 207,905 | Z5: 8,805 | AA5: 4.2% | AB5: 232 | AC5: =1+(AB5/COUNT($AB$3:AB$339)*10) -> 7.884272997 | AD5: 7 | AE5: =+J5 -> 445 | AF5: 8.8% | AG5: 290 | AH5: 9.605341246 | AI5: =+IF(INT(AH5)=11,10,INT(AH5)) -> 9 | AJ5: 8 | AK5: 100.0% | AL5: 314 | AM5: 10.31750742 | AN5: 10 | AO5: 6,411 | AP5: 3.4% | AQ5: 235 | AR5: 7.973293769 | AS5: 7 | AT5: =+P5 -> 427 | AU5: =+IF(ISERROR(IF(AT5=0,0,AT5/O5)),1,IF(AT5=0,0,AT5/O5)) -> 11.1% | AV5: 284 | AW5: 9.427299703 | AX5: =+IF(INT(AW5)=11,10,INT(AW5)) -> 9 | AY5: =+R5 -> 0 | AZ5: =+IF(ISERROR(IF(AY5=0,0,AY5/T5)),1,IF(AY5=0,0,AY5/T5)) -> 0.0% | BA5: 1 | BB5: 1.029673591 | BC5: =+IF(INT(BB5)=11,10,INT(BB5)) -> 1 | BD5: =+T5 -> 0 | BE5: =+IF(ISERROR(IF(BD5=0,0,BD5/S5)),1,IF(BD5=0,0,BD5/S5)) -> 0.0% | BF5: 1 | BG5: 1.029673591 | BH5: =+IF(INT(BG5)=11,10,INT(BG5)) -> 1 | BI5: =+V5 -> 1,218 | BJ5: =+IF(ISERROR(IF(BI5=0,0,BI5/U5)),1,IF(BI5=0,0,BI5/U5)) -> 21.6% | BK5: 261 | BL5: 8.744807122 | BM5: =+IF(INT(BL5)=11,10,INT(BL5)) -> 8 | BN5: =+X5 -> 297 | BO5: =+IF(ISERROR(IF(BN5=0,0,BN5/W5)),1,IF(BN5=0,0,BN5/W5)) -> 4.7% | BP5: 221 | BQ5: 7.557863501 | BR5: =+IF(INT(BQ5)=11,10,INT(BQ5)) -> 7 | BT5: 8 | BU5: 0
A6: ='[1]Rapport 5'!A6 -> 10 | B6: ='[1]Rapport 5'!B6 -> STRASBOURG MEINAU | C6: ='[1]Rapport 5'!C6 -> 4010 | D6: ='[1]Rapport 5'!D6 -> STRASBOURG MEINAU | E6: ='[1]Rapport 5'!E6 -> 5006 | F6: ='[1]Rapport 5'!F6 -> STRASBOURG | G6: ='[1]Rapport 5'!G6 -> 262 | H6: ='[1]Rapport 5'!H6 -> BAS RHIN | I6: ='[1]Rapport 5'!I6 -> 6976.7 | J6: ='[1]Rapport 5'!J6 -> 308.33 | K6: ='[1]Rapport 5'!K6 -> 0 | L6: ='[1]Rapport 5'!L6 -> 0 | M6: ='[1]Rapport 5'!M6 -> 218285.39 | N6: ='[1]Rapport 5'!N6 -> 6677.38 | O6: ='[1]Rapport 5'!O6 -> 5510 | P6: ='[1]Rapport 5'!P6 -> 163 | Q6: ='[1]Rapport 5'!Q6 -> 0 | R6: ='[1]Rapport 5'!R6 -> 0 | S6: ='[1]Rapport 5'!S6 -> 627.12 | T6: ='[1]Rapport 5'!T6 -> 0 | U6: ='[1]Rapport 5'!U6 -> 13564.25 | V6: ='[1]Rapport 5'!V6 -> 1913.81 | W6: ='[1]Rapport 5'!W6 -> 5191.4 | X6: ='[1]Rapport 5'!X6 -> 84 | Y6: 250,155 | Z6: 9,147 | AA6: 3.7% | AB6: 168 | AC6: =1+(AB6/COUNT($AB$3:AB$339)*10) -> 5.985163205 | AD6: 5 | AE6: 308 | AF6: 4.4% | AG6: 174 | AH6: 6.163204748 | AI6: 6 | AJ6: 0 | AK6: 0.0% | AL6: 1 | AM6: 1.029673591 | AN6: 1 | AO6: 6,677 | AP6: 3.1% | AQ6: 191 | AR6: 6.667655786 | AS6: 6 | AT6: 163 | AU6: 3.0% | AV6: 167 | AW6: 5.955489614 | AX6: 5 | AY6: 0 | AZ6: 0.0% | BA6: 1 | BB6: 1.029673591 | BC6: 1 | BD6: 0 | BE6: 0.0% | BF6: 1 | BG6: 1.029673591 | BH6: 1 | BI6: 1,914 | BJ6: 14.1% | BK6: 150 | BL6: 5.451038576 | BM6: 5 | BN6: 84 | BO6: 1.6% | BP6: 88 | BQ6: 3.611275964 | BR6: 3 | BT6: 10 | BU6: 0
A7: ='[1]Rapport 5'!A7 -> 12 | B7: ='[1]Rapport 5'!B7 -> STRASBOURG STOCKFELD | C7: ='[1]Rapport 5'!C7 -> 4012 | D7: ='[1]Rapport 5'!D7 -> STRASBOURG STOCKFELD | E7: ='[1]Rapport 5'!E7 -> 5006 | F7: ='[1]Rapport 5'!F7 -> STRASBOURG | G7: ='[1]Rapport 5'!G7 -> 262 | H7: ='[1]Rapport 5'!H7 -> BAS RHIN | I7: ='[1]Rapport 5'!I7 -> 5029.67 | J7: ='[1]Rapport 5'!J7 -> 197.93 | K7: ='[1]Rapport 5'!K7 -> 0 | L7: ='[1]Rapport 5'!L7 -> 0 | M7: ='[1]Rapport 5'!M7 -> 178591.28 | N7: ='[1]Rapport 5'!N7 -> 3938.7 | O7: ='[1]Rapport 5'!O7 -> 2519.5 | P7: ='[1]Rapport 5'!P7 -> 142 | Q7: ='[1]Rapport 5'!Q7 -> 0 | R7: ='[1]Rapport 5'!R7 -> 0 | S7: ='[1]Rapport 5'!S7 -> 276 | T7: ='[1]Rapport 5'!T7 -> 13 | U7: ='[1]Rapport 5'!U7 -> 8943.6 | V7: ='[1]Rapport 5'!V7 -> 952.8 | W7: ='[1]Rapport 5'!W7 -> 2984.94 | X7: ='[1]Rapport 5'!X7 -> 28 | Y7: 198,345 | Z7: 5,272 | AA7: 2.7% | AB7: 54 | AC7: =1+(AB7/COUNT($AB$3:AB$339)*10) -> 2.602373887 | AD7: 2 | AE7: 198 | AF7: 3.9% | AG7: 145 | AH7: 5.302670623 | AI7: 5 | AJ7: 0 | AK7: 0.0% | AL7: 1 | AM7: 1.029673591 | AN7: 1 | AO7: 3,939 | AP7: 2.2% | AQ7: 75 | AR7: 3.225519288 | AS7: 3 | AT7: 142 | AU7: 5.6% | AV7: 227 | AW7: 7.735905045 | AX7: 7 | AY7: 0 | AZ7: 0.0% | BA7: 1 | BB7: 1.029673591 | BC7: 1 | BD7: 13 | BE7: 4.7% | BF7: 255 | BG7: 8.566765579 | BH7: 8 | BI7: 953 | BJ7: 10.7% | BK7: 93 | BL7: 3.759643917 | BM7: 3 | BN7: 28 | BO7: 0.9% | BP7: 62 | BQ7: 2.839762611 | BR7: 2 | BT7: 12 | BU7: 0
A8: ='[1]Rapport 5'!A8 -> 13 | B8: ='[1]Rapport 5'!B8 -> ILLKIRCH NORD | C8: ='[1]Rapport 5'!C8 -> 4007 | D8: ='[1]Rapport 5'!D8 -> ILLKIRCH CENTRE | E8: ='[1]Rapport 5'!E8 -> 5101 | F8: ='[1]Rapport 5'!F8 -> SELESTAT | G8: ='[1]Rapport 5'!G8 -> 262 | H8: ='[1]Rapport 5'!H8 -> BAS RHIN | I8: ='[1]Rapport 5'!I8 -> 2981.2 | J8: ='[1]Rapport 5'!J8 -> 252.93 | K8: ='[1]Rapport 5'!K8 -> 0 | L8: ='[1]Rapport 5'!L8 -> 0 | M8: ='[1]Rapport 5'!M8 -> 118522.65 | N8: ='[1]Rapport 5'!N8 -> 6102.54 | O8: ='[1]Rapport 5'!O8 -> 4404 | P8: ='[1]Rapport 5'!P8 -> 100 | Q8: ='[1]Rapport 5'!Q8 -> 0 | R8: ='[1]Rapport 5'!R8 -> 0 | S8: ='[1]Rapport 5'!S8 -> 223 | T8: ='[1]Rapport 5'!T8 -> 0 | U8: ='[1]Rapport 5'!U8 -> 6876.37 | V8: ='[1]Rapport 5'!V8 -> 943.1 | W8: ='[1]Rapport 5'!W8 -> 2895.9 | X8: ='[1]Rapport 5'!X8 -> 192 | Y8: 135,903 | Z8: 7,591 | AA8: 5.6% | AB8: 314 | AC8: =1+(AB8/COUNT($AB$3:AB$339)*10) -> 10.31750742 | AD8: 10 | AE8: 253 | AF8: 8.5% | AG8: 287 | AH8: 9.516320475 | AI8: 9 | AJ8: 0 | AK8: 0.0% | AL8: 1 | AM8: 1.029673591 | AN8: 1 | AO8: 6,103 | AP8: 5.1% | AQ8: 328 | AR8: 10.73293769 | AS8: 10 | AT8: 100 | AU8: 2.3% | AV8: 145 | AW8: 5.302670623 | AX8: 5 | AY8: 0 | AZ8: 0.0% | BA8: 1 | BB8: 1.029673591 | BC8: 1 | BD8: 0 | BE8: 0.0% | BF8: 1 | BG8: 1.029673591 | BH8: 1 | BI8: 943 | BJ8: 13.7% | BK8: 143 | BL8: 5.243323442 | BM8: 5 | BN8: 192 | BO8: 6.6% | BP8: 268 | BQ8: 8.952522255 | BR8: 8 | BT8: 13 | BU8: 0
A9: ='[1]Rapport 5'!A9 -> 14 | B9: ='[1]Rapport 5'!B9 -> OSTWALD | C9: ='[1]Rapport 5'!C9 -> 4015 | D9: ='[1]Rapport 5'!D9 -> LINGOLSHEIM | E9: ='[1]Rapport 5'!E9 -> 5101 | F9: ='[1]Rapport 5'!F9 -> SELESTAT | G9: ='[1]Rapport 5'!G9 -> 262 | H9: ='[1]Rapport 5'!H9 -> BAS RHIN | I9: ='[1]Rapport 5'!I9 -> 2348.57 | J9: ='[1]Rapport 5'!J9 -> 87.8 | K9: ='[1]Rapport 5'!K9 -> 0 | L9: ='[1]Rapport 5'!L9 -> 0 | M9: ='[1]Rapport 5'!M9 -> 76960.05 | N9: ='[1]Rapport 5'!N9 -> 2520.21 | O9: ='[1]Rapport 5'!O9 -> 804.5 | P9: ='[1]Rapport 5'!P9 -> 0 | Q9: ='[1]Rapport 5'!Q9 -> 0 | R9: ='[1]Rapport 5'!R9 -> 0 | S9: ='[1]Rapport 5'!S9 -> 26 | T9: ='[1]Rapport 5'!T9 -> 0 | U9: ='[1]Rapport 5'!U9 -> 3990.39 | V9: ='[1]Rapport 5'!V9 -> 940.71 | W9: ='[1]Rapport 5'!W9 -> 2505.18 | X9: ='[1]Rapport 5'!X9 -> 4.73 | Y9: 86,635 | Z9: 3,553 | AA9: 4.1% | AB9: 217 | AC9: =1+(AB9/COUNT($AB$3:AB$339)*10) -> 7.439169139 | AD9: 7 | AE9: 88 | AF9: 3.7% | AG9: 136 | AH9: 5.035608309 | AI9: 5 | AJ9: 0 | AK9: 0.0% | AL9: 1 | AM9: 1.029673591 | AN9: 1 | AO9: 2,520 | AP9: 3.3% | AQ9: 222 | AR9: 7.587537092 | AS9: 7 | AT9: 0 | AU9: 0.0% | AV9: 1 | AW9: 1.029673591 | AX9: 1 | AY9: 0 | AZ9: 0.0% | BA9: 1 | BB9: 1.029673591 | BC9: 1 | BD9: 0 | BE9: 0.0% | BF9: 1 | BG9: 1.029673591 | BH9: 1 | BI9: 941 | BJ9: 23.6% | BK9: 274 | BL9: 9.130563798 | BM9: 9 | BN9: 5 | BO9: 0.2% | BP9: 29 | BQ9: 1.860534125 | BR9: 1 | BT9: 14 | BU9: 0
A10: ='[1]Rapport 5'!A10 -> 15 | B10: ='[1]Rapport 5'!B10 -> LINGOLSHEIM | C10: ='[1]Rapport 5'!C10 -> 4015 | D10: ='[1]Rapport 5'!D10 -> LINGOLSHEIM | E10: ='[1]Rapport 5'!E10 -> 5101 | F10: ='[1]Rapport 5'!F10 -> SELESTAT | G10: ='[1]Rapport 5'!G10 -> 262 | H10: ='[1]Rapport 5'!H10 -> BAS RHIN | I10: ='[1]Rapport 5'!I10 -> 10559.64 | J10: ='[1]Rapport 5'!J10 -> 1709.23 | K10: ='[1]Rapport 5'!K10 -> 0 | L10: ='[1]Rapport 5'!L10 -> 0 | M10: ='[1]Rapport 5'!M10 -> 248358.38 | N10: ='[1]Rapport 5'!N10 -> 9315.19 | O10: ='[1]Rapport 5'!O10 -> 6295.75 | P10: ='[1]Rapport 5'!P10 -> 1240 | Q10: ='[1]Rapport 5'!Q10 -> 0 | R10: ='[1]Rapport 5'!R10 -> 0 | S10: ='[1]Rapport 5'!S10 -> 711.42 | T10: ='[1]Rapport 5'!T10 -> 0 | U10: ='[1]Rapport 5'!U10 -> 16262.51 | V10: ='[1]Rapport 5'!V10 -> 3319.68 | W10: ='[1]Rapport 5'!W10 -> 5693.21 | X10: ='[1]Rapport 5'!X10 -> 276.44 | Y10: 287,881 | Z10: 15,861 | AA10: 5.5% | AB10: 311 | AC10: =1+(AB10/COUNT($AB$3:AB$339)*10) -> 10.22848665 | AD10: 10 | AE10: 1,709 | AF10: 16.2% | AG10: 325 | AH10: 10.64391691 | AI10: 10 | AJ10: 0 | AK10: 0.0% | AL10: 1 | AM10: 1.029673591 | AN10: 1 | AO10: 9,315 | AP10: 3.8% | AQ10: 269 | AR10: 8.982195846 | AS10: 8 | AT10: 1,240 | AU10: 19.7% | AV10: 314 | AW10: 10.31750742 | AX10: 10 | AY10: 0 | AZ10: 0.0% | BA10: 1 | BB10: 1.029673591 | BC10: 1 | BD10: 0 | BE10: 0.0% | BF10: 1 | BG10: 1.029673591 | BH10: 1 | BI10: 3,320 | BJ10: 20.4% | BK10: 243 | BL10: 8.210682493 | BM10: 8 | BN10: 276 | BO10: 4.9% | BP10: 226 | BQ10: 7.706231454 | BR10: 7 | BT10: 15 | BU10: 0
A11: ='[1]Rapport 5'!A11 -> 17 | B11: ='[1]Rapport 5'!B11 -> MON AGENCE | C11: ='[1]Rapport 5'!C11 -> 4017 | D11: ='[1]Rapport 5'!D11 -> MON AGENCE | E11: ='[1]Rapport 5'!E11 -> 5017 | F11: ='[1]Rapport 5'!F11 -> MON AGENCE | G11: ='[1]Rapport 5'!G11 -> 269 | H11: ='[1]Rapport 5'!H11 -> BANQUE DIGITALE | I11: ='[1]Rapport 5'!I11 -> 42335.67 | J11: ='[1]Rapport 5'!J11 -> 129.08 | K11: ='[1]Rapport 5'!K11 -> 0 | L11: ='[1]Rapport 5'!L11 -> 0 | M11: ='[1]Rapport 5'!M11 -> 355787.63 | N11: ='[1]Rapport 5'!N11 -> 4260.18 | O11: ='[1]Rapport 5'!O11 -> 634.65 | P11: ='[1]Rapport 5'!P11 -> 369.85 | Q11: ='[1]Rapport 5'!Q11 -> 0 | R11: ='[1]Rapport 5'!R11 -> 0 | S11: ='[1]Rapport 5'!S11 -> 626.01 | T11: ='[1]Rapport 5'!T11 -> 269.82 | U11: ='[1]Rapport 5'!U11 -> 15107.02 | V11: ='[1]Rapport 5'!V11 -> 3474.89 | W11: ='[1]Rapport 5'!W11 -> 20009.43 | X11: ='[1]Rapport 5'!X11 -> 189.58 | Y11: 434,500 | Z11: 8,693 | AA11: 2.0% | AB11: 10 | AC11: =1+(AB11/COUNT($AB$3:AB$339)*10) -> 1.296735905 | AD11: 1 | AE11: =+J11 -> 129 | AF11: 0.3% | AG11: 1 | AH11: 1.029673591 | AI11: 1 | AJ11: 0 | AK11: 0.0% | AL11: 1 | AM11: 1.029673591 | AN11: 1 | AO11: 4,260 | AP11: 1.2% | AQ11: 5 | AR11: 1.148367953 | AS11: 1 | AT11: 370 | AU11: 58.3% | AV11: 334 | AW11: 10.91097923 | AX11: 10 | AY11: 0 | AZ11: 0.0% | BA11: 1 | BB11: 1.029673591 | BC11: 1 | BD11: 270 | BE11: 43.1% | BF11: 328 | BG11: 10.73293769 | BH11: 10 | BI11: 3,475 | BJ11: 23.0% | BK11: 271 | BL11: 9.041543027 | BM11: 9 | BN11: 190 | BO11: 0.9% | BP11: 64 | BQ11: 2.899109792 | BR11: 2 | BT11: 17 | BU11: 0
A12: ='[1]Rapport 5'!A12 -> 18 | B12: ='[1]Rapport 5'!B12 -> ESPACE MESANGE | C12: ='[1]Rapport 5'!C12 -> 4043 | D12: ='[1]Rapport 5'!D12 -> STRASBOURG HALLES | E12: ='[1]Rapport 5'!E12 -> 5006 | F12: ='[1]Rapport 5'!F12 -> STRASBOURG | G12: ='[1]Rapport 5'!G12 -> 262 | H12: ='[1]Rapport 5'!H12 -> BAS RHIN | I12: ='[1]Rapport 5'!I12 -> 34459.19 | J12: ='[1]Rapport 5'!J12 -> 313.83 | K12: ='[1]Rapport 5'!K12 -> 0 | L12: ='[1]Rapport 5'!L12 -> 0 | M12: ='[1]Rapport 5'!M12 -> 190962.93 | N12: ='[1]Rapport 5'!N12 -> 4996.93 | O12: ='[1]Rapport 5'!O12 -> 10206 | P12: ='[1]Rapport 5'!P12 -> 379.5 | Q12: ='[1]Rapport 5'!Q12 -> 609.06 | R12: ='[1]Rapport 5'!R12 -> 0 | S12: ='[1]Rapport 5'!S12 -> 287.64 | T12: ='[1]Rapport 5'!T12 -> 0 | U12: ='[1]Rapport 5'!U12 -> 4722.79 | V12: ='[1]Rapport 5'!V12 -> 217.35 | W12: ='[1]Rapport 5'!W12 -> 3543.95 | X12: ='[1]Rapport 5'!X12 -> 28 | Y12: 244,792 | Z12: 5,936 | AA12: 2.4% | AB12: 30 | AC12: =1+(AB12/COUNT($AB$3:AB$339)*10) -> 1.890207715 | AD12: 1 | AE12: 314 | AF12: 0.9% | AG12: 3 | AH12: 1.089020772 | AI12: 1 | AJ12: 0 | AK12: 0.0% | AL12: 1 | AM12: 1.029673591 | AN12: 1 | AO12: 4,997 | AP12: 2.6% | AQ12: 128 | AR12: 4.798219585 | AS12: 4 | AT12: 380 | AU12: 3.7% | AV12: 190 | AW12: 6.637982196 | AX12: 6 | AY12: 0 | AZ12: 0.0% | BA12: 1 | BB12: 1.029673591 | BC12: 1 | BD12: 0 | BE12: 0.0% | BF12: 1 | BG12: 1.029673591 | BH12: 1 | BI12: 217 | BJ12: 4.6% | BK12: 20 | BL12: 1.59347181 | BM12: 1 | BN12: 28 | BO12: 0.8% | BP12: 53 | BQ12: 2.572700297 | BR12: 2 | BT12: 18 | BU12: 0
A13: ='[1]Rapport 5'!A13 -> 19 | B13: ='[1]Rapport 5'!B13 -> STRASBOURG ANVERS | C13: ='[1]Rapport 5'!C13 -> 4019 | D13: ='[1]Rapport 5'!D13 -> STRASBOURG ANVERS | E13: ='[1]Rapport 5'!E13 -> 5006 | F13: ='[1]Rapport 5'!F13 -> STRASBOURG | G13: ='[1]Rapport 5'!G13 -> 262 | H13: ='[1]Rapport 5'!H13 -> BAS RHIN | I13: ='[1]Rapport 5'!I13 -> 6680.99 | J13: ='[1]Rapport 5'!J13 -> 2091.77 | K13: ='[1]Rapport 5'!K13 -> 0 | L13: ='[1]Rapport 5'!L13 -> 13.78 | M13: ='[1]Rapport 5'!M13 -> 311884.12 | N13: ='[1]Rapport 5'!N13 -> 11701.74 | O13: ='[1]Rapport 5'!O13 -> 9818.5 | P13: ='[1]Rapport 5'!P13 -> 1776 | Q13: ='[1]Rapport 5'!Q13 -> 0 | R13: ='[1]Rapport 5'!R13 -> 0 | S13: ='[1]Rapport 5'!S13 -> 1497 | T13: ='[1]Rapport 5'!T13 -> 44 | U13: ='[1]Rapport 5'!U13 -> 23263.21 | V13: ='[1]Rapport 5'!V13 -> 7027.94 | W13: ='[1]Rapport 5'!W13 -> 12917.78 | X13: ='[1]Rapport 5'!X13 -> 269.9 | Y13: 366,062 | Z13: 22,925 | AA13: 6.3% | AB13: 327 | AC13: =1+(AB13/COUNT($AB$3:AB$339)*10) -> 10.70326409 | AD13: 10 | AE13: 2,092 | AF13: 31.3% | AG13: 333 | AH13: 10.88130564 | AI13: 10 | AJ13: 14 | AK13: 100.0% | AL13: 314 | AM13: 10.31750742 | AN13: 10 | AO13: 11,702 | AP13: 3.8% | AQ13: 270 | AR13: 9.011869436 | AS13: 9 | AT13: 1,776 | AU13: 18.1% | AV13: 310 | AW13: 10.19881306 | AX13: 10 | AY13: 0 | AZ13: 0.0% | BA13: 1 | BB13: 1.029673591 | BC13: 1 | BD13: 44 | BE13: 2.9% | BF13: 241 | BG13: 8.151335312 | BH13: 8 | BI13: 7,028 | BJ13: 30.2% | BK13: 298 | BL13: 9.84272997 | BM13: 9 | BN13: 270 | BO13: 2.1% | BP13: 114 | BQ13: 4.382789318 | BR13: 4 | BT13: 19 | BU13: 0
A14: ='[1]Rapport 5'!A14 -> 20 | B14: ='[1]Rapport 5'!B14 -> STRASBOURG ROBERTSAU | C14: ='[1]Rapport 5'!C14 -> 4020 | D14: ='[1]Rapport 5'!D14 -> STRASBOURG ROBERTSAU | E14: ='[1]Rapport 5'!E14 -> 5006 | F14: ='[1]Rapport 5'!F14 -> STRASBOURG | G14: ='[1]Rapport 5'!G14 -> 262 | H14: ='[1]Rapport 5'!H14 -> BAS RHIN | I14: ='[1]Rapport 5'!I14 -> 8931.16 | J14: ='[1]Rapport 5'!J14 -> 605.58 | K14: ='[1]Rapport 5'!K14 -> 0 | L14: ='[1]Rapport 5'!L14 -> 0 | M14: ='[1]Rapport 5'!M14 -> 294704.37 | N14: ='[1]Rapport 5'!N14 -> 8801.48 | O14: ='[1]Rapport 5'!O14 -> 6013.5 | P14: ='[1]Rapport 5'!P14 -> 791.9 | Q14: ='[1]Rapport 5'!Q14 -> 0 | R14: ='[1]Rapport 5'!R14 -> 0 | S14: ='[1]Rapport 5'!S14 -> 1818.59 | T14: ='[1]Rapport 5'!T14 -> 13 | U14: ='[1]Rapport 5'!U14 -> 20178.75 | V14: ='[1]Rapport 5'!V14 -> 1971.39 | W14: ='[1]Rapport 5'!W14 -> 9185.66 | X14: ='[1]Rapport 5'!X14 -> 608.54 | Y14: 340,832 | Z14: 12,792 | AA14: 3.8% | AB14: 175 | AC14: =1+(AB14/COUNT($AB$3:AB$339)*10) -> 6.192878338 | AD14: 6 | AE14: 606 | AF14: 6.8% | AG14: 258 | AH14: 8.65578635 | AI14: 8 | AJ14: 0 | AK14: 0.0% | AL14: 1 | AM14: 1.029673591 | AN14: 1 | AO14: 8,801 | AP14: 3.0% | AQ14: 176 | AR14: 6.222551929 | AS14: 6 | AT14: 792 | AU14: 13.2% | AV14: 299 | AW14: 9.872403561 | AX14: 9 | AY14: 0 | AZ14: 0.0% | BA14: 1 | BB14: 1.029673591 | BC14: 1 | BD14: 13 | BE14: 0.7% | BF14: 220 | BG14: 7.528189911 | BH14: 7 | BI14: 1,971 | BJ14: 9.8% | BK14: 84 | BL14: 3.492581602 | BM14: 3 | BN14: 609 | BO14: 6.6% | BP14: 267 | BQ14: 8.922848665 | BR14: 8 | BT14: 20 | BU14: 0
A15: ='[1]Rapport 5'!A15 -> 23 | B15: ='[1]Rapport 5'!B15 -> STRASBOURG VOSGES | C15: ='[1]Rapport 5'!C15 -> 4023 | D15: ='[1]Rapport 5'!D15 -> STRASBOURG VOSGES | E15: ='[1]Rapport 5'!E15 -> 5006 | F15: ='[1]Rapport 5'!F15 -> STRASBOURG | G15: ='[1]Rapport 5'!G15 -> 262 | H15: ='[1]Rapport 5'!H15 -> BAS RHIN | I15: ='[1]Rapport 5'!I15 -> 4858.2 | J15: ='[1]Rapport 5'!J15 -> 280.82 | K15: ='[1]Rapport 5'!K15 -> 0 | L15: ='[1]Rapport 5'!L15 -> 0 | M15: ='[1]Rapport 5'!M15 -> 206235.25 | N15: ='[1]Rapport 5'!N15 -> 7174.7 | O15: ='[1]Rapport 5'!O15 -> 4391 | P15: ='[1]Rapport 5'!P15 -> 775.14 | Q15: ='[1]Rapport 5'!Q15 -> 0 | R15: ='[1]Rapport 5'!R15 -> 0 | S15: ='[1]Rapport 5'!S15 -> 823 | T15: ='[1]Rapport 5'!T15 -> 57 | U15: ='[1]Rapport 5'!U15 -> 13866.47 | V15: ='[1]Rapport 5'!V15 -> 2200.94 | W15: ='[1]Rapport 5'!W15 -> 8881.15 | X15: ='[1]Rapport 5'!X15 -> 957.96 | Y15: 239,055 | Z15: 11,447 | AA15: 4.8% | AB15: 275 | AC15: =1+(AB15/COUNT($AB$3:AB$339)*10) -> 9.160237389 | AD15: 9 | AE15: 281 | AF15: 5.8% | AG15: 236 | AH15: 8.002967359 | AI15: 8 | AJ15: 0 | AK15: 0.0% | AL15: 1 | AM15: 1.029673591 | AN15: 1 | AO15: 7,175 | AP15: 3.5% | AQ15: 239 | AR15: 8.091988131 | AS15: 8 | AT15: 775 | AU15: 17.7% | AV15: 308 | AW15: 10.13946588 | AX15: 10 | AY15: 0 | AZ15: 0.0% | BA15: 1 | BB15: 1.029673591 | BC15: 1 | BD15: 57 | BE15: 6.9% | BF15: 266 | BG15: 8.893175074 | BH15: 8 | BI15: 2,201 | BJ15: 15.9% | BK15: 177 | BL15: 6.252225519 | BM15: 6 | BN15: 958 | BO15: 10.8% | BP15: 311 | BQ15: 10.22848665 | BR15: 10 | BT15: 23 | BU15: 0
A16: ='[1]Rapport 5'!A16 -> 24 | B16: ='[1]Rapport 5'!B16 -> STRASBOURG AUSTERLITZ | C16: ='[1]Rapport 5'!C16 -> 4024 | D16: ='[1]Rapport 5'!D16 -> STRASBOURG AUSTERLITZ | E16: ='[1]Rapport 5'!E16 -> 5006 | F16: ='[1]Rapport 5'!F16 -> STRASBOURG | G16: ='[1]Rapport 5'!G16 -> 262 | H16: ='[1]Rapport 5'!H16 -> BAS RHIN | I16: ='[1]Rapport 5'!I16 -> 6847.72 | J16: ='[1]Rapport 5'!J16 -> 503.96 | K16: ='[1]Rapport 5'!K16 -> 0 | L16: ='[1]Rapport 5'!L16 -> 0 | M16: ='[1]Rapport 5'!M16 -> 209610.62 | N16: ='[1]Rapport 5'!N16 -> 5054.28 | O16: ='[1]Rapport 5'!O16 -> 5123 | P16: ='[1]Rapport 5'!P16 -> 154.5 | Q16: ='[1]Rapport 5'!Q16 -> 0 | R16: ='[1]Rapport 5'!R16 -> 0 | S16: ='[1]Rapport 5'!S16 -> 1521.93 | T16: ='[1]Rapport 5'!T16 -> 0 | U16: ='[1]Rapport 5'!U16 -> 10397.07 | V16: ='[1]Rapport 5'!V16 -> 805.1 | W16: ='[1]Rapport 5'!W16 -> 3661.35 | X16: ='[1]Rapport 5'!X16 -> 111.9 | Y16: 237,162 | Z16: 6,630 | AA16: 2.8% | AB16: 62 | AC16: =1+(AB16/COUNT($AB$3:AB$339)*10) -> 2.839762611 | AD16: 2 | AE16: 504 | AF16: 7.4% | AG16: 271 | AH16: 9.041543027 | AI16: 9 | AJ16: 0 | AK16: 0.0% | AL16: 1 | AM16: 1.029673591 | AN16: 1 | AO16: 5,054 | AP16: 2.4% | AQ16: 108 | AR16: 4.204747774 | AS16: 4 | AT16: 155 | AU16: 3.0% | AV16: 170 | AW16: 6.044510386 | AX16: 6 | AY16: 0 | AZ16: 0.0% | BA16: 1 | BB16: 1.029673591 | BC16: 1 | BD16: 0 | BE16: 0.0% | BF16: 1 | BG16: 1.029673591 | BH16: 1 | BI16: 805 | BJ16: 7.7% | BK16: 58 | BL16: 2.721068249 | BM16: 2 | BN16: 112 | BO16: 3.1% | BP16: 164 | BQ16: 5.866468843 | BR16: 5 | BT16: 24 | BU16: 0
A17: ='[1]Rapport 5'!A17 -> 25 | B17: ='[1]Rapport 5'!B17 -> STRASBOURG ESPLANADE | C17: ='[1]Rapport 5'!C17 -> 4026 | D17: ='[1]Rapport 5'!D17 -> STRASBOURG DANUBE | E17: ='[1]Rapport 5'!E17 -> 5006 | F17: ='[1]Rapport 5'!F17 -> STRASBOURG | G17: ='[1]Rapport 5'!G17 -> 262 | H17: ='[1]Rapport 5'!H17 -> BAS RHIN | I17: ='[1]Rapport 5'!I17 -> 13172.49 | J17: ='[1]Rapport 5'!J17 -> 905.82 | K17: ='[1]Rapport 5'!K17 -> 0 | L17: ='[1]Rapport 5'!L17 -> 48.5 | M17: ='[1]Rapport 5'!M17 -> 247869.44 | N17: ='[1]Rapport 5'!N17 -> 9279.58 | O17: ='[1]Rapport 5'!O17 -> 6496.5 | P17: ='[1]Rapport 5'!P17 -> 375.44 | Q17: ='[1]Rapport 5'!Q17 -> 0 | R17: ='[1]Rapport 5'!R17 -> 0 | S17: ='[1]Rapport 5'!S17 -> 601 | T17: ='[1]Rapport 5'!T17 -> 0 | U17: ='[1]Rapport 5'!U17 -> 11572.69 | V17: ='[1]Rapport 5'!V17 -> 1294.65 | W17: ='[1]Rapport 5'!W17 -> 5813.65 | X17: ='[1]Rapport 5'!X17 -> 266.31 | Y17: 285,526 | Z17: 12,170 | AA17: 4.3% | AB17: 237 | AC17: =1+(AB17/COUNT($AB$3:AB$339)*10) -> 8.03264095 | AD17: 8 | AE17: 906 | AF17: 6.9% | AG17: 263 | AH17: 8.804154303 | AI17: 8 | AJ17: 49 | AK17: 100.0% | AL17: 314 | AM17: 10.31750742 | AN17: 10 | AO17: 9,280 | AP17: 3.7% | AQ17: 268 | AR17: 8.952522255 | AS17: 8 | AT17: 375 | AU17: 5.8% | AV17: 230 | AW17: 7.824925816 | AX17: 7 | AY17: 0 | AZ17: 0.0% | BA17: 1 | BB17: 1.029673591 | BC17: 1 | BD17: 0 | BE17: 0.0% | BF17: 1 | BG17: 1.029673591 | BH17: 1 | BI17: 1,295 | BJ17: 11.2% | BK17: 104 | BL17: 4.086053412 | BM17: 4 | BN17: 266 | BO17: 4.6% | BP17: 216 | BQ17: 7.409495549 | BR17: 7 | BT17: 25 | BU17: 0
A18: ='[1]Rapport 5'!A18 -> 26 | B18: ='[1]Rapport 5'!B18 -> STRASBOURG DANUBE | C18: ='[1]Rapport 5'!C18 -> 4026 | D18: ='[1]Rapport 5'!D18 -> STRASBOURG DANUBE | E18: ='[1]Rapport 5'!E18 -> 5006 | F18: ='[1]Rapport 5'!F18 -> STRASBOURG | G18: ='[1]Rapport 5'!G18 -> 262 | H18: ='[1]Rapport 5'!H18 -> BAS RHIN | I18: ='[1]Rapport 5'!I18 -> 4205.37 | J18: ='[1]Rapport 5'!J18 -> 109.81 | K18: ='[1]Rapport 5'!K18 -> 0 | L18: ='[1]Rapport 5'!L18 -> 0 | M18: ='[1]Rapport 5'!M18 -> 109964.51 | N18: ='[1]Rapport 5'!N18 -> 2534.37 | O18: ='[1]Rapport 5'!O18 -> 908 | P18: ='[1]Rapport 5'!P18 -> 0 | Q18: ='[1]Rapport 5'!Q18 -> 0 | R18: ='[1]Rapport 5'!R18 -> 0 | S18: ='[1]Rapport 5'!S18 -> 217.4 | T18: ='[1]Rapport 5'!T18 -> 0 | U18: ='[1]Rapport 5'!U18 -> 4116.45 | V18: ='[1]Rapport 5'!V18 -> 42.85 | W18: ='[1]Rapport 5'!W18 -> 3031.3 | X18: ='[1]Rapport 5'!X18 -> 466.87 | Y18: 122,443 | Z18: 3,154 | AA18: 2.6% | AB18: 43 | AC18: =1+(AB18/COUNT($AB$3:AB$339)*10) -> 2.275964392 | AD18: 2 | AE18: 110 | AF18: 2.6% | AG18: 68 | AH18: 3.017804154 | AI18: 3 | AJ18: 0 | AK18: 0.0% | AL18: 1 | AM18: 1.029673591 | AN18: 1 | AO18: 2,534 | AP18: 2.3% | AQ18: 90 | AR18: 3.670623145 | AS18: 3 | AT18: 0 | AU18: 0.0% | AV18: 1 | AW18: 1.029673591 | AX18: 1 | AY18: 0 | AZ18: 0.0% | BA18: 1 | BB18: 1.029673591 | BC18: 1 | BD18: 0 | BE18: 0.0% | BF18: 1 | BG18: 1.029673591 | BH18: 1 | BI18: 43 | BJ18: 1.0% | BK18: 2 | BL18: 1.059347181 | BM18: 1 | BN18: 467 | BO18: 15.4% | BP18: 327 | BQ18: 10.70326409 | BR18: 10 | BT18: 26 | BU18: 0
A19: ='[1]Rapport 5'!A19 -> 27 | B19: ='[1]Rapport 5'!B19 -> SCHILTIGHEIM CENTRE | C19: ='[1]Rapport 5'!C19 -> 4027 | D19: ='[1]Rapport 5'!D19 -> SCHILTIGHEIM CENTRE | E19: ='[1]Rapport 5'!E19 -> 5006 | F19: ='[1]Rapport 5'!F19 -> STRASBOURG | G19: ='[1]Rapport 5'!G19 -> 262 | H19: ='[1]Rapport 5'!H19 -> BAS RHIN | I19: ='[1]Rapport 5'!I19 -> 12295.9 | J19: ='[1]Rapport 5'!J19 -> 1306.11 | K19: ='[1]Rapport 5'!K19 -> 0 | L19: ='[1]Rapport 5'!L19 -> 0 | M19: ='[1]Rapport 5'!M19 -> 333548 | N19: ='[1]Rapport 5'!N19 -> 11042.63 | O19: ='[1]Rapport 5'!O19 -> 3755 | P19: ='[1]Rapport 5'!P19 -> 1890.05 | Q19: ='[1]Rapport 5'!Q19 -> 468.82 | R19: ='[1]Rapport 5'!R19 -> 0 | S19: ='[1]Rapport 5'!S19 -> 1084 | T19: ='[1]Rapport 5'!T19 -> 26 | U19: ='[1]Rapport 5'!U19 -> 14624.93 | V19: ='[1]Rapport 5'!V19 -> 1722.27 | W19: ='[1]Rapport 5'!W19 -> 5221.58 | X19: ='[1]Rapport 5'!X19 -> 1028 | Y19: 370,998 | Z19: 17,015 | AA19: 4.6% | AB19: 261 | AC19: =1+(AB19/COUNT($AB$3:AB$339)*10) -> 8.744807122 | AD19: 8 | AE19: 1,306 | AF19: 10.6% | AG19: 308 | AH19: 10.13946588 | AI19: 10 | AJ19: 0 | AK19: 0.0% | AL19: 1 | AM19: 1.029673591 | AN19: 1 | AO19: 11,043 | AP19: 3.3% | AQ19: 223 | AR19: 7.617210682 | AS19: 7 | AT19: 1,890 | AU19: 50.3% | AV19: 330 | AW19: 10.79228487 | AX19: 10 | AY19: 0 | AZ19: 0.0% | BA19: 1 | BB19: 1.029673591 | BC19: 1 | BD19: 26 | BE19: 2.4% | BF19: 233 | BG19: 7.913946588 | BH19: 7 | BI19: 1,722 | BJ19: 11.8% | BK19: 110 | BL19: 4.264094955 | BM19: 4 | BN19: 1,028 | BO19: 19.7% | BP19: 334 | BQ19: 10.91097923 | BR19: 10 | BT19: 27 | BU19: 0
A20: ='[1]Rapport 5'!A20 -> 28 | B20: ='[1]Rapport 5'!B20 -> BISCHHEIM | C20: ='[1]Rapport 5'!C20 -> 4028 | D20: ='[1]Rapport 5'!D20 -> BISCHHEIM | E20: ='[1]Rapport 5'!E20 -> 5006 | F20: ='[1]Rapport 5'!F20 -> STRASBOURG | G20: ='[1]Rapport 5'!G20 -> 262 | H20: ='[1]Rapport 5'!H20 -> BAS RHIN | I20: ='[1]Rapport 5'!I20 -> 9371.11 | J20: ='[1]Rapport 5'!J20 -> 168.94 | K20: ='[1]Rapport 5'!K20 -> 0 | L20: ='[1]Rapport 5'!L20 -> 0 | M20: ='[1]Rapport 5'!M20 -> 260815.61 | N20: ='[1]Rapport 5'!N20 -> 5186.84 | O20: ='[1]Rapport 5'!O20 -> 4268 | P20: ='[1]Rapport 5'!P20 -> 40 | Q20: ='[1]Rapport 5'!Q20 -> 0 | R20: ='[1]Rapport 5'!R20 -> 0 | S20: ='[1]Rapport 5'!S20 -> 655.94 | T20: ='[1]Rapport 5'!T20 -> 18 | U20: ='[1]Rapport 5'!U20 -> 14314.13 | V20: ='[1]Rapport 5'!V20 -> 3230.92 | W20: ='[1]Rapport 5'!W20 -> 7976.65 | X20: ='[1]Rapport 5'!X20 -> 232 | Y20: 297,401 | Z20: 8,877 | AA20: 3.0% | AB20: 82 | AC20: =1+(AB20/COUNT($AB$3:AB$339)*10) -> 3.433234421 | AD20: 3 | AE20: 169 | AF20: 1.8% | AG20: 25 | AH20: 1.741839763 | AI20: 1 | AJ20: 0 | AK20: 0.0% | AL20: 1 | AM20: 1.029673591 | AN20: 1 | AO20: 5,187 | AP20: 2.0% | AQ20: 51 | AR20: 2.513353116 | AS20: 2 | AT20: 40 | AU20: 0.9% | AV20: 99 | AW20: 3.93768546 | AX20: 3 | AY20: 0 | AZ20: 0.0% | BA20: 1 | BB20: 1.029673591 | BC20: 1 | BD20: 18 | BE20: 2.7% | BF20: 238 | BG20: 8.06231454 | BH20: 8 | BI20: 3,231 | BJ20: 22.6% | BK20: 267 | BL20: 8.922848665 | BM20: 8 | BN20: 232 | BO20: 2.9% | BP20: 160 | BQ20: 5.747774481 | BR20: 5 | BT20: 28 | BU20: 0
A21: ='[1]Rapport 5'!A21 -> 29 | B21: ='[1]Rapport 5'!B21 -> SCHILTIGHEIM KLEBER | C21: ='[1]Rapport 5'!C21 -> 4029 | D21: ='[1]Rapport 5'!D21 -> SCHILTIGHEIM KLEBER | E21: ='[1]Rapport 5'!E21 -> 5006 | F21: ='[1]Rapport 5'!F21 -> STRASBOURG | G21: ='[1]Rapport 5'!G21 -> 262 | H21: ='[1]Rapport 5'!H21 -> BAS RHIN | I21: ='[1]Rapport 5'!I21 -> 5703.49 | J21: ='[1]Rapport 5'!J21 -> 180.63 | K21: ='[1]Rapport 5'!K21 -> 0 | L21: ='[1]Rapport 5'!L21 -> 0 | M21: ='[1]Rapport 5'!M21 -> 178652.09 | N21: ='[1]Rapport 5'!N21 -> 5752.73 | O21: ='[1]Rapport 5'!O21 -> 5571.5 | P21: ='[1]Rapport 5'!P21 -> 168 | Q21: ='[1]Rapport 5'!Q21 -> 0 | R21: ='[1]Rapport 5'!R21 -> 0 | S21: ='[1]Rapport 5'!S21 -> 639 | T21: ='[1]Rapport 5'!T21 -> 0 | U21: ='[1]Rapport 5'!U21 -> 8504.16 | V21: ='[1]Rapport 5'!V21 -> 1156.12 | W21: ='[1]Rapport 5'!W21 -> 2789.59 | X21: ='[1]Rapport 5'!X21 -> 0 | Y21: 201,860 | Z21: 7,257 | AA21: 3.6% | AB21: 161 | AC21: =1+(AB21/COUNT($AB$3:AB$339)*10) -> 5.777448071 | AD21: 5 | AE21: 181 | AF21: 3.2% | AG21: 99 | AH21: 3.93768546 | AI21: 3 | AJ21: 0 | AK21: 0.0% | AL21: 1 | AM21: 1.029673591 | AN21: 1 | AO21: 5,753 | AP21: 3.2% | AQ21: 214 | AR21: 7.350148368 | AS21: 7 | AT21: 168 | AU21: 3.0% | AV21: 169 | AW21: 6.014836795 | AX21: 6 | AY21: 0 | AZ21: 0.0% | BA21: 1 | BB21: 1.029673591 | BC21: 1 | BD21: 0 | BE21: 0.0% | BF21: 1 | BG21: 1.029673591 | BH21: 1 | BI21: 1,156 | BJ21: 13.6% | BK21: 142 | BL21: 5.213649852 | BM21: 5 | BN21: 0 | BO21: 0.0% | BP21: 1 | BQ21: 1.029673591 | BR21: 1 | BT21: 29 | BU21: 0
A22: ='[1]Rapport 5'!A22 -> 30 | B22: ='[1]Rapport 5'!B22 -> BRUMATH | C22: ='[1]Rapport 5'!C22 -> 4030 | D22: ='[1]Rapport 5'!D22 -> BRUMATH | E22: ='[1]Rapport 5'!E22 -> 5060 | F22: ='[1]Rapport 5'!F22 -> HAGUENAU | G22: ='[1]Rapport 5'!G22 -> 262 | H22: ='[1]Rapport 5'!H22 -> BAS RHIN | I22: ='[1]Rapport 5'!I22 -> 10335.88 | J22: ='[1]Rapport 5'!J22 -> 657.72 | K22: ='[1]Rapport 5'!K22 -> 0 | L22: ='[1]Rapport 5'!L22 -> 0 | M22: ='[1]Rapport 5'!M22 -> 347911.82 | N22: ='[1]Rapport 5'!N22 -> 10154.29 | O22: ='[1]Rapport 5'!O22 -> 9893.5 | P22: ='[1]Rapport 5'!P22 -> 1520 | Q22: ='[1]Rapport 5'!Q22 -> 0 | R22: ='[1]Rapport 5'!R22 -> 0 | S22: ='[1]Rapport 5'!S22 -> 878.2 | T22: ='[1]Rapport 5'!T22 -> 97.2 | U22: ='[1]Rapport 5'!U22 -> 21318.31 | V22: ='[1]Rapport 5'!V22 -> 4540.48 | W22: ='[1]Rapport 5'!W22 -> 9576.41 | X22: ='[1]Rapport 5'!X22 -> 947.71 | Y22: 399,914 | Z22: 17,917 | AA22: 4.5% | AB22: 253 | AC22: =1+(AB22/COUNT($AB$3:AB$339)*10) -> 8.507418398 | AD22: 8 | AE22: 658 | AF22: 6.4% | AG22: 250 | AH22: 8.418397626 | AI22: 8 | AJ22: 0 | AK22: 0.0% | AL22: 1 | AM22: 1.029673591 | AN22: 1 | AO22: 10,154 | AP22: 2.9% | AQ22: 166 | AR22: 5.925816024 | AS22: 5 | AT22: 1,520 | AU22: 15.4% | AV22: 303 | AW22: 9.991097923 | AX22: 9 | AY22: 0 | AZ22: 0.0% | BA22: 1 | BB22: 1.029673591 | BC22: 1 | BD22: 97 | BE22: 11.1% | BF22: 291 | BG22: 9.635014837 | BH22: 9 | BI22: 4,540 | BJ22: 21.3% | BK22: 254 | BL22: 8.537091988 | BM22: 8 | BN22: 948 | BO22: 9.9% | BP22: 307 | BQ22: 10.10979228 | BR22: 10 | BT22: 30 | BU22: 0
A23: ='[1]Rapport 5'!A23 -> 31 | B23: ='[1]Rapport 5'!B23 -> TRUCHTERSHEIM | C23: ='[1]Rapport 5'!C23 -> 4031 | D23: ='[1]Rapport 5'!D23 -> TRUCHTERSHEIM | E23: ='[1]Rapport 5'!E23 -> 5060 | F23: ='[1]Rapport 5'!F23 -> HAGUENAU | G23: ='[1]Rapport 5'!G23 -> 262 | H23: ='[1]Rapport 5'!H23 -> BAS RHIN | I23: ='[1]Rapport 5'!I23 -> 6997.16 | J23: ='[1]Rapport 5'!J23 -> 204.6 | K23: ='[1]Rapport 5'!K23 -> 0 | L23: ='[1]Rapport 5'!L23 -> 0 | M23: ='[1]Rapport 5'!M23 -> 181780.08 | N23: ='[1]Rapport 5'!N23 -> 8552.9 | O23: ='[1]Rapport 5'!O23 -> 3759.5 | P23: ='[1]Rapport 5'!P23 -> 84 | Q23: ='[1]Rapport 5'!Q23 -> 0 | R23: ='[1]Rapport 5'!R23 -> 0 | S23: ='[1]Rapport 5'!S23 -> 357 | T23: ='[1]Rapport 5'!T23 -> 0 | U23: ='[1]Rapport 5'!U23 -> 5330.42 | V23: ='[1]Rapport 5'!V23 -> 1078.41 | W23: ='[1]Rapport 5'!W23 -> 5765.69 | X23: ='[1]Rapport 5'!X23 -> 441.38 | Y23: 203,990 | Z23: 10,361 | AA23: 5.1% | AB23: 292 | AC23: =1+(AB23/COUNT($AB$3:AB$339)*10) -> 9.664688427 | AD23: 9 | AE23: 205 | AF23: 2.9% | AG23: 83 | AH23: 3.462908012 | AI23: 3 | AJ23: 0 | AK23: 0.0% | AL23: 1 | AM23: 1.029673591 | AN23: 1 | AO23: 8,553 | AP23: 4.7% | AQ23: 316 | AR23: 10.3768546 | AS23: 10 | AT23: 84 | AU23: 2.2% | AV23: 141 | AW23: 5.183976261 | AX23: 5 | AY23: 0 | AZ23: 0.0% | BA23: 1 | BB23: 1.029673591 | BC23: 1 | BD23: 0 | BE23: 0.0% | BF23: 1 | BG23: 1.029673591 | BH23: 1 | BI23: 1,078 | BJ23: 20.2% | BK23: 242 | BL23: 8.181008902 | BM23: 8 | BN23: 441 | BO23: 7.7% | BP23: 280 | BQ23: 9.308605341 | BR23: 9 | BT23: 31 | BU23: 0
A24: ='[1]Rapport 5'!A24 -> 33 | B24: ='[1]Rapport 5'!B24 -> LA WANTZENAU | C24: ='[1]Rapport 5'!C24 -> 4033 | D24: ='[1]Rapport 5'!D24 -> LA WANTZENAU | E24: ='[1]Rapport 5'!E24 -> 5006 | F24: ='[1]Rapport 5'!F24 -> STRASBOURG | G24: ='[1]Rapport 5'!G24 -> 262 | H24: ='[1]Rapport 5'!H24 -> BAS RHIN | I24: ='[1]Rapport 5'!I24 -> 3551.3 | J24: ='[1]Rapport 5'!J24 -> 245.37 | K24: ='[1]Rapport 5'!K24 -> 0 | L24: ='[1]Rapport 5'!L24 -> 0 | M24: ='[1]Rapport 5'!M24 -> 132891.21 | N24: ='[1]Rapport 5'!N24 -> 2680.07 | O24: ='[1]Rapport 5'!O24 -> 3014.5 | P24: ='[1]Rapport 5'!P24 -> 150 | Q24: ='[1]Rapport 5'!Q24 -> 0 | R24: ='[1]Rapport 5'!R24 -> 0 | S24: ='[1]Rapport 5'!S24 -> 388.9 | T24: ='[1]Rapport 5'!T24 -> 0 | U24: ='[1]Rapport 5'!U24 -> 4385.81 | V24: ='[1]Rapport 5'!V24 -> 1880.47 | W24: ='[1]Rapport 5'!W24 -> 5799.84 | X24: ='[1]Rapport 5'!X24 -> 0 | Y24: 150,032 | Z24: 4,956 | AA24: 3.3% | AB24: 116 | AC24: =1+(AB24/COUNT($AB$3:AB$339)*10) -> 4.442136499 | AD24: 4 | AE24: 245 | AF24: 6.9% | AG24: 264 | AH24: 8.833827893 | AI24: 8 | AJ24: 0 | AK24: 0.0% | AL24: 1 | AM24: 1.029673591 | AN24: 1 | AO24: 2,680 | AP24: 2.0% | AQ24: 54 | AR24: 2.602373887 | AS24: 2 | AT24: 150 | AU24: 5.0% | AV24: 215 | AW24: 7.379821958 | AX24: 7 | AY24: 0 | AZ24: 0.0% | BA24: 1 | BB24: 1.029673591 | BC24: 1 | BD24: 0 | BE24: 0.0% | BF24: 1 | BG24: 1.029673591 | BH24: 1 | BI24: 1,880 | BJ24: 42.9% | BK24: 324 | BL24: 10.61424332 | BM24: 10 | BN24: 0 | BO24: 0.0% | BP24: 1 | BQ24: 1.029673591 | BR24: 1 | BT24: 33 | BU24: 0
A25: ='[1]Rapport 5'!A25 -> 34 | B25: ='[1]Rapport 5'!B25 -> VENDENHEIM | C25: ='[1]Rapport 5'!C25 -> 4037 | D25: ='[1]Rapport 5'!D25 -> MUNDOLSHEIM | E25: ='[1]Rapport 5'!E25 -> 5006 | F25: ='[1]Rapport 5'!F25 -> STRASBOURG | G25: ='[1]Rapport 5'!G25 -> 262 | H25: ='[1]Rapport 5'!H25 -> BAS RHIN | I25: ='[1]Rapport 5'!I25 -> 5113.32 | J25: ='[1]Rapport 5'!J25 -> 187.9 | K25: ='[1]Rapport 5'!K25 -> 0 | L25: ='[1]Rapport 5'!L25 -> 27.7 | M25: ='[1]Rapport 5'!M25 -> 119800.48 | N25: ='[1]Rapport 5'!N25 -> 4165.55 | O25: ='[1]Rapport 5'!O25 -> 1670.75 | P25: ='[1]Rapport 5'!P25 -> 97.5 | Q25: ='[1]Rapport 5'!Q25 -> 15.78 | R25: ='[1]Rapport 5'!R25 -> 0 | S25: ='[1]Rapport 5'!S25 -> 132 | T25: ='[1]Rapport 5'!T25 -> 0 | U25: ='[1]Rapport 5'!U25 -> 4514.24 | V25: ='[1]Rapport 5'!V25 -> 1073.87 | W25: ='[1]Rapport 5'!W25 -> 3980.12 | X25: ='[1]Rapport 5'!X25 -> 0 | Y25: 135,227 | Z25: 5,553 | AA25: 4.1% | AB25: 220 | AC25: =1+(AB25/COUNT($AB$3:AB$339)*10) -> 7.528189911 | AD25: 7 | AE25: 188 | AF25: 3.7% | AG25: 134 | AH25: 4.976261128 | AI25: 4 | AJ25: 28 | AK25: 100.0% | AL25: 314 | AM25: 10.31750742 | AN25: 10 | AO25: 4,166 | AP25: 3.5% | AQ25: 237 | AR25: 8.03264095 | AS25: 8 | AT25: 98 | AU25: 5.8% | AV25: 231 | AW25: 7.854599407 | AX25: 7 | AY25: 0 | AZ25: 0.0% | BA25: 1 | BB25: 1.029673591 | BC25: 1 | BD25: 0 | BE25: 0.0% | BF25: 1 | BG25: 1.029673591 | BH25: 1 | BI25: 1,074 | BJ25: 23.8% | BK25: 276 | BL25: 9.189910979 | BM25: 9 | BN25: 0 | BO25: 0.0% | BP25: 1 | BQ25: 1.029673591 | BR25: 1 | BT25: 34 | BU25: 0
A26: ='[1]Rapport 5'!A26 -> 37 | B26: ='[1]Rapport 5'!B26 -> MUNDOLSHEIM | C26: ='[1]Rapport 5'!C26 -> 4037 | D26: ='[1]Rapport 5'!D26 -> MUNDOLSHEIM | E26: ='[1]Rapport 5'!E26 -> 5006 | F26: ='[1]Rapport 5'!F26 -> STRASBOURG | G26: ='[1]Rapport 5'!G26 -> 262 | H26: ='[1]Rapport 5'!H26 -> BAS RHIN | I26: ='[1]Rapport 5'!I26 -> 4564.84 | J26: ='[1]Rapport 5'!J26 -> 268.06 | K26: ='[1]Rapport 5'!K26 -> 0 | L26: ='[1]Rapport 5'!L26 -> 111 | M26: ='[1]Rapport 5'!M26 -> 146898.21 | N26: ='[1]Rapport 5'!N26 -> 3203 | O26: ='[1]Rapport 5'!O26 -> 3098 | P26: ='[1]Rapport 5'!P26 -> 798.05 | Q26: ='[1]Rapport 5'!Q26 -> 0 | R26: ='[1]Rapport 5'!R26 -> 0 | S26: ='[1]Rapport 5'!S26 -> 226.1 | T26: ='[1]Rapport 5'!T26 -> 0 | U26: ='[1]Rapport 5'!U26 -> 5995.89 | V26: ='[1]Rapport 5'!V26 -> 775.99 | W26: ='[1]Rapport 5'!W26 -> 4606.19 | X26: ='[1]Rapport 5'!X26 -> 204.83 | Y26: 165,389 | Z26: 5,361 | AA26: 3.2% | AB26: 107 | AC26: =1+(AB26/COUNT($AB$3:AB$339)*10) -> 4.175074184 | AD26: 4 | AE26: 268 | AF26: 5.9% | AG26: 241 | AH26: 8.151335312 | AI26: 8 | AJ26: 111 | AK26: 100.0% | AL26: 314 | AM26: 10.31750742 | AN26: 10 | AO26: 3,203 | AP26: 2.2% | AQ26: 73 | AR26: 3.166172107 | AS26: 3 | AT26: 798 | AU26: 25.8% | AV26: 323 | AW26: 10.58456973 | AX26: 10 | AY26: 0 | AZ26: 0.0% | BA26: 1 | BB26: 1.029673591 | BC26: 1 | BD26: 0 | BE26: 0.0% | BF26: 1 | BG26: 1.029673591 | BH26: 1 | BI26: 776 | BJ26: 12.9% | BK26: 134 | BL26: 4.976261128 | BM26: 4 | BN26: 205 | BO26: 4.4% | BP26: 213 | BQ26: 7.320474777 | BR26: 7 | BT26: 37 | BU26: 0
A27: ='[1]Rapport 5'!A27 -> 38 | B27: ='[1]Rapport 5'!B27 -> OBERHAUSBERGEN | C27: ='[1]Rapport 5'!C27 -> 4038 | D27: ='[1]Rapport 5'!D27 -> OBERHAUSBERGEN | E27: ='[1]Rapport 5'!E27 -> 5006 | F27: ='[1]Rapport 5'!F27 -> STRASBOURG | G27: ='[1]Rapport 5'!G27 -> 262 | H27: ='[1]Rapport 5'!H27 -> BAS RHIN | I27: ='[1]Rapport 5'!I27 -> 7316.12 | J27: ='[1]Rapport 5'!J27 -> 257.52 | K27: ='[1]Rapport 5'!K27 -> 0 | L27: ='[1]Rapport 5'!L27 -> 0 | M27: ='[1]Rapport 5'!M27 -> 249270.16 | N27: ='[1]Rapport 5'!N27 -> 13030.75 | O27: ='[1]Rapport 5'!O27 -> 5567 | P27: ='[1]Rapport 5'!P27 -> 926 | Q27: ='[1]Rapport 5'!Q27 -> 0 | R27: ='[1]Rapport 5'!R27 -> 0 | S27: ='[1]Rapport 5'!S27 -> 421.99 | T27: ='[1]Rapport 5'!T27 -> 59.6 | U27: ='[1]Rapport 5'!U27 -> 9660.9 | V27: ='[1]Rapport 5'!V27 -> 1916.19 | W27: ='[1]Rapport 5'!W27 -> 7661 | X27: ='[1]Rapport 5'!X27 -> 615.49 | Y27: 279,897 | Z27: 16,806 | AA27: 6.0% | AB27: 322 | AC27: =1+(AB27/COUNT($AB$3:AB$339)*10) -> 10.55489614 | AD27: 10 | AE27: 258 | AF27: 3.5% | AG27: 122 | AH27: 4.620178042 | AI27: 4 | AJ27: 0 | AK27: 0.0% | AL27: 1 | AM27: 1.029673591 | AN27: 1 | AO27: 13,031 | AP27: 5.2% | AQ27: 329 | AR27: 10.76261128 | AS27: 10 | AT27: 926 | AU27: 16.6% | AV27: 305 | AW27: 10.0504451 | AX27: 10 | AY27: 0 | AZ27: 0.0% | BA27: 1 | BB27: 1.029673591 | BC27: 1 | BD27: 60 | BE27: 14.1% | BF27: 299 | BG27: 9.872403561 | BH27: 9 | BI27: 1,916 | BJ27: 19.8% | BK27: 237 | BL27: 8.03264095 | BM27: 8 | BN27: 615 | BO27: 8.0% | BP27: 283 | BQ27: 9.397626113 | BR27: 9 | BT27: 38 | BU27: 0
A28: ='[1]Rapport 5'!A28 -> 39 | B28: ='[1]Rapport 5'!B28 -> REICHSTETT | C28: ='[1]Rapport 5'!C28 -> 4039 | D28: ='[1]Rapport 5'!D28 -> REICHSTETT | E28: ='[1]Rapport 5'!E28 -> 5006 | F28: ='[1]Rapport 5'!F28 -> STRASBOURG | G28: ='[1]Rapport 5'!G28 -> 262 | H28: ='[1]Rapport 5'!H28 -> BAS RHIN | I28: ='[1]Rapport 5'!I28 -> 3945.22 | J28: ='[1]Rapport 5'!J28 -> 187.52 | K28: ='[1]Rapport 5'!K28 -> 0 | L28: ='[1]Rapport 5'!L28 -> 0 | M28: ='[1]Rapport 5'!M28 -> 101857.54 | N28: ='[1]Rapport 5'!N28 -> 3924.3 | O28: ='[1]Rapport 5'!O28 -> 3134.34 | P28: ='[1]Rapport 5'!P28 -> 180.5 | Q28: ='[1]Rapport 5'!Q28 -> 0 | R28: ='[1]Rapport 5'!R28 -> 0 | S28: ='[1]Rapport 5'!S28 -> 260 | T28: ='[1]Rapport 5'!T28 -> 0 | U28: ='[1]Rapport 5'!U28 -> 6177.46 | V28: ='[1]Rapport 5'!V28 -> 2280.67 | W28: ='[1]Rapport 5'!W28 -> 2852.04 | X28: ='[1]Rapport 5'!X28 -> 0 | Y28: 118,227 | Z28: 6,573 | AA28: 5.6% | AB28: 313 | AC28: =1+(AB28/COUNT($AB$3:AB$339)*10) -> 10.28783383 | AD28: 10 | AE28: 188 | AF28: 4.8% | AG28: 194 | AH28: 6.756676558 | AI28: 6 | AJ28: 0 | AK28: 0.0% | AL28: 1 | AM28: 1.029673591 | AN28: 1 | AO28: 3,924 | AP28: 3.9% | AQ28: 278 | AR28: 9.24925816 | AS28: 9 | AT28: 181 | AU28: 5.8% | AV28: 229 | AW28: 7.795252226 | AX28: 7 | AY28: 0 | AZ28: 0.0% | BA28: 1 | BB28: 1.029673591 | BC28: 1 | BD28: 0 | BE28: 0.0% | BF28: 1 | BG28: 1.029673591 | BH28: 1 | BI28: 2,281 | BJ28: 36.9% | BK28: 316 | BL28: 10.3768546 | BM28: 10 | BN28: 0 | BO28: 0.0% | BP28: 1 | BQ28: 1.029673591 | BR28: 1 | BT28: 39 | BU28: 0
A29: ='[1]Rapport 5'!A29 -> 40 | B29: ='[1]Rapport 5'!B29 -> ECKBOLSHEIM | C29: ='[1]Rapport 5'!C29 -> 4038 | D29: ='[1]Rapport 5'!D29 -> OBERHAUSBERGEN | E29: ='[1]Rapport 5'!E29 -> 5006 | F29: ='[1]Rapport 5'!F29 -> STRASBOURG | G29: ='[1]Rapport 5'!G29 -> 262 | H29: ='[1]Rapport 5'!H29 -> BAS RHIN | I29: ='[1]Rapport 5'!I29 -> 4550.6 | J29: ='[1]Rapport 5'!J29 -> 538.7 | K29: ='[1]Rapport 5'!K29 -> 0 | L29: ='[1]Rapport 5'!L29 -> 0 | M29: ='[1]Rapport 5'!M29 -> 129346.92 | N29: ='[1]Rapport 5'!N29 -> 4708.6 | O29: ='[1]Rapport 5'!O29 -> 3033.5 | P29: ='[1]Rapport 5'!P29 -> 0 | Q29: ='[1]Rapport 5'!Q29 -> 0 | R29: ='[1]Rapport 5'!R29 -> 0 | S29: ='[1]Rapport 5'!S29 -> 280.45 | T29: ='[1]Rapport 5'!T29 -> 0 | U29: ='[1]Rapport 5'!U29 -> 7674.04 | V29: ='[1]Rapport 5'!V29 -> 2327.24 | W29: ='[1]Rapport 5'!W29 -> 3982.69 | X29: ='[1]Rapport 5'!X29 -> 107.3 | Y29: 148,868 | Z29: 7,682 | AA29: 5.2% | AB29: 296 | AC29: =1+(AB29/COUNT($AB$3:AB$339)*10) -> 9.783382789 | AD29: 9 | AE29: 539 | AF29: 11.8% | AG29: 314 | AH29: 10.31750742 | AI29: 10 | AJ29: 0 | AK29: 0.0% | AL29: 1 | AM29: 1.029673591 | AN29: 1 | AO29: 4,709 | AP29: 3.6% | AQ29: 261 | AR29: 8.744807122 | AS29: 8 | AT29: 0 | AU29: 0.0% | AV29: 1 | AW29: 1.029673591 | AX29: 1 | AY29: 0 | AZ29: 0.0% | BA29: 1 | BB29: 1.029673591 | BC29: 1 | BD29: 0 | BE29: 0.0% | BF29: 1 | BG29: 1.029673591 | BH29: 1 | BI29: 2,327 | BJ29: 30.3% | BK29: 299 | BL29: 9.872403561 | BM29: 9 | BN29: 107 | BO29: 2.7% | BP29: 151 | BQ29: 5.480712166 | BR29: 5 | BT29: 40 | BU29: 0
A30: ='[1]Rapport 5'!A30 -> 41 | B30: ='[1]Rapport 5'!B30 -> HOERDT | C30: ='[1]Rapport 5'!C30 -> 4041 | D30: ='[1]Rapport 5'!D30 -> HOERDT | E30: ='[1]Rapport 5'!E30 -> 5060 | F30: ='[1]Rapport 5'!F30 -> HAGUENAU | G30: ='[1]Rapport 5'!G30 -> 262 | H30: ='[1]Rapport 5'!H30 -> BAS RHIN | I30: ='[1]Rapport 5'!I30 -> 11276.14 | J30: ='[1]Rapport 5'!J30 -> 133.47 | K30: ='[1]Rapport 5'!K30 -> 0 | L30: ='[1]Rapport 5'!L30 -> 40 | M30: ='[1]Rapport 5'!M30 -> 138499.18 | N30: ='[1]Rapport 5'!N30 -> 2815.87 | O30: ='[1]Rapport 5'!O30 -> 4634.5 | P30: ='[1]Rapport 5'!P30 -> 162.5 | Q30: ='[1]Rapport 5'!Q30 -> 0 | R30: ='[1]Rapport 5'!R30 -> 0 | S30: ='[1]Rapport 5'!S30 -> 321 | T30: ='[1]Rapport 5'!T30 -> 26 | U30: ='[1]Rapport 5'!U30 -> 5047.09 | V30: ='[1]Rapport 5'!V30 -> 1032.96 | W30: ='[1]Rapport 5'!W30 -> 3827.8 | X30: ='[1]Rapport 5'!X30 -> 73.67 | Y30: 163,606 | Z30: 4,284 | AA30: 2.6% | AB30: 48 | AC30: =1+(AB30/COUNT($AB$3:AB$339)*10) -> 2.424332344 | AD30: 2 | AE30: 133 | AF30: 1.2% | AG30: 7 | AH30: 1.207715134 | AI30: 1 | AJ30: 40 | AK30: 100.0% | AL30: 314 | AM30: 10.31750742 | AN30: 10 | AO30: 2,816 | AP30: 2.0% | AQ30: 58 | AR30: 2.721068249 | AS30: 2 | AT30: 163 | AU30: 3.5% | AV30: 183 | AW30: 6.430267062 | AX30: 6 | AY30: 0 | AZ30: 0.0% | BA30: 1 | BB30: 1.029673591 | BC30: 1 | BD30: 26 | BE30: 8.1% | BF30: 275 | BG30: 9.160237389 | BH30: 9 | BI30: 1,033 | BJ30: 20.5% | BK30: 245 | BL30: 8.270029674 | BM30: 8 | BN30: 74 | BO30: 1.9% | BP30: 105 | BQ30: 4.115727003 | BR30: 4 | BT30: 41 | BU30: 0
A31: ='[1]Rapport 5'!A31 -> 43 | B31: ='[1]Rapport 5'!B31 -> STRASBOURG HALLES | C31: ='[1]Rapport 5'!C31 -> 4043 | D31: ='[1]Rapport 5'!D31 -> STRASBOURG HALLES | E31: ='[1]Rapport 5'!E31 -> 5006 | F31: ='[1]Rapport 5'!F31 -> STRASBOURG | G31: ='[1]Rapport 5'!G31 -> 262 | H31: ='[1]Rapport 5'!H31 -> BAS RHIN | I31: ='[1]Rapport 5'!I31 -> 14936.73 | J31: ='[1]Rapport 5'!J31 -> 1896.29 | K31: ='[1]Rapport 5'!K31 -> 0 | L31: ='[1]Rapport 5'!L31 -> 0 | M31: ='[1]Rapport 5'!M31 -> 459999.93 | N31: ='[1]Rapport 5'!N31 -> 9097.41 | O31: ='[1]Rapport 5'!O31 -> 9404 | P31: ='[1]Rapport 5'!P31 -> 42 | Q31: ='[1]Rapport 5'!Q31 -> 0 | R31: ='[1]Rapport 5'!R31 -> 0 | S31: ='[1]Rapport 5'!S31 -> 1052.91 | T31: ='[1]Rapport 5'!T31 -> 0 | U31: ='[1]Rapport 5'!U31 -> 36315.31 | V31: ='[1]Rapport 5'!V31 -> 4480.89 | W31: ='[1]Rapport 5'!W31 -> 11724.27 | X31: ='[1]Rapport 5'!X31 -> 126.49 | Y31: 533,433 | Z31: 15,643 | AA31: 2.9% | AB31: 76 | AC31: =1+(AB31/COUNT($AB$3:AB$339)*10) -> 3.255192878 | AD31: 3 | AE31: 1,896 | AF31: 12.7% | AG31: 318 | AH31: 10.43620178 | AI31: 10 | AJ31: 0 | AK31: 0.0% | AL31: 1 | AM31: 1.029673591 | AN31: 1 | AO31: 9,097 | AP31: 2.0% | AQ31: 50 | AR31: 2.483679525 | AS31: 2 | AT31: 42 | AU31: 0.4% | AV31: 82 | AW31: 3.433234421 | AX31: 3 | AY31: 0 | AZ31: 0.0% | BA31: 1 | BB31: 1.029673591 | BC31: 1 | BD31: 0 | BE31: 0.0% | BF31: 1 | BG31: 1.029673591 | BH31: 1 | BI31: 4,481 | BJ31: 12.3% | BK31: 121 | BL31: 4.590504451 | BM31: 4 | BN31: 126 | BO31: 1.1% | BP31: 70 | BQ31: 3.077151335 | BR31: 3 | BT31: 43 | BU31: 0
A32: ='[1]Rapport 5'!A32 -> 45 | B32: ='[1]Rapport 5'!B32 -> STRASBOURG FRANCS BOURGEOIS | C32: ='[1]Rapport 5'!C32 -> 4045 | D32: ='[1]Rapport 5'!D32 -> STRASBOURG FRANCS BOURGEOIS | E32: ='[1]Rapport 5'!E32 -> 5006 | F32: ='[1]Rapport 5'!F32 -> STRASBOURG | G32: ='[1]Rapport 5'!G32 -> 262 | H32: ='[1]Rapport 5'!H32 -> BAS RHIN | I32: ='[1]Rapport 5'!I32 -> 12363.49 | J32: ='[1]Rapport 5'!J32 -> 625.17 | K32: ='[1]Rapport 5'!K32 -> 0 | L32: ='[1]Rapport 5'!L32 -> 0 | M32: ='[1]Rapport 5'!M32 -> 426902.27 | N32: ='[1]Rapport 5'!N32 -> 10275.27 | O32: ='[1]Rapport 5'!O32 -> 13826.3 | P32: ='[1]Rapport 5'!P32 -> 201.5 | Q32: ='[1]Rapport 5'!Q32 -> 629.78 | R32: ='[1]Rapport 5'!R32 -> 0 | S32: ='[1]Rapport 5'!S32 -> 2138.19 | T32: ='[1]Rapport 5'!T32 -> 52 | U32: ='[1]Rapport 5'!U32 -> 19162.72 | V32: ='[1]Rapport 5'!V32 -> 3411.91 | W32: ='[1]Rapport 5'!W32 -> 9565.43 | X32: ='[1]Rapport 5'!X32 -> 410.29 | Y32: 484,588 | Z32: 14,976 | AA32: 3.1% | AB32: 96 | AC32: =1+(AB32/COUNT($AB$3:AB$339)*10) -> 3.848664688 | AD32: 3 | AE32: 625 | AF32: 5.1% | AG32: 208 | AH32: 7.172106825 | AI32: 7 | AJ32: 0 | AK32: 0.0% | AL32: 1 | AM32: 1.029673591 | AN32: 1 | AO32: 10,275 | AP32: 2.4% | AQ32: 107 | AR32: 4.175074184 | AS32: 4 | AT32: 202 | AU32: 1.5% | AV32: 117 | AW32: 4.471810089 | AX32: 4 | AY32: 0 | AZ32: 0.0% | BA32: 1 | BB32: 1.029673591 | BC32: 1 | BD32: 52 | BE32: 2.4% | BF32: 234 | BG32: 7.943620178 | BH32: 7 | BI32: 3,412 | BJ32: 17.8% | BK32: 205 | BL32: 7.083086053 | BM32: 7 | BN32: 410 | BO32: 4.3% | BP32: 208 | BQ32: 7.172106825 | BR32: 7 | BT32: 45 | BU32: 0
A33: ='[1]Rapport 5'!A33 -> 47 | B33: ='[1]Rapport 5'!B33 -> STRASBOURG CRONENBOURG | C33: ='[1]Rapport 5'!C33 -> 4047 | D33: ='[1]Rapport 5'!D33 -> STRASBOURG CRONENBOURG | E33: ='[1]Rapport 5'!E33 -> 5006 | F33: ='[1]Rapport 5'!F33 -> STRASBOURG | G33: ='[1]Rapport 5'!G33 -> 262 | H33: ='[1]Rapport 5'!H33 -> BAS RHIN | I33: ='[1]Rapport 5'!I33 -> 11143.83 | J33: ='[1]Rapport 5'!J33 -> 1027.73 | K33: ='[1]Rapport 5'!K33 -> 0 | L33: ='[1]Rapport 5'!L33 -> 0 | M33: ='[1]Rapport 5'!M33 -> 428348.95 | N33: ='[1]Rapport 5'!N33 -> 13441.13 | O33: ='[1]Rapport 5'!O33 -> 5157.5 | P33: ='[1]Rapport 5'!P33 -> 866.9 | Q33: ='[1]Rapport 5'!Q33 -> 0 | R33: ='[1]Rapport 5'!R33 -> 0 | S33: ='[1]Rapport 5'!S33 -> 1046.9 | T33: ='[1]Rapport 5'!T33 -> 73.99 | U33: ='[1]Rapport 5'!U33 -> 19405.38 | V33: ='[1]Rapport 5'!V33 -> 3262.45 | W33: ='[1]Rapport 5'!W33 -> 7429.89 | X33: ='[1]Rapport 5'!X33 -> 665.15 | Y33: 472,532 | Z33: 19,337 | AA33: 4.1% | AB33: 216 | AC33: =1+(AB33/COUNT($AB$3:AB$339)*10) -> 7.409495549 | AD33: 7 | AE33: 1,028 | AF33: 9.2% | AG33: 295 | AH33: 9.753709199 | AI33: 9 | AJ33: 0 | AK33: 0.0% | AL33: 1 | AM33: 1.029673591 | AN33: 1 | AO33: 13,441 | AP33: 3.1% | AQ33: 203 | AR33: 7.023738872 | AS33: 7 | AT33: 867 | AU33: 16.8% | AV33: 306 | AW33: 10.08011869 | AX33: 10 | AY33: 0 | AZ33: 0.0% | BA33: 1 | BB33: 1.029673591 | BC33: 1 | BD33: 74 | BE33: 7.1% | BF33: 268 | BG33: 8.952522255 | BH33: 8 | BI33: 3,262 | BJ33: 16.8% | BK33: 192 | BL33: 6.697329377 | BM33: 6 | BN33: 665 | BO33: 9.0% | BP33: 295 | BQ33: 9.753709199 | BR33: 9 | BT33: 47 | BU33: 0
A34: ='[1]Rapport 5'!A34 -> 48 | B34: ='[1]Rapport 5'!B34 -> STRASBOURG KOENIGSHOFFEN | C34: ='[1]Rapport 5'!C34 -> 4048 | D34: ='[1]Rapport 5'!D34 -> STRASBOURG KOENIGSHOFFEN | E34: ='[1]Rapport 5'!E34 -> 5006 | F34: ='[1]Rapport 5'!F34 -> STRASBOURG | G34: ='[1]Rapport 5'!G34 -> 262 | H34: ='[1]Rapport 5'!H34 -> BAS RHIN | I34: ='[1]Rapport 5'!I34 -> 7296.19 | J34: ='[1]Rapport 5'!J34 -> 2350.34 | K34: ='[1]Rapport 5'!K34 -> 0 | L34: ='[1]Rapport 5'!L34 -> 0 | M34: ='[1]Rapport 5'!M34 -> 221046.68 | N34: ='[1]Rapport 5'!N34 -> 5569.01 | O34: ='[1]Rapport 5'!O34 -> 3950.5 | P34: ='[1]Rapport 5'!P34 -> 84 | Q34: ='[1]Rapport 5'!Q34 -> 0 | R34: ='[1]Rapport 5'!R34 -> 0 | S34: ='[1]Rapport 5'!S34 -> 689.02 | T34: ='[1]Rapport 5'!T34 -> 206.02 | U34: ='[1]Rapport 5'!U34 -> 12661.95 | V34: ='[1]Rapport 5'!V34 -> 1366.27 | W34: ='[1]Rapport 5'!W34 -> 4080.08 | X34: ='[1]Rapport 5'!X34 -> 114.21 | Y34: 249,724 | Z34: 9,690 | AA34: 3.9% | AB34: 190 | AC34: =1+(AB34/COUNT($AB$3:AB$339)*10) -> 6.637982196 | AD34: 6 | AE34: =+J34 -> 2,350 | AF34: 32.2% | AG34: 335 | AH34: 10.94065282 | AI34: 10 | AJ34: 0 | AK34: 0.0% | AL34: 1 | AM34: 1.029673591 | AN34: 1 | AO34: 5,569 | AP34: 2.5% | AQ34: 121 | AR34: 4.590504451 | AS34: 4 | AT34: 84 | AU34: 2.1% | AV34: 138 | AW34: 5.09495549 | AX34: 5 | AY34: 0 | AZ34: 0.0% | BA34: 1 | BB34: 1.029673591 | BC34: 1 | BD34: 206 | BE34: 29.9% | BF34: 324 | BG34: 10.61424332 | BH34: 10 | BI34: 1,366 | BJ34: 10.8% | BK34: 96 | BL34: 3.848664688 | BM34: 3 | BN34: 114 | BO34: 2.8% | BP34: 154 | BQ34: 5.569732938 | BR34: 5 | BT34: 48 | BU34: 0
A35: ='[1]Rapport 5'!A35 -> 50 | B35: ='[1]Rapport 5'!B35 -> STRASBOURG GARE | C35: ='[1]Rapport 5'!C35 -> 4043 | D35: ='[1]Rapport 5'!D35 -> STRASBOURG HALLES | E35: ='[1]Rapport 5'!E35 -> 5006 | F35: ='[1]Rapport 5'!F35 -> STRASBOURG | G35: ='[1]Rapport 5'!G35 -> 262 | H35: ='[1]Rapport 5'!H35 -> BAS RHIN | I35: ='[1]Rapport 5'!I35 -> 3269.13 | J35: ='[1]Rapport 5'!J35 -> 145.58 | K35: ='[1]Rapport 5'!K35 -> 0 | L35: ='[1]Rapport 5'!L35 -> 0 | M35: ='[1]Rapport 5'!M35 -> 79702.58 | N35: ='[1]Rapport 5'!N35 -> 1872.55 | O35: ='[1]Rapport 5'!O35 -> 1992.5 | P35: ='[1]Rapport 5'!P35 -> 0 | Q35: ='[1]Rapport 5'!Q35 -> 0 | R35: ='[1]Rapport 5'!R35 -> 0 | S35: ='[1]Rapport 5'!S35 -> 339 | T35: ='[1]Rapport 5'!T35 -> 0 | U35: ='[1]Rapport 5'!U35 -> 3812.23 | V35: ='[1]Rapport 5'!V35 -> 762.74 | W35: ='[1]Rapport 5'!W35 -> 1687.01 | X35: ='[1]Rapport 5'!X35 -> 0 | Y35: 90,802 | Z35: 2,781 | AA35: 3.1% | AB35: 90 | AC35: =1+(AB35/COUNT($AB$3:AB$339)*10) -> 3.670623145 | AD35: 3 | AE35: 146 | AF35: 4.5% | AG35: 177 | AH35: 6.252225519 | AI35: 6 | AJ35: 0 | AK35: 0.0% | AL35: 1 | AM35: 1.029673591 | AN35: 1 | AO35: 1,873 | AP35: 2.3% | AQ35: 95 | AR35: 3.818991098 | AS35: 3 | AT35: 0 | AU35: 0.0% | AV35: 1 | AW35: 1.029673591 | AX35: 1 | AY35: 0 | AZ35: 0.0% | BA35: 1 | BB35: 1.029673591 | BC35: 1 | BD35: 0 | BE35: 0.0% | BF35: 1 | BG35: 1.029673591 | BH35: 1 | BI35: 763 | BJ35: 20.0% | BK35: 239 | BL35: 8.091988131 | BM35: 8 | BN35: 0 | BO35: 0.0% | BP35: 1 | BQ35: 1.029673591 | BR35: 1 | BT35: 50 | BU35: 0
A36: ='[1]Rapport 5'!A36 -> 54 | B36: ='[1]Rapport 5'!B36 -> STRASBOURG MONTAGNE VERTE | C36: ='[1]Rapport 5'!C36 -> 4054 | D36: ='[1]Rapport 5'!D36 -> STRASBOURG MONTAGNE VERTE | E36: ='[1]Rapport 5'!E36 -> 5006 | F36: ='[1]Rapport 5'!F36 -> STRASBOURG | G36: ='[1]Rapport 5'!G36 -> 262 | H36: ='[1]Rapport 5'!H36 -> BAS RHIN | I36: ='[1]Rapport 5'!I36 -> 8080.44 | J36: ='[1]Rapport 5'!J36 -> 739.06 | K36: ='[1]Rapport 5'!K36 -> 0 | L36: ='[1]Rapport 5'!L36 -> 0 | M36: ='[1]Rapport 5'!M36 -> 250214.52 | N36: ='[1]Rapport 5'!N36 -> 7251.34 | O36: ='[1]Rapport 5'!O36 -> 5865 | P36: ='[1]Rapport 5'!P36 -> 202 | Q36: ='[1]Rapport 5'!Q36 -> 0 | R36: ='[1]Rapport 5'!R36 -> 0 | S36: ='[1]Rapport 5'!S36 -> 651 | T36: ='[1]Rapport 5'!T36 -> 0 | U36: ='[1]Rapport 5'!U36 -> 12221.93 | V36: ='[1]Rapport 5'!V36 -> 1691.06 | W36: ='[1]Rapport 5'!W36 -> 6335.56 | X36: ='[1]Rapport 5'!X36 -> 12 | Y36: 283,368 | Z36: 9,895 | AA36: 3.5% | AB36: 146 | AC36: =1+(AB36/COUNT($AB$3:AB$339)*10) -> 5.332344214 | AD36: 5 | AE36: 739 | AF36: 9.1% | AG36: 293 | AH36: 9.694362018 | AI36: 9 | AJ36: 0 | AK36: 0.0% | AL36: 1 | AM36: 1.029673591 | AN36: 1 | AO36: 7,251 | AP36: 2.9% | AQ36: 164 | AR36: 5.866468843 | AS36: 5 | AT36: 202 | AU36: 3.4% | AV36: 182 | AW36: 6.400593472 | AX36: 6 | AY36: 0 | AZ36: 0.0% | BA36: 1 | BB36: 1.029673591 | BC36: 1 | BD36: 0 | BE36: 0.0% | BF36: 1 | BG36: 1.029673591 | BH36: 1 | BI36: 1,691 | BJ36: 13.8% | BK36: 145 | BL36: 5.302670623 | BM36: 5 | BN36: 12 | BO36: 0.2% | BP36: 30 | BQ36: 1.890207715 | BR36: 1 | BT36: 54 | BU36: 0
A37: ='[1]Rapport 5'!A37 -> 57 | B37: ='[1]Rapport 5'!B37 -> BISCHWILLER | C37: ='[1]Rapport 5'!C37 -> 4057 | D37: ='[1]Rapport 5'!D37 -> BISCHWILLER | E37: ='[1]Rapport 5'!E37 -> 5060 | F37: ='[1]Rapport 5'!F37 -> HAGUENAU | G37: ='[1]Rapport 5'!G37 -> 262 | H37: ='[1]Rapport 5'!H37 -> BAS RHIN | I37: ='[1]Rapport 5'!I37 -> 5290.89 | J37: ='[1]Rapport 5'!J37 -> 496.05 | K37: ='[1]Rapport 5'!K37 -> 0 | L37: ='[1]Rapport 5'!L37 -> 0 | M37: ='[1]Rapport 5'!M37 -> 232824.37 | N37: ='[1]Rapport 5'!N37 -> 3692.37 | O37: ='[1]Rapport 5'!O37 -> 6613.5 | P37: ='[1]Rapport 5'!P37 -> 543.85 | Q37: ='[1]Rapport 5'!Q37 -> 0 | R37: ='[1]Rapport 5'!R37 -> 0 | S37: ='[1]Rapport 5'!S37 -> 551.5 | T37: ='[1]Rapport 5'!T37 -> 0 | U37: ='[1]Rapport 5'!U37 -> 16844.82 | V37: ='[1]Rapport 5'!V37 -> 4173.78 | W37: ='[1]Rapport 5'!W37 -> 5280.28 | X37: ='[1]Rapport 5'!X37 -> 192 | Y37: 267,405 | Z37: 9,098 | AA37: 3.4% | AB37: 131 | AC37: =1+(AB37/COUNT($AB$3:AB$339)*10) -> 4.887240356 | AD37: 4 | AE37: 496 | AF37: 9.4% | AG37: 298 | AH37: 9.84272997 | AI37: 9 | AJ37: 0 | AK37: 0.0% | AL37: 1 | AM37: 1.029673591 | AN37: 1 | AO37: 3,692 | AP37: 1.6% | AQ37: 15 | AR37: 1.445103858 | AS37: 1 | AT37: 544 | AU37: 8.2% | AV37: 267 | AW37: 8.922848665 | AX37: 8 | AY37: 0 | AZ37: 0.0% | BA37: 1 | BB37: 1.029673591 | BC37: 1 | BD37: 0 | BE37: 0.0% | BF37: 1 | BG37: 1.029673591 | BH37: 1 | BI37: 4,174 | BJ37: 24.8% | BK37: 279 | BL37: 9.278931751 | BM37: 9 | BN37: 192 | BO37: 3.6% | BP37: 191 | BQ37: 6.667655786 | BR37: 6 | BT37: 57 | BU37: 0
A38: ='[1]Rapport 5'!A38 -> 58 | B38: ='[1]Rapport 5'!B38 -> DRUSENHEIM | C38: ='[1]Rapport 5'!C38 -> 4057 | D38: ='[1]Rapport 5'!D38 -> BISCHWILLER | E38: ='[1]Rapport 5'!E38 -> 5060 | F38: ='[1]Rapport 5'!F38 -> HAGUENAU | G38: ='[1]Rapport 5'!G38 -> 262 | H38: ='[1]Rapport 5'!H38 -> BAS RHIN | I38: ='[1]Rapport 5'!I38 -> 2367.33 | J38: ='[1]Rapport 5'!J38 -> 554.01 | K38: ='[1]Rapport 5'!K38 -> 0 | L38: ='[1]Rapport 5'!L38 -> 0 | M38: ='[1]Rapport 5'!M38 -> 68067.35 | N38: ='[1]Rapport 5'!N38 -> 1478.66 | O38: ='[1]Rapport 5'!O38 -> 3321.5 | P38: ='[1]Rapport 5'!P38 -> 0 | Q38: ='[1]Rapport 5'!Q38 -> 0 | R38: ='[1]Rapport 5'!R38 -> 0 | S38: ='[1]Rapport 5'!S38 -> 69 | T38: ='[1]Rapport 5'!T38 -> 43 | U38: ='[1]Rapport 5'!U38 -> 1391.69 | V38: ='[1]Rapport 5'!V38 -> 699.38 | W38: ='[1]Rapport 5'!W38 -> 1048.98 | X38: ='[1]Rapport 5'!X38 -> 138.42 | Y38: 76,266 | Z38: 2,913 | AA38: 3.8% | AB38: 180 | AC38: =1+(AB38/COUNT($AB$3:AB$339)*10) -> 6.341246291 | AD38: 6 | AE38: 554 | AF38: 23.4% | AG38: 330 | AH38: 10.79228487 | AI38: 10 | AJ38: 0 | AK38: 0.0% | AL38: 1 | AM38: 1.029673591 | AN38: 1 | AO38: 1,479 | AP38: 2.2% | AQ38: 71 | AR38: 3.106824926 | AS38: 3 | AT38: 0 | AU38: 0.0% | AV38: 1 | AW38: 1.029673591 | AX38: 1 | AY38: 0 | AZ38: 0.0% | BA38: 1 | BB38: 1.029673591 | BC38: 1 | BD38: 43 | BE38: 62.3% | BF38: 332 | BG38: 10.85163205 | BH38: 10 | BI38: 699 | BJ38: 50.3% | BK38: 330 | BL38: 10.79228487 | BM38: 10 | BN38: 138 | BO38: 13.2% | BP38: 321 | BQ38: 10.52522255 | BR38: 10 | BT38: 58 | BU38: 0
A39: ='[1]Rapport 5'!A39 -> 59 | B39: ='[1]Rapport 5'!B39 -> HERRLISHEIM | C39: ='[1]Rapport 5'!C39 -> 4057 | D39: ='[1]Rapport 5'!D39 -> BISCHWILLER | E39: ='[1]Rapport 5'!E39 -> 5060 | F39: ='[1]Rapport 5'!F39 -> HAGUENAU | G39: ='[1]Rapport 5'!G39 -> 262 | H39: ='[1]Rapport 5'!H39 -> BAS RHIN | I39: ='[1]Rapport 5'!I39 -> 816.66 | J39: ='[1]Rapport 5'!J39 -> 186.61 | K39: ='[1]Rapport 5'!K39 -> 0 | L39: ='[1]Rapport 5'!L39 -> 0 | M39: ='[1]Rapport 5'!M39 -> 49689.73 | N39: ='[1]Rapport 5'!N39 -> 878.95 | O39: ='[1]Rapport 5'!O39 -> 946 | P39: ='[1]Rapport 5'!P39 -> 0 | Q39: ='[1]Rapport 5'!Q39 -> 0 | R39: ='[1]Rapport 5'!R39 -> 0 | S39: ='[1]Rapport 5'!S39 -> 62 | T39: ='[1]Rapport 5'!T39 -> 0 | U39: ='[1]Rapport 5'!U39 -> 1189.52 | V39: ='[1]Rapport 5'!V39 -> 197 | W39: ='[1]Rapport 5'!W39 -> 1854.61 | X39: ='[1]Rapport 5'!X39 -> 46.76 | Y39: 54,559 | Z39: 1,309 | AA39: 2.4% | AB39: 29 | AC39: =1+(AB39/COUNT($AB$3:AB$339)*10) -> 1.860534125 | AD39: 1 | AE39: 187 | AF39: 22.9% | AG39: 328 | AH39: 10.73293769 | AI39: 10 | AJ39: 0 | AK39: 0.0% | AL39: 1 | AM39: 1.029673591 | AN39: 1 | AO39: 879 | AP39: 1.8% | AQ39: 30 | AR39: 1.890207715 | AS39: 1 | AT39: 0 | AU39: 0.0% | AV39: 1 | AW39: 1.029673591 | AX39: 1 | AY39: 0 | AZ39: 0.0% | BA39: 1 | BB39: 1.029673591 | BC39: 1 | BD39: 0 | BE39: 0.0% | BF39: 1 | BG39: 1.029673591 | BH39: 1 | BI39: 197 | BJ39: 16.6% | BK39: 189 | BL39: 6.608308605 | BM39: 6 | BN39: 47 | BO39: 2.5% | BP39: 143 | BQ39: 5.243323442 | BR39: 5 | BT39: 59 | BU39: 0
A40: ='[1]Rapport 5'!A40 -> 60 | B40: ='[1]Rapport 5'!B40 -> HAGUENAU HOUBLON | C40: ='[1]Rapport 5'!C40 -> 4060 | D40: ='[1]Rapport 5'!D40 -> HAGUENAU HOUBLON | E40: ='[1]Rapport 5'!E40 -> 5060 | F40: ='[1]Rapport 5'!F40 -> HAGUENAU | G40: ='[1]Rapport 5'!G40 -> 262 | H40: ='[1]Rapport 5'!H40 -> BAS RHIN | I40: ='[1]Rapport 5'!I40 -> 16426.97 | J40: ='[1]Rapport 5'!J40 -> 1746.01 | K40: ='[1]Rapport 5'!K40 -> 0 | L40: ='[1]Rapport 5'!L40 -> 0 | M40: ='[1]Rapport 5'!M40 -> 502980.64 | N40: ='[1]Rapport 5'!N40 -> 10779.71 | O40: ='[1]Rapport 5'!O40 -> 16088.25 | P40: ='[1]Rapport 5'!P40 -> 729 | Q40: ='[1]Rapport 5'!Q40 -> 360.74 | R40: ='[1]Rapport 5'!R40 -> 0 | S40: ='[1]Rapport 5'!S40 -> 1639.69 | T40: ='[1]Rapport 5'!T40 -> 0 | U40: ='[1]Rapport 5'!U40 -> 29731.78 | V40: ='[1]Rapport 5'!V40 -> 6413.16 | W40: ='[1]Rapport 5'!W40 -> 12006.75 | X40: ='[1]Rapport 5'!X40 -> 669.49 | Y40: 579,235 | Z40: 20,337 | AA40: 3.5% | AB40: 151 | AC40: =1+(AB40/COUNT($AB$3:AB$339)*10) -> 5.480712166 | AD40: 5 | AE40: 1,746 | AF40: 10.6% | AG40: 309 | AH40: 10.16913947 | AI40: 10 | AJ40: 0 | AK40: 0.0% | AL40: 1 | AM40: 1.029673591 | AN40: 1 | AO40: 10,780 | AP40: 2.1% | AQ40: 68 | AR40: 3.017804154 | AS40: 3 | AT40: 729 | AU40: 4.5% | AV40: 209 | AW40: 7.201780415 | AX40: 7 | AY40: 0 | AZ40: 0.0% | BA40: 1 | BB40: 1.029673591 | BC40: 1 | BD40: 0 | BE40: 0.0% | BF40: 1 | BG40: 1.029673591 | BH40: 1 | BI40: 6,413 | BJ40: 21.6% | BK40: 260 | BL40: 8.715133531 | BM40: 8 | BN40: 669 | BO40: 5.6% | BP40: 244 | BQ40: 8.240356083 | BR40: 8 | BT40: 60 | BU40: 0
A41: ='[1]Rapport 5'!A41 -> 64 | B41: ='[1]Rapport 5'!B41 -> HAGUENAU MUSAU | C41: ='[1]Rapport 5'!C41 -> 4064 | D41: ='[1]Rapport 5'!D41 -> HAGUENAU MUSAU | E41: ='[1]Rapport 5'!E41 -> 5060 | F41: ='[1]Rapport 5'!F41 -> HAGUENAU | G41: ='[1]Rapport 5'!G41 -> 262 | H41: ='[1]Rapport 5'!H41 -> BAS RHIN | I41: ='[1]Rapport 5'!I41 -> 3248.7 | J41: ='[1]Rapport 5'!J41 -> 218.69 | K41: ='[1]Rapport 5'!K41 -> 0 | L41: ='[1]Rapport 5'!L41 -> 0 | M41: ='[1]Rapport 5'!M41 -> 131623.55 | N41: ='[1]Rapport 5'!N41 -> 2645.2 | O41: ='[1]Rapport 5'!O41 -> 1614 | P41: ='[1]Rapport 5'!P41 -> 42 | Q41: ='[1]Rapport 5'!Q41 -> 0 | R41: ='[1]Rapport 5'!R41 -> 0 | S41: ='[1]Rapport 5'!S41 -> 83 | T41: ='[1]Rapport 5'!T41 -> 18 | U41: ='[1]Rapport 5'!U41 -> 6515.43 | V41: ='[1]Rapport 5'!V41 -> 1386.43 | W41: ='[1]Rapport 5'!W41 -> 3190.08 | X41: ='[1]Rapport 5'!X41 -> 14 | Y41: 146,275 | Z41: 4,324 | AA41: 3.0% | AB41: 79 | AC41: =1+(AB41/COUNT($AB$3:AB$339)*10) -> 3.34421365 | AD41: 3 | AE41: 219 | AF41: 6.7% | AG41: 256 | AH41: 8.596439169 | AI41: 8 | AJ41: 0 | AK41: 0.0% | AL41: 1 | AM41: 1.029673591 | AN41: 1 | AO41: 2,645 | AP41: 2.0% | AQ41: 53 | AR41: 2.572700297 | AS41: 2 | AT41: 42 | AU41: 2.6% | AV41: 157 | AW41: 5.658753709 | AX41: 5 | AY41: 0 | AZ41: 0.0% | BA41: 1 | BB41: 1.029673591 | BC41: 1 | BD41: 18 | BE41: 21.7% | BF41: 313 | BG41: 10.28783383 | BH41: 10 | BI41: 1,386 | BJ41: 21.3% | BK41: 252 | BL41: 8.477744807 | BM41: 8 | BN41: 14 | BO41: 0.4% | BP41: 37 | BQ41: 2.097922849 | BR41: 2 | BT41: 64 | BU41: 0
A42: ='[1]Rapport 5'!A42 -> 65 | B42: ='[1]Rapport 5'!B42 -> WEITBRUCH | C42: ='[1]Rapport 5'!C42 -> 4030 | D42: ='[1]Rapport 5'!D42 -> BRUMATH | E42: ='[1]Rapport 5'!E42 -> 5060 | F42: ='[1]Rapport 5'!F42 -> HAGUENAU | G42: ='[1]Rapport 5'!G42 -> 262 | H42: ='[1]Rapport 5'!H42 -> BAS RHIN | I42: ='[1]Rapport 5'!I42 -> 2750.41 | J42: ='[1]Rapport 5'!J42 -> 54.58 | K42: ='[1]Rapport 5'!K42 -> 0 | L42: ='[1]Rapport 5'!L42 -> 0 | M42: ='[1]Rapport 5'!M42 -> 51049.05 | N42: ='[1]Rapport 5'!N42 -> 726.58 | O42: ='[1]Rapport 5'!O42 -> 3067.75 | P42: ='[1]Rapport 5'!P42 -> 0 | Q42: ='[1]Rapport 5'!Q42 -> 0 | R42: ='[1]Rapport 5'!R42 -> 0 | S42: ='[1]Rapport 5'!S42 -> 186 | T42: ='[1]Rapport 5'!T42 -> 0 | U42: ='[1]Rapport 5'!U42 -> 2111.74 | V42: ='[1]Rapport 5'!V42 -> 381.39 | W42: ='[1]Rapport 5'!W42 -> 986.65 | X42: ='[1]Rapport 5'!X42 -> 0 | Y42: 60,152 | Z42: 1,163 | AA42: 1.9% | AB42: 8 | AC42: =1+(AB42/COUNT($AB$3:AB$339)*10) -> 1.237388724 | AD42: 1 | AE42: 55 | AF42: 2.0% | AG42: 38 | AH42: 2.127596439 | AI42: 2 | AJ42: 0 | AK42: 0.0% | AL42: 1 | AM42: 1.029673591 | AN42: 1 | AO42: 727 | AP42: 1.4% | AQ42: 10 | AR42: 1.296735905 | AS42: 1 | AT42: 0 | AU42: 0.0% | AV42: 1 | AW42: 1.029673591 | AX42: 1 | AY42: 0 | AZ42: 0.0% | BA42: 1 | BB42: 1.029673591 | BC42: 1 | BD42: 0 | BE42: 0.0% | BF42: 1 | BG42: 1.029673591 | BH42: 1 | BI42: 381 | BJ42: 18.1% | BK42: 210 | BL42: 7.231454006 | BM42: 7 | BN42: 0 | BO42: 0.0% | BP42: 1 | BQ42: 1.029673591 | BR42: 1 | BT42: 65 | BU42: 0
A43: ='[1]Rapport 5'!A43 -> 66 | B43: ='[1]Rapport 5'!B43 -> NIEDERBRONN LES BAINS | C43: ='[1]Rapport 5'!C43 -> 4066 | D43: ='[1]Rapport 5'!D43 -> NIEDERBRONN LES BAINS | E43: ='[1]Rapport 5'!E43 -> 5060 | F43: ='[1]Rapport 5'!F43 -> HAGUENAU | G43: ='[1]Rapport 5'!G43 -> 262 | H43: ='[1]Rapport 5'!H43 -> BAS RHIN | I43: ='[1]Rapport 5'!I43 -> 3465.61 | J43: ='[1]Rapport 5'!J43 -> 93.42 | K43: ='[1]Rapport 5'!K43 -> 0 | L43: ='[1]Rapport 5'!L43 -> 0 | M43: ='[1]Rapport 5'!M43 -> 117703.15 | N43: ='[1]Rapport 5'!N43 -> 2924.41 | O43: ='[1]Rapport 5'!O43 -> 2424 | P43: ='[1]Rapport 5'!P43 -> 132 | Q43: ='[1]Rapport 5'!Q43 -> 0 | R43: ='[1]Rapport 5'!R43 -> 0 | S43: ='[1]Rapport 5'!S43 -> 437.48 | T43: ='[1]Rapport 5'!T43 -> 0 | U43: ='[1]Rapport 5'!U43 -> 5777.41 | V43: ='[1]Rapport 5'!V43 -> 1984.57 | W43: ='[1]Rapport 5'!W43 -> 4193.22 | X43: ='[1]Rapport 5'!X43 -> 431.29 | Y43: 134,001 | Z43: 5,566 | AA43: 4.2% | AB43: 225 | AC43: =1+(AB43/COUNT($AB$3:AB$339)*10) -> 7.676557864 | AD43: 7 | AE43: 93 | AF43: 2.7% | AG43: 72 | AH43: 3.136498516 | AI43: 3 | AJ43: 0 | AK43: 0.0% | AL43: 1 | AM43: 1.029673591 | AN43: 1 | AO43: 2,924 | AP43: 2.5% | AQ43: 117 | AR43: 4.471810089 | AS43: 4 | AT43: 132 | AU43: 5.4% | AV43: 223 | AW43: 7.617210682 | AX43: 7 | AY43: 0 | AZ43: 0.0% | BA43: 1 | BB43: 1.029673591 | BC43: 1 | BD43: 0 | BE43: 0.0% | BF43: 1 | BG43: 1.029673591 | BH43: 1 | BI43: 1,985 | BJ43: 34.4% | BK43: 311 | BL43: 10.22848665 | BM43: 10 | BN43: 431 | BO43: 10.3% | BP43: 308 | BQ43: 10.13946588 | BR43: 10 | BT43: 66 | BU43: 0
A44: ='[1]Rapport 5'!A44 -> 67 | B44: ='[1]Rapport 5'!B44 -> PFAFFENHOFFEN | C44: ='[1]Rapport 5'!C44 -> 4067 | D44: ='[1]Rapport 5'!D44 -> PFAFFENHOFFEN | E44: ='[1]Rapport 5'!E44 -> 5060 | F44: ='[1]Rapport 5'!F44 -> HAGUENAU | G44: ='[1]Rapport 5'!G44 -> 262 | H44: ='[1]Rapport 5'!H44 -> BAS RHIN | I44: ='[1]Rapport 5'!I44 -> 5998.46 | J44: ='[1]Rapport 5'!J44 -> 925.03 | K44: ='[1]Rapport 5'!K44 -> 0 | L44: ='[1]Rapport 5'!L44 -> 0 | M44: ='[1]Rapport 5'!M44 -> 186228.23 | N44: ='[1]Rapport 5'!N44 -> 4963.39 | O44: ='[1]Rapport 5'!O44 -> 2764.25 | P44: ='[1]Rapport 5'!P44 -> 94 | Q44: ='[1]Rapport 5'!Q44 -> 0 | R44: ='[1]Rapport 5'!R44 -> 0 | S44: ='[1]Rapport 5'!S44 -> 441 | T44: ='[1]Rapport 5'!T44 -> 0 | U44: ='[1]Rapport 5'!U44 -> 8475.89 | V44: ='[1]Rapport 5'!V44 -> 3437.05 | W44: ='[1]Rapport 5'!W44 -> 4187.08 | X44: ='[1]Rapport 5'!X44 -> 18.65 | Y44: 208,095 | Z44: 9,438 | AA44: 4.5% | AB44: 259 | AC44: =1+(AB44/COUNT($AB$3:AB$339)*10) -> 8.685459941 | AD44: 8 | AE44: 925 | AF44: 15.4% | AG44: 324 | AH44: 10.61424332 | AI44: 10 | AJ44: 0 | AK44: 0.0% | AL44: 1 | AM44: 1.029673591 | AN44: 1 | AO44: 4,963 | AP44: 2.7% | AQ44: 134 | AR44: 4.976261128 | AS44: 4 | AT44: 94 | AU44: 3.4% | AV44: 180 | AW44: 6.341246291 | AX44: 6 | AY44: 0 | AZ44: 0.0% | BA44: 1 | BB44: 1.029673591 | BC44: 1 | BD44: 0 | BE44: 0.0% | BF44: 1 | BG44: 1.029673591 | BH44: 1 | BI44: 3,437 | BJ44: 40.6% | BK44: 320 | BL44: 10.49554896 | BM44: 10 | BN44: 19 | BO44: 0.4% | BP44: 38 | BQ44: 2.127596439 | BR44: 2 | BT44: 67 | BU44: 0
A45: ='[1]Rapport 5'!A45 -> 68 | B45: ='[1]Rapport 5'!B45 -> REICHSHOFFEN | C45: ='[1]Rapport 5'!C45 -> 4066 | D45: ='[1]Rapport 5'!D45 -> NIEDERBRONN LES BAINS | E45: ='[1]Rapport 5'!E45 -> 5060 | F45: ='[1]Rapport 5'!F45 -> HAGUENAU | G45: ='[1]Rapport 5'!G45 -> 262 | H45: ='[1]Rapport 5'!H45 -> BAS RHIN | I45: ='[1]Rapport 5'!I45 -> 4751.05 | J45: ='[1]Rapport 5'!J45 -> 209.73 | K45: ='[1]Rapport 5'!K45 -> 0 | L45: ='[1]Rapport 5'!L45 -> 0 | M45: ='[1]Rapport 5'!M45 -> 109018.12 | N45: ='[1]Rapport 5'!N45 -> 1949.56 | O45: ='[1]Rapport 5'!O45 -> 1604.5 | P45: ='[1]Rapport 5'!P45 -> 42 | Q45: ='[1]Rapport 5'!Q45 -> 0 | R45: ='[1]Rapport 5'!R45 -> 0 | S45: ='[1]Rapport 5'!S45 -> 441 | T45: ='[1]Rapport 5'!T45 -> 0 | U45: ='[1]Rapport 5'!U45 -> 6386.75 | V45: ='[1]Rapport 5'!V45 -> 2595.13 | W45: ='[1]Rapport 5'!W45 -> 3000.03 | X45: ='[1]Rapport 5'!X45 -> 51.3 | Y45: 125,201 | Z45: 4,848 | AA45: 3.9% | AB45: 188 | AC45: =1+(AB45/COUNT($AB$3:AB$339)*10) -> 6.578635015 | AD45: 6 | AE45: 210 | AF45: 4.4% | AG45: 173 | AH45: 6.133531157 | AI45: 6 | AJ45: 0 | AK45: 0.0% | AL45: 1 | AM45: 1.029673591 | AN45: 1 | AO45: 1,950 | AP45: 1.8% | AQ45: 32 | AR45: 1.949554896 | AS45: 1 | AT45: 42 | AU45: 2.6% | AV45: 158 | AW45: 5.6884273 | AX45: 5 | AY45: 0 | AZ45: 0.0% | BA45: 1 | BB45: 1.029673591 | BC45: 1 | BD45: 0 | BE45: 0.0% | BF45: 1 | BG45: 1.029673591 | BH45: 1 | BI45: 2,595 | BJ45: 40.6% | BK45: 321 | BL45: 10.52522255 | BM45: 10 | BN45: 51 | BO45: 1.7% | BP45: 92 | BQ45: 3.729970326 | BR45: 3 | BT45: 68 | BU45: 0
A46: ='[1]Rapport 5'!A46 -> 70 | B46: ='[1]Rapport 5'!B46 -> GUNDERSHOFFEN | C46: ='[1]Rapport 5'!C46 -> 4066 | D46: ='[1]Rapport 5'!D46 -> NIEDERBRONN LES BAINS | E46: ='[1]Rapport 5'!E46 -> 5060 | F46: ='[1]Rapport 5'!F46 -> HAGUENAU | G46: ='[1]Rapport 5'!G46 -> 262 | H46: ='[1]Rapport 5'!H46 -> BAS RHIN | I46: ='[1]Rapport 5'!I46 -> 2910.4 | J46: ='[1]Rapport 5'!J46 -> 342.99 | K46: ='[1]Rapport 5'!K46 -> 0 | L46: ='[1]Rapport 5'!L46 -> 0 | M46: ='[1]Rapport 5'!M46 -> 95250.35 | N46: ='[1]Rapport 5'!N46 -> 3241.94 | O46: ='[1]Rapport 5'!O46 -> 3766.5 | P46: ='[1]Rapport 5'!P46 -> 70 | Q46: ='[1]Rapport 5'!Q46 -> 664.59 | R46: ='[1]Rapport 5'!R46 -> 0 | S46: ='[1]Rapport 5'!S46 -> 62 | T46: ='[1]Rapport 5'!T46 -> 0 | U46: ='[1]Rapport 5'!U46 -> 4506.2 | V46: ='[1]Rapport 5'!V46 -> 550.66 | W46: ='[1]Rapport 5'!W46 -> 2701.75 | X46: ='[1]Rapport 5'!X46 -> 307.9 | Y46: 109,862 | Z46: 4,513 | AA46: 4.1% | AB46: 221 | AC46: =1+(AB46/COUNT($AB$3:AB$339)*10) -> 7.557863501 | AD46: 7 | AE46: 343 | AF46: 11.8% | AG46: 313 | AH46: 10.28783383 | AI46: 10 | AJ46: 0 | AK46: 0.0% | AL46: 1 | AM46: 1.029673591 | AN46: 1 | AO46: 3,242 | AP46: 3.4% | AQ46: 232 | AR46: 7.884272997 | AS46: 7 | AT46: 70 | AU46: 1.9% | AV46: 131 | AW46: 4.887240356 | AX46: 4 | AY46: 0 | AZ46: 0.0% | BA46: 1 | BB46: 1.029673591 | BC46: 1 | BD46: 0 | BE46: 0.0% | BF46: 1 | BG46: 1.029673591 | BH46: 1 | BI46: 551 | BJ46: 12.2% | BK46: 118 | BL46: 4.50148368 | BM46: 4 | BN46: 308 | BO46: 11.4% | BP46: 316 | BQ46: 10.3768546 | BR46: 10 | BT46: 70 | BU46: 0
A47: ='[1]Rapport 5'!A47 -> 71 | B47: ='[1]Rapport 5'!B47 -> WISSEMBOURG | C47: ='[1]Rapport 5'!C47 -> 4071 | D47: ='[1]Rapport 5'!D47 -> WISSEMBOURG | E47: ='[1]Rapport 5'!E47 -> 5060 | F47: ='[1]Rapport 5'!F47 -> HAGUENAU | G47: ='[1]Rapport 5'!G47 -> 262 | H47: ='[1]Rapport 5'!H47 -> BAS RHIN | I47: ='[1]Rapport 5'!I47 -> 6309.42 | J47: ='[1]Rapport 5'!J47 -> 649.92 | K47: ='[1]Rapport 5'!K47 -> 0 | L47: ='[1]Rapport 5'!L47 -> 0 | M47: ='[1]Rapport 5'!M47 -> 249649.49 | N47: ='[1]Rapport 5'!N47 -> 4644.81 | O47: ='[1]Rapport 5'!O47 -> 4240 | P47: ='[1]Rapport 5'!P47 -> 168 | Q47: ='[1]Rapport 5'!Q47 -> 0 | R47: ='[1]Rapport 5'!R47 -> 0 | S47: ='[1]Rapport 5'!S47 -> 452.71 | T47: ='[1]Rapport 5'!T47 -> 47.62 | U47: ='[1]Rapport 5'!U47 -> 12969.39 | V47: ='[1]Rapport 5'!V47 -> 2686.18 | W47: ='[1]Rapport 5'!W47 -> 7043.07 | X47: ='[1]Rapport 5'!X47 -> 47.3 | Y47: 280,664 | Z47: 8,244 | AA47: 2.9% | AB47: 77 | AC47: =1+(AB47/COUNT($AB$3:AB$339)*10) -> 3.284866469 | AD47: 3 | AE47: 650 | AF47: 10.3% | AG47: 305 | AH47: 10.0504451 | AI47: 10 | AJ47: 0 | AK47: 0.0% | AL47: 1 | AM47: 1.029673591 | AN47: 1 | AO47: 4,645 | AP47: 1.9% | AQ47: 38 | AR47: 2.127596439 | AS47: 2 | AT47: 168 | AU47: 4.0% | AV47: 198 | AW47: 6.87537092 | AX47: 6 | AY47: 0 | AZ47: 0.0% | BA47: 1 | BB47: 1.029673591 | BC47: 1 | BD47: 48 | BE47: 10.5% | BF47: 289 | BG47: 9.575667656 | BH47: 9 | BI47: 2,686 | BJ47: 20.7% | BK47: 247 | BL47: 8.329376855 | BM47: 8 | BN47: 47 | BO47: 0.7% | BP47: 49 | BQ47: 2.454005935 | BR47: 2 | BT47: 71 | BU47: 0
A48: ='[1]Rapport 5'!A48 -> 73 | B48: ='[1]Rapport 5'!B48 -> SCHWEIGHOUSE SUR MODER | C48: ='[1]Rapport 5'!C48 -> 4073 | D48: ='[1]Rapport 5'!D48 -> SCHWEIGHOUSE SUR MODER | E48: ='[1]Rapport 5'!E48 -> 5060 | F48: ='[1]Rapport 5'!F48 -> HAGUENAU | G48: ='[1]Rapport 5'!G48 -> 262 | H48: ='[1]Rapport 5'!H48 -> BAS RHIN | I48: ='[1]Rapport 5'!I48 -> 5213.59 | J48: ='[1]Rapport 5'!J48 -> 314.09 | K48: ='[1]Rapport 5'!K48 -> 0 | L48: ='[1]Rapport 5'!L48 -> 0 | M48: ='[1]Rapport 5'!M48 -> 122431.24 | N48: ='[1]Rapport 5'!N48 -> 5678.28 | O48: ='[1]Rapport 5'!O48 -> 5237 | P48: ='[1]Rapport 5'!P48 -> 65 | Q48: ='[1]Rapport 5'!Q48 -> 629.18 | R48: ='[1]Rapport 5'!R48 -> 0 | S48: ='[1]Rapport 5'!S48 -> 515.95 | T48: ='[1]Rapport 5'!T48 -> 13 | U48: ='[1]Rapport 5'!U48 -> 4461.19 | V48: ='[1]Rapport 5'!V48 -> 1425.51 | W48: ='[1]Rapport 5'!W48 -> 3050.66 | X48: ='[1]Rapport 5'!X48 -> 196.32 | Y48: 141,539 | Z48: 7,692 | AA48: 5.4% | AB48: 306 | AC48: =1+(AB48/COUNT($AB$3:AB$339)*10) -> 10.08011869 | AD48: 10 | AE48: 314 | AF48: 6.0% | AG48: 246 | AH48: 8.299703264 | AI48: 8 | AJ48: 0 | AK48: 0.0% | AL48: 1 | AM48: 1.029673591 | AN48: 1 | AO48: 5,678 | AP48: 4.6% | AQ48: 314 | AR48: 10.31750742 | AS48: 10 | AT48: 65 | AU48: 1.2% | AV48: 110 | AW48: 4.264094955 | AX48: 4 | AY48: 0 | AZ48: 0.0% | BA48: 1 | BB48: 1.029673591 | BC48: 1 | BD48: 13 | BE48: 2.5% | BF48: 236 | BG48: 8.002967359 | BH48: 8 | BI48: 1,426 | BJ48: 32.0% | BK48: 304 | BL48: 10.02077151 | BM48: 10 | BN48: 196 | BO48: 6.4% | BP48: 263 | BQ48: 8.804154303 | BR48: 8 | BT48: 73 | BU48: 0
A49: ='[1]Rapport 5'!A49 -> 74 | B49: ='[1]Rapport 5'!B49 -> SOUFFLENHEIM | C49: ='[1]Rapport 5'!C49 -> 4074 | D49: ='[1]Rapport 5'!D49 -> SOUFFLENHEIM | E49: ='[1]Rapport 5'!E49 -> 5060 | F49: ='[1]Rapport 5'!F49 -> HAGUENAU | G49: ='[1]Rapport 5'!G49 -> 262 | H49: ='[1]Rapport 5'!H49 -> BAS RHIN | I49: ='[1]Rapport 5'!I49 -> 2495.88 | J49: ='[1]Rapport 5'!J49 -> 230.52 | K49: ='[1]Rapport 5'!K49 -> 0 | L49: ='[1]Rapport 5'!L49 -> 0 | M49: ='[1]Rapport 5'!M49 -> 87888.32 | N49: ='[1]Rapport 5'!N49 -> 2854.06 | O49: ='[1]Rapport 5'!O49 -> 3005.5 | P49: ='[1]Rapport 5'!P49 -> 9.5 | Q49: ='[1]Rapport 5'!Q49 -> 0 | R49: ='[1]Rapport 5'!R49 -> 0 | S49: ='[1]Rapport 5'!S49 -> 0 | T49: ='[1]Rapport 5'!T49 -> 0 | U49: ='[1]Rapport 5'!U49 -> 4165.57 | V49: ='[1]Rapport 5'!V49 -> 2501.8 | W49: ='[1]Rapport 5'!W49 -> 2265.2 | X49: ='[1]Rapport 5'!X49 -> 78.25 | Y49: 99,820 | Z49: 5,674 | AA49: 5.7% | AB49: 315 | AC49: =1+(AB49/COUNT($AB$3:AB$339)*10) -> 10.34718101 | AD49: 10 | AE49: 231 | AF49: 9.2% | AG49: 296 | AH49: 9.783382789 | AI49: 9 | AJ49: 0 | AK49: 0.0% | AL49: 1 | AM49: 1.029673591 | AN49: 1 | AO49: 2,854 | AP49: 3.2% | AQ49: 218 | AR49: 7.46884273 | AS49: 7 | AT49: 10 | AU49: 0.3% | AV49: 76 | AW49: 3.255192878 | AX49: 3 | AY49: 0 | AZ49: 0.0% | BA49: 1 | BB49: 1.029673591 | BC49: 1 | BD49: 0 | BE49: 0.0% | BF49: 1 | BG49: 1.029673591 | BH49: 1 | BI49: 2,502 | BJ49: 60.1% | BK49: 337 | BL49: 11 | BM49: 10 | BN49: 78 | BO49: 3.5% | BP49: 186 | BQ49: 6.519287834 | BR49: 6 | BT49: 74 | BU49: 0
A50: ='[1]Rapport 5'!A50 -> 76 | B50: ='[1]Rapport 5'!B50 -> BETSCHDORF | C50: ='[1]Rapport 5'!C50 -> 4071 | D50: ='[1]Rapport 5'!D50 -> WISSEMBOURG | E50: ='[1]Rapport 5'!E50 -> 5060 | F50: ='[1]Rapport 5'!F50 -> HAGUENAU | G50: ='[1]Rapport 5'!G50 -> 262 | H50: ='[1]Rapport 5'!H50 -> BAS RHIN | I50: ='[1]Rapport 5'!I50 -> 2637.25 | J50: ='[1]Rapport 5'!J50 -> 121.48 | K50: ='[1]Rapport 5'!K50 -> 0 | L50: ='[1]Rapport 5'!L50 -> 0 | M50: ='[1]Rapport 5'!M50 -> 112783.6 | N50: ='[1]Rapport 5'!N50 -> 1390.1 | O50: ='[1]Rapport 5'!O50 -> 1728.25 | P50: ='[1]Rapport 5'!P50 -> 0 | Q50: ='[1]Rapport 5'!Q50 -> 0 | R50: ='[1]Rapport 5'!R50 -> 0 | S50: ='[1]Rapport 5'!S50 -> 116 | T50: ='[1]Rapport 5'!T50 -> 0 | U50: ='[1]Rapport 5'!U50 -> 4574.47 | V50: ='[1]Rapport 5'!V50 -> 715.33 | W50: ='[1]Rapport 5'!W50 -> 3673.75 | X50: ='[1]Rapport 5'!X50 -> 343.02 | Y50: 125,513 | Z50: 2,570 | AA50: 2.0% | AB50: 13 | AC50: =1+(AB50/COUNT($AB$3:AB$339)*10) -> 1.385756677 | AD50: 1 | AE50: 121 | AF50: 4.6% | AG50: 187 | AH50: 6.548961424 | AI50: 6 | AJ50: 0 | AK50: 0.0% | AL50: 1 | AM50: 1.029673591 | AN50: 1 | AO50: 1,390 | AP50: 1.2% | AQ50: 6 | AR50: 1.178041543 | AS50: 1 | AT50: 0 | AU50: 0.0% | AV50: 1 | AW50: 1.029673591 | AX50: 1 | AY50: 0 | AZ50: 0.0% | BA50: 1 | BB50: 1.029673591 | BC50: 1 | BD50: 0 | BE50: 0.0% | BF50: 1 | BG50: 1.029673591 | BH50: 1 | BI50: 715 | BJ50: 15.6% | BK50: 172 | BL50: 6.103857567 | BM50: 6 | BN50: 343 | BO50: 9.3% | BP50: 300 | BQ50: 9.902077151 | BR50: 9 | BT50: 76 | BU50: 0
A51: ='[1]Rapport 5'!A51 -> 77 | B51: ='[1]Rapport 5'!B51 -> SELTZ | C51: ='[1]Rapport 5'!C51 -> 4071 | D51: ='[1]Rapport 5'!D51 -> WISSEMBOURG | E51: ='[1]Rapport 5'!E51 -> 5060 | F51: ='[1]Rapport 5'!F51 -> HAGUENAU | G51: ='[1]Rapport 5'!G51 -> 262 | H51: ='[1]Rapport 5'!H51 -> BAS RHIN | I51: ='[1]Rapport 5'!I51 -> 3258.02 | J51: ='[1]Rapport 5'!J51 -> 66.75 | K51: ='[1]Rapport 5'!K51 -> 0 | L51: ='[1]Rapport 5'!L51 -> 0 | M51: ='[1]Rapport 5'!M51 -> 96484.09 | N51: ='[1]Rapport 5'!N51 -> 2416.36 | O51: ='[1]Rapport 5'!O51 -> 2188 | P51: ='[1]Rapport 5'!P51 -> 75 | Q51: ='[1]Rapport 5'!Q51 -> 0 | R51: ='[1]Rapport 5'!R51 -> 0 | S51: ='[1]Rapport 5'!S51 -> 0 | T51: ='[1]Rapport 5'!T51 -> 0 | U51: ='[1]Rapport 5'!U51 -> 1730.69 | V51: ='[1]Rapport 5'!V51 -> 117.13 | W51: ='[1]Rapport 5'!W51 -> 2136.04 | X51: ='[1]Rapport 5'!X51 -> 37.3 | Y51: 105,797 | Z51: 2,713 | AA51: 2.6% | AB51: 42 | AC51: =1+(AB51/COUNT($AB$3:AB$339)*10) -> 2.246290801 | AD51: 2 | AE51: 67 | AF51: 2.0% | AG51: 40 | AH51: 2.18694362 | AI51: 2 | AJ51: 0 | AK51: 0.0% | AL51: 1 | AM51: 1.029673591 | AN51: 1 | AO51: 2,416 | AP51: 2.5% | AQ51: 118 | AR51: 4.50148368 | AS51: 4 | AT51: 75 | AU51: 3.4% | AV51: 181 | AW51: 6.370919881 | AX51: 6 | AY51: 0 | AZ51: 0.0% | BA51: 1 | BB51: 1.029673591 | BC51: 1 | BD51: 0 | BE51: 0.0% | BF51: 1 | BG51: 1.029673591 | BH51: 1 | BI51: 117 | BJ51: 6.8% | BK51: 43 | BL51: 2.275964392 | BM51: 2 | BN51: 37 | BO51: 1.7% | BP51: 94 | BQ51: 3.789317507 | BR51: 3 | BT51: 77 | BU51: 0
A52: ='[1]Rapport 5'!A52 -> 78 | B52: ='[1]Rapport 5'!B52 -> LAUTERBOURG | C52: ='[1]Rapport 5'!C52 -> 4071 | D52: ='[1]Rapport 5'!D52 -> WISSEMBOURG | E52: ='[1]Rapport 5'!E52 -> 5060 | F52: ='[1]Rapport 5'!F52 -> HAGUENAU | G52: ='[1]Rapport 5'!G52 -> 262 | H52: ='[1]Rapport 5'!H52 -> BAS RHIN | I52: ='[1]Rapport 5'!I52 -> 2941.26 | J52: ='[1]Rapport 5'!J52 -> 175.88 | K52: ='[1]Rapport 5'!K52 -> 0 | L52: ='[1]Rapport 5'!L52 -> 0 | M52: ='[1]Rapport 5'!M52 -> 72734.45 | N52: ='[1]Rapport 5'!N52 -> 1832.46 | O52: ='[1]Rapport 5'!O52 -> 3225.5 | P52: ='[1]Rapport 5'!P52 -> 105 | Q52: ='[1]Rapport 5'!Q52 -> 0 | R52: ='[1]Rapport 5'!R52 -> 0 | S52: ='[1]Rapport 5'!S52 -> 645 | T52: ='[1]Rapport 5'!T52 -> 13 | U52: ='[1]Rapport 5'!U52 -> 3131.67 | V52: ='[1]Rapport 5'!V52 -> 1339.73 | W52: ='[1]Rapport 5'!W52 -> 2838.76 | X52: ='[1]Rapport 5'!X52 -> 93.3 | Y52: 85,517 | Z52: 3,559 | AA52: 4.2% | AB52: 226 | AC52: =1+(AB52/COUNT($AB$3:AB$339)*10) -> 7.706231454 | AD52: 7 | AE52: 176 | AF52: 6.0% | AG52: 245 | AH52: 8.270029674 | AI52: 8 | AJ52: 0 | AK52: 0.0% | AL52: 1 | AM52: 1.029673591 | AN52: 1 | AO52: 1,832 | AP52: 2.5% | AQ52: 122 | AR52: 4.620178042 | AS52: 4 | AT52: 105 | AU52: 3.3% | AV52: 176 | AW52: 6.222551929 | AX52: 6 | AY52: 0 | AZ52: 0.0% | BA52: 1 | BB52: 1.029673591 | BC52: 1 | BD52: 13 | BE52: 2.0% | BF52: 228 | BG52: 7.765578635 | BH52: 7 | BI52: 1,340 | BJ52: 42.8% | BK52: 323 | BL52: 10.58456973 | BM52: 10 | BN52: 93 | BO52: 3.3% | BP52: 176 | BQ52: 6.222551929 | BR52: 6 | BT52: 78 | BU52: 0
A53: ='[1]Rapport 5'!A53 -> 79 | B53: ='[1]Rapport 5'!B53 -> SOULTZ SOUS FORETS | C53: ='[1]Rapport 5'!C53 -> 4079 | D53: ='[1]Rapport 5'!D53 -> SOULTZ SOUS FORETS | E53: ='[1]Rapport 5'!E53 -> 5060 | F53: ='[1]Rapport 5'!F53 -> HAGUENAU | G53: ='[1]Rapport 5'!G53 -> 262 | H53: ='[1]Rapport 5'!H53 -> BAS RHIN | I53: ='[1]Rapport 5'!I53 -> 7358.97 | J53: ='[1]Rapport 5'!J53 -> 1710.47 | K53: ='[1]Rapport 5'!K53 -> 0 | L53: ='[1]Rapport 5'!L53 -> 0 | M53: ='[1]Rapport 5'!M53 -> 113312.42 | N53: ='[1]Rapport 5'!N53 -> 3619.8 | O53: ='[1]Rapport 5'!O53 -> 4259.5 | P53: ='[1]Rapport 5'!P53 -> 316.09 | Q53: ='[1]Rapport 5'!Q53 -> 0 | R53: ='[1]Rapport 5'!R53 -> 0 | S53: ='[1]Rapport 5'!S53 -> 96 | T53: ='[1]Rapport 5'!T53 -> 0 | U53: ='[1]Rapport 5'!U53 -> 3636.47 | V53: ='[1]Rapport 5'!V53 -> 1073.42 | W53: ='[1]Rapport 5'!W53 -> 2433.29 | X53: ='[1]Rapport 5'!X53 -> 227.2 | Y53: 131,097 | Z53: 6,947 | AA53: 5.3% | AB53: 302 | AC53: =1+(AB53/COUNT($AB$3:AB$339)*10) -> 9.961424332 | AD53: 9 | AE53: 1,710 | AF53: 23.2% | AG53: 329 | AH53: 10.76261128 | AI53: 10 | AJ53: 0 | AK53: 0.0% | AL53: 1 | AM53: 1.029673591 | AN53: 1 | AO53: 3,620 | AP53: 3.2% | AQ53: 211 | AR53: 7.261127596 | AS53: 7 | AT53: 316 | AU53: 7.4% | AV53: 258 | AW53: 8.65578635 | AX53: 8 | AY53: 0 | AZ53: 0.0% | BA53: 1 | BB53: 1.029673591 | BC53: 1 | BD53: 0 | BE53: 0.0% | BF53: 1 | BG53: 1.029673591 | BH53: 1 | BI53: 1,073 | BJ53: 29.5% | BK53: 295 | BL53: 9.753709199 | BM53: 9 | BN53: 227 | BO53: 9.3% | BP53: 301 | BQ53: 9.931750742 | BR53: 9 | BT53: 79 | BU53: 0
A54: ='[1]Rapport 5'!A54 -> 80 | B54: ='[1]Rapport 5'!B54 -> WOERTH | C54: ='[1]Rapport 5'!C54 -> 4080 | D54: ='[1]Rapport 5'!D54 -> WOERTH | E54: ='[1]Rapport 5'!E54 -> 5060 | F54: ='[1]Rapport 5'!F54 -> HAGUENAU | G54: ='[1]Rapport 5'!G54 -> 262 | H54: ='[1]Rapport 5'!H54 -> BAS RHIN | I54: ='[1]Rapport 5'!I54 -> 4629.04 | J54: ='[1]Rapport 5'!J54 -> 434.45 | K54: ='[1]Rapport 5'!K54 -> 0 | L54: ='[1]Rapport 5'!L54 -> 0 | M54: ='[1]Rapport 5'!M54 -> 121382.08 | N54: ='[1]Rapport 5'!N54 -> 5870.34 | O54: ='[1]Rapport 5'!O54 -> 2090 | P54: ='[1]Rapport 5'!P54 -> 126 | Q54: ='[1]Rapport 5'!Q54 -> 0 | R54: ='[1]Rapport 5'!R54 -> 0 | S54: ='[1]Rapport 5'!S54 -> 26 | T54: ='[1]Rapport 5'!T54 -> 16.82 | U54: ='[1]Rapport 5'!U54 -> 5618.54 | V54: ='[1]Rapport 5'!V54 -> 1085.61 | W54: ='[1]Rapport 5'!W54 -> 2717.8 | X54: ='[1]Rapport 5'!X54 -> 46.65 | Y54: 136,463 | Z54: 7,580 | AA54: 5.6% | AB54: 312 | AC54: =1+(AB54/COUNT($AB$3:AB$339)*10) -> 10.25816024 | AD54: 10 | AE54: 434 | AF54: 9.4% | AG54: 299 | AH54: 9.872403561 | AI54: 9 | AJ54: 0 | AK54: 0.0% | AL54: 1 | AM54: 1.029673591 | AN54: 1 | AO54: 5,870 | AP54: 4.8% | AQ54: 321 | AR54: 10.52522255 | AS54: 10 | AT54: 126 | AU54: 6.0% | AV54: 234 | AW54: 7.943620178 | AX54: 7 | AY54: 0 | AZ54: 0.0% | BA54: 1 | BB54: 1.029673591 | BC54: 1 | BD54: 17 | BE54: 64.7% | BF54: 333 | BG54: 10.88130564 | BH54: 10 | BI54: 1,086 | BJ54: 19.3% | BK54: 229 | BL54: 7.795252226 | BM54: 7 | BN54: 47 | BO54: 1.7% | BP54: 93 | BQ54: 3.759643917 | BR54: 3 | BT54: 80 | BU54: 0
A55: ='[1]Rapport 5'!A55 -> 82 | B55: ='[1]Rapport 5'!B55 -> BOUXWILLER | C55: ='[1]Rapport 5'!C55 -> 4082 | D55: ='[1]Rapport 5'!D55 -> BOUXWILLER | E55: ='[1]Rapport 5'!E55 -> 5060 | F55: ='[1]Rapport 5'!F55 -> HAGUENAU | G55: ='[1]Rapport 5'!G55 -> 262 | H55: ='[1]Rapport 5'!H55 -> BAS RHIN | I55: ='[1]Rapport 5'!I55 -> 10599.27 | J55: ='[1]Rapport 5'!J55 -> 551.02 | K55: ='[1]Rapport 5'!K55 -> 0 | L55: ='[1]Rapport 5'!L55 -> 0 | M55: ='[1]Rapport 5'!M55 -> 197243.82 | N55: ='[1]Rapport 5'!N55 -> 6727.51 | O55: ='[1]Rapport 5'!O55 -> 6470.5 | P55: ='[1]Rapport 5'!P55 -> 142 | Q55: ='[1]Rapport 5'!Q55 -> 0 | R55: ='[1]Rapport 5'!R55 -> 0 | S55: ='[1]Rapport 5'!S55 -> 387.5 | T55: ='[1]Rapport 5'!T55 -> 117 | U55: ='[1]Rapport 5'!U55 -> 7626.26 | V55: ='[1]Rapport 5'!V55 -> 3366.24 | W55: ='[1]Rapport 5'!W55 -> 3782.56 | X55: ='[1]Rapport 5'!X55 -> 173.04 | Y55: 226,110 | Z55: 11,077 | AA55: 4.9% | AB55: 284 | AC55: =1+(AB55/COUNT($AB$3:AB$339)*10) -> 9.427299703 | AD55: 9 | AE55: 551 | AF55: 5.2% | AG55: 217 | AH55: 7.439169139 | AI55: 7 | AJ55: 0 | AK55: 0.0% | AL55: 1 | AM55: 1.029673591 | AN55: 1 | AO55: 6,728 | AP55: 3.4% | AQ55: 233 | AR55: 7.913946588 | AS55: 7 | AT55: 142 | AU55: 2.2% | AV55: 140 | AW55: 5.154302671 | AX55: 5 | AY55: 0 | AZ55: 0.0% | BA55: 1 | BB55: 1.029673591 | BC55: 1 | BD55: 117 | BE55: 30.2% | BF55: 325 | BG55: 10.64391691 | BH55: 10 | BI55: 3,366 | BJ55: 44.1% | BK55: 326 | BL55: 10.6735905 | BM55: 10 | BN55: 173 | BO55: 4.6% | BP55: 215 | BQ55: 7.379821958 | BR55: 7 | BT55: 82 | BU55: 0
A56: ='[1]Rapport 5'!A56 -> 85 | B56: ='[1]Rapport 5'!B56 -> INGWILLER | C56: ='[1]Rapport 5'!C56 -> 4085 | D56: ='[1]Rapport 5'!D56 -> INGWILLER | E56: ='[1]Rapport 5'!E56 -> 5060 | F56: ='[1]Rapport 5'!F56 -> HAGUENAU | G56: ='[1]Rapport 5'!G56 -> 262 | H56: ='[1]Rapport 5'!H56 -> BAS RHIN | I56: ='[1]Rapport 5'!I56 -> 9048.12 | J56: ='[1]Rapport 5'!J56 -> 941.12 | K56: ='[1]Rapport 5'!K56 -> 0 | L56: ='[1]Rapport 5'!L56 -> 0 | M56: ='[1]Rapport 5'!M56 -> 210055.34 | N56: ='[1]Rapport 5'!N56 -> 6995.03 | O56: ='[1]Rapport 5'!O56 -> 8428.5 | P56: ='[1]Rapport 5'!P56 -> 327.5 | Q56: ='[1]Rapport 5'!Q56 -> 0 | R56: ='[1]Rapport 5'!R56 -> 0 | S56: ='[1]Rapport 5'!S56 -> 342 | T56: ='[1]Rapport 5'!T56 -> 13 | U56: ='[1]Rapport 5'!U56 -> 9790.29 | V56: ='[1]Rapport 5'!V56 -> 5073.18 | W56: ='[1]Rapport 5'!W56 -> 5811.68 | X56: ='[1]Rapport 5'!X56 -> 911.3 | Y56: 243,476 | Z56: 14,261 | AA56: 5.9% | AB56: 320 | AC56: =1+(AB56/COUNT($AB$3:AB$339)*10) -> 10.49554896 | AD56: 10 | AE56: 941 | AF56: 10.4% | AG56: 306 | AH56: 10.08011869 | AI56: 10 | AJ56: 0 | AK56: 0.0% | AL56: 1 | AM56: 1.029673591 | AN56: 1 | AO56: 6,995 | AP56: 3.3% | AQ56: 225 | AR56: 7.676557864 | AS56: 7 | AT56: 328 | AU56: 3.9% | AV56: 196 | AW56: 6.816023739 | AX56: 6 | AY56: 0 | AZ56: 0.0% | BA56: 1 | BB56: 1.029673591 | BC56: 1 | BD56: 13 | BE56: 3.8% | BF56: 246 | BG56: 8.299703264 | BH56: 8 | BI56: 5,073 | BJ56: 51.8% | BK56: 332 | BL56: 10.85163205 | BM56: 10 | BN56: 911 | BO56: 15.7% | BP56: 328 | BQ56: 10.73293769 | BR56: 10 | BT56: 85 | BU56: 0
A57: ='[1]Rapport 5'!A57 -> 86 | B57: ='[1]Rapport 5'!B57 -> WINGEN SUR MODER | C57: ='[1]Rapport 5'!C57 -> 4085 | D57: ='[1]Rapport 5'!D57 -> INGWILLER | E57: ='[1]Rapport 5'!E57 -> 5060 | F57: ='[1]Rapport 5'!F57 -> HAGUENAU | G57: ='[1]Rapport 5'!G57 -> 262 | H57: ='[1]Rapport 5'!H57 -> BAS RHIN | I57: ='[1]Rapport 5'!I57 -> 2874.57 | J57: ='[1]Rapport 5'!J57 -> 52.13 | K57: ='[1]Rapport 5'!K57 -> 0 | L57: ='[1]Rapport 5'!L57 -> 0 | M57: ='[1]Rapport 5'!M57 -> 55559.13 | N57: ='[1]Rapport 5'!N57 -> 2210.07 | O57: ='[1]Rapport 5'!O57 -> 1361 | P57: ='[1]Rapport 5'!P57 -> 1.87 | Q57: ='[1]Rapport 5'!Q57 -> 0 | R57: ='[1]Rapport 5'!R57 -> 0 | S57: ='[1]Rapport 5'!S57 -> 446 | T57: ='[1]Rapport 5'!T57 -> 0 | U57: ='[1]Rapport 5'!U57 -> 2127.57 | V57: ='[1]Rapport 5'!V57 -> 655.68 | W57: ='[1]Rapport 5'!W57 -> 896.45 | X57: ='[1]Rapport 5'!X57 -> 30 | Y57: 63,265 | Z57: 2,950 | AA57: 4.7% | AB57: 266 | AC57: =1+(AB57/COUNT($AB$3:AB$339)*10) -> 8.893175074 | AD57: 8 | AE57: 52 | AF57: 1.8% | AG57: 27 | AH57: 1.801186944 | AI57: 1 | AJ57: 0 | AK57: 0.0% | AL57: 1 | AM57: 1.029673591 | AN57: 1 | AO57: 2,210 | AP57: 4.0% | AQ57: 288 | AR57: 9.545994065 | AS57: 9 | AT57: 2 | AU57: 0.1% | AV57: 72 | AW57: 3.136498516 | AX57: 3 | AY57: 0 | AZ57: 0.0% | BA57: 1 | BB57: 1.029673591 | BC57: 1 | BD57: 0 | BE57: 0.0% | BF57: 1 | BG57: 1.029673591 | BH57: 1 | BI57: 656 | BJ57: 30.8% | BK57: 301 | BL57: 9.931750742 | BM57: 9 | BN57: 30 | BO57: 3.3% | BP57: 180 | BQ57: 6.341246291 | BR57: 6 | BT57: 86 | BU57: 0
A58: ='[1]Rapport 5'!A58 -> 87 | B58: ='[1]Rapport 5'!B58 -> SAVERNE | C58: ='[1]Rapport 5'!C58 -> 4087 | D58: ='[1]Rapport 5'!D58 -> SAVERNE | E58: ='[1]Rapport 5'!E58 -> 5060 | F58: ='[1]Rapport 5'!F58 -> HAGUENAU | G58: ='[1]Rapport 5'!G58 -> 262 | H58: ='[1]Rapport 5'!H58 -> BAS RHIN | I58: ='[1]Rapport 5'!I58 -> 14030.91 | J58: ='[1]Rapport 5'!J58 -> 1131.74 | K58: ='[1]Rapport 5'!K58 -> 0 | L58: ='[1]Rapport 5'!L58 -> 60 | M58: ='[1]Rapport 5'!M58 -> 450977.68 | N58: ='[1]Rapport 5'!N58 -> 16325.9 | O58: ='[1]Rapport 5'!O58 -> 12962.75 | P58: ='[1]Rapport 5'!P58 -> 2861.4 | Q58: ='[1]Rapport 5'!Q58 -> 264.5 | R58: ='[1]Rapport 5'!R58 -> 0 | S58: ='[1]Rapport 5'!S58 -> 1171.35 | T58: ='[1]Rapport 5'!T58 -> 248 | U58: ='[1]Rapport 5'!U58 -> 33523.61 | V58: ='[1]Rapport 5'!V58 -> 5883.8 | W58: ='[1]Rapport 5'!W58 -> 13854.67 | X58: ='[1]Rapport 5'!X58 -> 549.95 | Y58: 526,785 | Z58: 27,061 | AA58: 5.1% | AB58: 295 | AC58: =1+(AB58/COUNT($AB$3:AB$339)*10) -> 9.753709199 | AD58: 9 | AE58: 1,132 | AF58: 8.1% | AG58: 282 | AH58: 9.367952522 | AI58: 9 | AJ58: 60 | AK58: 100.0% | AL58: 314 | AM58: 10.31750742 | AN58: 10 | AO58: 16,326 | AP58: 3.6% | AQ58: 257 | AR58: 8.62611276 | AS58: 8 | AT58: 2,861 | AU58: 22.1% | AV58: 316 | AW58: 10.3768546 | AX58: 10 | AY58: 0 | AZ58: 0.0% | BA58: 1 | BB58: 1.029673591 | BC58: 1 | BD58: 248 | BE58: 21.2% | BF58: 312 | BG58: 10.25816024 | BH58: 10 | BI58: 5,884 | BJ58: 17.6% | BK58: 203 | BL58: 7.023738872 | BM58: 7 | BN58: 550 | BO58: 4.0% | BP58: 200 | BQ58: 6.934718101 | BR58: 6 | BT58: 87 | BU58: 0
A59: ='[1]Rapport 5'!A59 -> 89 | B59: ='[1]Rapport 5'!B59 -> DIEMERINGEN | C59: ='[1]Rapport 5'!C59 -> 4095 | D59: ='[1]Rapport 5'!D59 -> SARRE UNION | E59: ='[1]Rapport 5'!E59 -> 5060 | F59: ='[1]Rapport 5'!F59 -> HAGUENAU | G59: ='[1]Rapport 5'!G59 -> 262 | H59: ='[1]Rapport 5'!H59 -> BAS RHIN | I59: ='[1]Rapport 5'!I59 -> 4752.71 | J59: ='[1]Rapport 5'!J59 -> 136.52 | K59: ='[1]Rapport 5'!K59 -> 0 | L59: ='[1]Rapport 5'!L59 -> 0 | M59: ='[1]Rapport 5'!M59 -> 92920.04 | N59: ='[1]Rapport 5'!N59 -> 3006.22 | O59: ='[1]Rapport 5'!O59 -> 1793 | P59: ='[1]Rapport 5'!P59 -> 0 | Q59: ='[1]Rapport 5'!Q59 -> 0 | R59: ='[1]Rapport 5'!R59 -> 0 | S59: ='[1]Rapport 5'!S59 -> 26 | T59: ='[1]Rapport 5'!T59 -> 0 | U59: ='[1]Rapport 5'!U59 -> 3301.18 | V59: ='[1]Rapport 5'!V59 -> 1112.5 | W59: ='[1]Rapport 5'!W59 -> 1444.16 | X59: ='[1]Rapport 5'!X59 -> 250.93 | Y59: 104,237 | Z59: 4,506 | AA59: 4.3% | AB59: 242 | AC59: =1+(AB59/COUNT($AB$3:AB$339)*10) -> 8.181008902 | AD59: 8 | AE59: 137 | AF59: 2.9% | AG59: 80 | AH59: 3.37388724 | AI59: 3 | AJ59: 0 | AK59: 0.0% | AL59: 1 | AM59: 1.029673591 | AN59: 1 | AO59: 3,006 | AP59: 3.2% | AQ59: 217 | AR59: 7.439169139 | AS59: 7 | AT59: 0 | AU59: 0.0% | AV59: 1 | AW59: 1.029673591 | AX59: 1 | AY59: 0 | AZ59: 0.0% | BA59: 1 | BB59: 1.029673591 | BC59: 1 | BD59: 0 | BE59: 0.0% | BF59: 1 | BG59: 1.029673591 | BH59: 1 | BI59: 1,113 | BJ59: 33.7% | BK59: 309 | BL59: 10.16913947 | BM59: 10 | BN59: 251 | BO59: 17.4% | BP59: 331 | BQ59: 10.82195846 | BR59: 10 | BT59: 89 | BU59: 0
A60: ='[1]Rapport 5'!A60 -> 92 | B60: ='[1]Rapport 5'!B60 -> HOCHFELDEN | C60: ='[1]Rapport 5'!C60 -> 4092 | D60: ='[1]Rapport 5'!D60 -> HOCHFELDEN | E60: ='[1]Rapport 5'!E60 -> 5060 | F60: ='[1]Rapport 5'!F60 -> HAGUENAU | G60: ='[1]Rapport 5'!G60 -> 262 | H60: ='[1]Rapport 5'!H60 -> BAS RHIN | I60: ='[1]Rapport 5'!I60 -> 6605.72 | J60: ='[1]Rapport 5'!J60 -> 208.22 | K60: ='[1]Rapport 5'!K60 -> 0 | L60: ='[1]Rapport 5'!L60 -> 0 | M60: ='[1]Rapport 5'!M60 -> 149391.83 | N60: ='[1]Rapport 5'!N60 -> 3512.55 | O60: ='[1]Rapport 5'!O60 -> 5821 | P60: ='[1]Rapport 5'!P60 -> 450 | Q60: ='[1]Rapport 5'!Q60 -> 0 | R60: ='[1]Rapport 5'!R60 -> 0 | S60: ='[1]Rapport 5'!S60 -> 416 | T60: ='[1]Rapport 5'!T60 -> 0 | U60: ='[1]Rapport 5'!U60 -> 7017.01 | V60: ='[1]Rapport 5'!V60 -> 2148.59 | W60: ='[1]Rapport 5'!W60 -> 2553.22 | X60: ='[1]Rapport 5'!X60 -> 0 | Y60: 171,805 | Z60: 6,319 | AA60: 3.7% | AB60: 169 | AC60: =1+(AB60/COUNT($AB$3:AB$339)*10) -> 6.014836795 | AD60: 6 | AE60: 208 | AF60: 3.2% | AG60: 96 | AH60: 3.848664688 | AI60: 3 | AJ60: 0 | AK60: 0.0% | AL60: 1 | AM60: 1.029673591 | AN60: 1 | AO60: 3,513 | AP60: 2.4% | AQ60: 96 | AR60: 3.848664688 | AS60: 3 | AT60: 450 | AU60: 7.7% | AV60: 263 | AW60: 8.804154303 | AX60: 8 | AY60: 0 | AZ60: 0.0% | BA60: 1 | BB60: 1.029673591 | BC60: 1 | BD60: 0 | BE60: 0.0% | BF60: 1 | BG60: 1.029673591 | BH60: 1 | BI60: 2,149 | BJ60: 30.6% | BK60: 300 | BL60: 9.902077151 | BM60: 9 | BN60: 0 | BO60: 0.0% | BP60: 1 | BQ60: 1.029673591 | BR60: 1 | BT60: 92 | BU60: 0
A61: ='[1]Rapport 5'!A61 -> 93 | B61: ='[1]Rapport 5'!B61 -> MARMOUTIER | C61: ='[1]Rapport 5'!C61 -> 4087 | D61: ='[1]Rapport 5'!D61 -> SAVERNE | E61: ='[1]Rapport 5'!E61 -> 5060 | F61: ='[1]Rapport 5'!F61 -> HAGUENAU | G61: ='[1]Rapport 5'!G61 -> 262 | H61: ='[1]Rapport 5'!H61 -> BAS RHIN | I61: ='[1]Rapport 5'!I61 -> 2461.85 | J61: ='[1]Rapport 5'!J61 -> 39.37 | K61: ='[1]Rapport 5'!K61 -> 0 | L61: ='[1]Rapport 5'!L61 -> 0 | M61: ='[1]Rapport 5'!M61 -> 66102.91 | N61: ='[1]Rapport 5'!N61 -> 1463.91 | O61: ='[1]Rapport 5'!O61 -> 3075 | P61: ='[1]Rapport 5'!P61 -> 0 | Q61: ='[1]Rapport 5'!Q61 -> 0 | R61: ='[1]Rapport 5'!R61 -> 0 | S61: ='[1]Rapport 5'!S61 -> 78 | T61: ='[1]Rapport 5'!T61 -> 0 | U61: ='[1]Rapport 5'!U61 -> 4013.95 | V61: ='[1]Rapport 5'!V61 -> 1604.8 | W61: ='[1]Rapport 5'!W61 -> 1910.44 | X61: ='[1]Rapport 5'!X61 -> 0 | Y61: 77,642 | Z61: 3,108 | AA61: 4.0% | AB61: 206 | AC61: =1+(AB61/COUNT($AB$3:AB$339)*10) -> 7.112759644 | AD61: 7 | AE61: 39 | AF61: 1.6% | AG61: 15 | AH61: 1.445103858 | AI61: 1 | AJ61: 0 | AK61: 0.0% | AL61: 1 | AM61: 1.029673591 | AN61: 1 | AO61: 1,464 | AP61: 2.2% | AQ61: 79 | AR61: 3.34421365 | AS61: 3 | AT61: 0 | AU61: 0.0% | AV61: 1 | AW61: 1.029673591 | AX61: 1 | AY61: 0 | AZ61: 0.0% | BA61: 1 | BB61: 1.029673591 | BC61: 1 | BD61: 0 | BE61: 0.0% | BF61: 1 | BG61: 1.029673591 | BH61: 1 | BI61: 1,605 | BJ61: 40.0% | BK61: 319 | BL61: 10.46587537 | BM61: 10 | BN61: 0 | BO61: 0.0% | BP61: 1 | BQ61: 1.029673591 | BR61: 1 | BT61: 93 | BU61: 0
A62: ='[1]Rapport 5'!A62 -> 95 | B62: ='[1]Rapport 5'!B62 -> SARRE UNION | C62: ='[1]Rapport 5'!C62 -> 4095 | D62: ='[1]Rapport 5'!D62 -> SARRE UNION | E62: ='[1]Rapport 5'!E62 -> 5060 | F62: ='[1]Rapport 5'!F62 -> HAGUENAU | G62: ='[1]Rapport 5'!G62 -> 262 | H62: ='[1]Rapport 5'!H62 -> BAS RHIN | I62: ='[1]Rapport 5'!I62 -> 8894.58 | J62: ='[1]Rapport 5'!J62 -> 223.27 | K62: ='[1]Rapport 5'!K62 -> 0 | L62: ='[1]Rapport 5'!L62 -> 0 | M62: ='[1]Rapport 5'!M62 -> 195871.13 | N62: ='[1]Rapport 5'!N62 -> 2787.83 | O62: ='[1]Rapport 5'!O62 -> 6374.2 | P62: ='[1]Rapport 5'!P62 -> 574 | Q62: ='[1]Rapport 5'!Q62 -> 1388.99 | R62: ='[1]Rapport 5'!R62 -> 0 | S62: ='[1]Rapport 5'!S62 -> 44 | T62: ='[1]Rapport 5'!T62 -> 0 | U62: ='[1]Rapport 5'!U62 -> 9346.35 | V62: ='[1]Rapport 5'!V62 -> 2010.44 | W62: ='[1]Rapport 5'!W62 -> 5864.72 | X62: ='[1]Rapport 5'!X62 -> 63.07 | Y62: 227,784 | Z62: 5,659 | AA62: 2.5% | AB62: 36 | AC62: =1+(AB62/COUNT($AB$3:AB$339)*10) -> 2.068249258 | AD62: 2 | AE62: 223 | AF62: 2.5% | AG62: 57 | AH62: 2.691394659 | AI62: 2 | AJ62: 0 | AK62: 0.0% | AL62: 1 | AM62: 1.029673591 | AN62: 1 | AO62: 2,788 | AP62: 1.4% | AQ62: 11 | AR62: 1.326409496 | AS62: 1 | AT62: 574 | AU62: 9.0% | AV62: 272 | AW62: 9.071216617 | AX62: 9 | AY62: 0 | AZ62: 0.0% | BA62: 1 | BB62: 1.029673591 | BC62: 1 | BD62: 0 | BE62: 0.0% | BF62: 1 | BG62: 1.029673591 | BH62: 1 | BI62: 2,010 | BJ62: 21.5% | BK62: 258 | BL62: 8.65578635 | BM62: 8 | BN62: 63 | BO62: 1.1% | BP62: 69 | BQ62: 3.047477745 | BR62: 3 | BT62: 95 | BU62: 0
A63: ='[1]Rapport 5'!A63 -> 101 | B63: ='[1]Rapport 5'!B63 -> SELESTAT CENTRE | C63: ='[1]Rapport 5'!C63 -> 4101 | D63: ='[1]Rapport 5'!D63 -> SELESTAT CENTRE | E63: ='[1]Rapport 5'!E63 -> 5101 | F63: ='[1]Rapport 5'!F63 -> SELESTAT | G63: ='[1]Rapport 5'!G63 -> 262 | H63: ='[1]Rapport 5'!H63 -> BAS RHIN | I63: ='[1]Rapport 5'!I63 -> 11603.21 | J63: ='[1]Rapport 5'!J63 -> 1158.84 | K63: ='[1]Rapport 5'!K63 -> 0 | L63: ='[1]Rapport 5'!L63 -> 0 | M63: ='[1]Rapport 5'!M63 -> 481861.97 | N63: ='[1]Rapport 5'!N63 -> 10480.87 | O63: ='[1]Rapport 5'!O63 -> 17069.5 | P63: ='[1]Rapport 5'!P63 -> 423.6 | Q63: ='[1]Rapport 5'!Q63 -> 0 | R63: ='[1]Rapport 5'!R63 -> 0 | S63: ='[1]Rapport 5'!S63 -> 865.33 | T63: ='[1]Rapport 5'!T63 -> 26 | U63: ='[1]Rapport 5'!U63 -> 31886.99 | V63: ='[1]Rapport 5'!V63 -> 5091.23 | W63: ='[1]Rapport 5'!W63 -> 16483.41 | X63: ='[1]Rapport 5'!X63 -> 84 | Y63: 559,770 | Z63: 17,265 | AA63: 3.1% | AB63: 95 | AC63: =1+(AB63/COUNT($AB$3:AB$339)*10) -> 3.818991098 | AD63: 3 | AE63: 1,159 | AF63: 10.0% | AG63: 302 | AH63: 9.961424332 | AI63: 9 | AJ63: 0 | AK63: 0.0% | AL63: 1 | AM63: 1.029673591 | AN63: 1 | AO63: 10,481 | AP63: 2.2% | AQ63: 72 | AR63: 3.136498516 | AS63: 3 | AT63: 424 | AU63: 2.5% | AV63: 152 | AW63: 5.510385757 | AX63: 5 | AY63: 0 | AZ63: 0.0% | BA63: 1 | BB63: 1.029673591 | BC63: 1 | BD63: 26 | BE63: 3.0% | BF63: 242 | BG63: 8.181008902 | BH63: 8 | BI63: 5,091 | BJ63: 16.0% | BK63: 180 | BL63: 6.341246291 | BM63: 6 | BN63: 84 | BO63: 0.5% | BP63: 41 | BQ63: 2.216617211 | BR63: 2 | BT63: 101 | BU63: 0
A64: ='[1]Rapport 5'!A64 -> 104 | B64: ='[1]Rapport 5'!B64 -> ERSTEIN | C64: ='[1]Rapport 5'!C64 -> 4104 | D64: ='[1]Rapport 5'!D64 -> ERSTEIN | E64: ='[1]Rapport 5'!E64 -> 5101 | F64: ='[1]Rapport 5'!F64 -> SELESTAT | G64: ='[1]Rapport 5'!G64 -> 262 | H64: ='[1]Rapport 5'!H64 -> BAS RHIN | I64: ='[1]Rapport 5'!I64 -> 8029.74 | J64: ='[1]Rapport 5'!J64 -> 192.51 | K64: ='[1]Rapport 5'!K64 -> 0 | L64: ='[1]Rapport 5'!L64 -> 0 | M64: ='[1]Rapport 5'!M64 -> 294442.45 | N64: ='[1]Rapport 5'!N64 -> 6538.5 | O64: ='[1]Rapport 5'!O64 -> 6304.8 | P64: ='[1]Rapport 5'!P64 -> 595.95 | Q64: ='[1]Rapport 5'!Q64 -> 762.5 | R64: ='[1]Rapport 5'!R64 -> 0 | S64: ='[1]Rapport 5'!S64 -> 632.04 | T64: ='[1]Rapport 5'!T64 -> 13 | U64: ='[1]Rapport 5'!U64 -> 17146.99 | V64: ='[1]Rapport 5'!V64 -> 2542.88 | W64: ='[1]Rapport 5'!W64 -> 9986.58 | X64: ='[1]Rapport 5'!X64 -> 163.47 | Y64: 337,305 | Z64: 10,046 | AA64: 3.0% | AB64: 80 | AC64: =1+(AB64/COUNT($AB$3:AB$339)*10) -> 3.37388724 | AD64: 3 | AE64: 193 | AF64: 2.4% | AG64: 54 | AH64: 2.602373887 | AI64: 2 | AJ64: 0 | AK64: 0.0% | AL64: 1 | AM64: 1.029673591 | AN64: 1 | AO64: 6,539 | AP64: 2.2% | AQ64: 82 | AR64: 3.433234421 | AS64: 3 | AT64: 596 | AU64: 9.5% | AV64: 275 | AW64: 9.160237389 | AX64: 9 | AY64: 0 | AZ64: 0.0% | BA64: 1 | BB64: 1.029673591 | BC64: 1 | BD64: 13 | BE64: 2.1% | BF64: 229 | BG64: 7.795252226 | BH64: 7 | BI64: 2,543 | BJ64: 14.8% | BK64: 158 | BL64: 5.6884273 | BM64: 5 | BN64: 163 | BO64: 1.6% | BP64: 90 | BQ64: 3.670623145 | BR64: 3 | BT64: 104 | BU64: 0
A65: ='[1]Rapport 5'!A65 -> 107 | B65: ='[1]Rapport 5'!B65 -> VILLE | C65: ='[1]Rapport 5'!C65 -> 4107 | D65: ='[1]Rapport 5'!D65 -> VILLE | E65: ='[1]Rapport 5'!E65 -> 5101 | F65: ='[1]Rapport 5'!F65 -> SELESTAT | G65: ='[1]Rapport 5'!G65 -> 262 | H65: ='[1]Rapport 5'!H65 -> BAS RHIN | I65: ='[1]Rapport 5'!I65 -> 3037.65 | J65: ='[1]Rapport 5'!J65 -> 204.39 | K65: ='[1]Rapport 5'!K65 -> 0 | L65: ='[1]Rapport 5'!L65 -> 0 | M65: ='[1]Rapport 5'!M65 -> 137967.43 | N65: ='[1]Rapport 5'!N65 -> 1331.36 | O65: ='[1]Rapport 5'!O65 -> 4825 | P65: ='[1]Rapport 5'!P65 -> 0 | Q65: ='[1]Rapport 5'!Q65 -> 0 | R65: ='[1]Rapport 5'!R65 -> 0 | S65: ='[1]Rapport 5'!S65 -> 57 | T65: ='[1]Rapport 5'!T65 -> 0 | U65: ='[1]Rapport 5'!U65 -> 6323.35 | V65: ='[1]Rapport 5'!V65 -> 718.01 | W65: ='[1]Rapport 5'!W65 -> 4307.98 | X65: ='[1]Rapport 5'!X65 -> 28 | Y65: 156,518 | Z65: 2,282 | AA65: 1.5% | AB65: 1 | AC65: =1+(AB65/COUNT($AB$3:AB$339)*10) -> 1.029673591 | AD65: 1 | AE65: 204 | AF65: 6.7% | AG65: 255 | AH65: 8.566765579 | AI65: 8 | AJ65: 0 | AK65: 0.0% | AL65: 1 | AM65: 1.029673591 | AN65: 1 | AO65: 1,331 | AP65: 1.0% | AQ65: 2 | AR65: 1.059347181 | AS65: 1 | AT65: 0 | AU65: 0.0% | AV65: 1 | AW65: 1.029673591 | AX65: 1 | AY65: 0 | AZ65: 0.0% | BA65: 1 | BB65: 1.029673591 | BC65: 1 | BD65: 0 | BE65: 0.0% | BF65: 1 | BG65: 1.029673591 | BH65: 1 | BI65: 718 | BJ65: 11.4% | BK65: 106 | BL65: 4.145400593 | BM65: 4 | BN65: 28 | BO65: 0.6% | BP65: 46 | BQ65: 2.364985163 | BR65: 2 | BT65: 107 | BU65: 0
A66: ='[1]Rapport 5'!A66 -> 108 | B66: ='[1]Rapport 5'!B66 -> CHATENOIS | C66: ='[1]Rapport 5'!C66 -> 4101 | D66: ='[1]Rapport 5'!D66 -> SELESTAT CENTRE | E66: ='[1]Rapport 5'!E66 -> 5101 | F66: ='[1]Rapport 5'!F66 -> SELESTAT | G66: ='[1]Rapport 5'!G66 -> 262 | H66: ='[1]Rapport 5'!H66 -> BAS RHIN | I66: ='[1]Rapport 5'!I66 -> 2288.33 | J66: ='[1]Rapport 5'!J66 -> 649.24 | K66: ='[1]Rapport 5'!K66 -> 0 | L66: ='[1]Rapport 5'!L66 -> 65.95 | M66: ='[1]Rapport 5'!M66 -> 97172.76 | N66: ='[1]Rapport 5'!N66 -> 2327.58 | O66: ='[1]Rapport 5'!O66 -> 2295 | P66: ='[1]Rapport 5'!P66 -> 250 | Q66: ='[1]Rapport 5'!Q66 -> 0 | R66: ='[1]Rapport 5'!R66 -> 0 | S66: ='[1]Rapport 5'!S66 -> 287 | T66: ='[1]Rapport 5'!T66 -> 0 | U66: ='[1]Rapport 5'!U66 -> 4814.18 | V66: ='[1]Rapport 5'!V66 -> 581.25 | W66: ='[1]Rapport 5'!W66 -> 4105.73 | X66: ='[1]Rapport 5'!X66 -> 16.8 | Y66: 110,963 | Z66: 3,891 | AA66: 3.5% | AB66: 150 | AC66: =1+(AB66/COUNT($AB$3:AB$339)*10) -> 5.451038576 | AD66: 5 | AE66: 649 | AF66: 28.4% | AG66: 332 | AH66: 10.85163205 | AI66: 10 | AJ66: 66 | AK66: 100.0% | AL66: 314 | AM66: 10.31750742 | AN66: 10 | AO66: 2,328 | AP66: 2.4% | AQ66: 103 | AR66: 4.056379822 | AS66: 4 | AT66: 250 | AU66: 10.9% | AV66: 282 | AW66: 9.367952522 | AX66: 9 | AY66: 0 | AZ66: 0.0% | BA66: 1 | BB66: 1.029673591 | BC66: 1 | BD66: 0 | BE66: 0.0% | BF66: 1 | BG66: 1.029673591 | BH66: 1 | BI66: 581 | BJ66: 12.1% | BK66: 115 | BL66: 4.412462908 | BM66: 4 | BN66: 17 | BO66: 0.4% | BP66: 36 | BQ66: 2.068249258 | BR66: 2 | BT66: 108 | BU66: 0
A67: ='[1]Rapport 5'!A67 -> 109 | B67: ='[1]Rapport 5'!B67 -> MARCKOLSHEIM | C67: ='[1]Rapport 5'!C67 -> 4109 | D67: ='[1]Rapport 5'!D67 -> MARCKOLSHEIM | E67: ='[1]Rapport 5'!E67 -> 5101 | F67: ='[1]Rapport 5'!F67 -> SELESTAT | G67: ='[1]Rapport 5'!G67 -> 262 | H67: ='[1]Rapport 5'!H67 -> BAS RHIN | I67: ='[1]Rapport 5'!I67 -> 6695.45 | J67: ='[1]Rapport 5'!J67 -> 1768.57 | K67: ='[1]Rapport 5'!K67 -> 0 | L67: ='[1]Rapport 5'!L67 -> 0 | M67: ='[1]Rapport 5'!M67 -> 187342.46 | N67: ='[1]Rapport 5'!N67 -> 4140.12 | O67: ='[1]Rapport 5'!O67 -> 5976.5 | P67: ='[1]Rapport 5'!P67 -> 0 | Q67: ='[1]Rapport 5'!Q67 -> 0 | R67: ='[1]Rapport 5'!R67 -> 0 | S67: ='[1]Rapport 5'!S67 -> 636 | T67: ='[1]Rapport 5'!T67 -> 0 | U67: ='[1]Rapport 5'!U67 -> 7068.48 | V67: ='[1]Rapport 5'!V67 -> 101.7 | W67: ='[1]Rapport 5'!W67 -> 3530.89 | X67: ='[1]Rapport 5'!X67 -> 56 | Y67: 211,250 | Z67: 6,066 | AA67: 2.9% | AB67: 68 | AC67: =1+(AB67/COUNT($AB$3:AB$339)*10) -> 3.017804154 | AD67: 3 | AE67: 1,769 | AF67: 26.4% | AG67: 331 | AH67: 10.82195846 | AI67: 10 | AJ67: 0 | AK67: 0.0% | AL67: 1 | AM67: 1.029673591 | AN67: 1 | AO67: 4,140 | AP67: 2.2% | AQ67: 77 | AR67: 3.284866469 | AS67: 3 | AT67: 0 | AU67: 0.0% | AV67: 1 | AW67: 1.029673591 | AX67: 1 | AY67: 0 | AZ67: 0.0% | BA67: 1 | BB67: 1.029673591 | BC67: 1 | BD67: 0 | BE67: 0.0% | BF67: =RANK(BE67,$BE$3:$BE$339,1) -> 1 | BG67: =1+(BF67/COUNT($BF$3:$BF$339)*10) -> 1.029673591 | BH67: 1 | BI67: 102 | BJ67: 1.4% | BK67: =RANK(BJ67,$BJ$3:$BJ$339,1) -> 3 | BL67: =1+(BK67/COUNT($BK$3:$BK$339)*10) -> 1.089020772 | BM67: 1 | BN67: 56 | BO67: 1.6% | BP67: =RANK(BO67,$BO$3:$BO$339,1) -> 87 | BQ67: =1+(BP67/COUNT($BP$3:$BP$339)*10) -> 3.581602374 | BR67: 3 | BT67: 109 | BU67: 0
A68: ='[1]Rapport 5'!A68 -> 110 | B68: ='[1]Rapport 5'!B68 -> SELESTAT OUEST | C68: ='[1]Rapport 5'!C68 -> 4110 | D68: ='[1]Rapport 5'!D68 -> SELESTAT OUEST | E68: ='[1]Rapport 5'!E68 -> 5101 | F68: ='[1]Rapport 5'!F68 -> SELESTAT | G68: ='[1]Rapport 5'!G68 -> 262 | H68: ='[1]Rapport 5'!H68 -> BAS RHIN | I68: ='[1]Rapport 5'!I68 -> 3108.67 | J68: ='[1]Rapport 5'!J68 -> 114.14 | K68: ='[1]Rapport 5'!K68 -> 0 | L68: ='[1]Rapport 5'!L68 -> 0 | M68: ='[1]Rapport 5'!M68 -> 120550.74 | N68: ='[1]Rapport 5'!N68 -> 2382.24 | O68: ='[1]Rapport 5'!O68 -> 5384.5 | P68: ='[1]Rapport 5'!P68 -> 35 | Q68: ='[1]Rapport 5'!Q68 -> 0 | R68: ='[1]Rapport 5'!R68 -> 0 | S68: ='[1]Rapport 5'!S68 -> 259 | T68: ='[1]Rapport 5'!T68 -> 0 | U68: ='[1]Rapport 5'!U68 -> 8702.59 | V68: ='[1]Rapport 5'!V68 -> 1664.58 | W68: ='[1]Rapport 5'!W68 -> 3700.31 | X68: ='[1]Rapport 5'!X68 -> 28 | Y68: =+I68+K68+M68+O68+Q68+S68+U68+W68 -> 141,706 | Z68: =+J68+L68+N68+P68+R68+T68+V68+X68 -> 4,224 | AA68: =+Z68/Y68 -> 3.0% | AB68: =RANK(AA68,$AA$3:$AA$339,1) -> 81 | AC68: =1+(AB68/COUNT($AB$3:AB$339)*10) -> 3.403560831 | AD68: =+IF(INT(AC68)=11,10,INT(AC68)) -> 3 | AE68: 114 | AF68: =+AE68/I68 -> 3.7% | AG68: =RANK(AF68,$AF$3:$AF$339,1) -> 132 | AH68: =1+(AG68/COUNT($AG$3:$AG$339)*10) -> 4.916913947 | AI68: 4 | AJ68: =+L68 -> 0 | AK68: =+IF(ISERROR(IF(AJ68=0,0,AJ68/K68)),1,IF(AJ68=0,0,AJ68/K68)) -> 0.0% | AL68: =RANK(AK68,$AK$3:$AK$339,1) -> 1 | AM68: =1+(AL68/COUNT($AL$3:$AL$339)*10) -> 1.029673591 | AN68: =+IF(INT(AM68)=11,10,INT(AM68)) -> 1 | AO68: =+N68 -> 2,382 | AP68: =+IF(ISERROR(IF(AO68=0,0,AO68/M68)),1,IF(AO68=0,0,AO68/M68)) -> 2.0% | AQ68: =RANK(AP68,$AP$3:$AP$339,1) -> 49 | AR68: =1+(AQ68/COUNT($AQ$3:$AQ$339)*10) -> 2.454005935 | AS68: =+IF(INT(AR68)=11,10,INT(AR68)) -> 2 | AT68: 35 | AU68: 0.7% | AV68: =RANK(AU68,$AU$3:$AU$339,1) -> 90 | AW68: =1+(AV68/COUNT($AV$3:$AV$339)*10) -> 3.670623145 | AX68: 3 | AY68: 0 | AZ68: 0.0% | BA68: =RANK(AZ68,$AZ$3:$AZ$339,1) -> 1 | BB68: =1+(BA68/COUNT($BA$3:$BA$339)*10) -> 1.029673591 | BC68: 1 | BD68: 0 | BE68: 0.0% | BF68: 1 | BG68: 1.029673591 | BH68: 1 | BI68: 1,665 | BJ68: 19.1% | BK68: 224 | BL68: 7.646884273 | BM68: 7 | BN68: 28 | BO68: 0.8% | BP68: 51 | BQ68: 2.513353116 | BR68: 2 | BT68: 110 | BU68: =+BT68-A68 -> 0
A69: ='[1]Rapport 5'!A69 -> 111 | B69: ='[1]Rapport 5'!B69 -> BENFELD | C69: ='[1]Rapport 5'!C69 -> 4111 | D69: ='[1]Rapport 5'!D69 -> BENFELD | E69: ='[1]Rapport 5'!E69 -> 5101 | F69: ='[1]Rapport 5'!F69 -> SELESTAT | G69: ='[1]Rapport 5'!G69 -> 262 | H69: ='[1]Rapport 5'!H69 -> BAS RHIN | I69: ='[1]Rapport 5'!I69 -> 6141.34 | J69: ='[1]Rapport 5'!J69 -> 785.3 | K69: ='[1]Rapport 5'!K69 -> 0 | L69: ='[1]Rapport 5'!L69 -> 0 | M69: ='[1]Rapport 5'!M69 -> 275203.93 | N69: ='[1]Rapport 5'!N69 -> 8159.33 | O69: ='[1]Rapport 5'!O69 -> 6162.5 | P69: ='[1]Rapport 5'!P69 -> 87.5 | Q69: ='[1]Rapport 5'!Q69 -> 1806.38 | R69: ='[1]Rapport 5'!R69 -> 0 | S69: ='[1]Rapport 5'!S69 -> 455.6 | T69: ='[1]Rapport 5'!T69 -> 39 | U69: ='[1]Rapport 5'!U69 -> 11400.53 | V69: ='[1]Rapport 5'!V69 -> 1453.32 | W69: ='[1]Rapport 5'!W69 -> 8989.51 | X69: ='[1]Rapport 5'!X69 -> 442.39 | Y69: 310,160 | Z69: 10,967 | AA69: 3.5% | AB69: 156 | AC69: =1+(AB69/COUNT($AB$3:AB$339)*10) -> 5.629080119 | AD69: 5 | AE69: 785 | AF69: 12.8% | AG69: 319 | AH69: 10.46587537 | AI69: =+IF(INT(AH69)=11,10,INT(AH69)) -> 10 | AJ69: 0 | AK69: 0.0% | AL69: 1 | AM69: 1.029673591 | AN69: 1 | AO69: 8,159 | AP69: 3.0% | AQ69: 174 | AR69: 6.163204748 | AS69: 6 | AT69: =+P69 -> 88 | AU69: =+IF(ISERROR(IF(AT69=0,0,AT69/O69)),1,IF(AT69=0,0,AT69/O69)) -> 1.4% | AV69: 116 | AW69: 4.442136499 | AX69: =+IF(INT(AW69)=11,10,INT(AW69)) -> 4 | AY69: =+R69 -> 0 | AZ69: =+IF(ISERROR(IF(AY69=0,0,AY69/T69)),1,IF(AY69=0,0,AY69/T69)) -> 0.0% | BA69: 1 | BB69: 1.029673591 | BC69: =+IF(INT(BB69)=11,10,INT(BB69)) -> 1 | BD69: =+T69 -> 39 | BE69: =+IF(ISERROR(IF(BD69=0,0,BD69/S69)),1,IF(BD69=0,0,BD69/S69)) -> 8.6% | BF69: 279 | BG69: 9.278931751 | BH69: =+IF(INT(BG69)=11,10,INT(BG69)) -> 9 | BI69: =+V69 -> 1,453 | BJ69: =+IF(ISERROR(IF(BI69=0,0,BI69/U69)),1,IF(BI69=0,0,BI69/U69)) -> 12.7% | BK69: 128 | BL69: 4.798219585 | BM69: =+IF(INT(BL69)=11,10,INT(BL69)) -> 4 | BN69: =+X69 -> 442 | BO69: =+IF(ISERROR(IF(BN69=0,0,BN69/W69)),1,IF(BN69=0,0,BN69/W69)) -> 4.9% | BP69: 228 | BQ69: 7.765578635 | BR69: =+IF(INT(BQ69)=11,10,INT(BQ69)) -> 7 | BT69: 111 | BU69: 0
A70: ='[1]Rapport 5'!A70 -> 113 | B70: ='[1]Rapport 5'!B70 -> BARR | C70: ='[1]Rapport 5'!C70 -> 4113 | D70: ='[1]Rapport 5'!D70 -> BARR | E70: ='[1]Rapport 5'!E70 -> 5101 | F70: ='[1]Rapport 5'!F70 -> SELESTAT | G70: ='[1]Rapport 5'!G70 -> 262 | H70: ='[1]Rapport 5'!H70 -> BAS RHIN | I70: ='[1]Rapport 5'!I70 -> 5571.8 | J70: ='[1]Rapport 5'!J70 -> 607.66 | K70: ='[1]Rapport 5'!K70 -> 0 | L70: ='[1]Rapport 5'!L70 -> 0 | M70: ='[1]Rapport 5'!M70 -> 180741.93 | N70: ='[1]Rapport 5'!N70 -> 4101.26 | O70: ='[1]Rapport 5'!O70 -> 3753 | P70: ='[1]Rapport 5'!P70 -> 1366.89 | Q70: ='[1]Rapport 5'!Q70 -> 0 | R70: ='[1]Rapport 5'!R70 -> 0 | S70: ='[1]Rapport 5'!S70 -> 509.96 | T70: ='[1]Rapport 5'!T70 -> 0 | U70: ='[1]Rapport 5'!U70 -> 10904.41 | V70: ='[1]Rapport 5'!V70 -> 2965.5 | W70: ='[1]Rapport 5'!W70 -> 5422.62 | X70: ='[1]Rapport 5'!X70 -> 0 | Y70: 206,904 | Z70: 9,041 | AA70: 4.4% | AB70: 247 | AC70: =1+(AB70/COUNT($AB$3:AB$339)*10) -> 8.329376855 | AD70: 8 | AE70: 608 | AF70: 10.9% | AG70: 311 | AH70: 10.22848665 | AI70: 10 | AJ70: 0 | AK70: 0.0% | AL70: 1 | AM70: 1.029673591 | AN70: 1 | AO70: 4,101 | AP70: 2.3% | AQ70: 87 | AR70: 3.581602374 | AS70: 3 | AT70: 1,367 | AU70: 36.4% | AV70: 329 | AW70: 10.76261128 | AX70: 10 | AY70: 0 | AZ70: 0.0% | BA70: 1 | BB70: 1.029673591 | BC70: 1 | BD70: 0 | BE70: 0.0% | BF70: 1 | BG70: 1.029673591 | BH70: 1 | BI70: 2,966 | BJ70: 27.2% | BK70: 286 | BL70: 9.486646884 | BM70: 9 | BN70: 0 | BO70: 0.0% | BP70: 1 | BQ70: 1.029673591 | BR70: 1 | BT70: 113 | BU70: 0
A71: ='[1]Rapport 5'!A71 -> 116 | B71: ='[1]Rapport 5'!B71 -> MOLSHEIM | C71: ='[1]Rapport 5'!C71 -> 4116 | D71: ='[1]Rapport 5'!D71 -> MOLSHEIM | E71: ='[1]Rapport 5'!E71 -> 5101 | F71: ='[1]Rapport 5'!F71 -> SELESTAT | G71: ='[1]Rapport 5'!G71 -> 262 | H71: ='[1]Rapport 5'!H71 -> BAS RHIN | I71: ='[1]Rapport 5'!I71 -> 18743.89 | J71: ='[1]Rapport 5'!J71 -> 1205.88 | K71: ='[1]Rapport 5'!K71 -> 0 | L71: ='[1]Rapport 5'!L71 -> 80 | M71: ='[1]Rapport 5'!M71 -> 380664.75 | N71: ='[1]Rapport 5'!N71 -> 14147.1 | O71: ='[1]Rapport 5'!O71 -> 9493.4 | P71: ='[1]Rapport 5'!P71 -> 2376.06 | Q71: ='[1]Rapport 5'!Q71 -> 466.38 | R71: ='[1]Rapport 5'!R71 -> 0 | S71: ='[1]Rapport 5'!S71 -> 808.57 | T71: ='[1]Rapport 5'!T71 -> 184 | U71: ='[1]Rapport 5'!U71 -> 19766.89 | V71: ='[1]Rapport 5'!V71 -> 5840.18 | W71: ='[1]Rapport 5'!W71 -> 9876.34 | X71: ='[1]Rapport 5'!X71 -> 237.1 | Y71: 439,820 | Z71: 24,070 | AA71: 5.5% | AB71: 308 | AC71: =1+(AB71/COUNT($AB$3:AB$339)*10) -> 10.13946588 | AD71: 10 | AE71: 1,206 | AF71: 6.4% | AG71: 251 | AH71: 8.448071217 | AI71: 8 | AJ71: 80 | AK71: 100.0% | AL71: 314 | AM71: 10.31750742 | AN71: 10 | AO71: 14,147 | AP71: 3.7% | AQ71: 266 | AR71: 8.893175074 | AS71: 8 | AT71: 2,376 | AU71: 25.0% | AV71: 321 | AW71: 10.52522255 | AX71: 10 | AY71: 0 | AZ71: 0.0% | BA71: 1 | BB71: 1.029673591 | BC71: 1 | BD71: 184 | BE71: 22.8% | BF71: 315 | BG71: 10.34718101 | BH71: 10 | BI71: 5,840 | BJ71: 29.5% | BK71: 296 | BL71: 9.783382789 | BM71: 9 | BN71: 237 | BO71: 2.4% | BP71: 136 | BQ71: 5.035608309 | BR71: 5 | BT71: 116 | BU71: 0
A72: ='[1]Rapport 5'!A72 -> 119 | B72: ='[1]Rapport 5'!B72 -> OBERNAI | C72: ='[1]Rapport 5'!C72 -> 4119 | D72: ='[1]Rapport 5'!D72 -> OBERNAI | E72: ='[1]Rapport 5'!E72 -> 5101 | F72: ='[1]Rapport 5'!F72 -> SELESTAT | G72: ='[1]Rapport 5'!G72 -> 262 | H72: ='[1]Rapport 5'!H72 -> BAS RHIN | I72: ='[1]Rapport 5'!I72 -> 11899.64 | J72: ='[1]Rapport 5'!J72 -> 1497.84 | K72: ='[1]Rapport 5'!K72 -> 0 | L72: ='[1]Rapport 5'!L72 -> 858.95 | M72: ='[1]Rapport 5'!M72 -> 346171.36 | N72: ='[1]Rapport 5'!N72 -> 7807.84 | O72: ='[1]Rapport 5'!O72 -> 9571.5 | P72: ='[1]Rapport 5'!P72 -> 497 | Q72: ='[1]Rapport 5'!Q72 -> 0.35 | R72: ='[1]Rapport 5'!R72 -> 0 | S72: ='[1]Rapport 5'!S72 -> 825.5 | T72: ='[1]Rapport 5'!T72 -> 0 | U72: ='[1]Rapport 5'!U72 -> 19895.2 | V72: ='[1]Rapport 5'!V72 -> 1676 | W72: ='[1]Rapport 5'!W72 -> 11839.83 | X72: ='[1]Rapport 5'!X72 -> 285.88 | Y72: 400,203 | Z72: 12,624 | AA72: 3.2% | AB72: 101 | AC72: =1+(AB72/COUNT($AB$3:AB$339)*10) -> 3.997032641 | AD72: 3 | AE72: 1,498 | AF72: 12.6% | AG72: 316 | AH72: 10.3768546 | AI72: 10 | AJ72: 859 | AK72: 100.0% | AL72: 314 | AM72: 10.31750742 | AN72: 10 | AO72: 7,808 | AP72: 2.3% | AQ72: 85 | AR72: 3.522255193 | AS72: 3 | AT72: 497 | AU72: 5.2% | AV72: 219 | AW72: 7.49851632 | AX72: 7 | AY72: 0 | AZ72: 0.0% | BA72: 1 | BB72: 1.029673591 | BC72: 1 | BD72: 0 | BE72: 0.0% | BF72: 1 | BG72: 1.029673591 | BH72: 1 | BI72: 1,676 | BJ72: 8.4% | BK72: 68 | BL72: 3.017804154 | BM72: 3 | BN72: 286 | BO72: 2.4% | BP72: 137 | BQ72: 5.065281899 | BR72: 5 | BT72: 119 | BU72: 0
A73: ='[1]Rapport 5'!A73 -> 120 | B73: ='[1]Rapport 5'!B73 -> WASSELONNE | C73: ='[1]Rapport 5'!C73 -> 4120 | D73: ='[1]Rapport 5'!D73 -> WASSELONNE | E73: ='[1]Rapport 5'!E73 -> 5101 | F73: ='[1]Rapport 5'!F73 -> SELESTAT | G73: ='[1]Rapport 5'!G73 -> 262 | H73: ='[1]Rapport 5'!H73 -> BAS RHIN | I73: ='[1]Rapport 5'!I73 -> 9862.65 | J73: ='[1]Rapport 5'!J73 -> 861.93 | K73: ='[1]Rapport 5'!K73 -> 0 | L73: ='[1]Rapport 5'!L73 -> 0 | M73: ='[1]Rapport 5'!M73 -> 178799.37 | N73: ='[1]Rapport 5'!N73 -> 3941.17 | O73: ='[1]Rapport 5'!O73 -> 4805 | P73: ='[1]Rapport 5'!P73 -> 238 | Q73: ='[1]Rapport 5'!Q73 -> 0 | R73: ='[1]Rapport 5'!R73 -> 0 | S73: ='[1]Rapport 5'!S73 -> 226 | T73: ='[1]Rapport 5'!T73 -> 0 | U73: ='[1]Rapport 5'!U73 -> 8606.42 | V73: ='[1]Rapport 5'!V73 -> 3302.73 | W73: ='[1]Rapport 5'!W73 -> 3765.25 | X73: ='[1]Rapport 5'!X73 -> 46.65 | Y73: 206,065 | Z73: 8,390 | AA73: 4.1% | AB73: 214 | AC73: =1+(AB73/COUNT($AB$3:AB$339)*10) -> 7.350148368 | AD73: 7 | AE73: 862 | AF73: 8.7% | AG73: 289 | AH73: 9.575667656 | AI73: 9 | AJ73: 0 | AK73: 0.0% | AL73: 1 | AM73: 1.029673591 | AN73: 1 | AO73: 3,941 | AP73: 2.2% | AQ73: 74 | AR73: 3.195845697 | AS73: 3 | AT73: 238 | AU73: 5.0% | AV73: 214 | AW73: 7.350148368 | AX73: 7 | AY73: 0 | AZ73: 0.0% | BA73: 1 | BB73: 1.029673591 | BC73: 1 | BD73: 0 | BE73: 0.0% | BF73: 1 | BG73: 1.029673591 | BH73: 1 | BI73: 3,303 | BJ73: 38.4% | BK73: 318 | BL73: 10.43620178 | BM73: 10 | BN73: 47 | BO73: 1.2% | BP73: 73 | BQ73: 3.166172107 | BR73: 3 | BT73: 120 | BU73: 0
A74: ='[1]Rapport 5'!A74 -> 121 | B74: ='[1]Rapport 5'!B74 -> SCHIRMECK | C74: ='[1]Rapport 5'!C74 -> 4121 | D74: ='[1]Rapport 5'!D74 -> SCHIRMECK | E74: ='[1]Rapport 5'!E74 -> 5101 | F74: ='[1]Rapport 5'!F74 -> SELESTAT | G74: ='[1]Rapport 5'!G74 -> 262 | H74: ='[1]Rapport 5'!H74 -> BAS RHIN | I74: ='[1]Rapport 5'!I74 -> 7350.4 | J74: ='[1]Rapport 5'!J74 -> 214.98 | K74: ='[1]Rapport 5'!K74 -> 0 | L74: ='[1]Rapport 5'!L74 -> 0 | M74: ='[1]Rapport 5'!M74 -> 222929.89 | N74: ='[1]Rapport 5'!N74 -> 3989.4 | O74: ='[1]Rapport 5'!O74 -> 6208.75 | P74: ='[1]Rapport 5'!P74 -> 530 | Q74: ='[1]Rapport 5'!Q74 -> 1254.69 | R74: ='[1]Rapport 5'!R74 -> 0 | S74: ='[1]Rapport 5'!S74 -> 1129.52 | T74: ='[1]Rapport 5'!T74 -> 0 | U74: ='[1]Rapport 5'!U74 -> 11325.03 | V74: ='[1]Rapport 5'!V74 -> 3333.61 | W74: ='[1]Rapport 5'!W74 -> 3451.48 | X74: ='[1]Rapport 5'!X74 -> 776.5 | Y74: 253,650 | Z74: 8,844 | AA74: 3.5% | AB74: 145 | AC74: =1+(AB74/COUNT($AB$3:AB$339)*10) -> 5.302670623 | AD74: 5 | AE74: 215 | AF74: 2.9% | AG74: 85 | AH74: 3.522255193 | AI74: 3 | AJ74: 0 | AK74: 0.0% | AL74: 1 | AM74: 1.029673591 | AN74: 1 | AO74: 3,989 | AP74: 1.8% | AQ74: 34 | AR74: 2.008902077 | AS74: 2 | AT74: 530 | AU74: 8.5% | AV74: 268 | AW74: 8.952522255 | AX74: 8 | AY74: 0 | AZ74: 0.0% | BA74: 1 | BB74: 1.029673591 | BC74: 1 | BD74: 0 | BE74: 0.0% | BF74: 1 | BG74: 1.029673591 | BH74: 1 | BI74: 3,334 | BJ74: 29.4% | BK74: 294 | BL74: 9.724035608 | BM74: 9 | BN74: 777 | BO74: 22.5% | BP74: 336 | BQ74: 10.97032641 | BR74: 10 | BT74: 121 | BU74: 0
A75: ='[1]Rapport 5'!A75 -> 126 | B75: ='[1]Rapport 5'!B75 -> MUTZIG | C75: ='[1]Rapport 5'!C75 -> 4126 | D75: ='[1]Rapport 5'!D75 -> MUTZIG | E75: ='[1]Rapport 5'!E75 -> 5101 | F75: ='[1]Rapport 5'!F75 -> SELESTAT | G75: ='[1]Rapport 5'!G75 -> 262 | H75: ='[1]Rapport 5'!H75 -> BAS RHIN | I75: ='[1]Rapport 5'!I75 -> 8641.86 | J75: ='[1]Rapport 5'!J75 -> 439.31 | K75: ='[1]Rapport 5'!K75 -> 0 | L75: ='[1]Rapport 5'!L75 -> 0 | M75: ='[1]Rapport 5'!M75 -> 205555.88 | N75: ='[1]Rapport 5'!N75 -> 6532.08 | O75: ='[1]Rapport 5'!O75 -> 5732 | P75: ='[1]Rapport 5'!P75 -> 673.28 | Q75: ='[1]Rapport 5'!Q75 -> 0 | R75: ='[1]Rapport 5'!R75 -> 0 | S75: ='[1]Rapport 5'!S75 -> 236 | T75: ='[1]Rapport 5'!T75 -> 111.12 | U75: ='[1]Rapport 5'!U75 -> 9689.48 | V75: ='[1]Rapport 5'!V75 -> 1733.57 | W75: ='[1]Rapport 5'!W75 -> 4288.54 | X75: ='[1]Rapport 5'!X75 -> 325.05 | Y75: 234,144 | Z75: 9,814 | AA75: 4.2% | AB75: 229 | AC75: =1+(AB75/COUNT($AB$3:AB$339)*10) -> 7.795252226 | AD75: 7 | AE75: 439 | AF75: 5.1% | AG75: 211 | AH75: 7.261127596 | AI75: 7 | AJ75: 0 | AK75: 0.0% | AL75: 1 | AM75: 1.029673591 | AN75: 1 | AO75: 6,532 | AP75: 3.2% | AQ75: 208 | AR75: 7.172106825 | AS75: 7 | AT75: 673 | AU75: 11.7% | AV75: 289 | AW75: 9.575667656 | AX75: 9 | AY75: 0 | AZ75: 0.0% | BA75: 1 | BB75: 1.029673591 | BC75: 1 | BD75: 111 | BE75: 47.1% | BF75: 329 | BG75: 10.76261128 | BH75: 10 | BI75: 1,734 | BJ75: 17.9% | BK75: 207 | BL75: 7.142433234 | BM75: 7 | BN75: 325 | BO75: 7.6% | BP75: 279 | BQ75: 9.278931751 | BR75: 9 | BT75: 126 | BU75: 0
A76: ='[1]Rapport 5'!A76 -> 127 | B76: ='[1]Rapport 5'!B76 -> ROSHEIM | C76: ='[1]Rapport 5'!C76 -> 4127 | D76: ='[1]Rapport 5'!D76 -> ROSHEIM | E76: ='[1]Rapport 5'!E76 -> 5101 | F76: ='[1]Rapport 5'!F76 -> SELESTAT | G76: ='[1]Rapport 5'!G76 -> 262 | H76: ='[1]Rapport 5'!H76 -> BAS RHIN | I76: ='[1]Rapport 5'!I76 -> 4522.39 | J76: ='[1]Rapport 5'!J76 -> 82.21 | K76: ='[1]Rapport 5'!K76 -> 0 | L76: ='[1]Rapport 5'!L76 -> 0 | M76: ='[1]Rapport 5'!M76 -> 135054.3 | N76: ='[1]Rapport 5'!N76 -> 3259.49 | O76: ='[1]Rapport 5'!O76 -> 4048 | P76: ='[1]Rapport 5'!P76 -> 28.5 | Q76: ='[1]Rapport 5'!Q76 -> 133.97 | R76: ='[1]Rapport 5'!R76 -> 0 | S76: ='[1]Rapport 5'!S76 -> 82.58 | T76: ='[1]Rapport 5'!T76 -> 0 | U76: ='[1]Rapport 5'!U76 -> 5148.67 | V76: ='[1]Rapport 5'!V76 -> 1015.27 | W76: ='[1]Rapport 5'!W76 -> 2761.92 | X76: ='[1]Rapport 5'!X76 -> 56 | Y76: 151,752 | Z76: 4,441 | AA76: 2.9% | AB76: 75 | AC76: =1+(AB76/COUNT($AB$3:AB$339)*10) -> 3.225519288 | AD76: 3 | AE76: 82 | AF76: 1.8% | AG76: 28 | AH76: 1.830860534 | AI76: 1 | AJ76: 0 | AK76: 0.0% | AL76: 1 | AM76: 1.029673591 | AN76: 1 | AO76: 3,259 | AP76: 2.4% | AQ76: 110 | AR76: 4.264094955 | AS76: 4 | AT76: 29 | AU76: 0.7% | AV76: 93 | AW76: 3.759643917 | AX76: 3 | AY76: 0 | AZ76: 0.0% | BA76: 1 | BB76: 1.029673591 | BC76: 1 | BD76: 0 | BE76: 0.0% | BF76: 1 | BG76: 1.029673591 | BH76: 1 | BI76: 1,015 | BJ76: 19.7% | BK76: 236 | BL76: 8.002967359 | BM76: 8 | BN76: 56 | BO76: 2.0% | BP76: 110 | BQ76: 4.264094955 | BR76: 4 | BT76: 127 | BU76: 0
A77: ='[1]Rapport 5'!A77 -> 129 | B77: ='[1]Rapport 5'!B77 -> MARLENHEIM | C77: ='[1]Rapport 5'!C77 -> 4129 | D77: ='[1]Rapport 5'!D77 -> MARLENHEIM | E77: ='[1]Rapport 5'!E77 -> 5101 | F77: ='[1]Rapport 5'!F77 -> SELESTAT | G77: ='[1]Rapport 5'!G77 -> 262 | H77: ='[1]Rapport 5'!H77 -> BAS RHIN | I77: ='[1]Rapport 5'!I77 -> 5992.5 | J77: ='[1]Rapport 5'!J77 -> 141.81 | K77: ='[1]Rapport 5'!K77 -> 0 | L77: ='[1]Rapport 5'!L77 -> 0 | M77: ='[1]Rapport 5'!M77 -> 131706.69 | N77: ='[1]Rapport 5'!N77 -> 2916.72 | O77: ='[1]Rapport 5'!O77 -> 3052.5 | P77: ='[1]Rapport 5'!P77 -> 19 | Q77: ='[1]Rapport 5'!Q77 -> 0 | R77: ='[1]Rapport 5'!R77 -> 0 | S77: ='[1]Rapport 5'!S77 -> 140 | T77: ='[1]Rapport 5'!T77 -> 0 | U77: ='[1]Rapport 5'!U77 -> 4178.13 | V77: ='[1]Rapport 5'!V77 -> 690.18 | W77: ='[1]Rapport 5'!W77 -> 4206.23 | X77: ='[1]Rapport 5'!X77 -> 130.65 | Y77: 149,276 | Z77: 3,898 | AA77: 2.6% | AB77: 47 | AC77: =1+(AB77/COUNT($AB$3:AB$339)*10) -> 2.394658754 | AD77: 2 | AE77: 142 | AF77: 2.4% | AG77: 53 | AH77: 2.572700297 | AI77: 2 | AJ77: 0 | AK77: 0.0% | AL77: 1 | AM77: 1.029673591 | AN77: 1 | AO77: 2,917 | AP77: 2.2% | AQ77: 78 | AR77: 3.314540059 | AS77: 3 | AT77: 19 | AU77: 0.6% | AV77: 88 | AW77: 3.611275964 | AX77: 3 | AY77: 0 | AZ77: 0.0% | BA77: 1 | BB77: 1.029673591 | BC77: 1 | BD77: 0 | BE77: 0.0% | BF77: 1 | BG77: 1.029673591 | BH77: 1 | BI77: 690 | BJ77: 16.5% | BK77: 188 | BL77: 6.578635015 | BM77: 6 | BN77: 131 | BO77: 3.1% | BP77: 166 | BQ77: 5.925816024 | BR77: 5 | BT77: 129 | BU77: 0
A78: ='[1]Rapport 5'!A78 -> 130 | B78: ='[1]Rapport 5'!B78 -> COLMAR REPUBLIQUE | C78: ='[1]Rapport 5'!C78 -> 4130 | D78: ='[1]Rapport 5'!D78 -> COLMAR REPUBLIQUE | E78: ='[1]Rapport 5'!E78 -> 5130 | F78: ='[1]Rapport 5'!F78 -> COLMAR | G78: ='[1]Rapport 5'!G78 -> 264 | H78: ='[1]Rapport 5'!H78 -> HAUT RHIN | I78: ='[1]Rapport 5'!I78 -> 19323.1 | J78: ='[1]Rapport 5'!J78 -> 1149.13 | K78: ='[1]Rapport 5'!K78 -> 0 | L78: ='[1]Rapport 5'!L78 -> 0 | M78: ='[1]Rapport 5'!M78 -> 538290.37 | N78: ='[1]Rapport 5'!N78 -> 16689.38 | O78: ='[1]Rapport 5'!O78 -> 10106.5 | P78: ='[1]Rapport 5'!P78 -> 2664.97 | Q78: ='[1]Rapport 5'!Q78 -> 0 | R78: ='[1]Rapport 5'!R78 -> 0 | S78: ='[1]Rapport 5'!S78 -> 1560.83 | T78: ='[1]Rapport 5'!T78 -> 119.59 | U78: ='[1]Rapport 5'!U78 -> 64818.75 | V78: ='[1]Rapport 5'!V78 -> 10400.88 | W78: ='[1]Rapport 5'!W78 -> 25714.62 | X78: ='[1]Rapport 5'!X78 -> 809.79 | Y78: 659,814 | Z78: 31,834 | AA78: 4.8% | AB78: 278 | AC78: =1+(AB78/COUNT($AB$3:AB$339)*10) -> 9.24925816 | AD78: 9 | AE78: 1,149 | AF78: 5.9% | AG78: 243 | AH78: 8.210682493 | AI78: 8 | AJ78: 0 | AK78: 0.0% | AL78: 1 | AM78: 1.029673591 | AN78: 1 | AO78: 16,689 | AP78: 3.1% | AQ78: 198 | AR78: 6.87537092 | AS78: 6 | AT78: 2,665 | AU78: 26.4% | AV78: 324 | AW78: 10.61424332 | AX78: 10 | AY78: 0 | AZ78: 0.0% | BA78: 1 | BB78: 1.029673591 | BC78: 1 | BD78: 120 | BE78: 7.7% | BF78: 272 | BG78: 9.071216617 | BH78: 9 | BI78: 10,401 | BJ78: 16.0% | BK78: 181 | BL78: 6.370919881 | BM78: 6 | BN78: 810 | BO78: 3.1% | BP78: 168 | BQ78: 5.985163205 | BR78: 5 | BT78: 130 | BU78: 0
A79: ='[1]Rapport 5'!A79 -> 132 | B79: ='[1]Rapport 5'!B79 -> COLMAR MARAICHERS | C79: ='[1]Rapport 5'!C79 -> 4132 | D79: ='[1]Rapport 5'!D79 -> COLMAR MARAICHERS | E79: ='[1]Rapport 5'!E79 -> 5130 | F79: ='[1]Rapport 5'!F79 -> COLMAR | G79: ='[1]Rapport 5'!G79 -> 264 | H79: ='[1]Rapport 5'!H79 -> HAUT RHIN | I79: ='[1]Rapport 5'!I79 -> 6163.07 | J79: ='[1]Rapport 5'!J79 -> 334.07 | K79: ='[1]Rapport 5'!K79 -> 0 | L79: ='[1]Rapport 5'!L79 -> 0 | M79: ='[1]Rapport 5'!M79 -> 239566.41 | N79: ='[1]Rapport 5'!N79 -> 5651.06 | O79: ='[1]Rapport 5'!O79 -> 7381 | P79: ='[1]Rapport 5'!P79 -> 524.5 | Q79: ='[1]Rapport 5'!Q79 -> 0 | R79: ='[1]Rapport 5'!R79 -> 0 | S79: ='[1]Rapport 5'!S79 -> 525 | T79: ='[1]Rapport 5'!T79 -> 118 | U79: ='[1]Rapport 5'!U79 -> 14030.4 | V79: ='[1]Rapport 5'!V79 -> 1624.7 | W79: ='[1]Rapport 5'!W79 -> 6874.61 | X79: ='[1]Rapport 5'!X79 -> 199.6 | Y79: 274,540 | Z79: 8,452 | AA79: 3.1% | AB79: 93 | AC79: =1+(AB79/COUNT($AB$3:AB$339)*10) -> 3.759643917 | AD79: 3 | AE79: 334 | AF79: 5.4% | AG79: 224 | AH79: 7.646884273 | AI79: 7 | AJ79: 0 | AK79: 0.0% | AL79: 1 | AM79: 1.029673591 | AN79: 1 | AO79: 5,651 | AP79: 2.4% | AQ79: 97 | AR79: 3.878338279 | AS79: 3 | AT79: 525 | AU79: 7.1% | AV79: 255 | AW79: 8.566765579 | AX79: 8 | AY79: 0 | AZ79: 0.0% | BA79: 1 | BB79: 1.029673591 | BC79: 1 | BD79: 118 | BE79: 22.5% | BF79: 314 | BG79: 10.31750742 | BH79: 10 | BI79: 1,625 | BJ79: 11.6% | BK79: 108 | BL79: 4.204747774 | BM79: 4 | BN79: 200 | BO79: 2.9% | BP79: 158 | BQ79: 5.6884273 | BR79: 5 | BT79: 132 | BU79: 0
A80: ='[1]Rapport 5'!A80 -> 133 | B80: ='[1]Rapport 5'!B80 -> COLMAR VAUBAN | C80: ='[1]Rapport 5'!C80 -> 4133 | D80: ='[1]Rapport 5'!D80 -> COLMAR VAUBAN | E80: ='[1]Rapport 5'!E80 -> 5130 | F80: ='[1]Rapport 5'!F80 -> COLMAR | G80: ='[1]Rapport 5'!G80 -> 264 | H80: ='[1]Rapport 5'!H80 -> HAUT RHIN | I80: ='[1]Rapport 5'!I80 -> 3423.5 | J80: ='[1]Rapport 5'!J80 -> 59.95 | K80: ='[1]Rapport 5'!K80 -> 0 | L80: ='[1]Rapport 5'!L80 -> 0 | M80: ='[1]Rapport 5'!M80 -> 134165.5 | N80: ='[1]Rapport 5'!N80 -> 2155.5 | O80: ='[1]Rapport 5'!O80 -> 647 | P80: ='[1]Rapport 5'!P80 -> 0 | Q80: ='[1]Rapport 5'!Q80 -> 0 | R80: ='[1]Rapport 5'!R80 -> 0 | S80: ='[1]Rapport 5'!S80 -> 130 | T80: ='[1]Rapport 5'!T80 -> 0 | U80: ='[1]Rapport 5'!U80 -> 12090.45 | V80: ='[1]Rapport 5'!V80 -> 952.46 | W80: ='[1]Rapport 5'!W80 -> 5269.72 | X80: ='[1]Rapport 5'!X80 -> 37.3 | Y80: 155,726 | Z80: 3,205 | AA80: 2.1% | AB80: 14 | AC80: =1+(AB80/COUNT($AB$3:AB$339)*10) -> 1.415430267 | AD80: 1 | AE80: 60 | AF80: 1.8% | AG80: 20 | AH80: 1.59347181 | AI80: 1 | AJ80: 0 | AK80: 0.0% | AL80: 1 | AM80: 1.029673591 | AN80: 1 | AO80: 2,156 | AP80: 1.6% | AQ80: 17 | AR80: 1.504451039 | AS80: 1 | AT80: 0 | AU80: 0.0% | AV80: 1 | AW80: 1.029673591 | AX80: 1 | AY80: 0 | AZ80: 0.0% | BA80: 1 | BB80: 1.029673591 | BC80: 1 | BD80: 0 | BE80: 0.0% | BF80: 1 | BG80: 1.029673591 | BH80: 1 | BI80: 952 | BJ80: 7.9% | BK80: 63 | BL80: 2.869436202 | BM80: 2 | BN80: 37 | BO80: 0.7% | BP80: 50 | BQ80: 2.483679525 | BR80: 2 | BT80: 133 | BU80: 0
A81: ='[1]Rapport 5'!A81 -> 134 | B81: ='[1]Rapport 5'!B81 -> COLMAR SAINT JOSEPH | C81: ='[1]Rapport 5'!C81 -> 4134 | D81: ='[1]Rapport 5'!D81 -> COLMAR SAINT JOSEPH | E81: ='[1]Rapport 5'!E81 -> 5130 | F81: ='[1]Rapport 5'!F81 -> COLMAR | G81: ='[1]Rapport 5'!G81 -> 264 | H81: ='[1]Rapport 5'!H81 -> HAUT RHIN | I81: ='[1]Rapport 5'!I81 -> 4961.66 | J81: ='[1]Rapport 5'!J81 -> 163.93 | K81: ='[1]Rapport 5'!K81 -> 0 | L81: ='[1]Rapport 5'!L81 -> 0 | M81: ='[1]Rapport 5'!M81 -> 168410.66 | N81: ='[1]Rapport 5'!N81 -> 3496.75 | O81: ='[1]Rapport 5'!O81 -> 1229 | P81: ='[1]Rapport 5'!P81 -> 0 | Q81: ='[1]Rapport 5'!Q81 -> 0 | R81: ='[1]Rapport 5'!R81 -> 0 | S81: ='[1]Rapport 5'!S81 -> 216 | T81: ='[1]Rapport 5'!T81 -> 0 | U81: ='[1]Rapport 5'!U81 -> 13238.65 | V81: ='[1]Rapport 5'!V81 -> 1342.98 | W81: ='[1]Rapport 5'!W81 -> 6436.96 | X81: ='[1]Rapport 5'!X81 -> 140.71 | Y81: 194,493 | Z81: 5,144 | AA81: 2.6% | AB81: 53 | AC81: =1+(AB81/COUNT($AB$3:AB$339)*10) -> 2.572700297 | AD81: 2 | AE81: 164 | AF81: 3.3% | AG81: 106 | AH81: 4.145400593 | AI81: 4 | AJ81: 0 | AK81: 0.0% | AL81: 1 | AM81: 1.029673591 | AN81: 1 | AO81: 3,497 | AP81: 2.1% | AQ81: 64 | AR81: 2.899109792 | AS81: 2 | AT81: 0 | AU81: 0.0% | AV81: 1 | AW81: 1.029673591 | AX81: 1 | AY81: 0 | AZ81: 0.0% | BA81: 1 | BB81: 1.029673591 | BC81: 1 | BD81: 0 | BE81: 0.0% | BF81: 1 | BG81: 1.029673591 | BH81: 1 | BI81: 1,343 | BJ81: 10.1% | BK81: 87 | BL81: 3.581602374 | BM81: 3 | BN81: 141 | BO81: 2.2% | BP81: 125 | BQ81: 4.709198813 | BR81: 4 | BT81: 134 | BU81: 0
A82: ='[1]Rapport 5'!A82 -> 135 | B82: ='[1]Rapport 5'!B82 -> COLMAR SAINTE MARIE | C82: ='[1]Rapport 5'!C82 -> 4135 | D82: ='[1]Rapport 5'!D82 -> COLMAR SAINTE MARIE | E82: ='[1]Rapport 5'!E82 -> 5130 | F82: ='[1]Rapport 5'!F82 -> COLMAR | G82: ='[1]Rapport 5'!G82 -> 264 | H82: ='[1]Rapport 5'!H82 -> HAUT RHIN | I82: ='[1]Rapport 5'!I82 -> 15313.18 | J82: ='[1]Rapport 5'!J82 -> 697.02 | K82: ='[1]Rapport 5'!K82 -> 0 | L82: ='[1]Rapport 5'!L82 -> 0 | M82: ='[1]Rapport 5'!M82 -> 461174.8 | N82: ='[1]Rapport 5'!N82 -> 12735.8 | O82: ='[1]Rapport 5'!O82 -> 10163.25 | P82: ='[1]Rapport 5'!P82 -> 219.5 | Q82: ='[1]Rapport 5'!Q82 -> 0 | R82: ='[1]Rapport 5'!R82 -> 0 | S82: ='[1]Rapport 5'!S82 -> 1402 | T82: ='[1]Rapport 5'!T82 -> 67 | U82: ='[1]Rapport 5'!U82 -> 25355.29 | V82: ='[1]Rapport 5'!V82 -> 7118.7 | W82: ='[1]Rapport 5'!W82 -> 6782.78 | X82: ='[1]Rapport 5'!X82 -> 218.2 | Y82: 520,191 | Z82: 21,056 | AA82: 4.0% | AB82: 212 | AC82: =1+(AB82/COUNT($AB$3:AB$339)*10) -> 7.290801187 | AD82: 7 | AE82: 697 | AF82: 4.6% | AG82: 181 | AH82: 6.370919881 | AI82: 6 | AJ82: 0 | AK82: 0.0% | AL82: 1 | AM82: 1.029673591 | AN82: 1 | AO82: 12,736 | AP82: 2.8% | AQ82: 148 | AR82: 5.391691395 | AS82: 5 | AT82: 220 | AU82: 2.2% | AV82: 139 | AW82: 5.12462908 | AX82: 5 | AY82: 0 | AZ82: 0.0% | BA82: 1 | BB82: 1.029673591 | BC82: 1 | BD82: 67 | BE82: 4.8% | BF82: 256 | BG82: 8.596439169 | BH82: 8 | BI82: 7,119 | BJ82: 28.1% | BK82: 291 | BL82: 9.635014837 | BM82: 9 | BN82: 218 | BO82: 3.2% | BP82: 171 | BQ82: 6.074183976 | BR82: 6 | BT82: 135 | BU82: 0
A83: ='[1]Rapport 5'!A83 -> 139 | B83: ='[1]Rapport 5'!B83 -> INGERSHEIM | C83: ='[1]Rapport 5'!C83 -> 4139 | D83: ='[1]Rapport 5'!D83 -> INGERSHEIM | E83: ='[1]Rapport 5'!E83 -> 5130 | F83: ='[1]Rapport 5'!F83 -> COLMAR | G83: ='[1]Rapport 5'!G83 -> 264 | H83: ='[1]Rapport 5'!H83 -> HAUT RHIN | I83: ='[1]Rapport 5'!I83 -> 9684.75 | J83: ='[1]Rapport 5'!J83 -> 345.67 | K83: ='[1]Rapport 5'!K83 -> 0 | L83: ='[1]Rapport 5'!L83 -> 30 | M83: ='[1]Rapport 5'!M83 -> 269127.31 | N83: ='[1]Rapport 5'!N83 -> 9548.1 | O83: ='[1]Rapport 5'!O83 -> 4913 | P83: ='[1]Rapport 5'!P83 -> 390 | Q83: ='[1]Rapport 5'!Q83 -> 0 | R83: ='[1]Rapport 5'!R83 -> 0 | S83: ='[1]Rapport 5'!S83 -> 246.67 | T83: ='[1]Rapport 5'!T83 -> 213.34 | U83: ='[1]Rapport 5'!U83 -> 15694.7 | V83: ='[1]Rapport 5'!V83 -> 2477.99 | W83: ='[1]Rapport 5'!W83 -> 6393.27 | X83: ='[1]Rapport 5'!X83 -> 575.22 | Y83: 306,060 | Z83: 13,580 | AA83: 4.4% | AB83: 250 | AC83: =1+(AB83/COUNT($AB$3:AB$339)*10) -> 8.418397626 | AD83: 8 | AE83: 346 | AF83: 3.6% | AG83: 126 | AH83: 4.738872404 | AI83: 4 | AJ83: 30 | AK83: 100.0% | AL83: 314 | AM83: 10.31750742 | AN83: 10 | AO83: 9,548 | AP83: 3.5% | AQ83: 251 | AR83: 8.448071217 | AS83: 8 | AT83: 390 | AU83: 7.9% | AV83: 265 | AW83: 8.863501484 | AX83: 8 | AY83: 0 | AZ83: 0.0% | BA83: 1 | BB83: 1.029673591 | BC83: 1 | BD83: 213 | BE83: 86.5% | BF83: 334 | BG83: 10.91097923 | BH83: 10 | BI83: 2,478 | BJ83: 15.8% | BK83: 174 | BL83: 6.163204748 | BM83: 6 | BN83: 575 | BO83: 9.0% | BP83: 297 | BQ83: 9.81305638 | BR83: 9 | BT83: 139 | BU83: 0
A84: ='[1]Rapport 5'!A84 -> 140 | B84: ='[1]Rapport 5'!B84 -> WINTZENHEIM | C84: ='[1]Rapport 5'!C84 -> 4140 | D84: ='[1]Rapport 5'!D84 -> WINTZENHEIM | E84: ='[1]Rapport 5'!E84 -> 5130 | F84: ='[1]Rapport 5'!F84 -> COLMAR | G84: ='[1]Rapport 5'!G84 -> 264 | H84: ='[1]Rapport 5'!H84 -> HAUT RHIN | I84: ='[1]Rapport 5'!I84 -> 6443.37 | J84: ='[1]Rapport 5'!J84 -> 242.35 | K84: ='[1]Rapport 5'!K84 -> 0 | L84: ='[1]Rapport 5'!L84 -> 47 | M84: ='[1]Rapport 5'!M84 -> 129609.26 | N84: ='[1]Rapport 5'!N84 -> 5451.98 | O84: ='[1]Rapport 5'!O84 -> 2983 | P84: ='[1]Rapport 5'!P84 -> 200 | Q84: ='[1]Rapport 5'!Q84 -> 0 | R84: ='[1]Rapport 5'!R84 -> 0 | S84: ='[1]Rapport 5'!S84 -> 178.41 | T84: ='[1]Rapport 5'!T84 -> 0 | U84: ='[1]Rapport 5'!U84 -> 10529.68 | V84: ='[1]Rapport 5'!V84 -> 2782.85 | W84: ='[1]Rapport 5'!W84 -> 3642.89 | X84: ='[1]Rapport 5'!X84 -> 144.94 | Y84: 153,387 | Z84: 8,869 | AA84: 5.8% | AB84: 318 | AC84: =1+(AB84/COUNT($AB$3:AB$339)*10) -> 10.43620178 | AD84: 10 | AE84: =+J84 -> 242 | AF84: 3.8% | AG84: 138 | AH84: 5.09495549 | AI84: 5 | AJ84: 47 | AK84: 100.0% | AL84: 314 | AM84: 10.31750742 | AN84: 10 | AO84: 5,452 | AP84: 4.2% | AQ84: 301 | AR84: 9.931750742 | AS84: 9 | AT84: 200 | AU84: 6.7% | AV84: 246 | AW84: 8.299703264 | AX84: 8 | AY84: 0 | AZ84: 0.0% | BA84: 1 | BB84: 1.029673591 | BC84: 1 | BD84: 0 | BE84: 0.0% | BF84: 1 | BG84: 1.029673591 | BH84: 1 | BI84: 2,783 | BJ84: 26.4% | BK84: 285 | BL84: 9.456973294 | BM84: 9 | BN84: 145 | BO84: 4.0% | BP84: 202 | BQ84: 6.994065282 | BR84: 6 | BT84: 140 | BU84: 0
A85: ='[1]Rapport 5'!A85 -> 141 | B85: ='[1]Rapport 5'!B85 -> HORBOURG WIHR | C85: ='[1]Rapport 5'!C85 -> 4141 | D85: ='[1]Rapport 5'!D85 -> HORBOURG WIHR | E85: ='[1]Rapport 5'!E85 -> 5130 | F85: ='[1]Rapport 5'!F85 -> COLMAR | G85: ='[1]Rapport 5'!G85 -> 264 | H85: ='[1]Rapport 5'!H85 -> HAUT RHIN | I85: ='[1]Rapport 5'!I85 -> 7013.05 | J85: ='[1]Rapport 5'!J85 -> 635.16 | K85: ='[1]Rapport 5'!K85 -> 0 | L85: ='[1]Rapport 5'!L85 -> 0 | M85: ='[1]Rapport 5'!M85 -> 229471.14 | N85: ='[1]Rapport 5'!N85 -> 7216.27 | O85: ='[1]Rapport 5'!O85 -> 6685.5 | P85: ='[1]Rapport 5'!P85 -> 731 | Q85: ='[1]Rapport 5'!Q85 -> 0 | R85: ='[1]Rapport 5'!R85 -> 0 | S85: ='[1]Rapport 5'!S85 -> 1141.08 | T85: ='[1]Rapport 5'!T85 -> 0 | U85: ='[1]Rapport 5'!U85 -> 11924.55 | V85: ='[1]Rapport 5'!V85 -> 6263.89 | W85: ='[1]Rapport 5'!W85 -> 6532.12 | X85: ='[1]Rapport 5'!X85 -> 426.6 | Y85: 262,767 | Z85: 15,273 | AA85: 5.8% | AB85: 319 | AC85: =1+(AB85/COUNT($AB$3:AB$339)*10) -> 10.46587537 | AD85: 10 | AE85: 635 | AF85: 9.1% | AG85: 292 | AH85: 9.664688427 | AI85: 9 | AJ85: 0 | AK85: 0.0% | AL85: 1 | AM85: 1.029673591 | AN85: 1 | AO85: 7,216 | AP85: 3.1% | AQ85: 204 | AR85: 7.053412463 | AS85: 7 | AT85: 731 | AU85: 10.9% | AV85: 283 | AW85: 9.397626113 | AX85: 9 | AY85: 0 | AZ85: 0.0% | BA85: 1 | BB85: 1.029673591 | BC85: 1 | BD85: 0 | BE85: 0.0% | BF85: 1 | BG85: 1.029673591 | BH85: 1 | BI85: 6,264 | BJ85: 52.5% | BK85: 334 | BL85: 10.91097923 | BM85: 10 | BN85: 427 | BO85: 6.5% | BP85: 266 | BQ85: 8.893175074 | BR85: 8 | BT85: 141 | BU85: 0
A86: ='[1]Rapport 5'!A86 -> 143 | B86: ='[1]Rapport 5'!B86 -> MUNSTER | C86: ='[1]Rapport 5'!C86 -> 4143 | D86: ='[1]Rapport 5'!D86 -> MUNSTER | E86: ='[1]Rapport 5'!E86 -> 5130 | F86: ='[1]Rapport 5'!F86 -> COLMAR | G86: ='[1]Rapport 5'!G86 -> 264 | H86: ='[1]Rapport 5'!H86 -> HAUT RHIN | I86: ='[1]Rapport 5'!I86 -> 10201.33 | J86: ='[1]Rapport 5'!J86 -> 432.5 | K86: ='[1]Rapport 5'!K86 -> 0 | L86: ='[1]Rapport 5'!L86 -> 0 | M86: ='[1]Rapport 5'!M86 -> 350417.48 | N86: ='[1]Rapport 5'!N86 -> 10551.47 | O86: ='[1]Rapport 5'!O86 -> 10614.5 | P86: ='[1]Rapport 5'!P86 -> 721 | Q86: ='[1]Rapport 5'!Q86 -> 67.19 | R86: ='[1]Rapport 5'!R86 -> 0 | S86: ='[1]Rapport 5'!S86 -> 899 | T86: ='[1]Rapport 5'!T86 -> 31 | U86: ='[1]Rapport 5'!U86 -> 23164.16 | V86: ='[1]Rapport 5'!V86 -> 4288.82 | W86: ='[1]Rapport 5'!W86 -> 9371.11 | X86: ='[1]Rapport 5'!X86 -> 172.63 | Y86: 404,735 | Z86: 16,197 | AA86: 4.0% | AB86: 205 | AC86: =1+(AB86/COUNT($AB$3:AB$339)*10) -> 7.083086053 | AD86: 7 | AE86: 433 | AF86: 4.2% | AG86: 160 | AH86: 5.747774481 | AI86: 5 | AJ86: 0 | AK86: 0.0% | AL86: 1 | AM86: 1.029673591 | AN86: 1 | AO86: 10,551 | AP86: 3.0% | AQ86: 182 | AR86: 6.400593472 | AS86: 6 | AT86: 721 | AU86: 6.8% | AV86: 249 | AW86: 8.388724036 | AX86: 8 | AY86: 0 | AZ86: 0.0% | BA86: 1 | BB86: 1.029673591 | BC86: 1 | BD86: 31 | BE86: 3.4% | BF86: 245 | BG86: 8.270029674 | BH86: 8 | BI86: 4,289 | BJ86: 18.5% | BK86: 218 | BL86: 7.46884273 | BM86: 7 | BN86: 173 | BO86: 1.8% | BP86: 100 | BQ86: 3.96735905 | BR86: 3 | BT86: 143 | BU86: 0
A87: ='[1]Rapport 5'!A87 -> 144 | B87: ='[1]Rapport 5'!B87 -> RIBEAUVILLE | C87: ='[1]Rapport 5'!C87 -> 4144 | D87: ='[1]Rapport 5'!D87 -> RIBEAUVILLE | E87: ='[1]Rapport 5'!E87 -> 5130 | F87: ='[1]Rapport 5'!F87 -> COLMAR | G87: ='[1]Rapport 5'!G87 -> 264 | H87: ='[1]Rapport 5'!H87 -> HAUT RHIN | I87: ='[1]Rapport 5'!I87 -> 4550.06 | J87: ='[1]Rapport 5'!J87 -> 368.64 | K87: ='[1]Rapport 5'!K87 -> 0 | L87: ='[1]Rapport 5'!L87 -> 112.64 | M87: ='[1]Rapport 5'!M87 -> 151998.23 | N87: ='[1]Rapport 5'!N87 -> 3429.01 | O87: ='[1]Rapport 5'!O87 -> 2304.25 | P87: ='[1]Rapport 5'!P87 -> 82.6 | Q87: ='[1]Rapport 5'!Q87 -> 0 | R87: ='[1]Rapport 5'!R87 -> 0 | S87: ='[1]Rapport 5'!S87 -> 167.8 | T87: ='[1]Rapport 5'!T87 -> 0 | U87: ='[1]Rapport 5'!U87 -> 6627.05 | V87: ='[1]Rapport 5'!V87 -> 3443.92 | W87: ='[1]Rapport 5'!W87 -> 7568.54 | X87: ='[1]Rapport 5'!X87 -> 228.3 | Y87: 173,216 | Z87: 7,665 | AA87: 4.4% | AB87: 249 | AC87: =1+(AB87/COUNT($AB$3:AB$339)*10) -> 8.388724036 | AD87: 8 | AE87: 369 | AF87: 8.1% | AG87: 283 | AH87: 9.397626113 | AI87: 9 | AJ87: 113 | AK87: 100.0% | AL87: 314 | AM87: 10.31750742 | AN87: 10 | AO87: 3,429 | AP87: 2.3% | AQ87: 86 | AR87: 3.551928783 | AS87: 3 | AT87: 83 | AU87: 3.6% | AV87: 185 | AW87: 6.489614243 | AX87: 6 | AY87: 0 | AZ87: 0.0% | BA87: 1 | BB87: 1.029673591 | BC87: 1 | BD87: 0 | BE87: 0.0% | BF87: 1 | BG87: 1.029673591 | BH87: 1 | BI87: 3,444 | BJ87: 52.0% | BK87: 333 | BL87: 10.88130564 | BM87: 10 | BN87: 228 | BO87: 3.0% | BP87: 162 | BQ87: 5.807121662 | BR87: 5 | BT87: 144 | BU87: 0
A88: ='[1]Rapport 5'!A88 -> 147 | B88: ='[1]Rapport 5'!B88 -> GUEBWILLER | C88: ='[1]Rapport 5'!C88 -> 4147 | D88: ='[1]Rapport 5'!D88 -> GUEBWILLER | E88: ='[1]Rapport 5'!E88 -> 5130 | F88: ='[1]Rapport 5'!F88 -> COLMAR | G88: ='[1]Rapport 5'!G88 -> 264 | H88: ='[1]Rapport 5'!H88 -> HAUT RHIN | I88: ='[1]Rapport 5'!I88 -> 13629.87 | J88: ='[1]Rapport 5'!J88 -> 434.19 | K88: ='[1]Rapport 5'!K88 -> 0 | L88: ='[1]Rapport 5'!L88 -> 0 | M88: ='[1]Rapport 5'!M88 -> 271672.06 | N88: ='[1]Rapport 5'!N88 -> 5501.36 | O88: ='[1]Rapport 5'!O88 -> 5758 | P88: ='[1]Rapport 5'!P88 -> 63 | Q88: ='[1]Rapport 5'!Q88 -> 0 | R88: ='[1]Rapport 5'!R88 -> 0 | S88: ='[1]Rapport 5'!S88 -> 397 | T88: ='[1]Rapport 5'!T88 -> 34 | U88: ='[1]Rapport 5'!U88 -> 15467.41 | V88: ='[1]Rapport 5'!V88 -> 2083.25 | W88: ='[1]Rapport 5'!W88 -> 6657.83 | X88: ='[1]Rapport 5'!X88 -> 101 | Y88: 313,582 | Z88: 8,217 | AA88: 2.6% | AB88: 49 | AC88: =1+(AB88/COUNT($AB$3:AB$339)*10) -> 2.454005935 | AD88: 2 | AE88: 434 | AF88: 3.2% | AG88: 102 | AH88: 4.026706231 | AI88: 4 | AJ88: 0 | AK88: 0.0% | AL88: 1 | AM88: 1.029673591 | AN88: 1 | AO88: 5,501 | AP88: 2.0% | AQ88: 56 | AR88: 2.661721068 | AS88: 2 | AT88: 63 | AU88: 1.1% | AV88: 104 | AW88: 4.086053412 | AX88: 4 | AY88: 0 | AZ88: 0.0% | BA88: 1 | BB88: 1.029673591 | BC88: 1 | BD88: 34 | BE88: 8.6% | BF88: 280 | BG88: 9.308605341 | BH88: 9 | BI88: 2,083 | BJ88: 13.5% | BK88: 140 | BL88: 5.154302671 | BM88: 5 | BN88: 101 | BO88: 1.5% | BP88: 82 | BQ88: 3.433234421 | BR88: 3 | BT88: 147 | BU88: 0
A89: ='[1]Rapport 5'!A89 -> 148 | B89: ='[1]Rapport 5'!B89 -> ORBEY | C89: ='[1]Rapport 5'!C89 -> 4148 | D89: ='[1]Rapport 5'!D89 -> ORBEY | E89: ='[1]Rapport 5'!E89 -> 5130 | F89: ='[1]Rapport 5'!F89 -> COLMAR | G89: ='[1]Rapport 5'!G89 -> 264 | H89: ='[1]Rapport 5'!H89 -> HAUT RHIN | I89: ='[1]Rapport 5'!I89 -> 2330.49 | J89: ='[1]Rapport 5'!J89 -> 331.27 | K89: ='[1]Rapport 5'!K89 -> 0 | L89: ='[1]Rapport 5'!L89 -> 115.28 | M89: ='[1]Rapport 5'!M89 -> 128314.64 | N89: ='[1]Rapport 5'!N89 -> 3255.5 | O89: ='[1]Rapport 5'!O89 -> 1378.5 | P89: ='[1]Rapport 5'!P89 -> 777.51 | Q89: ='[1]Rapport 5'!Q89 -> 0 | R89: ='[1]Rapport 5'!R89 -> 0 | S89: ='[1]Rapport 5'!S89 -> 323 | T89: ='[1]Rapport 5'!T89 -> 0 | U89: ='[1]Rapport 5'!U89 -> 10240.93 | V89: ='[1]Rapport 5'!V89 -> 2249.84 | W89: ='[1]Rapport 5'!W89 -> 3040.33 | X89: ='[1]Rapport 5'!X89 -> 43.65 | Y89: 145,628 | Z89: 6,773 | AA89: 4.7% | AB89: 265 | AC89: =1+(AB89/COUNT($AB$3:AB$339)*10) -> 8.863501484 | AD89: 8 | AE89: 331 | AF89: 14.2% | AG89: 322 | AH89: 10.55489614 | AI89: 10 | AJ89: 115 | AK89: 100.0% | AL89: 314 | AM89: 10.31750742 | AN89: 10 | AO89: 3,256 | AP89: 2.5% | AQ89: 123 | AR89: 4.649851632 | AS89: 4 | AT89: 778 | AU89: 56.4% | AV89: 333 | AW89: 10.88130564 | AX89: 10 | AY89: 0 | AZ89: 0.0% | BA89: 1 | BB89: 1.029673591 | BC89: 1 | BD89: 0 | BE89: 0.0% | BF89: 1 | BG89: 1.029673591 | BH89: 1 | BI89: 2,250 | BJ89: 22.0% | BK89: 262 | BL89: 8.774480712 | BM89: 8 | BN89: 44 | BO89: 1.4% | BP89: 77 | BQ89: 3.284866469 | BR89: 3 | BT89: 148 | BU89: 0
A90: ='[1]Rapport 5'!A90 -> 152 | B90: ='[1]Rapport 5'!B90 -> KAYSERSBERG | C90: ='[1]Rapport 5'!C90 -> 4139 | D90: ='[1]Rapport 5'!D90 -> INGERSHEIM | E90: ='[1]Rapport 5'!E90 -> 5130 | F90: ='[1]Rapport 5'!F90 -> COLMAR | G90: ='[1]Rapport 5'!G90 -> 264 | H90: ='[1]Rapport 5'!H90 -> HAUT RHIN | I90: ='[1]Rapport 5'!I90 -> 2252.92 | J90: ='[1]Rapport 5'!J90 -> 717.49 | K90: ='[1]Rapport 5'!K90 -> 0 | L90: ='[1]Rapport 5'!L90 -> 0 | M90: ='[1]Rapport 5'!M90 -> 93931.16 | N90: ='[1]Rapport 5'!N90 -> 3998.94 | O90: ='[1]Rapport 5'!O90 -> 2441.5 | P90: ='[1]Rapport 5'!P90 -> 0 | Q90: ='[1]Rapport 5'!Q90 -> 2967.71 | R90: ='[1]Rapport 5'!R90 -> 0 | S90: ='[1]Rapport 5'!S90 -> 125 | T90: ='[1]Rapport 5'!T90 -> 0 | U90: ='[1]Rapport 5'!U90 -> 8447.3 | V90: ='[1]Rapport 5'!V90 -> 2867.32 | W90: ='[1]Rapport 5'!W90 -> 2500.99 | X90: ='[1]Rapport 5'!X90 -> 38 | Y90: 112,667 | Z90: 7,622 | AA90: 6.8% | AB90: 332 | AC90: =1+(AB90/COUNT($AB$3:AB$339)*10) -> 10.85163205 | AD90: 10 | AE90: 717 | AF90: 31.8% | AG90: 334 | AH90: 10.91097923 | AI90: 10 | AJ90: 0 | AK90: 0.0% | AL90: 1 | AM90: 1.029673591 | AN90: 1 | AO90: 3,999 | AP90: 4.3% | AQ90: 302 | AR90: 9.961424332 | AS90: 9 | AT90: 0 | AU90: 0.0% | AV90: 1 | AW90: 1.029673591 | AX90: 1 | AY90: 0 | AZ90: 0.0% | BA90: 1 | BB90: 1.029673591 | BC90: 1 | BD90: 0 | BE90: 0.0% | BF90: 1 | BG90: 1.029673591 | BH90: 1 | BI90: 2,867 | BJ90: 33.9% | BK90: 310 | BL90: 10.19881306 | BM90: 10 | BN90: 38 | BO90: 1.5% | BP90: 83 | BQ90: 3.462908012 | BR90: 3 | BT90: 152 | BU90: 0
A91: ='[1]Rapport 5'!A91 -> 153 | B91: ='[1]Rapport 5'!B91 -> ROUFFACH | C91: ='[1]Rapport 5'!C91 -> 4153 | D91: ='[1]Rapport 5'!D91 -> ROUFFACH | E91: ='[1]Rapport 5'!E91 -> 5130 | F91: ='[1]Rapport 5'!F91 -> COLMAR | G91: ='[1]Rapport 5'!G91 -> 264 | H91: ='[1]Rapport 5'!H91 -> HAUT RHIN | I91: ='[1]Rapport 5'!I91 -> 6707.59 | J91: ='[1]Rapport 5'!J91 -> 651.9 | K91: ='[1]Rapport 5'!K91 -> 0 | L91: ='[1]Rapport 5'!L91 -> 73.3 | M91: ='[1]Rapport 5'!M91 -> 139569.38 | N91: ='[1]Rapport 5'!N91 -> 4938.05 | O91: ='[1]Rapport 5'!O91 -> 5377 | P91: ='[1]Rapport 5'!P91 -> 546.5 | Q91: ='[1]Rapport 5'!Q91 -> 0 | R91: ='[1]Rapport 5'!R91 -> 0 | S91: ='[1]Rapport 5'!S91 -> 614.5 | T91: ='[1]Rapport 5'!T91 -> 0 | U91: ='[1]Rapport 5'!U91 -> 13911.41 | V91: ='[1]Rapport 5'!V91 -> 1953.94 | W91: ='[1]Rapport 5'!W91 -> 4861.34 | X91: ='[1]Rapport 5'!X91 -> 304.63 | Y91: 171,041 | Z91: 8,468 | AA91: 5.0% | AB91: 288 | AC91: =1+(AB91/COUNT($AB$3:AB$339)*10) -> 9.545994065 | AD91: 9 | AE91: 652 | AF91: 9.7% | AG91: 300 | AH91: 9.902077151 | AI91: 9 | AJ91: 73 | AK91: 100.0% | AL91: 314 | AM91: 10.31750742 | AN91: 10 | AO91: 4,938 | AP91: 3.5% | AQ91: 248 | AR91: 8.359050445 | AS91: 8 | AT91: 547 | AU91: 10.2% | AV91: 278 | AW91: 9.24925816 | AX91: 9 | AY91: 0 | AZ91: 0.0% | BA91: 1 | BB91: 1.029673591 | BC91: 1 | BD91: 0 | BE91: 0.0% | BF91: 1 | BG91: 1.029673591 | BH91: 1 | BI91: 1,954 | BJ91: 14.0% | BK91: 148 | BL91: 5.391691395 | BM91: 5 | BN91: 305 | BO91: 6.3% | BP91: 262 | BQ91: 8.774480712 | BR91: 8 | BT91: 153 | BU91: 0
A92: ='[1]Rapport 5'!A92 -> 154 | B92: ='[1]Rapport 5'!B92 -> LAPOUTROIE | C92: ='[1]Rapport 5'!C92 -> 4148 | D92: ='[1]Rapport 5'!D92 -> ORBEY | E92: ='[1]Rapport 5'!E92 -> 5130 | F92: ='[1]Rapport 5'!F92 -> COLMAR | G92: ='[1]Rapport 5'!G92 -> 264 | H92: ='[1]Rapport 5'!H92 -> HAUT RHIN | I92: ='[1]Rapport 5'!I92 -> 1276.05 | J92: ='[1]Rapport 5'!J92 -> 69.65 | K92: ='[1]Rapport 5'!K92 -> 0 | L92: ='[1]Rapport 5'!L92 -> 0 | M92: ='[1]Rapport 5'!M92 -> 64451.34 | N92: ='[1]Rapport 5'!N92 -> 1177.94 | O92: ='[1]Rapport 5'!O92 -> 1659 | P92: ='[1]Rapport 5'!P92 -> 28.5 | Q92: ='[1]Rapport 5'!Q92 -> 0 | R92: ='[1]Rapport 5'!R92 -> 0 | S92: ='[1]Rapport 5'!S92 -> 26 | T92: ='[1]Rapport 5'!T92 -> 0 | U92: ='[1]Rapport 5'!U92 -> 2092.26 | V92: ='[1]Rapport 5'!V92 -> 284.39 | W92: ='[1]Rapport 5'!W92 -> 1230.65 | X92: ='[1]Rapport 5'!X92 -> 18.65 | Y92: 70,735 | Z92: 1,579 | AA92: 2.2% | AB92: 20 | AC92: =1+(AB92/COUNT($AB$3:AB$339)*10) -> 1.59347181 | AD92: 1 | AE92: 70 | AF92: 5.5% | AG92: 226 | AH92: 7.706231454 | AI92: 7 | AJ92: 0 | AK92: 0.0% | AL92: 1 | AM92: 1.029673591 | AN92: 1 | AO92: 1,178 | AP92: 1.8% | AQ92: 37 | AR92: 2.097922849 | AS92: 2 | AT92: 29 | AU92: 1.7% | AV92: 127 | AW92: 4.768545994 | AX92: 4 | AY92: 0 | AZ92: 0.0% | BA92: 1 | BB92: 1.029673591 | BC92: 1 | BD92: 0 | BE92: 0.0% | BF92: 1 | BG92: 1.029673591 | BH92: 1 | BI92: 284 | BJ92: 13.6% | BK92: 141 | BL92: 5.183976261 | BM92: 5 | BN92: 19 | BO92: 1.5% | BP92: 81 | BQ92: 3.403560831 | BR92: 3 | BT92: 154 | BU92: 0
A93: ='[1]Rapport 5'!A93 -> 156 | B93: ='[1]Rapport 5'!B93 -> SOULTZMATT | C93: ='[1]Rapport 5'!C93 -> 4153 | D93: ='[1]Rapport 5'!D93 -> ROUFFACH | E93: ='[1]Rapport 5'!E93 -> 5130 | F93: ='[1]Rapport 5'!F93 -> COLMAR | G93: ='[1]Rapport 5'!G93 -> 264 | H93: ='[1]Rapport 5'!H93 -> HAUT RHIN | I93: ='[1]Rapport 5'!I93 -> 5644.74 | J93: ='[1]Rapport 5'!J93 -> 97.57 | K93: ='[1]Rapport 5'!K93 -> 0 | L93: ='[1]Rapport 5'!L93 -> 264.79 | M93: ='[1]Rapport 5'!M93 -> 86354.98 | N93: ='[1]Rapport 5'!N93 -> 3272.63 | O93: ='[1]Rapport 5'!O93 -> 1947.5 | P93: ='[1]Rapport 5'!P93 -> 120.84 | Q93: ='[1]Rapport 5'!Q93 -> 0 | R93: ='[1]Rapport 5'!R93 -> 0 | S93: ='[1]Rapport 5'!S93 -> 0 | T93: ='[1]Rapport 5'!T93 -> 0 | U93: ='[1]Rapport 5'!U93 -> 3438.26 | V93: ='[1]Rapport 5'!V93 -> 354.79 | W93: ='[1]Rapport 5'!W93 -> 1839.37 | X93: ='[1]Rapport 5'!X93 -> 28 | Y93: 99,225 | Z93: 4,139 | AA93: 4.2% | AB93: 228 | AC93: =1+(AB93/COUNT($AB$3:AB$339)*10) -> 7.765578635 | AD93: 7 | AE93: 98 | AF93: 1.7% | AG93: 18 | AH93: 1.534124629 | AI93: 1 | AJ93: 265 | AK93: 100.0% | AL93: 314 | AM93: 10.31750742 | AN93: 10 | AO93: 3,273 | AP93: 3.8% | AQ93: 275 | AR93: 9.160237389 | AS93: 9 | AT93: 121 | AU93: 6.2% | AV93: 238 | AW93: 8.06231454 | AX93: 8 | AY93: 0 | AZ93: 0.0% | BA93: 1 | BB93: 1.029673591 | BC93: 1 | BD93: 0 | BE93: 0.0% | BF93: 1 | BG93: 1.029673591 | BH93: 1 | BI93: 355 | BJ93: 10.3% | BK93: 89 | BL93: 3.640949555 | BM93: 3 | BN93: 28 | BO93: 1.5% | BP93: 84 | BQ93: 3.492581602 | BR93: 3 | BT93: 156 | BU93: 0
A94: ='[1]Rapport 5'!A94 -> 157 | B94: ='[1]Rapport 5'!B94 -> NEUF BRISACH | C94: ='[1]Rapport 5'!C94 -> 4157 | D94: ='[1]Rapport 5'!D94 -> NEUF BRISACH | E94: ='[1]Rapport 5'!E94 -> 5130 | F94: ='[1]Rapport 5'!F94 -> COLMAR | G94: ='[1]Rapport 5'!G94 -> 264 | H94: ='[1]Rapport 5'!H94 -> HAUT RHIN | I94: ='[1]Rapport 5'!I94 -> 10247.21 | J94: ='[1]Rapport 5'!J94 -> 438.73 | K94: ='[1]Rapport 5'!K94 -> 0 | L94: ='[1]Rapport 5'!L94 -> 238 | M94: ='[1]Rapport 5'!M94 -> 260786.41 | N94: ='[1]Rapport 5'!N94 -> 4413.09 | O94: ='[1]Rapport 5'!O94 -> 7382.5 | P94: ='[1]Rapport 5'!P94 -> 496.5 | Q94: ='[1]Rapport 5'!Q94 -> 252.51 | R94: ='[1]Rapport 5'!R94 -> 0 | S94: ='[1]Rapport 5'!S94 -> 194.7 | T94: ='[1]Rapport 5'!T94 -> 0 | U94: ='[1]Rapport 5'!U94 -> 8765.19 | V94: ='[1]Rapport 5'!V94 -> 1261.91 | W94: ='[1]Rapport 5'!W94 -> 8039.85 | X94: ='[1]Rapport 5'!X94 -> 130.6 | Y94: 295,668 | Z94: 6,979 | AA94: 2.4% | AB94: 25 | AC94: =1+(AB94/COUNT($AB$3:AB$339)*10) -> 1.741839763 | AD94: 1 | AE94: 439 | AF94: 4.3% | AG94: 164 | AH94: 5.866468843 | AI94: 5 | AJ94: 238 | AK94: 100.0% | AL94: 314 | AM94: 10.31750742 | AN94: 10 | AO94: 4,413 | AP94: 1.7% | AQ94: 25 | AR94: 1.741839763 | AS94: 1 | AT94: 497 | AU94: 6.7% | AV94: 247 | AW94: 8.329376855 | AX94: 8 | AY94: 0 | AZ94: 0.0% | BA94: 1 | BB94: 1.029673591 | BC94: 1 | BD94: 0 | BE94: 0.0% | BF94: 1 | BG94: 1.029673591 | BH94: 1 | BI94: 1,262 | BJ94: 14.4% | BK94: 156 | BL94: 5.629080119 | BM94: 5 | BN94: 131 | BO94: 1.6% | BP94: 89 | BQ94: 3.640949555 | BR94: 3 | BT94: 157 | BU94: 0
A95: ='[1]Rapport 5'!A95 -> 159 | B95: ='[1]Rapport 5'!B95 -> MUNTZENHEIM | C95: ='[1]Rapport 5'!C95 -> 4159 | D95: ='[1]Rapport 5'!D95 -> MUNTZENHEIM | E95: ='[1]Rapport 5'!E95 -> 5130 | F95: ='[1]Rapport 5'!F95 -> COLMAR | G95: ='[1]Rapport 5'!G95 -> 264 | H95: ='[1]Rapport 5'!H95 -> HAUT RHIN | I95: ='[1]Rapport 5'!I95 -> 5905.8 | J95: ='[1]Rapport 5'!J95 -> 231.98 | K95: ='[1]Rapport 5'!K95 -> 0 | L95: ='[1]Rapport 5'!L95 -> 0 | M95: ='[1]Rapport 5'!M95 -> 137813.33 | N95: ='[1]Rapport 5'!N95 -> 6547.22 | O95: ='[1]Rapport 5'!O95 -> 2813 | P95: ='[1]Rapport 5'!P95 -> 750.38 | Q95: ='[1]Rapport 5'!Q95 -> 0 | R95: ='[1]Rapport 5'!R95 -> 0 | S95: ='[1]Rapport 5'!S95 -> 97 | T95: ='[1]Rapport 5'!T95 -> 94.95 | U95: ='[1]Rapport 5'!U95 -> 3845.37 | V95: ='[1]Rapport 5'!V95 -> 1731.53 | W95: ='[1]Rapport 5'!W95 -> 3316.12 | X95: ='[1]Rapport 5'!X95 -> 106.21 | Y95: 153,791 | Z95: 9,462 | AA95: 6.2% | AB95: 325 | AC95: =1+(AB95/COUNT($AB$3:AB$339)*10) -> 10.64391691 | AD95: 10 | AE95: 232 | AF95: 3.9% | AG95: 144 | AH95: 5.272997033 | AI95: 5 | AJ95: 0 | AK95: 0.0% | AL95: 1 | AM95: 1.029673591 | AN95: 1 | AO95: 6,547 | AP95: 4.8% | AQ95: 317 | AR95: 10.40652819 | AS95: 10 | AT95: 750 | AU95: 26.7% | AV95: 325 | AW95: 10.64391691 | AX95: 10 | AY95: 0 | AZ95: 0.0% | BA95: 1 | BB95: 1.029673591 | BC95: 1 | BD95: 95 | BE95: 97.9% | BF95: 335 | BG95: 10.94065282 | BH95: 10 | BI95: 1,732 | BJ95: 45.0% | BK95: 327 | BL95: 10.70326409 | BM95: 10 | BN95: 106 | BO95: 3.2% | BP95: 170 | BQ95: 6.044510386 | BR95: 6 | BT95: 159 | BU95: 0
A96: ='[1]Rapport 5'!A96 -> 160 | B96: ='[1]Rapport 5'!B96 -> SOULTZ | C96: ='[1]Rapport 5'!C96 -> 4147 | D96: ='[1]Rapport 5'!D96 -> GUEBWILLER | E96: ='[1]Rapport 5'!E96 -> 5130 | F96: ='[1]Rapport 5'!F96 -> COLMAR | G96: ='[1]Rapport 5'!G96 -> 264 | H96: ='[1]Rapport 5'!H96 -> HAUT RHIN | I96: ='[1]Rapport 5'!I96 -> 7293.5 | J96: ='[1]Rapport 5'!J96 -> 423.93 | K96: ='[1]Rapport 5'!K96 -> 0 | L96: ='[1]Rapport 5'!L96 -> 0 | M96: ='[1]Rapport 5'!M96 -> 142817.19 | N96: ='[1]Rapport 5'!N96 -> 3513.64 | O96: ='[1]Rapport 5'!O96 -> 3995 | P96: ='[1]Rapport 5'!P96 -> 918 | Q96: ='[1]Rapport 5'!Q96 -> 0 | R96: ='[1]Rapport 5'!R96 -> 0 | S96: ='[1]Rapport 5'!S96 -> 222 | T96: ='[1]Rapport 5'!T96 -> 0 | U96: ='[1]Rapport 5'!U96 -> 6711.73 | V96: ='[1]Rapport 5'!V96 -> 1294.31 | W96: ='[1]Rapport 5'!W96 -> 3206.13 | X96: ='[1]Rapport 5'!X96 -> 174.6 | Y96: 164,246 | Z96: 6,324 | AA96: 3.9% | AB96: 185 | AC96: =1+(AB96/COUNT($AB$3:AB$339)*10) -> 6.489614243 | AD96: 6 | AE96: 424 | AF96: 5.8% | AG96: 238 | AH96: 8.06231454 | AI96: 8 | AJ96: 0 | AK96: 0.0% | AL96: 1 | AM96: 1.029673591 | AN96: 1 | AO96: 3,514 | AP96: 2.5% | AQ96: 114 | AR96: 4.382789318 | AS96: 4 | AT96: 918 | AU96: 23.0% | AV96: 318 | AW96: 10.43620178 | AX96: 10 | AY96: 0 | AZ96: 0.0% | BA96: 1 | BB96: 1.029673591 | BC96: 1 | BD96: 0 | BE96: 0.0% | BF96: 1 | BG96: 1.029673591 | BH96: 1 | BI96: 1,294 | BJ96: 19.3% | BK96: 227 | BL96: 7.735905045 | BM96: 7 | BN96: 175 | BO96: 5.4% | BP96: 241 | BQ96: 8.151335312 | BR96: 8 | BT96: 160 | BU96: 0
A97: ='[1]Rapport 5'!A97 -> 162 | B97: ='[1]Rapport 5'!B97 -> ENSISHEIM | C97: ='[1]Rapport 5'!C97 -> 4162 | D97: ='[1]Rapport 5'!D97 -> ENSISHEIM | E97: ='[1]Rapport 5'!E97 -> 5130 | F97: ='[1]Rapport 5'!F97 -> COLMAR | G97: ='[1]Rapport 5'!G97 -> 264 | H97: ='[1]Rapport 5'!H97 -> HAUT RHIN | I97: ='[1]Rapport 5'!I97 -> 10029.32 | J97: ='[1]Rapport 5'!J97 -> 273.54 | K97: ='[1]Rapport 5'!K97 -> 0 | L97: ='[1]Rapport 5'!L97 -> 0 | M97: ='[1]Rapport 5'!M97 -> 191308.95 | N97: ='[1]Rapport 5'!N97 -> 5765.99 | O97: ='[1]Rapport 5'!O97 -> 3877 | P97: ='[1]Rapport 5'!P97 -> 449.08 | Q97: ='[1]Rapport 5'!Q97 -> 0 | R97: ='[1]Rapport 5'!R97 -> 0 | S97: ='[1]Rapport 5'!S97 -> 315.5 | T97: ='[1]Rapport 5'!T97 -> 0 | U97: ='[1]Rapport 5'!U97 -> 6785.48 | V97: ='[1]Rapport 5'!V97 -> 4011.11 | W97: ='[1]Rapport 5'!W97 -> 3857.29 | X97: ='[1]Rapport 5'!X97 -> 18.65 | Y97: 216,174 | Z97: 10,518 | AA97: 4.9% | AB97: 281 | AC97: =1+(AB97/COUNT($AB$3:AB$339)*10) -> 9.338278932 | AD97: 9 | AE97: 274 | AF97: 2.7% | AG97: 73 | AH97: 3.166172107 | AI97: 3 | AJ97: 0 | AK97: 0.0% | AL97: 1 | AM97: 1.029673591 | AN97: 1 | AO97: 5,766 | AP97: 3.0% | AQ97: 184 | AR97: 6.459940653 | AS97: 6 | AT97: 449 | AU97: 11.6% | AV97: 288 | AW97: 9.545994065 | AX97: 9 | AY97: 0 | AZ97: 0.0% | BA97: 1 | BB97: 1.029673591 | BC97: 1 | BD97: 0 | BE97: 0.0% | BF97: 1 | BG97: 1.029673591 | BH97: 1 | BI97: 4,011 | BJ97: 59.1% | BK97: 336 | BL97: 10.97032641 | BM97: 10 | BN97: 19 | BO97: 0.5% | BP97: 40 | BQ97: 2.18694362 | BR97: 2 | BT97: 162 | BU97: 0
A98: ='[1]Rapport 5'!A98 -> 163 | B98: ='[1]Rapport 5'!B98 -> PULVERSHEIM | C98: ='[1]Rapport 5'!C98 -> 4162 | D98: ='[1]Rapport 5'!D98 -> ENSISHEIM | E98: ='[1]Rapport 5'!E98 -> 5130 | F98: ='[1]Rapport 5'!F98 -> COLMAR | G98: ='[1]Rapport 5'!G98 -> 264 | H98: ='[1]Rapport 5'!H98 -> HAUT RHIN | I98: ='[1]Rapport 5'!I98 -> 5603.61 | J98: ='[1]Rapport 5'!J98 -> 149.76 | K98: ='[1]Rapport 5'!K98 -> 0 | L98: ='[1]Rapport 5'!L98 -> 0 | M98: ='[1]Rapport 5'!M98 -> 97521.6 | N98: ='[1]Rapport 5'!N98 -> 2716.94 | O98: ='[1]Rapport 5'!O98 -> 1916.5 | P98: ='[1]Rapport 5'!P98 -> 28.5 | Q98: ='[1]Rapport 5'!Q98 -> 0 | R98: ='[1]Rapport 5'!R98 -> 0 | S98: ='[1]Rapport 5'!S98 -> 122 | T98: ='[1]Rapport 5'!T98 -> 0 | U98: ='[1]Rapport 5'!U98 -> 2625.94 | V98: ='[1]Rapport 5'!V98 -> 946.08 | W98: ='[1]Rapport 5'!W98 -> 2130.78 | X98: ='[1]Rapport 5'!X98 -> 18.65 | Y98: 109,920 | Z98: 3,860 | AA98: 3.5% | AB98: 152 | AC98: =1+(AB98/COUNT($AB$3:AB$339)*10) -> 5.510385757 | AD98: 5 | AE98: 150 | AF98: 2.7% | AG98: 71 | AH98: 3.106824926 | AI98: 3 | AJ98: 0 | AK98: 0.0% | AL98: 1 | AM98: 1.029673591 | AN98: 1 | AO98: 2,717 | AP98: 2.8% | AQ98: 153 | AR98: 5.540059347 | AS98: 5 | AT98: 29 | AU98: 1.5% | AV98: 119 | AW98: 4.53115727 | AX98: 4 | AY98: 0 | AZ98: 0.0% | BA98: 1 | BB98: 1.029673591 | BC98: 1 | BD98: 0 | BE98: 0.0% | BF98: 1 | BG98: 1.029673591 | BH98: 1 | BI98: 946 | BJ98: 36.0% | BK98: 314 | BL98: 10.31750742 | BM98: 10 | BN98: 19 | BO98: 0.9% | BP98: 60 | BQ98: 2.78041543 | BR98: 2 | BT98: 163 | BU98: 0
A99: ='[1]Rapport 5'!A99 -> 164 | B99: ='[1]Rapport 5'!B99 -> SAINTE MARIE AUX MINES | C99: ='[1]Rapport 5'!C99 -> 4164 | D99: ='[1]Rapport 5'!D99 -> SAINTE MARIE AUX MINES | E99: ='[1]Rapport 5'!E99 -> 5130 | F99: ='[1]Rapport 5'!F99 -> COLMAR | G99: ='[1]Rapport 5'!G99 -> 264 | H99: ='[1]Rapport 5'!H99 -> HAUT RHIN | I99: ='[1]Rapport 5'!I99 -> 5208.79 | J99: ='[1]Rapport 5'!J99 -> 200.66 | K99: ='[1]Rapport 5'!K99 -> 0 | L99: ='[1]Rapport 5'!L99 -> 0 | M99: ='[1]Rapport 5'!M99 -> 121642.29 | N99: ='[1]Rapport 5'!N99 -> 1993.08 | O99: ='[1]Rapport 5'!O99 -> 1694.5 | P99: ='[1]Rapport 5'!P99 -> 57.5 | Q99: ='[1]Rapport 5'!Q99 -> 0 | R99: ='[1]Rapport 5'!R99 -> 0 | S99: ='[1]Rapport 5'!S99 -> 367 | T99: ='[1]Rapport 5'!T99 -> 0 | U99: ='[1]Rapport 5'!U99 -> 9248.19 | V99: ='[1]Rapport 5'!V99 -> 2032.23 | W99: ='[1]Rapport 5'!W99 -> 4122.9 | X99: ='[1]Rapport 5'!X99 -> 239 | Y99: 142,284 | Z99: 4,522 | AA99: 3.2% | AB99: 104 | AC99: =1+(AB99/COUNT($AB$3:AB$339)*10) -> 4.086053412 | AD99: 4 | AE99: 201 | AF99: 3.9% | AG99: 143 | AH99: 5.243323442 | AI99: 5 | AJ99: 0 | AK99: 0.0% | AL99: 1 | AM99: 1.029673591 | AN99: 1 | AO99: 1,993 | AP99: 1.6% | AQ99: 20 | AR99: 1.59347181 | AS99: 1 | AT99: 58 | AU99: 3.4% | AV99: 179 | AW99: 6.3115727 | AX99: 6 | AY99: 0 | AZ99: 0.0% | BA99: 1 | BB99: 1.029673591 | BC99: 1 | BD99: 0 | BE99: 0.0% | BF99: 1 | BG99: 1.029673591 | BH99: 1 | BI99: 2,032 | BJ99: 22.0% | BK99: 263 | BL99: 8.804154303 | BM99: 8 | BN99: 239 | BO99: 5.8% | BP99: 251 | BQ99: 8.448071217 | BR99: 8 | BT99: 164 | BU99: 0
A100: ='[1]Rapport 5'!A100 -> 167 | B100: ='[1]Rapport 5'!B100 -> LIEPVRE | C100: ='[1]Rapport 5'!C100 -> 4164 | D100: ='[1]Rapport 5'!D100 -> SAINTE MARIE AUX MINES | E100: ='[1]Rapport 5'!E100 -> 5130 | F100: ='[1]Rapport 5'!F100 -> COLMAR | G100: ='[1]Rapport 5'!G100 -> 264 | H100: ='[1]Rapport 5'!H100 -> HAUT RHIN | I100: ='[1]Rapport 5'!I100 -> 3954.24 | J100: ='[1]Rapport 5'!J100 -> 77.82 | K100: ='[1]Rapport 5'!K100 -> 0 | L100: ='[1]Rapport 5'!L100 -> 0 | M100: ='[1]Rapport 5'!M100 -> 75313.9 | N100: ='[1]Rapport 5'!N100 -> 1865.24 | O100: ='[1]Rapport 5'!O100 -> 1320 | P100: ='[1]Rapport 5'!P100 -> 0 | Q100: ='[1]Rapport 5'!Q100 -> 0 | R100: ='[1]Rapport 5'!R100 -> 0 | S100: ='[1]Rapport 5'!S100 -> 0 | T100: ='[1]Rapport 5'!T100 -> 0 | U100: ='[1]Rapport 5'!U100 -> 1698.43 | V100: ='[1]Rapport 5'!V100 -> 803.25 | W100: ='[1]Rapport 5'!W100 -> 1107.52 | X100: ='[1]Rapport 5'!X100 -> 0 | Y100: 83,394 | Z100: 2,746 | AA100: 3.3% | AB100: 113 | AC100: =1+(AB100/COUNT($AB$3:AB$339)*10) -> 4.353115727 | AD100: 4 | AE100: =+J100 -> 78 | AF100: 2.0% | AG100: 37 | AH100: 2.097922849 | AI100: 2 | AJ100: 0 | AK100: 0.0% | AL100: 1 | AM100: 1.029673591 | AN100: 1 | AO100: 1,865 | AP100: 2.5% | AQ100: 116 | AR100: 4.442136499 | AS100: 4 | AT100: 0 | AU100: 0.0% | AV100: 1 | AW100: 1.029673591 | AX100: 1 | AY100: 0 | AZ100: 0.0% | BA100: 1 | BB100: 1.029673591 | BC100: 1 | BD100: 0 | BE100: 0.0% | BF100: 1 | BG100: 1.029673591 | BH100: 1 | BI100: 803 | BJ100: 47.3% | BK100: 329 | BL100: 10.76261128 | BM100: 10 | BN100: 0 | BO100: 0.0% | BP100: 1 | BQ100: 1.029673591 | BR100: 1 | BT100: 167 | BU100: 0
A101: ='[1]Rapport 5'!A101 -> 169 | B101: ='[1]Rapport 5'!B101 -> MULHOUSE ROOSEVELT | C101: ='[1]Rapport 5'!C101 -> 4169 | D101: ='[1]Rapport 5'!D101 -> MULHOUSE ROOSEVELT | E101: ='[1]Rapport 5'!E101 -> 5169 | F101: ='[1]Rapport 5'!F101 -> MULHOUSE | G101: ='[1]Rapport 5'!G101 -> 264 | H101: ='[1]Rapport 5'!H101 -> HAUT RHIN | I101: ='[1]Rapport 5'!I101 -> 22439.58 | J101: ='[1]Rapport 5'!J101 -> 1122.18 | K101: ='[1]Rapport 5'!K101 -> 0 | L101: ='[1]Rapport 5'!L101 -> 0 | M101: ='[1]Rapport 5'!M101 -> 479413.87 | N101: ='[1]Rapport 5'!N101 -> 12397 | O101: ='[1]Rapport 5'!O101 -> 9167 | P101: ='[1]Rapport 5'!P101 -> 163 | Q101: ='[1]Rapport 5'!Q101 -> 0 | R101: ='[1]Rapport 5'!R101 -> 0 | S101: ='[1]Rapport 5'!S101 -> 1996 | T101: ='[1]Rapport 5'!T101 -> 44 | U101: ='[1]Rapport 5'!U101 -> 31393.78 | V101: ='[1]Rapport 5'!V101 -> 4822.89 | W101: ='[1]Rapport 5'!W101 -> 8617.07 | X101: ='[1]Rapport 5'!X101 -> 450.57 | Y101: 553,027 | Z101: 19,000 | AA101: 3.4% | AB101: 140 | AC101: =1+(AB101/COUNT($AB$3:AB$339)*10) -> 5.154302671 | AD101: 5 | AE101: 1,122 | AF101: 5.0% | AG101: 206 | AH101: 7.112759644 | AI101: 7 | AJ101: 0 | AK101: 0.0% | AL101: 1 | AM101: 1.029673591 | AN101: 1 | AO101: 12,397 | AP101: 2.6% | AQ101: 125 | AR101: 4.709198813 | AS101: 4 | AT101: 163 | AU101: 1.8% | AV101: 128 | AW101: 4.798219585 | AX101: 4 | AY101: 0 | AZ101: 0.0% | BA101: 1 | BB101: 1.029673591 | BC101: 1 | BD101: 44 | BE101: 2.2% | BF101: 231 | BG101: 7.854599407 | BH101: 7 | BI101: 4,823 | BJ101: 15.4% | BK101: 165 | BL101: 5.896142433 | BM101: 5 | BN101: 451 | BO101: 5.2% | BP101: 234 | BQ101: 7.943620178 | BR101: 7 | BT101: 169 | BU101: 0
A102: ='[1]Rapport 5'!A102 -> 170 | B102: ='[1]Rapport 5'!B102 -> MULHOUSE REUNION | C102: ='[1]Rapport 5'!C102 -> 4170 | D102: ='[1]Rapport 5'!D102 -> MULHOUSE REUNION | E102: ='[1]Rapport 5'!E102 -> 5169 | F102: ='[1]Rapport 5'!F102 -> MULHOUSE | G102: ='[1]Rapport 5'!G102 -> 264 | H102: ='[1]Rapport 5'!H102 -> HAUT RHIN | I102: ='[1]Rapport 5'!I102 -> 19674.39 | J102: ='[1]Rapport 5'!J102 -> 817.17 | K102: ='[1]Rapport 5'!K102 -> 0 | L102: ='[1]Rapport 5'!L102 -> 0 | M102: ='[1]Rapport 5'!M102 -> 404866.63 | N102: ='[1]Rapport 5'!N102 -> 10713.88 | O102: ='[1]Rapport 5'!O102 -> 6133 | P102: ='[1]Rapport 5'!P102 -> 322.5 | Q102: ='[1]Rapport 5'!Q102 -> 376.94 | R102: ='[1]Rapport 5'!R102 -> 0 | S102: ='[1]Rapport 5'!S102 -> 1397.45 | T102: ='[1]Rapport 5'!T102 -> 39 | U102: ='[1]Rapport 5'!U102 -> 32261.22 | V102: ='[1]Rapport 5'!V102 -> 5053.54 | W102: ='[1]Rapport 5'!W102 -> 12651.36 | X102: ='[1]Rapport 5'!X102 -> 728.66 | Y102: 477,361 | Z102: 17,675 | AA102: 3.7% | AB102: 172 | AC102: =1+(AB102/COUNT($AB$3:AB$339)*10) -> 6.103857567 | AD102: 6 | AE102: 817 | AF102: 4.2% | AG102: 155 | AH102: 5.599406528 | AI102: 5 | AJ102: 0 | AK102: 0.0% | AL102: 1 | AM102: 1.029673591 | AN102: 1 | AO102: 10,714 | AP102: 2.6% | AQ102: 131 | AR102: 4.887240356 | AS102: 4 | AT102: 323 | AU102: 5.3% | AV102: 222 | AW102: 7.587537092 | AX102: 7 | AY102: 0 | AZ102: 0.0% | BA102: 1 | BB102: 1.029673591 | BC102: 1 | BD102: 39 | BE102: 2.8% | BF102: 240 | BG102: 8.121661721 | BH102: 8 | BI102: 5,054 | BJ102: 15.7% | BK102: 173 | BL102: 6.133531157 | BM102: 6 | BN102: 729 | BO102: 5.8% | BP102: 249 | BQ102: 8.388724036 | BR102: 8 | BT102: 170 | BU102: 0
A103: ='[1]Rapport 5'!A103 -> 174 | B103: ='[1]Rapport 5'!B103 -> MULHOUSE DORNACH | C103: ='[1]Rapport 5'!C103 -> 4174 | D103: ='[1]Rapport 5'!D103 -> MULHOUSE DORNACH | E103: ='[1]Rapport 5'!E103 -> 5169 | F103: ='[1]Rapport 5'!F103 -> MULHOUSE | G103: ='[1]Rapport 5'!G103 -> 264 | H103: ='[1]Rapport 5'!H103 -> HAUT RHIN | I103: ='[1]Rapport 5'!I103 -> 12906.23 | J103: ='[1]Rapport 5'!J103 -> 327.03 | K103: ='[1]Rapport 5'!K103 -> 0 | L103: ='[1]Rapport 5'!L103 -> 0 | M103: ='[1]Rapport 5'!M103 -> 311632.34 | N103: ='[1]Rapport 5'!N103 -> 8370.79 | O103: ='[1]Rapport 5'!O103 -> 4934.5 | P103: ='[1]Rapport 5'!P103 -> 154 | Q103: ='[1]Rapport 5'!Q103 -> 0 | R103: ='[1]Rapport 5'!R103 -> 0 | S103: ='[1]Rapport 5'!S103 -> 929.98 | T103: ='[1]Rapport 5'!T103 -> 0 | U103: ='[1]Rapport 5'!U103 -> 19800.41 | V103: ='[1]Rapport 5'!V103 -> 1619.82 | W103: ='[1]Rapport 5'!W103 -> 5321.64 | X103: ='[1]Rapport 5'!X103 -> 195.73 | Y103: 355,525 | Z103: 10,667 | AA103: 3.0% | AB103: 83 | AC103: =1+(AB103/COUNT($AB$3:AB$339)*10) -> 3.462908012 | AD103: 3 | AE103: 327 | AF103: 2.5% | AG103: 59 | AH103: 2.75074184 | AI103: 2 | AJ103: 0 | AK103: 0.0% | AL103: 1 | AM103: 1.029673591 | AN103: 1 | AO103: 8,371 | AP103: 2.7% | AQ103: 137 | AR103: 5.065281899 | AS103: 5 | AT103: 154 | AU103: 3.1% | AV103: 174 | AW103: 6.163204748 | AX103: 6 | AY103: 0 | AZ103: 0.0% | BA103: 1 | BB103: 1.029673591 | BC103: 1 | BD103: 0 | BE103: 0.0% | BF103: 1 | BG103: 1.029673591 | BH103: 1 | BI103: 1,620 | BJ103: 8.2% | BK103: 65 | BL103: 2.928783383 | BM103: 2 | BN103: 196 | BO103: 3.7% | BP103: 193 | BQ103: 6.727002967 | BR103: 6 | BT103: 174 | BU103: 0
A104: ='[1]Rapport 5'!A104 -> 178 | B104: ='[1]Rapport 5'!B104 -> SAINT LOUIS | C104: ='[1]Rapport 5'!C104 -> 4178 | D104: ='[1]Rapport 5'!D104 -> SAINT LOUIS | E104: ='[1]Rapport 5'!E104 -> 5169 | F104: ='[1]Rapport 5'!F104 -> MULHOUSE | G104: ='[1]Rapport 5'!G104 -> 264 | H104: ='[1]Rapport 5'!H104 -> HAUT RHIN | I104: ='[1]Rapport 5'!I104 -> 14358.37 | J104: ='[1]Rapport 5'!J104 -> 413.19 | K104: ='[1]Rapport 5'!K104 -> 0 | L104: ='[1]Rapport 5'!L104 -> 0 | M104: ='[1]Rapport 5'!M104 -> 375634.71 | N104: ='[1]Rapport 5'!N104 -> 7100.89 | O104: ='[1]Rapport 5'!O104 -> 6308 | P104: ='[1]Rapport 5'!P104 -> 583 | Q104: ='[1]Rapport 5'!Q104 -> 0 | R104: ='[1]Rapport 5'!R104 -> 0 | S104: ='[1]Rapport 5'!S104 -> 2290.62 | T104: ='[1]Rapport 5'!T104 -> 75 | U104: ='[1]Rapport 5'!U104 -> 21806.62 | V104: ='[1]Rapport 5'!V104 -> 3998.36 | W104: ='[1]Rapport 5'!W104 -> 8430.08 | X104: ='[1]Rapport 5'!X104 -> 169.35 | Y104: 428,828 | Z104: 12,340 | AA104: 2.9% | AB104: 69 | AC104: =1+(AB104/COUNT($AB$3:AB$339)*10) -> 3.047477745 | AD104: 3 | AE104: 413 | AF104: 2.9% | AG104: 82 | AH104: 3.433234421 | AI104: 3 | AJ104: 0 | AK104: 0.0% | AL104: 1 | AM104: 1.029673591 | AN104: 1 | AO104: 7,101 | AP104: 1.9% | AQ104: 41 | AR104: 2.216617211 | AS104: 2 | AT104: 583 | AU104: 9.2% | AV104: 273 | AW104: 9.100890208 | AX104: 9 | AY104: 0 | AZ104: 0.0% | BA104: 1 | BB104: 1.029673591 | BC104: 1 | BD104: 75 | BE104: 3.3% | BF104: 243 | BG104: 8.210682493 | BH104: 8 | BI104: 3,998 | BJ104: 18.3% | BK104: 215 | BL104: 7.379821958 | BM104: 7 | BN104: 169 | BO104: 2.0% | BP104: 109 | BQ104: 4.234421365 | BR104: 4 | BT104: 178 | BU104: 0
A105: ='[1]Rapport 5'!A105 -> 179 | B105: ='[1]Rapport 5'!B105 -> SIERENTZ | C105: ='[1]Rapport 5'!C105 -> 4178 | D105: ='[1]Rapport 5'!D105 -> SAINT LOUIS | E105: ='[1]Rapport 5'!E105 -> 5169 | F105: ='[1]Rapport 5'!F105 -> MULHOUSE | G105: ='[1]Rapport 5'!G105 -> 264 | H105: ='[1]Rapport 5'!H105 -> HAUT RHIN | I105: ='[1]Rapport 5'!I105 -> 5693.25 | J105: ='[1]Rapport 5'!J105 -> 778.71 | K105: ='[1]Rapport 5'!K105 -> 0 | L105: ='[1]Rapport 5'!L105 -> 0 | M105: ='[1]Rapport 5'!M105 -> 130871.77 | N105: ='[1]Rapport 5'!N105 -> 2942.9 | O105: ='[1]Rapport 5'!O105 -> 1930 | P105: ='[1]Rapport 5'!P105 -> 1080 | Q105: ='[1]Rapport 5'!Q105 -> 0 | R105: ='[1]Rapport 5'!R105 -> 0 | S105: ='[1]Rapport 5'!S105 -> 1316.71 | T105: ='[1]Rapport 5'!T105 -> 23 | U105: ='[1]Rapport 5'!U105 -> 4821.24 | V105: ='[1]Rapport 5'!V105 -> 1235.04 | W105: ='[1]Rapport 5'!W105 -> 3780.72 | X105: ='[1]Rapport 5'!X105 -> 0 | Y105: 148,414 | Z105: 6,060 | AA105: 4.1% | AB105: 215 | AC105: =1+(AB105/COUNT($AB$3:AB$339)*10) -> 7.379821958 | AD105: 7 | AE105: 779 | AF105: 13.7% | AG105: 321 | AH105: 10.52522255 | AI105: 10 | AJ105: 0 | AK105: 0.0% | AL105: 1 | AM105: 1.029673591 | AN105: 1 | AO105: 2,943 | AP105: 2.2% | AQ105: 84 | AR105: 3.492581602 | AS105: 3 | AT105: 1,080 | AU105: 56.0% | AV105: 332 | AW105: 10.85163205 | AX105: 10 | AY105: 0 | AZ105: 0.0% | BA105: 1 | BB105: 1.029673591 | BC105: 1 | BD105: 23 | BE105: 1.7% | BF105: 225 | BG105: 7.676557864 | BH105: 7 | BI105: 1,235 | BJ105: 25.6% | BK105: 281 | BL105: 9.338278932 | BM105: 9 | BN105: 0 | BO105: 0.0% | BP105: 1 | BQ105: 1.029673591 | BR105: 1 | BT105: 179 | BU105: 0
A106: ='[1]Rapport 5'!A106 -> 180 | B106: ='[1]Rapport 5'!B106 -> RIEDISHEIM | C106: ='[1]Rapport 5'!C106 -> 4180 | D106: ='[1]Rapport 5'!D106 -> RIEDISHEIM | E106: ='[1]Rapport 5'!E106 -> 5169 | F106: ='[1]Rapport 5'!F106 -> MULHOUSE | G106: ='[1]Rapport 5'!G106 -> 264 | H106: ='[1]Rapport 5'!H106 -> HAUT RHIN | I106: ='[1]Rapport 5'!I106 -> 4718.34 | J106: ='[1]Rapport 5'!J106 -> 431.6 | K106: ='[1]Rapport 5'!K106 -> 0 | L106: ='[1]Rapport 5'!L106 -> 0 | M106: ='[1]Rapport 5'!M106 -> 208237.21 | N106: ='[1]Rapport 5'!N106 -> 8450.45 | O106: ='[1]Rapport 5'!O106 -> 3723 | P106: ='[1]Rapport 5'!P106 -> 138 | Q106: ='[1]Rapport 5'!Q106 -> 0 | R106: ='[1]Rapport 5'!R106 -> 0 | S106: ='[1]Rapport 5'!S106 -> 1748.16 | T106: ='[1]Rapport 5'!T106 -> 80 | U106: ='[1]Rapport 5'!U106 -> 12389.64 | V106: ='[1]Rapport 5'!V106 -> 2105.86 | W106: ='[1]Rapport 5'!W106 -> 9186.28 | X106: ='[1]Rapport 5'!X106 -> 1038.27 | Y106: 240,003 | Z106: 12,244 | AA106: 5.1% | AB106: 294 | AC106: =1+(AB106/COUNT($AB$3:AB$339)*10) -> 9.724035608 | AD106: 9 | AE106: 432 | AF106: 9.1% | AG106: 294 | AH106: 9.724035608 | AI106: 9 | AJ106: 0 | AK106: 0.0% | AL106: 1 | AM106: 1.029673591 | AN106: 1 | AO106: 8,450 | AP106: 4.1% | AQ106: 291 | AR106: 9.635014837 | AS106: 9 | AT106: 138 | AU106: 3.7% | AV106: 189 | AW106: 6.608308605 | AX106: 6 | AY106: 0 | AZ106: 0.0% | BA106: 1 | BB106: 1.029673591 | BC106: 1 | BD106: 80 | BE106: 4.6% | BF106: 253 | BG106: 8.507418398 | BH106: 8 | BI106: 2,106 | BJ106: 17.0% | BK106: 196 | BL106: 6.816023739 | BM106: 6 | BN106: 1,038 | BO106: 11.3% | BP106: 315 | BQ106: 10.34718101 | BR106: 10 | BT106: 180 | BU106: 0
A107: ='[1]Rapport 5'!A107 -> 181 | B107: ='[1]Rapport 5'!B107 -> WITTELSHEIM | C107: ='[1]Rapport 5'!C107 -> 4181 | D107: ='[1]Rapport 5'!D107 -> WITTELSHEIM | E107: ='[1]Rapport 5'!E107 -> 5169 | F107: ='[1]Rapport 5'!F107 -> MULHOUSE | G107: ='[1]Rapport 5'!G107 -> 264 | H107: ='[1]Rapport 5'!H107 -> HAUT RHIN | I107: ='[1]Rapport 5'!I107 -> 12417.94 | J107: ='[1]Rapport 5'!J107 -> 963.75 | K107: ='[1]Rapport 5'!K107 -> 0 | L107: ='[1]Rapport 5'!L107 -> 0 | M107: ='[1]Rapport 5'!M107 -> 289196.36 | N107: ='[1]Rapport 5'!N107 -> 11883.29 | O107: ='[1]Rapport 5'!O107 -> 6213.5 | P107: ='[1]Rapport 5'!P107 -> 1136.27 | Q107: ='[1]Rapport 5'!Q107 -> 0 | R107: ='[1]Rapport 5'!R107 -> 0 | S107: ='[1]Rapport 5'!S107 -> 796.58 | T107: ='[1]Rapport 5'!T107 -> 31 | U107: ='[1]Rapport 5'!U107 -> 13237.83 | V107: ='[1]Rapport 5'!V107 -> 2818.78 | W107: ='[1]Rapport 5'!W107 -> 4727.67 | X107: ='[1]Rapport 5'!X107 -> 212.82 | Y107: 326,590 | Z107: 17,046 | AA107: 5.2% | AB107: 299 | AC107: =1+(AB107/COUNT($AB$3:AB$339)*10) -> 9.872403561 | AD107: 9 | AE107: 964 | AF107: 7.8% | AG107: 274 | AH107: 9.130563798 | AI107: 9 | AJ107: 0 | AK107: 0.0% | AL107: 1 | AM107: 1.029673591 | AN107: 1 | AO107: 11,883 | AP107: 4.1% | AQ107: 297 | AR107: 9.81305638 | AS107: 9 | AT107: 1,136 | AU107: 18.3% | AV107: 311 | AW107: 10.22848665 | AX107: 10 | AY107: 0 | AZ107: 0.0% | BA107: 1 | BB107: 1.029673591 | BC107: 1 | BD107: 31 | BE107: 3.9% | BF107: 247 | BG107: 8.329376855 | BH107: 8 | BI107: 2,819 | BJ107: 21.3% | BK107: 253 | BL107: 8.507418398 | BM107: 8 | BN107: 213 | BO107: 4.5% | BP107: 214 | BQ107: 7.350148368 | BR107: 7 | BT107: 181 | BU107: 0
A108: ='[1]Rapport 5'!A108 -> 183 | B108: ='[1]Rapport 5'!B108 -> WITTENHEIM | C108: ='[1]Rapport 5'!C108 -> 4183 | D108: ='[1]Rapport 5'!D108 -> WITTENHEIM | E108: ='[1]Rapport 5'!E108 -> 5169 | F108: ='[1]Rapport 5'!F108 -> MULHOUSE | G108: ='[1]Rapport 5'!G108 -> 264 | H108: ='[1]Rapport 5'!H108 -> HAUT RHIN | I108: ='[1]Rapport 5'!I108 -> 6108.69 | J108: ='[1]Rapport 5'!J108 -> 119.82 | K108: ='[1]Rapport 5'!K108 -> 0 | L108: ='[1]Rapport 5'!L108 -> 0 | M108: ='[1]Rapport 5'!M108 -> 194851.63 | N108: ='[1]Rapport 5'!N108 -> 2655.73 | O108: ='[1]Rapport 5'!O108 -> 4745.25 | P108: ='[1]Rapport 5'!P108 -> 240.25 | Q108: ='[1]Rapport 5'!Q108 -> 0 | R108: ='[1]Rapport 5'!R108 -> 0 | S108: ='[1]Rapport 5'!S108 -> 681.6 | T108: ='[1]Rapport 5'!T108 -> 0 | U108: ='[1]Rapport 5'!U108 -> 6317.4 | V108: ='[1]Rapport 5'!V108 -> 632.44 | W108: ='[1]Rapport 5'!W108 -> 5100.48 | X108: ='[1]Rapport 5'!X108 -> 28 | Y108: 217,805 | Z108: 3,676 | AA108: 1.7% | AB108: 3 | AC108: =1+(AB108/COUNT($AB$3:AB$339)*10) -> 1.089020772 | AD108: 1 | AE108: 120 | AF108: 2.0% | AG108: 36 | AH108: 2.068249258 | AI108: 2 | AJ108: 0 | AK108: 0.0% | AL108: 1 | AM108: 1.029673591 | AN108: 1 | AO108: 2,656 | AP108: 1.4% | AQ108: 8 | AR108: 1.237388724 | AS108: 1 | AT108: 240 | AU108: 5.1% | AV108: 217 | AW108: 7.439169139 | AX108: 7 | AY108: 0 | AZ108: 0.0% | BA108: 1 | BB108: 1.029673591 | BC108: 1 | BD108: 0 | BE108: 0.0% | BF108: 1 | BG108: 1.029673591 | BH108: 1 | BI108: 632 | BJ108: 10.0% | BK108: 85 | BL108: 3.522255193 | BM108: 3 | BN108: 28 | BO108: 0.5% | BP108: 45 | BQ108: 2.335311573 | BR108: 2 | BT108: 183 | BU108: 0
A109: ='[1]Rapport 5'!A109 -> 184 | B109: ='[1]Rapport 5'!B109 -> ILLZACH | C109: ='[1]Rapport 5'!C109 -> 4184 | D109: ='[1]Rapport 5'!D109 -> ILLZACH | E109: ='[1]Rapport 5'!E109 -> 5169 | F109: ='[1]Rapport 5'!F109 -> MULHOUSE | G109: ='[1]Rapport 5'!G109 -> 264 | H109: ='[1]Rapport 5'!H109 -> HAUT RHIN | I109: ='[1]Rapport 5'!I109 -> 10925.3 | J109: ='[1]Rapport 5'!J109 -> 561.34 | K109: ='[1]Rapport 5'!K109 -> 0 | L109: ='[1]Rapport 5'!L109 -> 0 | M109: ='[1]Rapport 5'!M109 -> 253872.86 | N109: ='[1]Rapport 5'!N109 -> 5362.05 | O109: ='[1]Rapport 5'!O109 -> 5928.5 | P109: ='[1]Rapport 5'!P109 -> 367.16 | Q109: ='[1]Rapport 5'!Q109 -> 0 | R109: ='[1]Rapport 5'!R109 -> 0 | S109: ='[1]Rapport 5'!S109 -> 854 | T109: ='[1]Rapport 5'!T109 -> 39 | U109: ='[1]Rapport 5'!U109 -> 8851.93 | V109: ='[1]Rapport 5'!V109 -> 2230.57 | W109: ='[1]Rapport 5'!W109 -> 4669.58 | X109: ='[1]Rapport 5'!X109 -> 37.3 | Y109: 285,102 | Z109: 8,597 | AA109: 3.0% | AB109: 85 | AC109: =1+(AB109/COUNT($AB$3:AB$339)*10) -> 3.522255193 | AD109: 3 | AE109: 561 | AF109: 5.1% | AG109: 214 | AH109: 7.350148368 | AI109: 7 | AJ109: 0 | AK109: 0.0% | AL109: 1 | AM109: 1.029673591 | AN109: 1 | AO109: 5,362 | AP109: 2.1% | AQ109: 65 | AR109: 2.928783383 | AS109: 2 | AT109: 367 | AU109: 6.2% | AV109: 237 | AW109: 8.03264095 | AX109: 8 | AY109: 0 | AZ109: 0.0% | BA109: 1 | BB109: 1.029673591 | BC109: 1 | BD109: 39 | BE109: 4.6% | BF109: 252 | BG109: 8.477744807 | BH109: 8 | BI109: 2,231 | BJ109: 25.2% | BK109: 280 | BL109: 9.308605341 | BM109: 9 | BN109: 37 | BO109: 0.8% | BP109: 54 | BQ109: 2.602373887 | BR109: 2 | BT109: 184 | BU109: 0
A110: ='[1]Rapport 5'!A110 -> 185 | B110: ='[1]Rapport 5'!B110 -> RIXHEIM | C110: ='[1]Rapport 5'!C110 -> 4185 | D110: ='[1]Rapport 5'!D110 -> RIXHEIM | E110: ='[1]Rapport 5'!E110 -> 5169 | F110: ='[1]Rapport 5'!F110 -> MULHOUSE | G110: ='[1]Rapport 5'!G110 -> 264 | H110: ='[1]Rapport 5'!H110 -> HAUT RHIN | I110: ='[1]Rapport 5'!I110 -> 11919.42 | J110: ='[1]Rapport 5'!J110 -> 9312.84 | K110: ='[1]Rapport 5'!K110 -> 0 | L110: ='[1]Rapport 5'!L110 -> 0 | M110: ='[1]Rapport 5'!M110 -> 228952.29 | N110: ='[1]Rapport 5'!N110 -> 6736.73 | O110: ='[1]Rapport 5'!O110 -> 5529 | P110: ='[1]Rapport 5'!P110 -> 375.6 | Q110: ='[1]Rapport 5'!Q110 -> 0 | R110: ='[1]Rapport 5'!R110 -> 0 | S110: ='[1]Rapport 5'!S110 -> 894.32 | T110: ='[1]Rapport 5'!T110 -> 147.74 | U110: ='[1]Rapport 5'!U110 -> 12535.51 | V110: ='[1]Rapport 5'!V110 -> 2185.68 | W110: ='[1]Rapport 5'!W110 -> 6198.81 | X110: ='[1]Rapport 5'!X110 -> 59.3 | Y110: 266,029 | Z110: 18,818 | AA110: 7.1% | AB110: 334 | AC110: =1+(AB110/COUNT($AB$3:AB$339)*10) -> 10.91097923 | AD110: 10 | AE110: 9,313 | AF110: 78.1% | AG110: 337 | AH110: 11 | AI110: 10 | AJ110: 0 | AK110: 0.0% | AL110: 1 | AM110: 1.029673591 | AN110: 1 | AO110: 6,737 | AP110: 2.9% | AQ110: 169 | AR110: 6.014836795 | AS110: 6 | AT110: 376 | AU110: 6.8% | AV110: 250 | AW110: 8.418397626 | AX110: 8 | AY110: 0 | AZ110: 0.0% | BA110: 1 | BB110: 1.029673591 | BC110: 1 | BD110: 148 | BE110: 16.5% | BF110: 303 | BG110: 9.991097923 | BH110: 9 | BI110: 2,186 | BJ110: 17.4% | BK110: 201 | BL110: 6.964391691 | BM110: 6 | BN110: 59 | BO110: 1.0% | BP110: 65 | BQ110: 2.928783383 | BR110: 2 | BT110: 185 | BU110: 0
A111: ='[1]Rapport 5'!A111 -> 186 | B111: ='[1]Rapport 5'!B111 -> BRUNSTATT | C111: ='[1]Rapport 5'!C111 -> 4174 | D111: ='[1]Rapport 5'!D111 -> MULHOUSE DORNACH | E111: ='[1]Rapport 5'!E111 -> 5169 | F111: ='[1]Rapport 5'!F111 -> MULHOUSE | G111: ='[1]Rapport 5'!G111 -> 264 | H111: ='[1]Rapport 5'!H111 -> HAUT RHIN | I111: ='[1]Rapport 5'!I111 -> 7023.99 | J111: ='[1]Rapport 5'!J111 -> 513.26 | K111: ='[1]Rapport 5'!K111 -> 0 | L111: ='[1]Rapport 5'!L111 -> 0 | M111: ='[1]Rapport 5'!M111 -> 158964.86 | N111: ='[1]Rapport 5'!N111 -> 5316.96 | O111: ='[1]Rapport 5'!O111 -> 4432 | P111: ='[1]Rapport 5'!P111 -> 606.65 | Q111: ='[1]Rapport 5'!Q111 -> 0 | R111: ='[1]Rapport 5'!R111 -> 0 | S111: ='[1]Rapport 5'!S111 -> 710 | T111: ='[1]Rapport 5'!T111 -> 82 | U111: ='[1]Rapport 5'!U111 -> 7522.81 | V111: ='[1]Rapport 5'!V111 -> 1380.73 | W111: ='[1]Rapport 5'!W111 -> 4817.57 | X111: ='[1]Rapport 5'!X111 -> 38 | Y111: 183,471 | Z111: 7,938 | AA111: 4.3% | AB111: 243 | AC111: =1+(AB111/COUNT($AB$3:AB$339)*10) -> 8.210682493 | AD111: 8 | AE111: =+J111 -> 513 | AF111: 7.3% | AG111: 268 | AH111: 8.952522255 | AI111: 8 | AJ111: 0 | AK111: 0.0% | AL111: 1 | AM111: 1.029673591 | AN111: 1 | AO111: 5,317 | AP111: 3.3% | AQ111: 228 | AR111: 7.765578635 | AS111: 7 | AT111: 607 | AU111: 13.7% | AV111: 300 | AW111: 9.902077151 | AX111: 9 | AY111: 0 | AZ111: 0.0% | BA111: 1 | BB111: 1.029673591 | BC111: 1 | BD111: 82 | BE111: 11.5% | BF111: 294 | BG111: 9.724035608 | BH111: 9 | BI111: 1,381 | BJ111: 18.4% | BK111: 216 | BL111: 7.409495549 | BM111: 7 | BN111: 38 | BO111: 0.8% | BP111: 52 | BQ111: 2.543026706 | BR111: 2 | BT111: 186 | BU111: 0
A112: ='[1]Rapport 5'!A112 -> 187 | B112: ='[1]Rapport 5'!B112 -> HUNINGUE | C112: ='[1]Rapport 5'!C112 -> 4178 | D112: ='[1]Rapport 5'!D112 -> SAINT LOUIS | E112: ='[1]Rapport 5'!E112 -> 5169 | F112: ='[1]Rapport 5'!F112 -> MULHOUSE | G112: ='[1]Rapport 5'!G112 -> 264 | H112: ='[1]Rapport 5'!H112 -> HAUT RHIN | I112: ='[1]Rapport 5'!I112 -> 5112.42 | J112: ='[1]Rapport 5'!J112 -> 282.32 | K112: ='[1]Rapport 5'!K112 -> 0 | L112: ='[1]Rapport 5'!L112 -> 0 | M112: ='[1]Rapport 5'!M112 -> 92686.86 | N112: ='[1]Rapport 5'!N112 -> 2858.24 | O112: ='[1]Rapport 5'!O112 -> 1587.5 | P112: ='[1]Rapport 5'!P112 -> 368 | Q112: ='[1]Rapport 5'!Q112 -> 0 | R112: ='[1]Rapport 5'!R112 -> 0 | S112: ='[1]Rapport 5'!S112 -> 470.54 | T112: ='[1]Rapport 5'!T112 -> 0 | U112: ='[1]Rapport 5'!U112 -> 4242.07 | V112: ='[1]Rapport 5'!V112 -> 968.19 | W112: ='[1]Rapport 5'!W112 -> 2441.96 | X112: ='[1]Rapport 5'!X112 -> 0 | Y112: 106,541 | Z112: 4,477 | AA112: 4.2% | AB112: 230 | AC112: =1+(AB112/COUNT($AB$3:AB$339)*10) -> 7.824925816 | AD112: 7 | AE112: 282 | AF112: 5.5% | AG112: 229 | AH112: 7.795252226 | AI112: 7 | AJ112: 0 | AK112: 0.0% | AL112: 1 | AM112: 1.029673591 | AN112: 1 | AO112: 2,858 | AP112: 3.1% | AQ112: 196 | AR112: 6.816023739 | AS112: 6 | AT112: 368 | AU112: 23.2% | AV112: 320 | AW112: 10.49554896 | AX112: 10 | AY112: 0 | AZ112: 0.0% | BA112: 1 | BB112: 1.029673591 | BC112: 1 | BD112: 0 | BE112: 0.0% | BF112: 1 | BG112: 1.029673591 | BH112: 1 | BI112: 968 | BJ112: 22.8% | BK112: 270 | BL112: 9.011869436 | BM112: 9 | BN112: 0 | BO112: 0.0% | BP112: 1 | BQ112: 1.029673591 | BR112: 1 | BT112: 187 | BU112: 0
A113: ='[1]Rapport 5'!A113 -> 188 | B113: ='[1]Rapport 5'!B113 -> PFASTATT | C113: ='[1]Rapport 5'!C113 -> 4188 | D113: ='[1]Rapport 5'!D113 -> PFASTATT | E113: ='[1]Rapport 5'!E113 -> 5169 | F113: ='[1]Rapport 5'!F113 -> MULHOUSE | G113: ='[1]Rapport 5'!G113 -> 264 | H113: ='[1]Rapport 5'!H113 -> HAUT RHIN | I113: ='[1]Rapport 5'!I113 -> 13186.03 | J113: ='[1]Rapport 5'!J113 -> 341.74 | K113: ='[1]Rapport 5'!K113 -> 0 | L113: ='[1]Rapport 5'!L113 -> 50 | M113: ='[1]Rapport 5'!M113 -> 289146.25 | N113: ='[1]Rapport 5'!N113 -> 5505.93 | O113: ='[1]Rapport 5'!O113 -> 4953 | P113: ='[1]Rapport 5'!P113 -> 0 | Q113: ='[1]Rapport 5'!Q113 -> 0 | R113: ='[1]Rapport 5'!R113 -> 0 | S113: ='[1]Rapport 5'!S113 -> 1058.42 | T113: ='[1]Rapport 5'!T113 -> 0 | U113: ='[1]Rapport 5'!U113 -> 18475.74 | V113: ='[1]Rapport 5'!V113 -> 2195.61 | W113: ='[1]Rapport 5'!W113 -> 6350.14 | X113: ='[1]Rapport 5'!X113 -> 42 | Y113: 333,170 | Z113: 8,135 | AA113: 2.4% | AB113: 34 | AC113: =1+(AB113/COUNT($AB$3:AB$339)*10) -> 2.008902077 | AD113: 2 | AE113: 342 | AF113: 2.6% | AG113: 66 | AH113: 2.958456973 | AI113: 2 | AJ113: 50 | AK113: 100.0% | AL113: 314 | AM113: 10.31750742 | AN113: 10 | AO113: 5,506 | AP113: 1.9% | AQ113: 44 | AR113: 2.305637982 | AS113: 2 | AT113: 0 | AU113: 0.0% | AV113: 1 | AW113: 1.029673591 | AX113: 1 | AY113: 0 | AZ113: 0.0% | BA113: 1 | BB113: 1.029673591 | BC113: 1 | BD113: 0 | BE113: 0.0% | BF113: 1 | BG113: 1.029673591 | BH113: 1 | BI113: 2,196 | BJ113: 11.9% | BK113: 112 | BL113: 4.323442136 | BM113: 4 | BN113: 42 | BO113: 0.7% | BP113: 48 | BQ113: 2.424332344 | BR113: 2 | BT113: 188 | BU113: 0
A114: ='[1]Rapport 5'!A114 -> 189 | B114: ='[1]Rapport 5'!B114 -> ALTKIRCH | C114: ='[1]Rapport 5'!C114 -> 4189 | D114: ='[1]Rapport 5'!D114 -> ALTKIRCH | E114: ='[1]Rapport 5'!E114 -> 5169 | F114: ='[1]Rapport 5'!F114 -> MULHOUSE | G114: ='[1]Rapport 5'!G114 -> 264 | H114: ='[1]Rapport 5'!H114 -> HAUT RHIN | I114: ='[1]Rapport 5'!I114 -> 8385.34 | J114: ='[1]Rapport 5'!J114 -> 282.13 | K114: ='[1]Rapport 5'!K114 -> 0 | L114: ='[1]Rapport 5'!L114 -> 0 | M114: ='[1]Rapport 5'!M114 -> 214795.06 | N114: ='[1]Rapport 5'!N114 -> 5313.58 | O114: ='[1]Rapport 5'!O114 -> 3524.5 | P114: ='[1]Rapport 5'!P114 -> 400 | Q114: ='[1]Rapport 5'!Q114 -> 0 | R114: ='[1]Rapport 5'!R114 -> 0 | S114: ='[1]Rapport 5'!S114 -> 396.19 | T114: ='[1]Rapport 5'!T114 -> 0 | U114: ='[1]Rapport 5'!U114 -> 14166.12 | V114: ='[1]Rapport 5'!V114 -> 2681.08 | W114: ='[1]Rapport 5'!W114 -> 9584.46 | X114: ='[1]Rapport 5'!X114 -> 202.16 | Y114: 250,852 | Z114: 8,879 | AA114: 3.5% | AB114: 157 | AC114: =1+(AB114/COUNT($AB$3:AB$339)*10) -> 5.658753709 | AD114: 5 | AE114: 282 | AF114: 3.4% | AG114: 111 | AH114: 4.293768546 | AI114: 4 | AJ114: 0 | AK114: 0.0% | AL114: 1 | AM114: 1.029673591 | AN114: 1 | AO114: 5,314 | AP114: 2.5% | AQ114: 115 | AR114: 4.412462908 | AS114: 4 | AT114: 400 | AU114: 11.3% | AV114: 286 | AW114: 9.486646884 | AX114: 9 | AY114: 0 | AZ114: 0.0% | BA114: 1 | BB114: 1.029673591 | BC114: 1 | BD114: 0 | BE114: 0.0% | BF114: 1 | BG114: 1.029673591 | BH114: 1 | BI114: 2,681 | BJ114: 18.9% | BK114: 221 | BL114: 7.557863501 | BM114: 7 | BN114: 202 | BO114: 2.1% | BP114: 117 | BQ114: 4.471810089 | BR114: 4 | BT114: 189 | BU114: 0
A115: ='[1]Rapport 5'!A115 -> 191 | B115: ='[1]Rapport 5'!B115 -> FERRETTE | C115: ='[1]Rapport 5'!C115 -> 4189 | D115: ='[1]Rapport 5'!D115 -> ALTKIRCH | E115: ='[1]Rapport 5'!E115 -> 5169 | F115: ='[1]Rapport 5'!F115 -> MULHOUSE | G115: ='[1]Rapport 5'!G115 -> 264 | H115: ='[1]Rapport 5'!H115 -> HAUT RHIN | I115: ='[1]Rapport 5'!I115 -> 5542.26 | J115: ='[1]Rapport 5'!J115 -> 195.33 | K115: ='[1]Rapport 5'!K115 -> 0 | L115: ='[1]Rapport 5'!L115 -> 0 | M115: ='[1]Rapport 5'!M115 -> 66770.84 | N115: ='[1]Rapport 5'!N115 -> 2525.15 | O115: ='[1]Rapport 5'!O115 -> 2575.5 | P115: ='[1]Rapport 5'!P115 -> 100 | Q115: ='[1]Rapport 5'!Q115 -> 0 | R115: ='[1]Rapport 5'!R115 -> 0 | S115: ='[1]Rapport 5'!S115 -> 122 | T115: ='[1]Rapport 5'!T115 -> 0 | U115: ='[1]Rapport 5'!U115 -> 2759.09 | V115: ='[1]Rapport 5'!V115 -> 929.4 | W115: ='[1]Rapport 5'!W115 -> 1637.91 | X115: ='[1]Rapport 5'!X115 -> 135.77 | Y115: 79,408 | Z115: 3,886 | AA115: 4.9% | AB115: 282 | AC115: =1+(AB115/COUNT($AB$3:AB$339)*10) -> 9.367952522 | AD115: 9 | AE115: 195 | AF115: 3.5% | AG115: 123 | AH115: 4.649851632 | AI115: 4 | AJ115: 0 | AK115: 0.0% | AL115: 1 | AM115: 1.029673591 | AN115: 1 | AO115: 2,525 | AP115: 3.8% | AQ115: 274 | AR115: 9.130563798 | AS115: 9 | AT115: 100 | AU115: 3.9% | AV115: 195 | AW115: 6.786350148 | AX115: 6 | AY115: 0 | AZ115: 0.0% | BA115: 1 | BB115: 1.029673591 | BC115: 1 | BD115: 0 | BE115: 0.0% | BF115: 1 | BG115: 1.029673591 | BH115: 1 | BI115: 929 | BJ115: 33.7% | BK115: 308 | BL115: 10.13946588 | BM115: 10 | BN115: 136 | BO115: 8.3% | BP115: 287 | BQ115: 9.516320475 | BR115: 9 | BT115: 191 | BU115: 0
A116: ='[1]Rapport 5'!A116 -> 192 | B116: ='[1]Rapport 5'!B116 -> SEPPOIS LE BAS | C116: ='[1]Rapport 5'!C116 -> 4193 | D116: ='[1]Rapport 5'!D116 -> DANNEMARIE | E116: ='[1]Rapport 5'!E116 -> 5169 | F116: ='[1]Rapport 5'!F116 -> MULHOUSE | G116: ='[1]Rapport 5'!G116 -> 264 | H116: ='[1]Rapport 5'!H116 -> HAUT RHIN | I116: ='[1]Rapport 5'!I116 -> 4280.64 | J116: ='[1]Rapport 5'!J116 -> 294.03 | K116: ='[1]Rapport 5'!K116 -> 0 | L116: ='[1]Rapport 5'!L116 -> 0 | M116: ='[1]Rapport 5'!M116 -> 75386.69 | N116: ='[1]Rapport 5'!N116 -> 2096.76 | O116: ='[1]Rapport 5'!O116 -> 3189.5 | P116: ='[1]Rapport 5'!P116 -> 410.81 | Q116: ='[1]Rapport 5'!Q116 -> 0 | R116: ='[1]Rapport 5'!R116 -> 0 | S116: ='[1]Rapport 5'!S116 -> 560.73 | T116: ='[1]Rapport 5'!T116 -> 0 | U116: ='[1]Rapport 5'!U116 -> 2778.23 | V116: ='[1]Rapport 5'!V116 -> 54.49 | W116: ='[1]Rapport 5'!W116 -> 939.53 | X116: ='[1]Rapport 5'!X116 -> 0 | Y116: 87,135 | Z116: 2,856 | AA116: 3.3% | AB116: 109 | AC116: =1+(AB116/COUNT($AB$3:AB$339)*10) -> 4.234421365 | AD116: 4 | AE116: 294 | AF116: 6.9% | AG116: 262 | AH116: 8.774480712 | AI116: 8 | AJ116: 0 | AK116: 0.0% | AL116: 1 | AM116: 1.029673591 | AN116: 1 | AO116: 2,097 | AP116: 2.8% | AQ116: 152 | AR116: 5.510385757 | AS116: 5 | AT116: 411 | AU116: 12.9% | AV116: 298 | AW116: 9.84272997 | AX116: 9 | AY116: 0 | AZ116: 0.0% | BA116: 1 | BB116: 1.029673591 | BC116: 1 | BD116: 0 | BE116: 0.0% | BF116: 1 | BG116: 1.029673591 | BH116: 1 | BI116: 54 | BJ116: 2.0% | BK116: 4 | BL116: 1.118694362 | BM116: 1 | BN116: 0 | BO116: 0.0% | BP116: 1 | BQ116: 1.029673591 | BR116: 1 | BT116: 192 | BU116: 0
A117: ='[1]Rapport 5'!A117 -> 193 | B117: ='[1]Rapport 5'!B117 -> DANNEMARIE | C117: ='[1]Rapport 5'!C117 -> 4193 | D117: ='[1]Rapport 5'!D117 -> DANNEMARIE | E117: ='[1]Rapport 5'!E117 -> 5169 | F117: ='[1]Rapport 5'!F117 -> MULHOUSE | G117: ='[1]Rapport 5'!G117 -> 264 | H117: ='[1]Rapport 5'!H117 -> HAUT RHIN | I117: ='[1]Rapport 5'!I117 -> 7842.99 | J117: ='[1]Rapport 5'!J117 -> 375.64 | K117: ='[1]Rapport 5'!K117 -> 0 | L117: ='[1]Rapport 5'!L117 -> 0 | M117: ='[1]Rapport 5'!M117 -> 150875.15 | N117: ='[1]Rapport 5'!N117 -> 8956.02 | O117: ='[1]Rapport 5'!O117 -> 5155.5 | P117: ='[1]Rapport 5'!P117 -> 899.5 | Q117: ='[1]Rapport 5'!Q117 -> 0 | R117: ='[1]Rapport 5'!R117 -> 0 | S117: ='[1]Rapport 5'!S117 -> 96 | T117: ='[1]Rapport 5'!T117 -> 23.38 | U117: ='[1]Rapport 5'!U117 -> 8612.89 | V117: ='[1]Rapport 5'!V117 -> 1954.85 | W117: ='[1]Rapport 5'!W117 -> 3863.56 | X117: ='[1]Rapport 5'!X117 -> 122.28 | Y117: 176,446 | Z117: 12,332 | AA117: 7.0% | AB117: 333 | AC117: =1+(AB117/COUNT($AB$3:AB$339)*10) -> 10.88130564 | AD117: 10 | AE117: 376 | AF117: 4.8% | AG117: 196 | AH117: 6.816023739 | AI117: 6 | AJ117: 0 | AK117: 0.0% | AL117: 1 | AM117: 1.029673591 | AN117: 1 | AO117: 8,956 | AP117: 5.9% | AQ117: 334 | AR117: 10.91097923 | AS117: 10 | AT117: 900 | AU117: 17.4% | AV117: 307 | AW117: 10.10979228 | AX117: 10 | AY117: 0 | AZ117: 0.0% | BA117: 1 | BB117: 1.029673591 | BC117: 1 | BD117: 23 | BE117: 24.4% | BF117: 317 | BG117: 10.40652819 | BH117: 10 | BI117: 1,955 | BJ117: 22.7% | BK117: 268 | BL117: 8.952522255 | BM117: 8 | BN117: 122 | BO117: 3.2% | BP117: 169 | BQ117: 6.014836795 | BR117: 6 | BT117: 193 | BU117: 0
A118: ='[1]Rapport 5'!A118 -> 194 | B118: ='[1]Rapport 5'!B118 -> THANN | C118: ='[1]Rapport 5'!C118 -> 4194 | D118: ='[1]Rapport 5'!D118 -> THANN | E118: ='[1]Rapport 5'!E118 -> 5169 | F118: ='[1]Rapport 5'!F118 -> MULHOUSE | G118: ='[1]Rapport 5'!G118 -> 264 | H118: ='[1]Rapport 5'!H118 -> HAUT RHIN | I118: ='[1]Rapport 5'!I118 -> 16683.75 | J118: ='[1]Rapport 5'!J118 -> 1272.47 | K118: ='[1]Rapport 5'!K118 -> 0 | L118: ='[1]Rapport 5'!L118 -> 0 | M118: ='[1]Rapport 5'!M118 -> 340342.25 | N118: ='[1]Rapport 5'!N118 -> 10438.77 | O118: ='[1]Rapport 5'!O118 -> 9064.5 | P118: ='[1]Rapport 5'!P118 -> 2750.92 | Q118: ='[1]Rapport 5'!Q118 -> 0 | R118: ='[1]Rapport 5'!R118 -> 0 | S118: ='[1]Rapport 5'!S118 -> 1310.59 | T118: ='[1]Rapport 5'!T118 -> 31 | U118: ='[1]Rapport 5'!U118 -> 30088.21 | V118: ='[1]Rapport 5'!V118 -> 11474.72 | W118: ='[1]Rapport 5'!W118 -> 8527.63 | X118: ='[1]Rapport 5'!X118 -> 283.23 | Y118: 406,017 | Z118: 26,251 | AA118: 6.5% | AB118: 329 | AC118: =1+(AB118/COUNT($AB$3:AB$339)*10) -> 10.76261128 | AD118: 10 | AE118: 1,272 | AF118: 7.6% | AG118: 273 | AH118: 9.100890208 | AI118: 9 | AJ118: 0 | AK118: 0.0% | AL118: 1 | AM118: 1.029673591 | AN118: 1 | AO118: 10,439 | AP118: 3.1% | AQ118: 194 | AR118: 6.756676558 | AS118: 6 | AT118: 2,751 | AU118: 30.3% | AV118: 327 | AW118: 10.70326409 | AX118: 10 | AY118: 0 | AZ118: 0.0% | BA118: 1 | BB118: 1.029673591 | BC118: 1 | BD118: 31 | BE118: 2.4% | BF118: 232 | BG118: 7.884272997 | BH118: 7 | BI118: 11,475 | BJ118: 38.1% | BK118: 317 | BL118: 10.40652819 | BM118: 10 | BN118: 283 | BO118: 3.3% | BP118: 178 | BQ118: 6.28189911 | BR118: 6 | BT118: 194 | BU118: 0
A119: ='[1]Rapport 5'!A119 -> 195 | B119: ='[1]Rapport 5'!B119 -> CERNAY | C119: ='[1]Rapport 5'!C119 -> 4195 | D119: ='[1]Rapport 5'!D119 -> CERNAY | E119: ='[1]Rapport 5'!E119 -> 5169 | F119: ='[1]Rapport 5'!F119 -> MULHOUSE | G119: ='[1]Rapport 5'!G119 -> 264 | H119: ='[1]Rapport 5'!H119 -> HAUT RHIN | I119: ='[1]Rapport 5'!I119 -> 13471.5 | J119: ='[1]Rapport 5'!J119 -> 551.64 | K119: ='[1]Rapport 5'!K119 -> 0 | L119: ='[1]Rapport 5'!L119 -> 0 | M119: ='[1]Rapport 5'!M119 -> 254826.44 | N119: ='[1]Rapport 5'!N119 -> 8694.25 | O119: ='[1]Rapport 5'!O119 -> 4012 | P119: ='[1]Rapport 5'!P119 -> 2059.21 | Q119: ='[1]Rapport 5'!Q119 -> 0 | R119: ='[1]Rapport 5'!R119 -> 0 | S119: ='[1]Rapport 5'!S119 -> 1046.75 | T119: ='[1]Rapport 5'!T119 -> 44 | U119: ='[1]Rapport 5'!U119 -> 15115.17 | V119: ='[1]Rapport 5'!V119 -> 2319.46 | W119: ='[1]Rapport 5'!W119 -> 4678.91 | X119: ='[1]Rapport 5'!X119 -> 223.9 | Y119: 293,151 | Z119: 13,892 | AA119: 4.7% | AB119: 274 | AC119: =1+(AB119/COUNT($AB$3:AB$339)*10) -> 9.130563798 | AD119: 9 | AE119: 552 | AF119: 4.1% | AG119: 152 | AH119: 5.510385757 | AI119: 5 | AJ119: 0 | AK119: 0.0% | AL119: 1 | AM119: 1.029673591 | AN119: 1 | AO119: 8,694 | AP119: 3.4% | AQ119: 234 | AR119: 7.943620178 | AS119: 7 | AT119: 2,059 | AU119: 51.3% | AV119: 331 | AW119: 10.82195846 | AX119: 10 | AY119: 0 | AZ119: 0.0% | BA119: 1 | BB119: 1.029673591 | BC119: 1 | BD119: 44 | BE119: 4.2% | BF119: 250 | BG119: 8.418397626 | BH119: 8 | BI119: 2,319 | BJ119: 15.3% | BK119: 164 | BL119: 5.866468843 | BM119: 5 | BN119: 224 | BO119: 4.8% | BP119: 224 | BQ119: 7.646884273 | BR119: 7 | BT119: 195 | BU119: 0
A120: ='[1]Rapport 5'!A120 -> 196 | B120: ='[1]Rapport 5'!B120 -> MASEVAUX | C120: ='[1]Rapport 5'!C120 -> 4196 | D120: ='[1]Rapport 5'!D120 -> MASEVAUX | E120: ='[1]Rapport 5'!E120 -> 5169 | F120: ='[1]Rapport 5'!F120 -> MULHOUSE | G120: ='[1]Rapport 5'!G120 -> 264 | H120: ='[1]Rapport 5'!H120 -> HAUT RHIN | I120: ='[1]Rapport 5'!I120 -> 8593.03 | J120: ='[1]Rapport 5'!J120 -> 222.61 | K120: ='[1]Rapport 5'!K120 -> 0 | L120: ='[1]Rapport 5'!L120 -> 0 | M120: ='[1]Rapport 5'!M120 -> 140245.24 | N120: ='[1]Rapport 5'!N120 -> 5103.75 | O120: ='[1]Rapport 5'!O120 -> 3828 | P120: ='[1]Rapport 5'!P120 -> 300 | Q120: ='[1]Rapport 5'!Q120 -> 0 | R120: ='[1]Rapport 5'!R120 -> 0 | S120: ='[1]Rapport 5'!S120 -> 140 | T120: ='[1]Rapport 5'!T120 -> 0 | U120: ='[1]Rapport 5'!U120 -> 11172.28 | V120: ='[1]Rapport 5'!V120 -> 1868.17 | W120: ='[1]Rapport 5'!W120 -> 3121.38 | X120: ='[1]Rapport 5'!X120 -> 77.65 | Y120: 167,100 | Z120: 7,572 | AA120: 4.5% | AB120: 257 | AC120: =1+(AB120/COUNT($AB$3:AB$339)*10) -> 8.62611276 | AD120: 8 | AE120: 223 | AF120: 2.6% | AG120: 65 | AH120: 2.928783383 | AI120: 2 | AJ120: 0 | AK120: 0.0% | AL120: 1 | AM120: 1.029673591 | AN120: 1 | AO120: 5,104 | AP120: 3.6% | AQ120: 260 | AR120: 8.715133531 | AS120: 8 | AT120: 300 | AU120: 7.8% | AV120: 264 | AW120: 8.833827893 | AX120: 8 | AY120: 0 | AZ120: 0.0% | BA120: 1 | BB120: 1.029673591 | BC120: 1 | BD120: 0 | BE120: 0.0% | BF120: 1 | BG120: 1.029673591 | BH120: 1 | BI120: 1,868 | BJ120: 16.7% | BK120: 190 | BL120: 6.637982196 | BM120: 6 | BN120: 78 | BO120: 2.5% | BP120: 142 | BQ120: 5.213649852 | BR120: 5 | BT120: 196 | BU120: 0
A121: ='[1]Rapport 5'!A121 -> 198 | B121: ='[1]Rapport 5'!B121 -> SAINT AMARIN | C121: ='[1]Rapport 5'!C121 -> 4194 | D121: ='[1]Rapport 5'!D121 -> THANN | E121: ='[1]Rapport 5'!E121 -> 5169 | F121: ='[1]Rapport 5'!F121 -> MULHOUSE | G121: ='[1]Rapport 5'!G121 -> 264 | H121: ='[1]Rapport 5'!H121 -> HAUT RHIN | I121: ='[1]Rapport 5'!I121 -> 3321.89 | J121: ='[1]Rapport 5'!J121 -> 151.56 | K121: ='[1]Rapport 5'!K121 -> 0 | L121: ='[1]Rapport 5'!L121 -> 0 | M121: ='[1]Rapport 5'!M121 -> 117087.45 | N121: ='[1]Rapport 5'!N121 -> 1915.17 | O121: ='[1]Rapport 5'!O121 -> 4299 | P121: ='[1]Rapport 5'!P121 -> 141 | Q121: ='[1]Rapport 5'!Q121 -> 0 | R121: ='[1]Rapport 5'!R121 -> 0 | S121: ='[1]Rapport 5'!S121 -> 342 | T121: ='[1]Rapport 5'!T121 -> 0 | U121: ='[1]Rapport 5'!U121 -> 6066.74 | V121: ='[1]Rapport 5'!V121 -> 912.99 | W121: ='[1]Rapport 5'!W121 -> 2540.05 | X121: ='[1]Rapport 5'!X121 -> 0 | Y121: 133,657 | Z121: 3,121 | AA121: 2.3% | AB121: 22 | AC121: =1+(AB121/COUNT($AB$3:AB$339)*10) -> 1.652818991 | AD121: 1 | AE121: =+J121 -> 152 | AF121: 4.6% | AG121: 182 | AH121: 6.400593472 | AI121: 6 | AJ121: 0 | AK121: 0.0% | AL121: 1 | AM121: 1.029673591 | AN121: 1 | AO121: 1,915 | AP121: 1.6% | AQ121: 19 | AR121: 1.56379822 | AS121: 1 | AT121: 141 | AU121: 3.3% | AV121: 177 | AW121: 6.252225519 | AX121: 6 | AY121: 0 | AZ121: 0.0% | BA121: 1 | BB121: 1.029673591 | BC121: 1 | BD121: 0 | BE121: 0.0% | BF121: 1 | BG121: 1.029673591 | BH121: 1 | BI121: 913 | BJ121: 15.0% | BK121: 162 | BL121: 5.807121662 | BM121: 5 | BN121: 0 | BO121: 0.0% | BP121: 1 | BQ121: 1.029673591 | BR121: 1 | BT121: 198 | BU121: 0
A122: ='[1]Rapport 5'!A122 -> 5800 | B122: ='[1]Rapport 5'!B122 -> EXPERTS DIRECT | C122: ='[1]Rapport 5'!C122 -> 405800 | D122: ='[1]Rapport 5'!D122 -> EXPERTS DIRECT | E122: ='[1]Rapport 5'!E122 -> 5800 | F122: ='[1]Rapport 5'!F122 -> EXPERTS DIRECT | G122: ='[1]Rapport 5'!G122 -> 269 | H122: ='[1]Rapport 5'!H122 -> BANQUE DIGITALE | I122: ='[1]Rapport 5'!I122 -> 67400.69 | J122: ='[1]Rapport 5'!J122 -> 1260.61 | K122: ='[1]Rapport 5'!K122 -> 0 | L122: ='[1]Rapport 5'!L122 -> 0 | M122: ='[1]Rapport 5'!M122 -> 998010.07 | N122: ='[1]Rapport 5'!N122 -> 14066.3 | O122: ='[1]Rapport 5'!O122 -> 5260 | P122: ='[1]Rapport 5'!P122 -> 78.5 | Q122: ='[1]Rapport 5'!Q122 -> 0 | R122: ='[1]Rapport 5'!R122 -> 0 | S122: ='[1]Rapport 5'!S122 -> 1236 | T122: ='[1]Rapport 5'!T122 -> 0 | U122: ='[1]Rapport 5'!U122 -> 62417.34 | V122: ='[1]Rapport 5'!V122 -> 2140.15 | W122: ='[1]Rapport 5'!W122 -> 1310.76 | X122: ='[1]Rapport 5'!X122 -> 0 | Y122: 1,135,635 | Z122: 17,546 | AA122: 1.5% | AB122: 2 | AC122: =1+(AB122/COUNT($AB$3:AB$339)*10) -> 1.059347181 | AD122: 1 | AE122: =+J122 -> 1,261 | AF122: 1.9% | AG122: 34 | AH122: 2.008902077 | AI122: 2 | AJ122: 0 | AK122: 0.0% | AL122: 1 | AM122: 1.029673591 | AN122: 1 | AO122: 14,066 | AP122: 1.4% | AQ122: 9 | AR122: 1.267062315 | AS122: 1 | AT122: 79 | AU122: 1.5% | AV122: 120 | AW122: 4.560830861 | AX122: 4 | AY122: 0 | AZ122: 0.0% | BA122: 1 | BB122: 1.029673591 | BC122: 1 | BD122: 0 | BE122: 0.0% | BF122: 1 | BG122: 1.029673591 | BH122: 1 | BI122: 2,140 | BJ122: 3.4% | BK122: 13 | BL122: 1.385756677 | BM122: 1 | BN122: 0 | BO122: 0.0% | BP122: 1 | BQ122: 1.029673591 | BR122: 1 | BT122: 5800 | BU122: 0
A123: ='[1]Rapport 5'!A123 -> 8801 | B123: ='[1]Rapport 5'!B123 -> CHARLEVILLE JEAN JAURES | C123: ='[1]Rapport 5'!C123 -> 408801 | D123: ='[1]Rapport 5'!D123 -> CHARLEVILLE JEAN JAURES | E123: ='[1]Rapport 5'!E123 -> 2 | F123: ='[1]Rapport 5'!F123 -> CHARLEVILLE MEZIERES | G123: ='[1]Rapport 5'!G123 -> 30 | H123: ='[1]Rapport 5'!H123 -> MARNE ARDENNES | I123: ='[1]Rapport 5'!I123 -> 20370.51 | J123: ='[1]Rapport 5'!J123 -> 897.31 | K123: ='[1]Rapport 5'!K123 -> 0 | L123: ='[1]Rapport 5'!L123 -> 0 | M123: ='[1]Rapport 5'!M123 -> 571184.92 | N123: ='[1]Rapport 5'!N123 -> 15483.74 | O123: ='[1]Rapport 5'!O123 -> 13396.5 | P123: ='[1]Rapport 5'!P123 -> 1839.61 | Q123: ='[1]Rapport 5'!Q123 -> 763.75 | R123: ='[1]Rapport 5'!R123 -> 0 | S123: ='[1]Rapport 5'!S123 -> 411 | T123: ='[1]Rapport 5'!T123 -> 0 | U123: ='[1]Rapport 5'!U123 -> 41612.17 | V123: ='[1]Rapport 5'!V123 -> 2285.49 | W123: ='[1]Rapport 5'!W123 -> 22610.41 | X123: ='[1]Rapport 5'!X123 -> 657.71 | Y123: 670,349 | Z123: 21,164 | AA123: 3.2% | AB123: 102 | AC123: =1+(AB123/COUNT($AB$3:AB$339)*10) -> 4.026706231 | AD123: 4 | AE123: =+J123 -> 897 | AF123: 4.4% | AG123: 171 | AH123: 6.074183976 | AI123: 6 | AJ123: 0 | AK123: 0.0% | AL123: 1 | AM123: 1.029673591 | AN123: 1 | AO123: 15,484 | AP123: 2.7% | AQ123: 141 | AR123: 5.183976261 | AS123: 5 | AT123: 1,840 | AU123: 13.7% | AV123: 301 | AW123: 9.931750742 | AX123: 9 | AY123: 0 | AZ123: 0.0% | BA123: 1 | BB123: 1.029673591 | BC123: 1 | BD123: 0 | BE123: 0.0% | BF123: 1 | BG123: 1.029673591 | BH123: 1 | BI123: 2,285 | BJ123: 5.5% | BK123: 28 | BL123: 1.830860534 | BM123: 1 | BN123: 658 | BO123: 2.9% | BP123: 161 | BQ123: 5.777448071 | BR123: 5 | BT123: 8801 | BU123: 0
A124: ='[1]Rapport 5'!A124 -> 8802 | B124: ='[1]Rapport 5'!B124 -> CHARLEVILLE NEVERS | C124: ='[1]Rapport 5'!C124 -> 508802 | D124: ='[1]Rapport 5'!D124 -> CHARLEVILLE NEVERS | E124: ='[1]Rapport 5'!E124 -> 2 | F124: ='[1]Rapport 5'!F124 -> CHARLEVILLE MEZIERES | G124: ='[1]Rapport 5'!G124 -> 30 | H124: ='[1]Rapport 5'!H124 -> MARNE ARDENNES | I124: ='[1]Rapport 5'!I124 -> 9865.93 | J124: ='[1]Rapport 5'!J124 -> 570.9 | K124: ='[1]Rapport 5'!K124 -> 0 | L124: ='[1]Rapport 5'!L124 -> 0 | M124: ='[1]Rapport 5'!M124 -> 181838.47 | N124: ='[1]Rapport 5'!N124 -> 7418.34 | O124: ='[1]Rapport 5'!O124 -> 9239 | P124: ='[1]Rapport 5'!P124 -> 28.5 | Q124: ='[1]Rapport 5'!Q124 -> 0 | R124: ='[1]Rapport 5'!R124 -> 0 | S124: ='[1]Rapport 5'!S124 -> 128.8 | T124: ='[1]Rapport 5'!T124 -> 14.8 | U124: ='[1]Rapport 5'!U124 -> 8669.27 | V124: ='[1]Rapport 5'!V124 -> 1610.57 | W124: ='[1]Rapport 5'!W124 -> 5643.05 | X124: ='[1]Rapport 5'!X124 -> 121.7 | Y124: 215,385 | Z124: 9,765 | AA124: 4.5% | AB124: 258 | AC124: =1+(AB124/COUNT($AB$3:AB$339)*10) -> 8.65578635 | AD124: 8 | AE124: 571 | AF124: 5.8% | AG124: 237 | AH124: 8.03264095 | AI124: 8 | AJ124: 0 | AK124: 0.0% | AL124: 1 | AM124: 1.029673591 | AN124: 1 | AO124: 7,418 | AP124: 4.1% | AQ124: 294 | AR124: 9.724035608 | AS124: 9 | AT124: 29 | AU124: 0.3% | AV124: 74 | AW124: 3.195845697 | AX124: 3 | AY124: 0 | AZ124: 0.0% | BA124: 1 | BB124: 1.029673591 | BC124: 1 | BD124: 15 | BE124: 11.5% | BF124: 293 | BG124: 9.694362018 | BH124: 9 | BI124: 1,611 | BJ124: 18.6% | BK124: 220 | BL124: 7.528189911 | BM124: 7 | BN124: 122 | BO124: 2.2% | BP124: 123 | BQ124: 4.649851632 | BR124: 4 | BT124: 8802 | BU124: 0
A125: ='[1]Rapport 5'!A125 -> 8806 | B125: ='[1]Rapport 5'!B125 -> SEDAN | C125: ='[1]Rapport 5'!C125 -> 408806 | D125: ='[1]Rapport 5'!D125 -> SEDAN | E125: ='[1]Rapport 5'!E125 -> 2 | F125: ='[1]Rapport 5'!F125 -> CHARLEVILLE MEZIERES | G125: ='[1]Rapport 5'!G125 -> 30 | H125: ='[1]Rapport 5'!H125 -> MARNE ARDENNES | I125: ='[1]Rapport 5'!I125 -> 22534.4 | J125: ='[1]Rapport 5'!J125 -> 912.38 | K125: ='[1]Rapport 5'!K125 -> 0 | L125: ='[1]Rapport 5'!L125 -> 0 | M125: ='[1]Rapport 5'!M125 -> 554960.88 | N125: ='[1]Rapport 5'!N125 -> 12751.23 | O125: ='[1]Rapport 5'!O125 -> 15139 | P125: ='[1]Rapport 5'!P125 -> 1163 | Q125: ='[1]Rapport 5'!Q125 -> 0 | R125: ='[1]Rapport 5'!R125 -> 0 | S125: ='[1]Rapport 5'!S125 -> 602 | T125: ='[1]Rapport 5'!T125 -> 0 | U125: ='[1]Rapport 5'!U125 -> 26350.65 | V125: ='[1]Rapport 5'!V125 -> 4058.37 | W125: ='[1]Rapport 5'!W125 -> 17924.2 | X125: ='[1]Rapport 5'!X125 -> 512.73 | Y125: 637,511 | Z125: 19,398 | AA125: 3.0% | AB125: 89 | AC125: =1+(AB125/COUNT($AB$3:AB$339)*10) -> 3.640949555 | AD125: 3 | AE125: 912 | AF125: 4.0% | AG125: 149 | AH125: 5.421364985 | AI125: 5 | AJ125: 0 | AK125: 0.0% | AL125: 1 | AM125: 1.029673591 | AN125: 1 | AO125: 12,751 | AP125: 2.3% | AQ125: 88 | AR125: 3.611275964 | AS125: 3 | AT125: 1,163 | AU125: 7.7% | AV125: 261 | AW125: 8.744807122 | AX125: 8 | AY125: 0 | AZ125: 0.0% | BA125: 1 | BB125: 1.029673591 | BC125: 1 | BD125: 0 | BE125: 0.0% | BF125: 1 | BG125: 1.029673591 | BH125: 1 | BI125: 4,058 | BJ125: 15.4% | BK125: 166 | BL125: 5.925816024 | BM125: 5 | BN125: 513 | BO125: 2.9% | BP125: 155 | BQ125: 5.599406528 | BR125: 5 | BT125: 8806 | BU125: 0
A126: ='[1]Rapport 5'!A126 -> 8814 | B126: ='[1]Rapport 5'!B126 -> VRIGNE AUX BOIS | C126: ='[1]Rapport 5'!C126 -> 408814 | D126: ='[1]Rapport 5'!D126 -> VRIGNE AUX BOIS | E126: ='[1]Rapport 5'!E126 -> 2 | F126: ='[1]Rapport 5'!F126 -> CHARLEVILLE MEZIERES | G126: ='[1]Rapport 5'!G126 -> 30 | H126: ='[1]Rapport 5'!H126 -> MARNE ARDENNES | I126: ='[1]Rapport 5'!I126 -> 3587.81 | J126: ='[1]Rapport 5'!J126 -> 91.2 | K126: ='[1]Rapport 5'!K126 -> 0 | L126: ='[1]Rapport 5'!L126 -> 0 | M126: ='[1]Rapport 5'!M126 -> 67938.48 | N126: ='[1]Rapport 5'!N126 -> 1206.76 | O126: ='[1]Rapport 5'!O126 -> 2514 | P126: ='[1]Rapport 5'!P126 -> 284.86 | Q126: ='[1]Rapport 5'!Q126 -> 0 | R126: ='[1]Rapport 5'!R126 -> 0 | S126: ='[1]Rapport 5'!S126 -> 0 | T126: ='[1]Rapport 5'!T126 -> 0 | U126: ='[1]Rapport 5'!U126 -> 1584.31 | V126: ='[1]Rapport 5'!V126 -> 12.5 | W126: ='[1]Rapport 5'!W126 -> 2617.61 | X126: ='[1]Rapport 5'!X126 -> 56 | Y126: 78,242 | Z126: 1,651 | AA126: 2.1% | AB126: 15 | AC126: =1+(AB126/COUNT($AB$3:AB$339)*10) -> 1.445103858 | AD126: 1 | AE126: 91 | AF126: 2.5% | AG126: 61 | AH126: 2.810089021 | AI126: 2 | AJ126: 0 | AK126: 0.0% | AL126: 1 | AM126: 1.029673591 | AN126: 1 | AO126: 1,207 | AP126: 1.8% | AQ126: 31 | AR126: 1.919881306 | AS126: 1 | AT126: 285 | AU126: 11.3% | AV126: 285 | AW126: 9.456973294 | AX126: 9 | AY126: 0 | AZ126: 0.0% | BA126: 1 | BB126: 1.029673591 | BC126: 1 | BD126: 0 | BE126: 0.0% | BF126: 1 | BG126: 1.029673591 | BH126: 1 | BI126: 13 | BJ126: 0.8% | BK126: 1 | BL126: 1.029673591 | BM126: 1 | BN126: 56 | BO126: 2.1% | BP126: 119 | BQ126: 4.53115727 | BR126: 4 | BT126: 8814 | BU126: 0
A127: ='[1]Rapport 5'!A127 -> 8815 | B127: ='[1]Rapport 5'!B127 -> CARIGNAN | C127: ='[1]Rapport 5'!C127 -> 508815 | D127: ='[1]Rapport 5'!D127 -> CARIGNAN | E127: ='[1]Rapport 5'!E127 -> 2 | F127: ='[1]Rapport 5'!F127 -> CHARLEVILLE MEZIERES | G127: ='[1]Rapport 5'!G127 -> 30 | H127: ='[1]Rapport 5'!H127 -> MARNE ARDENNES | I127: ='[1]Rapport 5'!I127 -> 8528.57 | J127: ='[1]Rapport 5'!J127 -> 120.3 | K127: ='[1]Rapport 5'!K127 -> 0 | L127: ='[1]Rapport 5'!L127 -> 0 | M127: ='[1]Rapport 5'!M127 -> 207553.68 | N127: ='[1]Rapport 5'!N127 -> 3140.55 | O127: ='[1]Rapport 5'!O127 -> 6014.5 | P127: ='[1]Rapport 5'!P127 -> 260 | Q127: ='[1]Rapport 5'!Q127 -> 0 | R127: ='[1]Rapport 5'!R127 -> 0 | S127: ='[1]Rapport 5'!S127 -> 111 | T127: ='[1]Rapport 5'!T127 -> 0 | U127: ='[1]Rapport 5'!U127 -> 6071.59 | V127: ='[1]Rapport 5'!V127 -> 781.41 | W127: ='[1]Rapport 5'!W127 -> 4160.49 | X127: ='[1]Rapport 5'!X127 -> 0 | Y127: 232,440 | Z127: 4,302 | AA127: 1.9% | AB127: 6 | AC127: =1+(AB127/COUNT($AB$3:AB$339)*10) -> 1.178041543 | AD127: 1 | AE127: 120 | AF127: 1.4% | AG127: 11 | AH127: 1.326409496 | AI127: 1 | AJ127: 0 | AK127: 0.0% | AL127: 1 | AM127: 1.029673591 | AN127: 1 | AO127: 3,141 | AP127: 1.5% | AQ127: 14 | AR127: 1.415430267 | AS127: 1 | AT127: 260 | AU127: 4.3% | AV127: 205 | AW127: 7.083086053 | AX127: 7 | AY127: 0 | AZ127: 0.0% | BA127: 1 | BB127: 1.029673591 | BC127: 1 | BD127: 0 | BE127: 0.0% | BF127: 1 | BG127: 1.029673591 | BH127: 1 | BI127: 781 | BJ127: 12.9% | BK127: 132 | BL127: 4.916913947 | BM127: 4 | BN127: 0 | BO127: 0.0% | BP127: 1 | BQ127: 1.029673591 | BR127: 1 | BT127: 8815 | BU127: 0
A128: ='[1]Rapport 5'!A128 -> 8817 | B128: ='[1]Rapport 5'!B128 -> CHARLEVILLE MOHON | C128: ='[1]Rapport 5'!C128 -> 508817 | D128: ='[1]Rapport 5'!D128 -> CHARLEVILLE MOHON | E128: ='[1]Rapport 5'!E128 -> 2 | F128: ='[1]Rapport 5'!F128 -> CHARLEVILLE MEZIERES | G128: ='[1]Rapport 5'!G128 -> 30 | H128: ='[1]Rapport 5'!H128 -> MARNE ARDENNES | I128: ='[1]Rapport 5'!I128 -> 9129.45 | J128: ='[1]Rapport 5'!J128 -> 2015.5 | K128: ='[1]Rapport 5'!K128 -> 0 | L128: ='[1]Rapport 5'!L128 -> 0 | M128: ='[1]Rapport 5'!M128 -> 208359.33 | N128: ='[1]Rapport 5'!N128 -> 3318.98 | O128: ='[1]Rapport 5'!O128 -> 2238.5 | P128: ='[1]Rapport 5'!P128 -> 4593.5 | Q128: ='[1]Rapport 5'!Q128 -> 0 | R128: ='[1]Rapport 5'!R128 -> 0 | S128: ='[1]Rapport 5'!S128 -> 87.1 | T128: ='[1]Rapport 5'!T128 -> 0 | U128: ='[1]Rapport 5'!U128 -> 8180.47 | V128: ='[1]Rapport 5'!V128 -> 1229.88 | W128: ='[1]Rapport 5'!W128 -> 3212.19 | X128: ='[1]Rapport 5'!X128 -> 230.18 | Y128: 231,207 | Z128: 11,388 | AA128: 4.9% | AB128: 286 | AC128: =1+(AB128/COUNT($AB$3:AB$339)*10) -> 9.486646884 | AD128: 9 | AE128: 2,016 | AF128: 22.1% | AG128: 327 | AH128: 10.70326409 | AI128: 10 | AJ128: 0 | AK128: 0.0% | AL128: 1 | AM128: 1.029673591 | AN128: 1 | AO128: 3,319 | AP128: 1.6% | AQ128: 16 | AR128: 1.474777448 | AS128: 1 | AT128: 4,594 | AU128: 205.2% | AV128: 337 | AW128: 11 | AX128: 10 | AY128: 0 | AZ128: 0.0% | BA128: 1 | BB128: 1.029673591 | BC128: 1 | BD128: 0 | BE128: 0.0% | BF128: 1 | BG128: 1.029673591 | BH128: 1 | BI128: 1,230 | BJ128: 15.0% | BK128: 161 | BL128: 5.777448071 | BM128: 5 | BN128: 230 | BO128: 7.2% | BP128: 275 | BQ128: 9.160237389 | BR128: 9 | BT128: 8817 | BU128: 0
A129: ='[1]Rapport 5'!A129 -> 8819 | B129: ='[1]Rapport 5'!B129 -> MOUZON | C129: ='[1]Rapport 5'!C129 -> 508819 | D129: ='[1]Rapport 5'!D129 -> MOUZON | E129: ='[1]Rapport 5'!E129 -> 2 | F129: ='[1]Rapport 5'!F129 -> CHARLEVILLE MEZIERES | G129: ='[1]Rapport 5'!G129 -> 30 | H129: ='[1]Rapport 5'!H129 -> MARNE ARDENNES | I129: ='[1]Rapport 5'!I129 -> 10390.21 | J129: ='[1]Rapport 5'!J129 -> 552.48 | K129: ='[1]Rapport 5'!K129 -> 0 | L129: ='[1]Rapport 5'!L129 -> 0 | M129: ='[1]Rapport 5'!M129 -> 163395.69 | N129: ='[1]Rapport 5'!N129 -> 5812.5 | O129: ='[1]Rapport 5'!O129 -> 2864 | P129: ='[1]Rapport 5'!P129 -> 0 | Q129: ='[1]Rapport 5'!Q129 -> 0 | R129: ='[1]Rapport 5'!R129 -> 0 | S129: ='[1]Rapport 5'!S129 -> 52 | T129: ='[1]Rapport 5'!T129 -> 0 | U129: ='[1]Rapport 5'!U129 -> 6219.24 | V129: ='[1]Rapport 5'!V129 -> 428.46 | W129: ='[1]Rapport 5'!W129 -> 4499.71 | X129: ='[1]Rapport 5'!X129 -> 48 | Y129: 187,421 | Z129: 6,841 | AA129: 3.7% | AB129: 166 | AC129: =1+(AB129/COUNT($AB$3:AB$339)*10) -> 5.925816024 | AD129: 5 | AE129: 552 | AF129: 5.3% | AG129: 219 | AH129: 7.49851632 | AI129: 7 | AJ129: 0 | AK129: 0.0% | AL129: 1 | AM129: 1.029673591 | AN129: 1 | AO129: 5,813 | AP129: 3.6% | AQ129: 253 | AR129: 8.507418398 | AS129: 8 | AT129: 0 | AU129: 0.0% | AV129: 1 | AW129: 1.029673591 | AX129: 1 | AY129: 0 | AZ129: 0.0% | BA129: 1 | BB129: 1.029673591 | BC129: 1 | BD129: 0 | BE129: 0.0% | BF129: 1 | BG129: 1.029673591 | BH129: 1 | BI129: 428 | BJ129: 6.9% | BK129: 46 | BL129: 2.364985163 | BM129: 2 | BN129: 48 | BO129: 1.1% | BP129: 68 | BQ129: 3.017804154 | BR129: 3 | BT129: 8819 | BU129: 0
A130: ='[1]Rapport 5'!A130 -> 8820 | B130: ='[1]Rapport 5'!B130 -> VOUZIERS | C130: ='[1]Rapport 5'!C130 -> 508820 | D130: ='[1]Rapport 5'!D130 -> VOUZIERS | E130: ='[1]Rapport 5'!E130 -> 2 | F130: ='[1]Rapport 5'!F130 -> CHARLEVILLE MEZIERES | G130: ='[1]Rapport 5'!G130 -> 30 | H130: ='[1]Rapport 5'!H130 -> MARNE ARDENNES | I130: ='[1]Rapport 5'!I130 -> 7722.64 | J130: ='[1]Rapport 5'!J130 -> 807.1 | K130: ='[1]Rapport 5'!K130 -> 0 | L130: ='[1]Rapport 5'!L130 -> 0 | M130: ='[1]Rapport 5'!M130 -> 157605.73 | N130: ='[1]Rapport 5'!N130 -> 4856.92 | O130: ='[1]Rapport 5'!O130 -> 3898 | P130: ='[1]Rapport 5'!P130 -> 0 | Q130: ='[1]Rapport 5'!Q130 -> 0 | R130: ='[1]Rapport 5'!R130 -> 0 | S130: ='[1]Rapport 5'!S130 -> 0 | T130: ='[1]Rapport 5'!T130 -> 0 | U130: ='[1]Rapport 5'!U130 -> 5727.13 | V130: ='[1]Rapport 5'!V130 -> 330.15 | W130: ='[1]Rapport 5'!W130 -> 6740.15 | X130: ='[1]Rapport 5'!X130 -> 235.5 | Y130: 181,694 | Z130: =+J130+L130+N130+P130+R130+T130+V130+X130 -> 6,230 | AA130: =+Z130/Y130 -> 3.4% | AB130: 134 | AC130: =1+(AB130/COUNT($AB$3:AB$339)*10) -> 4.976261128 | AD130: 4 | AE130: 807 | AF130: 10.5% | AG130: 307 | AH130: 10.10979228 | AI130: 10 | AJ130: 0 | AK130: 0.0% | AL130: 1 | AM130: 1.029673591 | AN130: 1 | AO130: 4,857 | AP130: 3.1% | AQ130: 195 | AR130: 6.786350148 | AS130: 6 | AT130: 0 | AU130: 0.0% | AV130: 1 | AW130: 1.029673591 | AX130: 1 | AY130: 0 | AZ130: 0.0% | BA130: 1 | BB130: 1.029673591 | BC130: 1 | BD130: 0 | BE130: 0.0% | BF130: 1 | BG130: 1.029673591 | BH130: 1 | BI130: 330 | BJ130: 5.8% | BK130: 30 | BL130: 1.890207715 | BM130: 1 | BN130: 236 | BO130: 3.5% | BP130: 187 | BQ130: 6.548961424 | BR130: 6 | BT130: 8820 | BU130: 0
A131: ='[1]Rapport 5'!A131 -> 8822 | B131: ='[1]Rapport 5'!B131 -> CHARLEVILLE MEZIERES | C131: ='[1]Rapport 5'!C131 -> 408822 | D131: ='[1]Rapport 5'!D131 -> CHARLEVILLE MEZIERES | E131: ='[1]Rapport 5'!E131 -> 2 | F131: ='[1]Rapport 5'!F131 -> CHARLEVILLE MEZIERES | G131: ='[1]Rapport 5'!G131 -> 30 | H131: ='[1]Rapport 5'!H131 -> MARNE ARDENNES | I131: ='[1]Rapport 5'!I131 -> 11081.95 | J131: ='[1]Rapport 5'!J131 -> 616.03 | K131: ='[1]Rapport 5'!K131 -> 0 | L131: ='[1]Rapport 5'!L131 -> 0 | M131: ='[1]Rapport 5'!M131 -> 243354.52 | N131: ='[1]Rapport 5'!N131 -> 6976.27 | O131: ='[1]Rapport 5'!O131 -> 7044.5 | P131: ='[1]Rapport 5'!P131 -> 0 | Q131: ='[1]Rapport 5'!Q131 -> 0 | R131: ='[1]Rapport 5'!R131 -> 0 | S131: ='[1]Rapport 5'!S131 -> 580.17 | T131: ='[1]Rapport 5'!T131 -> 0 | U131: ='[1]Rapport 5'!U131 -> 12884.6 | V131: ='[1]Rapport 5'!V131 -> 911.46 | W131: ='[1]Rapport 5'!W131 -> 5890.07 | X131: ='[1]Rapport 5'!X131 -> 310.3 | Y131: 280,836 | Z131: 8,814 | AA131: 3.1% | AB131: 100 | AC131: =1+(AB131/COUNT($AB$3:AB$339)*10) -> 3.96735905 | AD131: =+IF(INT(AC131)=11,10,INT(AC131)) -> 3 | AE131: 616 | AF131: 5.6% | AG131: 231 | AH131: 7.854599407 | AI131: 7 | AJ131: 0 | AK131: 0.0% | AL131: 1 | AM131: 1.029673591 | AN131: 1 | AO131: 6,976 | AP131: 2.9% | AQ131: 160 | AR131: 5.747774481 | AS131: 5 | AT131: 0 | AU131: 0.0% | AV131: 1 | AW131: 1.029673591 | AX131: 1 | AY131: 0 | AZ131: 0.0% | BA131: 1 | BB131: 1.029673591 | BC131: 1 | BD131: 0 | BE131: 0.0% | BF131: =RANK(BE131,$BE$3:$BE$339,1) -> 1 | BG131: =1+(BF131/COUNT($BF$3:$BF$339)*10) -> 1.029673591 | BH131: 1 | BI131: 911 | BJ131: 7.1% | BK131: =RANK(BJ131,$BJ$3:$BJ$339,1) -> 49 | BL131: =1+(BK131/COUNT($BK$3:$BK$339)*10) -> 2.454005935 | BM131: 2 | BN131: 310 | BO131: 5.3% | BP131: =RANK(BO131,$BO$3:$BO$339,1) -> 237 | BQ131: =1+(BP131/COUNT($BP$3:$BP$339)*10) -> 8.03264095 | BR131: 8 | BT131: 8822 | BU131: 0
A132: ='[1]Rapport 5'!A132 -> 8833 | B132: ='[1]Rapport 5'!B132 -> VILLERS SEMEUSE CORA | C132: ='[1]Rapport 5'!C132 -> 508833 | D132: ='[1]Rapport 5'!D132 -> VILLERS SEMEUSE CORA | E132: ='[1]Rapport 5'!E132 -> 2 | F132: ='[1]Rapport 5'!F132 -> CHARLEVILLE MEZIERES | G132: ='[1]Rapport 5'!G132 -> 30 | H132: ='[1]Rapport 5'!H132 -> MARNE ARDENNES | I132: ='[1]Rapport 5'!I132 -> 11340.89 | J132: ='[1]Rapport 5'!J132 -> 207.07 | K132: ='[1]Rapport 5'!K132 -> 0 | L132: ='[1]Rapport 5'!L132 -> 0 | M132: ='[1]Rapport 5'!M132 -> 217027.19 | N132: ='[1]Rapport 5'!N132 -> 6348.24 | O132: ='[1]Rapport 5'!O132 -> 5545 | P132: ='[1]Rapport 5'!P132 -> 31.5 | Q132: ='[1]Rapport 5'!Q132 -> 0 | R132: ='[1]Rapport 5'!R132 -> 0 | S132: ='[1]Rapport 5'!S132 -> 65 | T132: ='[1]Rapport 5'!T132 -> 13 | U132: ='[1]Rapport 5'!U132 -> 6735.29 | V132: ='[1]Rapport 5'!V132 -> 847.47 | W132: ='[1]Rapport 5'!W132 -> 2752.94 | X132: ='[1]Rapport 5'!X132 -> 93.3 | Y132: =+I132+K132+M132+O132+Q132+S132+U132+W132 -> 243,466 | Z132: 7,541 | AA132: 3.1% | AB132: =RANK(AA132,$AA$3:$AA$339,1) -> 98 | AC132: =1+(AB132/COUNT($AB$3:AB$339)*10) -> 3.908011869 | AD132: 3 | AE132: 207 | AF132: =+AE132/I132 -> 1.8% | AG132: =RANK(AF132,$AF$3:$AF$339,1) -> 29 | AH132: =1+(AG132/COUNT($AG$3:$AG$339)*10) -> 1.860534125 | AI132: =+IF(INT(AH132)=11,10,INT(AH132)) -> 1 | AJ132: =+L132 -> 0 | AK132: =+IF(ISERROR(IF(AJ132=0,0,AJ132/K132)),1,IF(AJ132=0,0,AJ132/K132)) -> 0.0% | AL132: =RANK(AK132,$AK$3:$AK$339,1) -> 1 | AM132: =1+(AL132/COUNT($AL$3:$AL$339)*10) -> 1.029673591 | AN132: =+IF(INT(AM132)=11,10,INT(AM132)) -> 1 | AO132: =+N132 -> 6,348 | AP132: =+IF(ISERROR(IF(AO132=0,0,AO132/M132)),1,IF(AO132=0,0,AO132/M132)) -> 2.9% | AQ132: =RANK(AP132,$AP$3:$AP$339,1) -> 167 | AR132: =1+(AQ132/COUNT($AQ$3:$AQ$339)*10) -> 5.955489614 | AS132: =+IF(INT(AR132)=11,10,INT(AR132)) -> 5 | AT132: 32 | AU132: 0.6% | AV132: =RANK(AU132,$AU$3:$AU$339,1) -> 87 | AW132: =1+(AV132/COUNT($AV$3:$AV$339)*10) -> 3.581602374 | AX132: 3 | AY132: 0 | AZ132: 0.0% | BA132: =RANK(AZ132,$AZ$3:$AZ$339,1) -> 1 | BB132: =1+(BA132/COUNT($BA$3:$BA$339)*10) -> 1.029673591 | BC132: 1 | BD132: 13 | BE132: 20.0% | BF132: 311 | BG132: 10.22848665 | BH132: 10 | BI132: 847 | BJ132: 12.6% | BK132: 125 | BL132: 4.709198813 | BM132: 4 | BN132: 93 | BO132: 3.4% | BP132: 183 | BQ132: 6.430267062 | BR132: 6 | BT132: 8833 | BU132: =+BT132-A132 -> 0
A133: ='[1]Rapport 5'!A133 -> 8839 | B133: ='[1]Rapport 5'!B133 -> GIVET | C133: ='[1]Rapport 5'!C133 -> 508839 | D133: ='[1]Rapport 5'!D133 -> GIVET | E133: ='[1]Rapport 5'!E133 -> 2 | F133: ='[1]Rapport 5'!F133 -> CHARLEVILLE MEZIERES | G133: ='[1]Rapport 5'!G133 -> 30 | H133: ='[1]Rapport 5'!H133 -> MARNE ARDENNES | I133: ='[1]Rapport 5'!I133 -> 6327.6 | J133: ='[1]Rapport 5'!J133 -> 427.28 | K133: ='[1]Rapport 5'!K133 -> 0 | L133: ='[1]Rapport 5'!L133 -> 0 | M133: ='[1]Rapport 5'!M133 -> 167134.19 | N133: ='[1]Rapport 5'!N133 -> 6964.79 | O133: ='[1]Rapport 5'!O133 -> 4914.5 | P133: ='[1]Rapport 5'!P133 -> 84 | Q133: ='[1]Rapport 5'!Q133 -> 0 | R133: ='[1]Rapport 5'!R133 -> 0 | S133: ='[1]Rapport 5'!S133 -> 78 | T133: ='[1]Rapport 5'!T133 -> 13 | U133: ='[1]Rapport 5'!U133 -> 4473.89 | V133: ='[1]Rapport 5'!V133 -> 1308.9 | W133: ='[1]Rapport 5'!W133 -> 5125.39 | X133: ='[1]Rapport 5'!X133 -> 12 | Y133: 188,054 | Z133: 8,810 | AA133: 4.7% | AB133: 269 | AC133: =1+(AB133/COUNT($AB$3:AB$339)*10) -> 8.982195846 | AD133: 8 | AE133: 427 | AF133: 6.8% | AG133: 257 | AH133: 8.62611276 | AI133: 8 | AJ133: 0 | AK133: 0.0% | AL133: 1 | AM133: 1.029673591 | AN133: 1 | AO133: 6,965 | AP133: 4.2% | AQ133: 300 | AR133: 9.902077151 | AS133: 9 | AT133: =+P133 -> 84 | AU133: =+IF(ISERROR(IF(AT133=0,0,AT133/O133)),1,IF(AT133=0,0,AT133/O133)) -> 1.7% | AV133: 126 | AW133: 4.738872404 | AX133: =+IF(INT(AW133)=11,10,INT(AW133)) -> 4 | AY133: =+R133 -> 0 | AZ133: =+IF(ISERROR(IF(AY133=0,0,AY133/T133)),1,IF(AY133=0,0,AY133/T133)) -> 0.0% | BA133: 1 | BB133: 1.029673591 | BC133: =+IF(INT(BB133)=11,10,INT(BB133)) -> 1 | BD133: =+T133 -> 13 | BE133: =+IF(ISERROR(IF(BD133=0,0,BD133/S133)),1,IF(BD133=0,0,BD133/S133)) -> 16.7% | BF133: 304 | BG133: 10.02077151 | BH133: =+IF(INT(BG133)=11,10,INT(BG133)) -> 10 | BI133: =+V133 -> 1,309 | BJ133: =+IF(ISERROR(IF(BI133=0,0,BI133/U133)),1,IF(BI133=0,0,BI133/U133)) -> 29.3% | BK133: 293 | BL133: 9.694362018 | BM133: =+IF(INT(BL133)=11,10,INT(BL133)) -> 9 | BN133: =+X133 -> 12 | BO133: =+IF(ISERROR(IF(BN133=0,0,BN133/W133)),1,IF(BN133=0,0,BN133/W133)) -> 0.2% | BP133: 32 | BQ133: 1.949554896 | BR133: =+IF(INT(BQ133)=11,10,INT(BQ133)) -> 1 | BT133: 8839 | BU133: 0
